Workbook

Sheet Sample Report (hidden)
A2: Date
A3: Hen
A4: Program
A5: Start at 999999
A6: Sequence component 1 | B6: Time 1 | C6: Seqeunce Component 2 | D6: Time 2 | E6: Seqeunce Component 3 | F6: Time 3 | G6: Correct 0 = No 1=Yes | J6: Seqeunce | K6: Time
A7: 12 | B7: 7 | C7: 12 | D7: 42 | E7: 13 | F7: 18 | G7: if 77 new line, if 31 or 41 = yes new line on 77, | J7: =string of Seqeunce compponent 1, 2 & 3 | K7: =time 3
A8: This continues until ther is a 1 on its own to indicate start of summary data
J9: 10-19 =1
A10: Summary Data | J10: 20-29 =2
A11: Correct | B11: Incorrect | C11: Rft | D11: total | E11: Av Correct | F11: Av Incorrect | G11: Percent correct | H11: Time | J11: in this example the seqeunce would be 111
A12: 40 | B12: 33 | C12: 40 | D12: 73 | E12: 23.95 | F12: 15 | G12: 54 | H12: 806

Sheet Summary
A2: Day | B2: Date | C2: Average Response Rate | D2: Target % | E2: RF for non correct sequence | F2: U Value | K2: Block 1 | L2: Block 2 | M2: Block 3 | N2: Block 4 | O2: Block 5 | P2: Block 6
A3: 1 | B3: ='!M511B10.176'!B2:C2 -> <date> | C3: =('!M513B50.176'!F203/60)/'!M513B50.176'!Q3 -> 2.027241963 | D3: ='!M513B50.176'!N20/'!M513B50.176'!Q3 -> 0.01015228426 | E3: =SUM('!M513B50.176'!L20:Q20)/'!M513B50.176'!Q3 -> 1.472081218 | F3: ='!M513B50.176'!Q16 -> 0.2773737832 | J3: Average Response Rate | K3: =AVERAGE(C3:C6) -> 2.175548384 | L3: =AVERAGE(C7:C11) -> 2.003169563 | M3: =AVERAGE(C12:C16) -> 1.915222972 | N3: =AVERAGE(C17:C21) -> 1.976910585 | O3: =AVERAGE(C22:C26) -> 1.842207011 | P3: =AVERAGE(C27:C31) -> 1.76018191
A4: 2 | B4: ='!M513B50.176'!B2:C2 -> <date> | C4: =('!M514B20.176'!F176/60)/'!M514B20.176'!Q3 -> 2.328265107 | D4: ='!M514B20.176'!N20/'!M514B20.176'!Q3 -> 0.02923976608 | E4: =SUM('!M514B20.176'!L20:Q20)/'!M514B20.176'!Q3 -> 1.660818713 | F4: ='!M514B20.176'!Q16 -> 0.3023353302 | J4: Target % | K4: =AVERAGE(D3:D6) -> 0.1069069583 | L4: =AVERAGE(D7:D11) -> 0.2134301162 | M4: =AVERAGE(D12:D16) -> 0.2077120362 | N4: =AVERAGE(D17:D21) -> 0.1159710043 | O4: =AVERAGE(D22:D26) -> 0.07560784314 | P4: =AVERAGE(D27:D31) -> 0.08468014625
A5: 3 | B5: ='!M514B20.176'!B2:C2 -> <date> | C5: =('!M516A20.176'!F187/60)/'!M516A20.176'!Q3 -> 2.205709024 | D5: ='!M516A20.176'!N20/'!M516A20.176'!Q3 -> 0.1325966851 | E5: =SUM('!M516A20.176'!L20:Q20)/'!M516A20.176'!Q3 -> 1.685082873 | F5: ='!M516A20.176'!Q16 -> 0.3401644373 | J5: CCRF | K5: =AVERAGE(E3:E6) -> 1.768405476 | L5: =AVERAGE(E7:E11) -> 2.336179014 | M5: =AVERAGE(E12:E16) -> 2.378248903 | N5: =AVERAGE(E17:E21) -> 2.409052388 | O5: =AVERAGE(E22:E26) -> 2.678947415 | P5: =AVERAGE(E27:E31) -> 2.842215761
A6: 4 | B6: ='!M516A20.176'!B2:C2 -> <date> | C6: =('!M517900.096'!F139/60)/'!M517900.096'!Q3 -> 2.140977444 | D6: ='!M517900.096'!N20/'!M517900.096'!Q3 -> 0.2556390977 | E6: =SUM('!M517900.096'!L20:Q20)/'!M517900.096'!Q3 -> 2.255639098 | F6: ='!M517900.096'!Q16 -> 0.3445831093 | J6: U Value | K6: =AVERAGE(F3:F6) -> 0.316114165 | L6: =AVERAGE(F7:F11) -> 0.3014888616 | M6: =AVERAGE(F12:F16) -> 0.2308087036 | N6: =AVERAGE(F17:F21) -> 0.2513015299 | O6: =AVERAGE(F22:F26) -> 0.1944340741 | P6: =AVERAGE(F27:F31) -> 0.1273528668
A7: 5 | B7: ='!M517900.096'!B2:C2 -> <date> | C7: =('!M518A30.096'!F114/60)/'!M518A30.096'!Q3 -> 2.08132716 | D7: ='!M518A30.096'!N20/'!M518A30.096'!Q3 -> 0.2962962963 | E7: =SUM('!M518A30.096'!L20:Q20)/'!M518A30.096'!Q3 -> 1.75 | F7: ='!M518A30.096'!Q16 -> 0.3409528223
A8: 6 | B8: ='!M518A30.096'!B2:C2 -> <date> | C8: =('!M519920.096'!F92/60)/'!M519920.096'!Q3 -> 2.099806202 | D8: ='!M519920.096'!N20/'!M519920.096'!Q3 -> 0.1976744186 | E8: =SUM('!M519920.096'!L20:Q20)/'!M519920.096'!Q3 -> 3.11627907 | F8: ='!M519920.096'!Q16 -> 0.3143199995
A9: 7 | B9: ='!M519920.096'!B2:C2 -> <date> | C9: =('!M520B20.096'!F82/60)/'!M520B20.096'!Q3 -> 2.038596491 | D9: ='!M520B20.096'!N20/'!M520B20.096'!Q3 -> 0.2368421053 | E9: =SUM('!M520B20.096'!L20:Q20)/'!M520B20.096'!Q3 -> 2.039473684 | F9: ='!M520B20.096'!Q16 -> 0.3017781252 | G9: =K3 -> 2.175548384 | H9: 2.003169563 | I9: 1.915222972 | J9: 1.976910585 | K9: 1.842207011 | L9: 1.76018191 | M9: =K4 -> 0.1069069583 | N9: 0.2134301162 | O9: 0.2077120362 | P9: 0.1159710043 | Q9: 0.07560784314 | R9: 0.08468014625 | S9: =K6 -> 0.316114165 | T9: 0.3014888616 | U9: 0.2308087036 | V9: 0.2513015299 | W9: 0.1944340741 | X9: 0.1273528668
A10: 8 | B10: ='!M520B20.096'!B2:C2 -> <date> | C10: =('!M522A20.096'!F74/60)/'!M522A20.096'!Q3 -> 1.892892157 | D10: ='!M522A20.096'!N20/'!M522A20.096'!Q3 -> 0.1911764706 | E10: =SUM('!M522A20.096'!L20:Q20)/'!M522A20.096'!Q3 -> 2.323529412 | F10: ='!M522A20.096'!Q16 -> 0.2777899904
A11: 9 | B11: ='!M522A20.096'!B2:C2 -> <date> | C11: =('!M524850.096'!F68/60)/'!M524850.096'!Q3 -> 1.903225806 | D11: ='!M524850.096'!N20/'!M524850.096'!Q3 -> 0.1451612903 | E11: =SUM('!M524850.096'!L20:Q20)/'!M524850.096'!Q3 -> 2.451612903 | F11: ='!M524850.096'!Q16 -> 0.2726033706
A12: 10 | B12: ='!M524850.096'!B2:C2 -> <date> | C12: =('!M526C20.096'!F83/60)/'!M526C20.096'!Q3 -> 1.953896104 | D12: ='!M526C20.096'!N20/'!M526C20.096'!Q3 -> 0.2727272727 | E12: =SUM('!M526C20.096'!L20:Q20)/'!M526C20.096'!Q3 -> 2.064935065 | F12: ='!M526C20.096'!Q16 -> 0.2822704219
A13: 11 | B13: ='!M526C20.096'!B2:C2 -> <date> | C13: =('!M529B30.096'!F75/60)/'!M529B30.096'!Q3 -> 1.953140097 | D13: ='!M529B30.096'!N20/'!M529B30.096'!Q3 -> 0.2898550725 | E13: =SUM('!M529B30.096'!L20:Q20)/'!M529B30.096'!Q3 -> 2.246376812 | F13: ='!M529B30.096'!Q16 -> 0.2483171057
A14: 12 | B14: ='!M529B30.096'!B2:C2 -> <date> | C14: =('!M531B30.096'!F71/60)/'!M531B30.096'!Q3 -> 1.951282051 | D14: ='!M531B30.096'!N20/'!M531B30.096'!Q3 -> 0.2153846154 | E14: =SUM('!M531B30.096'!L20:Q20)/'!M531B30.096'!Q3 -> 2.415384615 | F14: ='!M531B30.096'!Q16 -> 0.2536028205
A15: 13 | B15: ='!M531B30.096'!B2:C2 -> <date> | C15: =('!M601D50.096'!F54/60)/'!M601D50.096'!Q3 -> 1.833333333 | D15: ='!M601D50.096'!N20/'!M601D50.096'!Q3 -> 0.125 | E15: =SUM('!M601D50.096'!L20:Q20)/'!M601D50.096'!Q3 -> 2.791666667 | F15: ='!M601D50.096'!Q16 -> 0.1480586681
A16: 14 | B16: ='!M601D50.096'!B2:C2 -> <date> | C16: =('!M611B00.096'!F65/60)/'!M611B00.096'!Q3 -> 1.884463277 | D16: ='!M611B00.096'!N20/'!M611B00.096'!Q3 -> 0.1355932203 | E16: =SUM('!M611B00.096'!L20:Q20)/'!M611B00.096'!Q3 -> 2.372881356 | F16: ='!M611B00.096'!Q16 -> 0.2217945018
A17: 15 | B17: ='!M611B00.096'!B2:C2 -> <date> | C17: =('!M612B00.096'!F64/60)/'!M612B00.096'!Q3 -> 1.914367816 | D17: ='!M612B00.096'!N20/'!M612B00.096'!Q3 -> 0.08620689655 | E17: =SUM('!M612B00.096'!L20:Q20)/'!M612B00.096'!Q3 -> 2.344827586 | F17: ='!M612B00.096'!Q16 -> 0.2656457902
A18: 16 | B18: ='!M612B00.096'!B2:C2 -> <date> | C18: =('!M625B20.096'!F84/60)/'!M625B20.096'!Q3 -> 2.042948718 | D18: ='!M625B20.096'!N20/'!M625B20.096'!Q3 -> 0.2820512821 | E18: =SUM('!M625B20.096'!L20:Q20)/'!M625B20.096'!Q3 -> 2.179487179 | F18: ='!M625B20.096'!Q16 -> 0.2856791916
A19: 17 | B19: ='!M625B20.096'!B2:C2 -> <date> | C19: =('!M626D20.096'!F67/60)/'!M626D20.096'!Q3 -> 2.006557377 | D19: ='!M626D20.096'!N20/'!M626D20.096'!Q3 -> 0.08196721311 | E19: =SUM('!M626D20.096'!L20:Q20)/'!M626D20.096'!Q3 -> 2.409836066 | F19: ='!M626D20.096'!Q16 -> 0.2577544581
A20: 18 | B20: ='!M626D20.096'!B2:C2 -> <date> | C20: =('!M627A50.096'!F60/60)/'!M627A50.096'!Q3 -> 1.942901235 | D20: ='!M627A50.096'!N20/'!M627A50.096'!Q3 -> 0.03703703704 | E20: =SUM('!M627A50.096'!L20:Q20)/'!M627A50.096'!Q3 -> 2.611111111 | F20: ='!M627A50.096'!Q16 -> 0.22128497
A21: 19 | B21: ='!M627A50.096'!B2:C2 -> <date> | C21: =('!M628B30.096'!F60/60)/'!M628B30.096'!Q3 -> 1.977777778 | D21: ='!M628B30.096'!N20/'!M628B30.096'!Q3 -> 0.09259259259 | E21: =SUM('!M628B30.096'!L20:Q20)/'!M628B30.096'!Q3 -> 2.5 | F21: ='!M628B30.096'!Q16 -> 0.2261432398
A22: 20 | B22: ='!M628B30.096'!B2:C2 -> <date> | C22: =('!M629950.096'!F61/60)/'!M629950.096'!Q3 -> 1.881212121 | D22: ='!M629950.096'!N20/'!M629950.096'!Q3 -> 0.09090909091 | E22: =SUM('!M629950.096'!L20:Q20)/'!M629950.096'!Q3 -> 2.618181818 | F22: ='!M629950.096'!Q16 -> 0.2200748249
A23: 21 | B23: ='!M629950.096'!B2:C2 -> <date> | C23: =('!M630900.096'!F56/60)/'!M630900.096'!Q3 -> 1.925666667 | D23: ='!M630900.096'!N20/'!M630900.096'!Q3 -> 0.08 | E23: =SUM('!M630900.096'!L20:Q20)/'!M630900.096'!Q3 -> 2.66 | F23: ='!M630900.096'!Q16 -> 0.1761421395
A24: 22 | B24: ='!M630900.096'!B2:C2 -> <date> | C24: =('!M701A40.096'!F54/60)/'!M701A40.096'!Q3 -> 1.741666667 | D24: ='!M701A40.096'!N20/'!M701A40.096'!Q3 -> 0 | E24: =SUM('!M701A40.096'!L20:Q20)/'!M701A40.096'!Q3 -> 2.854166667 | F24: ='!M701A40.096'!Q16 -> 0.1448702217
A25: 23 | B25: ='!M701A40.096'!B2:C2 -> <date> | C25: =('!M702850.096'!F61/60)/'!M702850.096'!Q3 -> 1.899090909 | D25: ='!M702850.096'!N20/'!M702850.096'!Q3 -> 0.1090909091 | E25: =SUM('!M702850.096'!L20:Q20)/'!M702850.096'!Q3 -> 2.654545455 | F25: ='!M702850.096'!Q16 -> 0.2416323613
A26: 24 | B26: ='!M702850.096'!B2:C2 -> <date> | C26: =('!M703740.096'!F57/60)/'!M703740.096'!Q3 -> 1.763398693 | D26: ='!M703740.096'!N20/'!M703740.096'!Q3 -> 0.09803921569 | E26: =SUM('!M703740.096'!L20:Q20)/'!M703740.096'!Q3 -> 2.607843137 | F26: ='!M703740.096'!Q16 -> 0.1894508232
A27: 25 | B27: ='!M703740.096'!B2:C2 -> <date> | C27: =('!M704A20.096'!F52/60)/'!M704A20.096'!Q3 -> 1.707971014 | D27: ='!M704A20.096'!N20/'!M704A20.096'!Q3 -> 0.02173913043 | E27: =SUM('!M704A20.096'!L20:Q20)/'!M704A20.096'!Q3 -> 2.782608696 | F27: ='!M704A20.096'!Q16 -> 0.1464348332
A28: 26 | B28: ='!M704A20.096'!B2:C2 -> <date> | C28: =('!M705810.096'!F53/60)/'!M705810.096'!Q3 -> 1.794680851 | D28: ='!M705810.096'!N20/'!M705810.096'!Q3 -> 0.1063829787 | E28: =SUM('!M705810.096'!L20:Q20)/'!M705810.096'!Q3 -> 2.829787234 | F28: ='!M705810.096'!Q16 -> 0.14011383
A29: 27 | B29: ='!M705810.096'!B2:C2 -> <date> | C29: =('!M706950.096'!F56/60)/'!M706950.096'!Q3 -> 1.831 | D29: ='!M706950.096'!N20/'!M706950.096'!Q3 -> 0.12 | E29: =SUM('!M706950.096'!L20:Q20)/'!M706950.096'!Q3 -> 2.7 | F29: ='!M706950.096'!Q16 -> 0.1738209534
A30: 28 | B30: ='!M706950.096'!B2:C2 -> <date> | C30: =('!M707A30.096'!F53/60)/'!M707A30.096'!Q3 -> 1.728368794 | D30: ='!M707A30.096'!N20/'!M707A30.096'!Q3 -> 0.1276595745 | E30: =SUM('!M707A30.096'!L20:Q20)/'!M707A30.096'!Q3 -> 2.85106383 | F30: ='!M707A30.096'!Q16 -> 0.1251745451
A31: 29 | B31: ='!M707A30.096'!B2:C2 -> <date> | C31: =('!M708820.096'!F48/60)/'!M708820.096'!Q3 -> 1.738888889 | D31: ='!M708820.096'!N20/'!M708820.096'!Q3 -> 0.04761904762 | E31: =SUM('!M708820.096'!L20:Q20)/'!M708820.096'!Q3 -> 3.047619048 | F31: ='!M708820.096'!Q16 -> 0.05122017233
A32: 30 | B32: ='!M708820.096'!B2:C2 -> <date> | C32: =('!M709A50.096'!F49/60)/'!M709A50.096'!Q3 -> 1.667054264 | D32: ='!M709A50.096'!N20/'!M709A50.096'!Q3 -> 0.02325581395 | E32: =SUM('!M709A50.096'!L20:Q20)/'!M709A50.096'!Q3 -> 2.953488372 | F32: ='!M709A50.096'!Q16 -> 0.08765402911
B33: ='!M709A50.096'!B2:C2 -> <date> | C33: =('!M710910.096'!F49/60)/'!M710910.096'!Q3 -> 1.749224806 | D33: ='!M710910.096'!N20/'!M710910.096'!Q3 -> 0.04651162791 | E33: =SUM('!M710910.096'!L20:Q20)/'!M710910.096'!Q3 -> 2.976744186 | F33: ='!M710910.096'!Q16 -> 0.07908245547
B34: ='!M710910.096'!B2:C2 -> <date> | C34: =('!M711910.096'!F49/60)/'!M711910.096'!Q3 -> 1.782945736 | D34: ='!M711910.096'!N20/'!M711910.096'!Q3 -> 0.04651162791 | E34: =SUM('!M711910.096'!L20:Q20)/'!M711910.096'!Q3 -> 2.976744186 | F34: ='!M711910.096'!Q16 -> 0.07908245547
B35: ='!M711910.096'!B2:C2 -> <date> | C35: =('!M712A10.096'!F47/60)/'!M712A10.096'!Q3 -> 1.776422764 | D35: ='!M712A10.096'!N20/'!M712A10.096'!Q3 -> 0.0243902439 | E35: =SUM('!M712A10.096'!L20:Q20)/'!M712A10.096'!Q3 -> 3.097560976 | F35: ='!M712A10.096'!Q16 -> 0.03087735478
B36: ='!M712A10.096'!B2:C2 -> <date> | C36: =('!M713910.096'!F49/60)/'!M713910.096'!Q3 -> 1.729457364 | D36: ='!M713910.096'!N20/'!M713910.096'!Q3 -> 0.06976744186 | E36: =SUM('!M713910.096'!L20:Q20)/'!M713910.096'!Q3 -> 3 | F36: ='!M713910.096'!Q16 -> 0.06727559493
B37: ='!M713910.096'!B2:C2 -> <date> | C37: =('!M714820.096'!F48/60)/'!M714820.096'!Q3 -> 1.795634921 | D37: ='!M714820.096'!N20/'!M714820.096'!Q3 -> 0.02380952381 | E37: =SUM('!M714820.096'!L20:Q20)/'!M714820.096'!Q3 -> 3.023809524 | F37: ='!M714820.096'!Q16 -> 0.06005107821
B38: ='!M714820.096'!B2:C2 -> <date> | C38: =('!M715830.096'!F51/60)/'!M715830.096'!Q3 -> 1.718888889 | D38: ='!M715830.096'!N20/'!M715830.096'!Q3 -> 0.1111111111 | E38: =SUM('!M715830.096'!L20:Q20)/'!M715830.096'!Q3 -> 2.933333333 | F38: ='!M715830.096'!Q16 -> 0.09163725357
B39: ='!M715830.096'!B2:C2 -> <date> | C39: =('!M716820.096'!F48/60)/'!M716820.096'!Q3 -> 1.715079365 | D39: ='!M716820.096'!N20/'!M716820.096'!Q3 -> 0.04761904762 | E39: =SUM('!M716820.096'!L20:Q20)/'!M716820.096'!Q3 -> 3.047619048 | F39: ='!M716820.096'!Q16 -> 0.05122017233
B40: ='!M716820.096'!B2:C2 -> <date> | C40: =('!M717950.096'!F48/60)/'!M717950.096'!Q3 -> 1.646031746 | D40: ='!M717950.096'!N20/'!M717950.096'!Q3 -> 0.02380952381 | E40: =SUM('!M717950.096'!L20:Q20)/'!M717950.096'!Q3 -> 3.023809524 | F40: ='!M717950.096'!Q16 -> 0.06005107821
B41: ='!M717950.096'!B2:C2 -> <date> | C41: =('!M718820.096'!F60/60)/'!M718820.096'!Q3 -> 1.946296296 | D41: ='!M718820.096'!N20/'!M718820.096'!Q3 -> 0.1666666667 | E41: =SUM('!M718820.096'!L20:Q20)/'!M718820.096'!Q3 -> 2.574074074 | F41: ='!M718820.096'!Q16 -> 0.2103123015
B42: ='!M718820.096'!B2:C2 -> <date>

Sheet Start
F1: Use Folder 51 | H1: Auto Clean Up | J1: Correct sequence
F2: FALSE | H2: TRUE | J2: 122
A4: Working with Folder | G4: Process All/Or Pick A number: ALL or an integer
A5: E:\Hen Data\Raw Data\96_176\phase 2 con\ | G5: ALL
A6: Filenames:
A7: !M513B50.176 | G7: Paint Cells
A8: !M514B20.176 | G8: FALSE
A9: !M516A20.176
A10: !M511B10.176
A11: !M526C20.096
A12: !M529B30.096
A13: !M531B30.096
A14: !M601D50.096
A15: !M611B00.096
A16: !M612B00.096
A17: !M625B20.096
A18: !M626D20.096
A19: !M627A50.096
A20: !M628B30.096
A21: !M629950.096
A22: !M517900.096
A23: !M518A30.096
A24: !M519920.096
A25: !M520B20.096
A26: !M522A20.096
A27: !M524850.096
A28: !M630900.096
A29: !M701A40.096
A30: !M702850.096
A31: !M703740.096
A32: !M704A20.096
A33: !M705810.096
A34: !M706950.096
A35: !M707A30.096
A36: !M708820.096
A37: !M709A50.096
A38: !M711910.096
A39: !M712A10.096
A40: !M713910.096
A41: !M714820.096
A42: !M716820.096
A43: !M715830.096
A44: !M717950.096
A45: !M718820.096
A46: !M710910.096

Sheet !M511B10.176
A1: Report for:!M511B10.176
A2: Date: | B2: <date>
A3: Hen: | B3: <hen> | F3: Correct Sequence | G3: =Start!J2 -> 122 | P3: Total Sequences in Data | Q3: =4994-COUNTBLANK(L7:L5000) -> 0 | V3: Total Sequences in Block Data | W3: =COUNTA(L6:L7) -> 1 | AA3: Total Sequences in Block Data | AB3: =COUNTA(L6:L7) -> 1 | AF3: Total Sequences in Block Data | AG3: =COUNTA(L6:L7) -> 1 | AK3: Total Sequences in Block Data | AL3: =COUNTA(L6:L7) -> 1 | AP3: Total Sequences in Block Data | AQ3: =COUNTA(L6:L7) -> 1 | AU3: Total Sequences in Block Data | AV3: =COUNTA(L6:L7) -> 1
P4: Total Sequences in Summary | Q4: =SUM(O7:O14) -> 0 | V4: Total Sequences in Block Summary | W4: =SUM(U7:U14) -> 0 | AA4: Total Sequences in Block Summary | AB4: =SUM(Z7:Z14) -> 0 | AF4: Total Sequences in Block Summary | AG4: =SUM(AE7:AE14) -> 0 | AK4: Total Sequences in Block Summary | AL4: =SUM(AJ7:AJ14) -> 0 | AP4: Total Sequences in Block Summary | AQ4: =SUM(AO7:AO14) -> 0 | AU4: Total Sequences in Block Summary | AV4: =SUM(AT7:AT14) -> 0
T5: Block 1 | Y5: Block 2 | AD5: Block 3 | AI5: Block 4 | AN5: Block 5 | AS5: Block 6
A6: Sequence Component 1 | B6: Time 1 | C6: Sequence Component 2 | D6: Time 2 | E6: Sequence Component 3 | F6: Time 3 | G6: Sequence Component 4 | H6: Time 4 | I6: Sequence Component 5 | J6: Time 5 | K6: Correct? 0=No 1=Yes | L6: Sequence | N6: Frequency | P6: Relative Frequency | Q6: Variability | T6: Frequency | V6: Relative Frequency | W6: Variability | Y6: Frequency | AA6: Relative Frequency | AB6: Variability | AD6: Frequency | AF6: Relative Frequency | AG6: Variability | AI6: Frequency | AK6: Relative Frequency | AL6: Variability | AN6: Frequency | AP6: Relative Frequency | AQ6: Variability | AS6: Frequency | AU6: Relative Frequency | AV6: Variability
N7: 111 | O7: =COUNTIF($L$7:$L$500,N7) -> 0 | P7: =O7/$Q$4 ->  | Q7: =IF(P7=0,0,(P7*((LOG(P7))/LOG(2)))) ->  | T7: =N7 -> 111 | U7: =COUNTIF(L6:L7,T7) -> 0 | V7: =U7/(W4-U10) ->  | W7: =IF(V7=0,0,(V7*((LOG(V7))/LOG(2)))) ->  | Y7: =N7 -> 111 | Z7: =COUNTIF(L6:L7,Y7) -> 0 | AA7: =Z7/(AB4-Z10) ->  | AB7: =IF(AA7=0,0,(AA7*((LOG(AA7))/LOG(2)))) ->  | AD7: =N7 -> 111 | AE7: =COUNTIF(L6:L7,AD7) -> 0 | AF7: =AE7/(AG4-AE10) ->  | AG7: =IF(AF7=0,0,(AF7*((LOG(AF7))/LOG(2)))) ->  | AI7: =N7 -> 111 | AJ7: =COUNTIF(L6:L7,AI7) -> 0 | AK7: =AJ7/(AL4-AJ10) ->  | AL7: =IF(AK7=0,0,(AK7*((LOG(AK7))/LOG(2)))) ->  | AN7: =N7 -> 111 | AO7: =COUNTIF(L6:L7,AN7) -> 0 | AP7: =AO7/(AQ4-AO10) ->  | AQ7: =IF(AP7=0,0,(AP7*((LOG(AP7))/LOG(2)))) ->  | AS7: =N7 -> 111 | AT7: =COUNTIF(L6:L7,AS7) -> 0 | AU7: =AT7/(AV4-AT10) ->  | AV7: =IF(AU7=0,0,(AU7*((LOG(AU7))/LOG(2)))) -> 
N8: 112 | O8: =COUNTIF($L$7:$L$500,N8) -> 0 | P8: =O8/$Q$4 ->  | Q8: =IF(P8=0,0,(P8*((LOG(P8))/LOG(2)))) ->  | T8: =N8 -> 112 | U8: =COUNTIF(L6:L7,T8) -> 0 | V8: =U8/(W4-U10) ->  | W8: =IF(V8=0,0,(V8*((LOG(V8))/LOG(2)))) ->  | Y8: =N8 -> 112 | Z8: =COUNTIF(L6:L7,Y8) -> 0 | AA8: =Z8/(AB4-Z10) ->  | AB8: =IF(AA8=0,0,(AA8*((LOG(AA8))/LOG(2)))) ->  | AD8: =N8 -> 112 | AE8: =COUNTIF(L6:L7,AD8) -> 0 | AF8: =AE8/(AG4-AE10) ->  | AG8: =IF(AF8=0,0,(AF8*((LOG(AF8))/LOG(2)))) ->  | AI8: =N8 -> 112 | AJ8: =COUNTIF(L6:L7,AI8) -> 0 | AK8: =AJ8/(AL4-AJ10) ->  | AL8: =IF(AK8=0,0,(AK8*((LOG(AK8))/LOG(2)))) ->  | AN8: =N8 -> 112 | AO8: =COUNTIF(L6:L7,AN8) -> 0 | AP8: =AO8/(AQ4-AO10) ->  | AQ8: =IF(AP8=0,0,(AP8*((LOG(AP8))/LOG(2)))) ->  | AS8: =N8 -> 112 | AT8: =COUNTIF(L6:L7,AS8) -> 0 | AU8: =AT8/(AV4-AT10) ->  | AV8: =IF(AU8=0,0,(AU8*((LOG(AU8))/LOG(2)))) -> 
N9: 121 | O9: =COUNTIF($L$7:$L$500,N9) -> 0 | P9: =O9/$Q$4 ->  | Q9: =IF(P9=0,0,(P9*((LOG(P9))/LOG(2)))) ->  | T9: =N9 -> 121 | U9: =COUNTIF(L6:L7,T9) -> 0 | V9: =U9/(W4-U10) ->  | W9: =IF(V9=0,0,(V9*((LOG(V9))/LOG(2)))) ->  | Y9: =N9 -> 121 | Z9: =COUNTIF(L6:L7,Y9) -> 0 | AA9: =Z9/(AB4-Z10) ->  | AB9: =IF(AA9=0,0,(AA9*((LOG(AA9))/LOG(2)))) ->  | AD9: =N9 -> 121 | AE9: =COUNTIF(L6:L7,AD9) -> 0 | AF9: =AE9/(AG4-AE10) ->  | AG9: =IF(AF9=0,0,(AF9*((LOG(AF9))/LOG(2)))) ->  | AI9: =N9 -> 121 | AJ9: =COUNTIF(L6:L7,AI9) -> 0 | AK9: =AJ9/(AL4-AJ10) ->  | AL9: =IF(AK9=0,0,(AK9*((LOG(AK9))/LOG(2)))) ->  | AN9: =N9 -> 121 | AO9: =COUNTIF(L6:L7,AN9) -> 0 | AP9: =AO9/(AQ4-AO10) ->  | AQ9: =IF(AP9=0,0,(AP9*((LOG(AP9))/LOG(2)))) ->  | AS9: =N9 -> 121 | AT9: =COUNTIF(L6:L7,AS9) -> 0 | AU9: =AT9/(AV4-AT10) ->  | AV9: =IF(AU9=0,0,(AU9*((LOG(AU9))/LOG(2)))) -> 
N10: 122 | O10: =COUNTIF($L$7:$L$500,N10) -> 0 | P10: =O10/$Q$4 ->  | Q10: =IF(P10=0,0,(P10*((LOG(P10))/LOG(2)))) ->  | T10: =N10 -> 122 | U10: =COUNTIF(L6:L7,T10) -> 0 | Y10: =N10 -> 122 | Z10: =COUNTIF(L6:L7,Y10) -> 0 | AD10: =N10 -> 122 | AE10: =COUNTIF(L6:L7,AD10) -> 0 | AI10: =N10 -> 122 | AJ10: =COUNTIF(L6:L7,AI10) -> 0 | AN10: =N10 -> 122 | AO10: =COUNTIF(L6:L7,AN10) -> 0 | AS10: =N10 -> 122 | AT10: =COUNTIF(L6:L7,AS10) -> 0
N11: 211 | O11: =COUNTIF($L$7:$L$500,N11) -> 0 | P11: =O11/$Q$4 ->  | Q11: =IF(P11=0,0,(P11*((LOG(P11))/LOG(2)))) ->  | T11: =N11 -> 211 | U11: =COUNTIF(L6:L7,T11) -> 0 | V11: =U11/(W4-U10) ->  | W11: =IF(V11=0,0,(V11*((LOG(V11))/LOG(2)))) ->  | Y11: =N11 -> 211 | Z11: =COUNTIF(L6:L7,Y11) -> 0 | AA11: =Z11/(AB4-Z10) ->  | AB11: =IF(AA11=0,0,(AA11*((LOG(AA11))/LOG(2)))) ->  | AD11: =N11 -> 211 | AE11: =COUNTIF(L6:L7,AD11) -> 0 | AF11: =AE11/(AG4-AE10) ->  | AG11: =IF(AF11=0,0,(AF11*((LOG(AF11))/LOG(2)))) ->  | AI11: =N11 -> 211 | AJ11: =COUNTIF(L6:L7,AI11) -> 0 | AK11: =AJ11/(AL4-AJ10) ->  | AL11: =IF(AK11=0,0,(AK11*((LOG(AK11))/LOG(2)))) ->  | AN11: =N11 -> 211 | AO11: =COUNTIF(L6:L7,AN11) -> 0 | AP11: =AO11/(AQ4-AO10) ->  | AQ11: =IF(AP11=0,0,(AP11*((LOG(AP11))/LOG(2)))) ->  | AS11: =N11 -> 211 | AT11: =COUNTIF(L6:L7,AS11) -> 0 | AU11: =AT11/(AV4-AT10) ->  | AV11: =IF(AU11=0,0,(AU11*((LOG(AU11))/LOG(2)))) -> 
N12: 212 | O12: =COUNTIF($L$7:$L$500,N12) -> 0 | P12: =O12/$Q$4 ->  | Q12: =IF(P12=0,0,(P12*((LOG(P12))/LOG(2)))) ->  | T12: =N12 -> 212 | U12: =COUNTIF(L6:L7,T12) -> 0 | V12: =U12/(W4-U10) ->  | W12: =IF(V12=0,0,(V12*((LOG(V12))/LOG(2)))) ->  | Y12: =N12 -> 212 | Z12: =COUNTIF(L6:L7,Y12) -> 0 | AA12: =Z12/(AB4-Z10) ->  | AB12: =IF(AA12=0,0,(AA12*((LOG(AA12))/LOG(2)))) ->  | AD12: =N12 -> 212 | AE12: =COUNTIF(L6:L7,AD12) -> 0 | AF12: =AE12/(AG4-AE10) ->  | AG12: =IF(AF12=0,0,(AF12*((LOG(AF12))/LOG(2)))) ->  | AI12: =N12 -> 212 | AJ12: =COUNTIF(L6:L7,AI12) -> 0 | AK12: =AJ12/(AL4-AJ10) ->  | AL12: =IF(AK12=0,0,(AK12*((LOG(AK12))/LOG(2)))) ->  | AN12: =N12 -> 212 | AO12: =COUNTIF(L6:L7,AN12) -> 0 | AP12: =AO12/(AQ4-AO10) ->  | AQ12: =IF(AP12=0,0,(AP12*((LOG(AP12))/LOG(2)))) ->  | AS12: =N12 -> 212 | AT12: =COUNTIF(L6:L7,AS12) -> 0 | AU12: =AT12/(AV4-AT10) ->  | AV12: =IF(AU12=0,0,(AU12*((LOG(AU12))/LOG(2)))) -> 
N13: 221 | O13: =COUNTIF($L$7:$L$500,N13) -> 0 | P13: =O13/$Q$4 ->  | Q13: =IF(P13=0,0,(P13*((LOG(P13))/LOG(2)))) ->  | T13: =N13 -> 221 | U13: =COUNTIF(L6:L7,T13) -> 0 | V13: =U13/(W4-U10) ->  | W13: =IF(V13=0,0,(V13*((LOG(V13))/LOG(2)))) ->  | Y13: =N13 -> 221 | Z13: =COUNTIF(L6:L7,Y13) -> 0 | AA13: =Z13/(AB4-Z10) ->  | AB13: =IF(AA13=0,0,(AA13*((LOG(AA13))/LOG(2)))) ->  | AD13: =N13 -> 221 | AE13: =COUNTIF(L6:L7,AD13) -> 0 | AF13: =AE13/(AG4-AE10) ->  | AG13: =IF(AF13=0,0,(AF13*((LOG(AF13))/LOG(2)))) ->  | AI13: =N13 -> 221 | AJ13: =COUNTIF(L6:L7,AI13) -> 0 | AK13: =AJ13/(AL4-AJ10) ->  | AL13: =IF(AK13=0,0,(AK13*((LOG(AK13))/LOG(2)))) ->  | AN13: =N13 -> 221 | AO13: =COUNTIF(L6:L7,AN13) -> 0 | AP13: =AO13/(AQ4-AO10) ->  | AQ13: =IF(AP13=0,0,(AP13*((LOG(AP13))/LOG(2)))) ->  | AS13: =N13 -> 221 | AT13: =COUNTIF(L6:L7,AS13) -> 0 | AU13: =AT13/(AV4-AT10) ->  | AV13: =IF(AU13=0,0,(AU13*((LOG(AU13))/LOG(2)))) -> 
N14: 222 | O14: =COUNTIF($L$7:$L$500,N14) -> 0 | P14: =O14/$Q$4 ->  | Q14: =IF(P14=0,0,(P14*((LOG(P14))/LOG(2)))) ->  | T14: =N14 -> 222 | U14: =COUNTIF(L6:L7,T14) -> 0 | V14: =U14/(W4-U10) ->  | W14: =IF(V14=0,0,(V14*((LOG(V14))/LOG(2)))) ->  | Y14: =N14 -> 222 | Z14: =COUNTIF(L6:L7,Y14) -> 0 | AA14: =Z14/(AB4-Z10) ->  | AB14: =IF(AA14=0,0,(AA14*((LOG(AA14))/LOG(2)))) ->  | AD14: =N14 -> 222 | AE14: =COUNTIF(L6:L7,AD14) -> 0 | AF14: =AE14/(AG4-AE10) ->  | AG14: =IF(AF14=0,0,(AF14*((LOG(AF14))/LOG(2)))) ->  | AI14: =N14 -> 222 | AJ14: =COUNTIF(L6:L7,AI14) -> 0 | AK14: =AJ14/(AL4-AJ10) ->  | AL14: =IF(AK14=0,0,(AK14*((LOG(AK14))/LOG(2)))) ->  | AN14: =N14 -> 222 | AO14: =COUNTIF(L6:L7,AN14) -> 0 | AP14: =AO14/(AQ4-AO10) ->  | AQ14: =IF(AP14=0,0,(AP14*((LOG(AP14))/LOG(2)))) ->  | AS14: =N14 -> 222 | AT14: =COUNTIF(L6:L7,AS14) -> 0 | AU14: =AT14/(AV4-AT10) ->  | AV14: =IF(AU14=0,0,(AU14*((LOG(AU14))/LOG(2)))) -> 
P15: =SUM(P7:P14) ->  | Q15: =-SUM(Q7:Q14) ->  | V15: =SUM(V7:V14) ->  | W15: =-SUM(W7:W14) ->  | AA15: =SUM(AA7:AA14) ->  | AB15: =-SUM(AB7:AB14) ->  | AF15: =SUM(AF7:AF14) ->  | AG15: =-SUM(AG7:AG14) ->  | AK15: =SUM(AK7:AK14) ->  | AL15: =-SUM(AL7:AL14) ->  | AP15: =SUM(AP7:AP14) ->  | AQ15: =-SUM(AQ7:AQ14) ->  | AU15: =SUM(AU7:AU14) ->  | AV15: =-SUM(AV7:AV14) -> 
P16: U= | Q16: =Q15/(LOG(Q4)/LOG(2)) ->  | V16: U1= | W16: =W15/(LOG(W4)/LOG(2)) ->  | AA16: U2= | AB16: =AB15/(LOG(AB4)/LOG(2)) ->  | AF16: U3= | AG16: =AG15/(LOG(AG4)/LOG(2)) ->  | AK16: U4= | AL16: =AL15/(LOG(AL4)/LOG(2)) ->  | AP16: U5= | AQ16: =AQ15/(LOG(AQ4)/LOG(2)) ->  | AU16: U6= | AV16: =AV15/(LOG(AV4)/LOG(2)) -> 
N19: Total Target Seq
N20: =COUNTIF(L6:L7,G3) -> 0 | P20: 0 | Q20: 0 | R20: 0 | S20: 0 | T20: 0 | U20: 0
P21: % of reinforcement given in 6 equal intervals based on number of trials
P22: %_1 | Q22: %_2 | R22: %_3 | S22: %_4 | T22: %_5 | U22: %_6
O23: target sequence | P23: =$G$3 -> 122 | Q23: =$G$3 -> 122 | R23: =$G$3 -> 122 | S23: =$G$3 -> 122 | T23: =$G$3 -> 122 | U23: =$G$3 -> 122
O24: total reinforcement | P24: =U10 -> 0 | Q24: =Z10 -> 0 | R24: =AE10 -> 0 | S24: =AJ10 -> 0 | T24: =AO10 -> 0 | U24: =AT10 -> 0
O25: % target
O26: CCRF
O27: % CCRf
O28: average response rate | P28: =F6/P20 ->  | Q28: =(F6-F6)/Q20 ->  | R28: =(F6-F6)/R20 ->  | S28: =(F6-F6)/S20 ->  | T28: =(F6-F6)/T20 ->  | U28: =(F6-F6)/U20 -> 

Sheet !M513B50.176
A1: Report for:!M513B50.176
A2: Date: | B2: <date>
A3: Hen: | B3: <hen> | F3: Correct Sequence | G3: =Start!J2 -> 122 | P3: Total Sequences in Data | Q3: =4994-COUNTBLANK(L7:L5000) -> 197 | V3: Total Sequences in Block Data | W3: =COUNTA(L7:L39) -> 33 | AA3: Total Sequences in Block Data | AB3: =COUNTA(L40:L72) -> 33 | AF3: Total Sequences in Block Data | AG3: =COUNTA(L73:L104) -> 32 | AK3: Total Sequences in Block Data | AL3: =COUNTA(L105:L137) -> 33 | AP3: Total Sequences in Block Data | AQ3: =COUNTA(L138:L170) -> 33 | AU3: Total Sequences in Block Data | AV3: =COUNTA(L171:L203) -> 33
P4: Total Sequences in Summary | Q4: =SUM(O7:O14) -> 197 | V4: Total Sequences in Block Summary | W4: =SUM(U7:U14) -> 33 | AA4: Total Sequences in Block Summary | AB4: =SUM(Z7:Z14) -> 33 | AF4: Total Sequences in Block Summary | AG4: =SUM(AE7:AE14) -> 32 | AK4: Total Sequences in Block Summary | AL4: =SUM(AJ7:AJ14) -> 33 | AP4: Total Sequences in Block Summary | AQ4: =SUM(AO7:AO14) -> 33 | AU4: Total Sequences in Block Summary | AV4: =SUM(AT7:AT14) -> 33
T5: Block 1 | Y5: Block 2 | AD5: Block 3 | AI5: Block 4 | AN5: Block 5 | AS5: Block 6
A6: Sequence Component 1 | B6: Time 1 | C6: Sequence Component 2 | D6: Time 2 | E6: Sequence Component 3 | F6: Time 3 | G6: Sequence Component 4 | H6: Time 4 | I6: Sequence Component 5 | J6: Time 5 | K6: Correct? 0=No 1=Yes | L6: Sequence | N6: Frequency | P6: Relative Frequency | Q6: Variability | T6: Frequency | V6: Relative Frequency | W6: Variability | Y6: Frequency | AA6: Relative Frequency | AB6: Variability | AD6: Frequency | AF6: Relative Frequency | AG6: Variability | AI6: Frequency | AK6: Relative Frequency | AL6: Variability | AN6: Frequency | AP6: Relative Frequency | AQ6: Variability | AS6: Frequency | AU6: Relative Frequency | AV6: Variability
A7: 11 | B7: 27 | C7: 11 | D7: 35 | E7: 12 | F7: 48 | K7: 0 | L7: 111 | N7: 111 | O7: =COUNTIF($L$7:$L$500,N7) -> 10 | P7: =O7/$Q$4 -> 0.05076142132 | Q7: =IF(P7=0,0,(P7*((LOG(P7))/LOG(2)))) -> -0.2182803921 | T7: =N7 -> 111 | U7: =COUNTIF(L7:L39,T7) -> 3 | V7: =U7/(W4-U10) -> 0.09375 | W7: =IF(V7=0,0,(V7*((LOG(V7))/LOG(2)))) -> -0.3201597656 | Y7: =N7 -> 111 | Z7: =COUNTIF(L40:L72,Y7) -> 1 | AA7: =Z7/(AB4-Z10) -> 0.0303030303 | AB7: =IF(AA7=0,0,(AA7*((LOG(AA7))/LOG(2)))) -> -0.1528604279 | AD7: =N7 -> 111 | AE7: =COUNTIF(L73:L104,AD7) -> 3 | AF7: =AE7/(AG4-AE10) -> 0.09677419355 | AG7: =IF(AF7=0,0,(AF7*((LOG(AF7))/LOG(2)))) -> -0.3260548848 | AI7: =N7 -> 111 | AJ7: =COUNTIF(L105:L137,AI7) -> 1 | AK7: =AJ7/(AL4-AJ10) -> 0.0303030303 | AL7: =IF(AK7=0,0,(AK7*((LOG(AK7))/LOG(2)))) -> -0.1528604279 | AN7: =N7 -> 111 | AO7: =COUNTIF(L138:L170,AN7) -> 0 | AP7: =AO7/(AQ4-AO10) -> 0 | AQ7: =IF(AP7=0,0,(AP7*((LOG(AP7))/LOG(2)))) -> 0 | AS7: =N7 -> 111 | AT7: =COUNTIF(L171:L203,AS7) -> 2 | AU7: =AT7/(AV4-AT10) -> 0.06060606061 | AV7: =IF(AU7=0,0,(AU7*((LOG(AU7))/LOG(2)))) -> -0.2451147951
A8: 22 | B8: 168 | C8: 13 | D8: 179 | E8: 14 | F8: 187 | K8: 0 | L8: 211 | N8: 112 | O8: =COUNTIF($L$7:$L$500,N8) -> 4 | P8: =O8/$Q$4 -> 0.02030456853 | Q8: =IF(P8=0,0,(P8*((LOG(P8))/LOG(2)))) -> -0.1141533364 | T8: =N8 -> 112 | U8: =COUNTIF(L7:L39,T8) -> 2 | V8: =U8/(W4-U10) -> 0.0625 | W8: =IF(V8=0,0,(V8*((LOG(V8))/LOG(2)))) -> -0.25 | Y8: =N8 -> 112 | Z8: =COUNTIF(L40:L72,Y8) -> 0 | AA8: =Z8/(AB4-Z10) -> 0 | AB8: =IF(AA8=0,0,(AA8*((LOG(AA8))/LOG(2)))) -> 0 | AD8: =N8 -> 112 | AE8: =COUNTIF(L73:L104,AD8) -> 0 | AF8: =AE8/(AG4-AE10) -> 0 | AG8: =IF(AF8=0,0,(AF8*((LOG(AF8))/LOG(2)))) -> 0 | AI8: =N8 -> 112 | AJ8: =COUNTIF(L105:L137,AI8) -> 1 | AK8: =AJ8/(AL4-AJ10) -> 0.0303030303 | AL8: =IF(AK8=0,0,(AK8*((LOG(AK8))/LOG(2)))) -> -0.1528604279 | AN8: =N8 -> 112 | AO8: =COUNTIF(L138:L170,AN8) -> 1 | AP8: =AO8/(AQ4-AO10) -> 0.0303030303 | AQ8: =IF(AP8=0,0,(AP8*((LOG(AP8))/LOG(2)))) -> -0.1528604279 | AS8: =N8 -> 112 | AT8: =COUNTIF(L171:L203,AS8) -> 0 | AU8: =AT8/(AV4-AT10) -> 0 | AV8: =IF(AU8=0,0,(AU8*((LOG(AU8))/LOG(2)))) -> 0
A9: 22 | B9: 293 | C9: 13 | D9: 303 | E9: 14 | F9: 308 | K9: 0 | L9: 211 | N9: 121 | O9: =COUNTIF($L$7:$L$500,N9) -> 1 | P9: =O9/$Q$4 -> 0.005076142132 | Q9: =IF(P9=0,0,(P9*((LOG(P9))/LOG(2)))) -> -0.03869061837 | T9: =N9 -> 121 | U9: =COUNTIF(L7:L39,T9) -> 0 | V9: =U9/(W4-U10) -> 0 | W9: =IF(V9=0,0,(V9*((LOG(V9))/LOG(2)))) -> 0 | Y9: =N9 -> 121 | Z9: =COUNTIF(L40:L72,Y9) -> 0 | AA9: =Z9/(AB4-Z10) -> 0 | AB9: =IF(AA9=0,0,(AA9*((LOG(AA9))/LOG(2)))) -> 0 | AD9: =N9 -> 121 | AE9: =COUNTIF(L73:L104,AD9) -> 0 | AF9: =AE9/(AG4-AE10) -> 0 | AG9: =IF(AF9=0,0,(AF9*((LOG(AF9))/LOG(2)))) -> 0 | AI9: =N9 -> 121 | AJ9: =COUNTIF(L105:L137,AI9) -> 0 | AK9: =AJ9/(AL4-AJ10) -> 0 | AL9: =IF(AK9=0,0,(AK9*((LOG(AK9))/LOG(2)))) -> 0 | AN9: =N9 -> 121 | AO9: =COUNTIF(L138:L170,AN9) -> 1 | AP9: =AO9/(AQ4-AO10) -> 0.0303030303 | AQ9: =IF(AP9=0,0,(AP9*((LOG(AP9))/LOG(2)))) -> -0.1528604279 | AS9: =N9 -> 121 | AT9: =COUNTIF(L171:L203,AS9) -> 0 | AU9: =AT9/(AV4-AT10) -> 0 | AV9: =IF(AU9=0,0,(AU9*((LOG(AU9))/LOG(2)))) -> 0
A10: 22 | B10: 408 | C10: 13 | D10: 418 | E10: 14 | F10: 423 | K10: 0 | L10: 211 | N10: 122 | O10: =COUNTIF($L$7:$L$500,N10) -> 2 | P10: =O10/$Q$4 -> 0.01015228426 | Q10: =IF(P10=0,0,(P10*((LOG(P10))/LOG(2)))) -> -0.06722895248 | T10: =N10 -> 122 | U10: =COUNTIF(L7:L39,T10) -> 1 | Y10: =N10 -> 122 | Z10: =COUNTIF(L40:L72,Y10) -> 0 | AD10: =N10 -> 122 | AE10: =COUNTIF(L73:L104,AD10) -> 1 | AI10: =N10 -> 122 | AJ10: =COUNTIF(L105:L137,AI10) -> 0 | AN10: =N10 -> 122 | AO10: =COUNTIF(L138:L170,AN10) -> 0 | AS10: =N10 -> 122 | AT10: =COUNTIF(L171:L203,AS10) -> 0
A11: 22 | B11: 521 | C11: 13 | D11: 532 | E11: 14 | F11: 537 | K11: 0 | L11: 211 | N11: 211 | O11: =COUNTIF($L$7:$L$500,N11) -> 98 | P11: =O11/$Q$4 -> 0.4974619289 | Q11: =IF(P11=0,0,(P11*((LOG(P11))/LOG(2)))) -> -0.5011142821 | T11: =N11 -> 211 | U11: =COUNTIF(L7:L39,T11) -> 16 | V11: =U11/(W4-U10) -> 0.5 | W11: =IF(V11=0,0,(V11*((LOG(V11))/LOG(2)))) -> -0.5 | Y11: =N11 -> 211 | Z11: =COUNTIF(L40:L72,Y11) -> 24 | AA11: =Z11/(AB4-Z10) -> 0.7272727273 | AB11: =IF(AA11=0,0,(AA11*((LOG(AA11))/LOG(2)))) -> -0.3341320863 | AD11: =N11 -> 211 | AE11: =COUNTIF(L73:L104,AD11) -> 20 | AF11: =AE11/(AG4-AE10) -> 0.6451612903 | AG11: =IF(AF11=0,0,(AF11*((LOG(AF11))/LOG(2)))) -> -0.4079149777 | AI11: =N11 -> 211 | AJ11: =COUNTIF(L105:L137,AI11) -> 22 | AK11: =AJ11/(AL4-AJ10) -> 0.6666666667 | AL11: =IF(AK11=0,0,(AK11*((LOG(AK11))/LOG(2)))) -> -0.3899750005 | AN11: =N11 -> 211 | AO11: =COUNTIF(L138:L170,AN11) -> 11 | AP11: =AO11/(AQ4-AO10) -> 0.3333333333 | AQ11: =IF(AP11=0,0,(AP11*((LOG(AP11))/LOG(2)))) -> -0.5283208336 | AS11: =N11 -> 211 | AT11: =COUNTIF(L171:L203,AS11) -> 5 | AU11: =AT11/(AV4-AT10) -> 0.1515151515 | AV11: =IF(AU11=0,0,(AU11*((LOG(AU11))/LOG(2)))) -> -0.4124948522
A12: 22 | B12: 638 | C12: 24 | D12: 646 | E12: 14 | F12: 663 | K12: 0 | L12: 221 | N12: 212 | O12: =COUNTIF($L$7:$L$500,N12) -> 21 | P12: =O12/$Q$4 -> 0.1065989848 | Q12: =IF(P12=0,0,(P12*((LOG(P12))/LOG(2)))) -> -0.3442864078 | T12: =N12 -> 212 | U12: =COUNTIF(L7:L39,T12) -> 1 | V12: =U12/(W4-U10) -> 0.03125 | W12: =IF(V12=0,0,(V12*((LOG(V12))/LOG(2)))) -> -0.15625 | Y12: =N12 -> 212 | Z12: =COUNTIF(L40:L72,Y12) -> 1 | AA12: =Z12/(AB4-Z10) -> 0.0303030303 | AB12: =IF(AA12=0,0,(AA12*((LOG(AA12))/LOG(2)))) -> -0.1528604279 | AD12: =N12 -> 212 | AE12: =COUNTIF(L73:L104,AD12) -> 0 | AF12: =AE12/(AG4-AE10) -> 0 | AG12: =IF(AF12=0,0,(AF12*((LOG(AF12))/LOG(2)))) -> 0 | AI12: =N12 -> 212 | AJ12: =COUNTIF(L105:L137,AI12) -> 2 | AK12: =AJ12/(AL4-AJ10) -> 0.06060606061 | AL12: =IF(AK12=0,0,(AK12*((LOG(AK12))/LOG(2)))) -> -0.2451147951 | AN12: =N12 -> 212 | AO12: =COUNTIF(L138:L170,AN12) -> 5 | AP12: =AO12/(AQ4-AO10) -> 0.1515151515 | AQ12: =IF(AP12=0,0,(AP12*((LOG(AP12))/LOG(2)))) -> -0.4124948522 | AS12: =N12 -> 212 | AT12: =COUNTIF(L171:L203,AS12) -> 12 | AU12: =AT12/(AV4-AT10) -> 0.3636363636 | AV12: =IF(AU12=0,0,(AU12*((LOG(AU12))/LOG(2)))) -> -0.5307024068
A13: 22 | B13: 764 | C13: 24 | D13: 772 | E13: 23 | F13: 782 | K13: 0 | L13: 222 | N13: 221 | O13: =COUNTIF($L$7:$L$500,N13) -> 27 | P13: =O13/$Q$4 -> 0.1370558376 | Q13: =IF(P13=0,0,(P13*((LOG(P13))/LOG(2)))) -> -0.3929616069 | T13: =N13 -> 221 | U13: =COUNTIF(L7:L39,T13) -> 6 | V13: =U13/(W4-U10) -> 0.1875 | W13: =IF(V13=0,0,(V13*((LOG(V13))/LOG(2)))) -> -0.4528195311 | Y13: =N13 -> 221 | Z13: =COUNTIF(L40:L72,Y13) -> 2 | AA13: =Z13/(AB4-Z10) -> 0.06060606061 | AB13: =IF(AA13=0,0,(AA13*((LOG(AA13))/LOG(2)))) -> -0.2451147951 | AD13: =N13 -> 221 | AE13: =COUNTIF(L73:L104,AD13) -> 3 | AF13: =AE13/(AG4-AE10) -> 0.09677419355 | AG13: =IF(AF13=0,0,(AF13*((LOG(AF13))/LOG(2)))) -> -0.3260548848 | AI13: =N13 -> 221 | AJ13: =COUNTIF(L105:L137,AI13) -> 5 | AK13: =AJ13/(AL4-AJ10) -> 0.1515151515 | AL13: =IF(AK13=0,0,(AK13*((LOG(AK13))/LOG(2)))) -> -0.4124948522 | AN13: =N13 -> 221 | AO13: =COUNTIF(L138:L170,AN13) -> 2 | AP13: =AO13/(AQ4-AO10) -> 0.06060606061 | AQ13: =IF(AP13=0,0,(AP13*((LOG(AP13))/LOG(2)))) -> -0.2451147951 | AS13: =N13 -> 221 | AT13: =COUNTIF(L171:L203,AS13) -> 9 | AU13: =AT13/(AV4-AT10) -> 0.2727272727 | AV13: =IF(AU13=0,0,(AU13*((LOG(AU13))/LOG(2)))) -> -0.5112188503
A14: 22 | B14: 879 | C14: 13 | D14: 890 | E14: 14 | F14: 895 | K14: 0 | L14: 211 | N14: 222 | O14: =COUNTIF($L$7:$L$500,N14) -> 34 | P14: =O14/$Q$4 -> 0.1725888325 | Q14: =IF(P14=0,0,(P14*((LOG(P14))/LOG(2)))) -> -0.4374417526 | T14: =N14 -> 222 | U14: =COUNTIF(L7:L39,T14) -> 4 | V14: =U14/(W4-U10) -> 0.125 | W14: =IF(V14=0,0,(V14*((LOG(V14))/LOG(2)))) -> -0.375 | Y14: =N14 -> 222 | Z14: =COUNTIF(L40:L72,Y14) -> 5 | AA14: =Z14/(AB4-Z10) -> 0.1515151515 | AB14: =IF(AA14=0,0,(AA14*((LOG(AA14))/LOG(2)))) -> -0.4124948522 | AD14: =N14 -> 222 | AE14: =COUNTIF(L73:L104,AD14) -> 5 | AF14: =AE14/(AG4-AE10) -> 0.1612903226 | AG14: =IF(AF14=0,0,(AF14*((LOG(AF14))/LOG(2)))) -> -0.4245593896 | AI14: =N14 -> 222 | AJ14: =COUNTIF(L105:L137,AI14) -> 2 | AK14: =AJ14/(AL4-AJ10) -> 0.06060606061 | AL14: =IF(AK14=0,0,(AK14*((LOG(AK14))/LOG(2)))) -> -0.2451147951 | AN14: =N14 -> 222 | AO14: =COUNTIF(L138:L170,AN14) -> 13 | AP14: =AO14/(AQ4-AO10) -> 0.3939393939 | AQ14: =IF(AP14=0,0,(AP14*((LOG(AP14))/LOG(2)))) -> -0.5294365823 | AS14: =N14 -> 222 | AT14: =COUNTIF(L171:L203,AS14) -> 5 | AU14: =AT14/(AV4-AT10) -> 0.1515151515 | AV14: =IF(AU14=0,0,(AU14*((LOG(AU14))/LOG(2)))) -> -0.4124948522
A15: 22 | B15: 994 | C15: 24 | D15: 998 | E15: 14 | F15: 1010 | K15: 0 | L15: 221 | P15: =SUM(P7:P14) -> 1 | Q15: =-SUM(Q7:Q14) -> 2.114157349 | V15: =SUM(V7:V14) -> 1 | W15: =-SUM(W7:W14) -> 2.054229297 | AA15: =SUM(AA7:AA14) -> 1 | AB15: =-SUM(AB7:AB14) -> 1.297462589 | AF15: =SUM(AF7:AF14) -> 1 | AG15: =-SUM(AG7:AG14) -> 1.484584137 | AK15: =SUM(AK7:AK14) -> 1 | AL15: =-SUM(AL7:AL14) -> 1.598420299 | AP15: =SUM(AP7:AP14) -> 1 | AQ15: =-SUM(AQ7:AQ14) -> 2.021087919 | AU15: =SUM(AU7:AU14) -> 1 | AV15: =-SUM(AV7:AV14) -> 2.112025757
A16: 22 | B16: 1107 | C16: 24 | D16: 1116 | E16: 14 | F16: 1128 | K16: 0 | L16: 221 | P16: U= | Q16: =Q15/(LOG(Q4)/LOG(2)) -> 0.2773737832 | V16: U1= | W16: =W15/(LOG(W4)/LOG(2)) -> 0.4072301347 | AA16: U2= | AB16: =AB15/(LOG(AB4)/LOG(2)) -> 0.2572088062 | AF16: U3= | AG16: =AG15/(LOG(AG4)/LOG(2)) -> 0.2969168274 | AK16: U4= | AL16: =AL15/(LOG(AL4)/LOG(2)) -> 0.3168706213 | AP16: U5= | AQ16: =AQ15/(LOG(AQ4)/LOG(2)) -> 0.4006601925 | AU16: U6= | AV16: =AV15/(LOG(AV4)/LOG(2)) -> 0.418687697
A17: 22 | B17: 1226 | C17: 24 | D17: 1235 | E17: 14 | F17: 1248 | K17: 0 | L17: 221
A18: 22 | B18: 1345 | C18: 13 | D18: 1358 | E18: 14 | F18: 1364 | K18: 0 | L18: 211
A19: 22 | B19: 1460 | C19: 13 | D19: 1471 | E19: 14 | F19: 1477 | K19: 0 | L19: 211 | N19: Total Target Seq
A20: 22 | B20: 1573 | C20: 24 | D20: 1582 | E20: 23 | F20: 1591 | K20: 0 | L20: 222 | N20: =COUNTIF(L7:L203,G3) -> 2 | P20: 33 | Q20: 33 | R20: 32 | S20: 33 | T20: 33 | U20: 33
A21: 11 | B21: 1688 | C21: 22 | D21: 1701 | E21: 23 | F21: 1718 | K21: 0 | L21: 122 | P21: % of reinforcement given in 6 equal intervals based on number of trials
A22: 11 | B22: 1826 | C22: 11 | D22: 1828 | E22: 21 | F22: 1838 | K22: 0 | L22: 112 | P22: %_1 | Q22: %_2 | R22: %_3 | S22: %_4 | T22: %_5 | U22: %_6
A23: 22 | B23: 1929 | C23: 24 | D23: 1943 | E23: 14 | F23: 1965 | K23: 0 | L23: 221 | O23: target sequence | P23: =$G$3 -> 122 | Q23: =$G$3 -> 122 | R23: =$G$3 -> 122 | S23: =$G$3 -> 122 | T23: =$G$3 -> 122 | U23: =$G$3 -> 122
A24: 22 | B24: 2061 | C24: 13 | D24: 2070 | E24: 14 | F24: 2075 | K24: 0 | L24: 211 | O24: total reinforcement | P24: =U10 -> 1 | Q24: =Z10 -> 0 | R24: =AE10 -> 1 | S24: =AJ10 -> 0 | T24: =AO10 -> 0 | U24: =AT10 -> 0
A25: 11 | B25: 2185 | C25: 11 | D25: 2196 | E25: 12 | F25: 2208 | K25: 0 | L25: 111 | O25: % target
A26: 11 | B26: 2319 | C26: 11 | D26: 2324 | E26: 21 | F26: 2342 | K26: 0 | L26: 112 | O26: CCRF
A27: 22 | B27: 2435 | C27: 24 | D27: 2442 | E27: 23 | F27: 2456 | K27: 0 | L27: 222 | O27: % CCRf
A28: 22 | B28: 2572 | C28: 13 | D28: 2584 | E28: 14 | F28: 2590 | K28: 0 | L28: 211 | O28: average response rate | P28: =F39/P20 -> 119.2424242 | Q28: =(F72-F39)/Q20 -> 117.2121212 | R28: =(F104-F72)/R20 -> 122 | S28: =(F137-F104)/S20 -> 116.1212121 | T28: =(F170-F137)/T20 -> 123.2121212 | U28: =(F203-F170)/U20 -> 132.030303
A29: 22 | B29: 2689 | C29: 13 | D29: 2698 | E29: 14 | F29: 2703 | K29: 0 | L29: 211
A30: 22 | B30: 2800 | C30: 13 | D30: 2810 | E30: 14 | F30: 2819 | K30: 0 | L30: 211
A31: 22 | B31: 2919 | C31: 13 | D31: 2930 | E31: 23 | F31: 2940 | K31: 0 | L31: 212
A32: 22 | B32: 3037 | C32: 13 | D32: 3049 | E32: 14 | F32: 3057 | K32: 0 | L32: 211
A33: 22 | B33: 3169 | C33: 13 | D33: 3180 | E33: 14 | F33: 3186 | K33: 0 | L33: 211
A34: 22 | B34: 3287 | C34: 24 | D34: 3296 | E34: 23 | F34: 3321 | K34: 0 | L34: 222
A35: 22 | B35: 3423 | C35: 13 | D35: 3433 | E35: 14 | F35: 3437 | K35: 0 | L35: 211
A36: 22 | B36: 3536 | C36: 13 | D36: 3548 | E36: 14 | F36: 3553 | K36: 0 | L36: 211
A37: 11 | B37: 3666 | C37: 11 | D37: 3671 | E37: 12 | F37: 3679 | K37: 0 | L37: 111
A38: 22 | B38: 3788 | C38: 24 | D38: 3805 | E38: 14 | F38: 3815 | K38: 0 | L38: 221
A39: 22 | B39: 3912 | C39: 13 | D39: 3927 | E39: 14 | F39: 3935 | K39: 0 | L39: 211
A40: 22 | B40: 4033 | C40: 13 | D40: 4046 | E40: 14 | F40: 4051 | K40: 0 | L40: 211
A41: 22 | B41: 4155 | C41: 13 | D41: 4166 | E41: 14 | F41: 4173 | K41: 0 | L41: 211
A42: 22 | B42: 4273 | C42: 13 | D42: 4284 | E42: 14 | F42: 4289 | K42: 0 | L42: 211
A43: 22 | B43: 4391 | C43: 24 | D43: 4399 | E43: 14 | F43: 4409 | K43: 0 | L43: 221
A44: 22 | B44: 4510 | C44: 24 | D44: 4518 | E44: 23 | F44: 4528 | K44: 0 | L44: 222
A45: 22 | B45: 4625 | C45: 13 | D45: 4636 | E45: 14 | F45: 4640 | K45: 0 | L45: 211
A46: 22 | B46: 4738 | C46: 13 | D46: 4749 | E46: 14 | F46: 4754 | K46: 0 | L46: 211
A47: 22 | B47: 4852 | C47: 13 | D47: 4863 | E47: 14 | F47: 4871 | K47: 0 | L47: 211
A48: 22 | B48: 4969 | C48: 24 | D48: 4977 | E48: 14 | F48: 4988 | K48: 0 | L48: 221
A49: 22 | B49: 5087 | C49: 13 | D49: 5096 | E49: 14 | F49: 5101 | K49: 0 | L49: 211
A50: 22 | B50: 5198 | C50: 13 | D50: 5208 | E50: 14 | F50: 5214 | K50: 0 | L50: 211
A51: 22 | B51: 5310 | C51: 13 | D51: 5322 | E51: 14 | F51: 5326 | K51: 0 | L51: 211
A52: 22 | B52: 5426 | C52: 24 | D52: 5434 | E52: 23 | F52: 5443 | K52: 0 | L52: 222
A53: 22 | B53: 5539 | C53: 13 | D53: 5552 | E53: 14 | F53: 5557 | K53: 0 | L53: 211
A54: 22 | B54: 5656 | C54: 13 | D54: 5667 | E54: 14 | F54: 5672 | K54: 0 | L54: 211
A55: 22 | B55: 5772 | C55: 13 | D55: 5782 | E55: 14 | F55: 5787 | K55: 0 | L55: 211
A56: 22 | B56: 5883 | C56: 13 | D56: 5894 | E56: 14 | F56: 5899 | K56: 0 | L56: 211
A57: 22 | B57: 5996 | C57: 13 | D57: 6005 | E57: 14 | F57: 6010 | K57: 0 | L57: 211
A58: 22 | B58: 6107 | C58: 13 | D58: 6115 | E58: 23 | F58: 6131 | K58: 0 | L58: 212
A59: 11 | B59: 6244 | C59: 11 | D59: 6249 | E59: 12 | F59: 6255 | K59: 0 | L59: 111
A60: 22 | B60: 6357 | C60: 13 | D60: 6368 | E60: 14 | F60: 6372 | K60: 0 | L60: 211
A61: 22 | B61: 6471 | C61: 24 | D61: 6479 | E61: 23 | F61: 6488 | K61: 0 | L61: 222
A62: 22 | B62: 6589 | C62: 13 | D62: 6599 | E62: 14 | F62: 6604 | K62: 0 | L62: 211
A63: 22 | B63: 6701 | C63: 13 | D63: 6713 | E63: 14 | F63: 6717 | K63: 0 | L63: 211
A64: 22 | B64: 6823 | C64: 13 | D64: 6833 | E64: 14 | F64: 6841 | K64: 0 | L64: 211
A65: 22 | B65: 6938 | C65: 13 | D65: 6949 | E65: 14 | F65: 6953 | K65: 0 | L65: 211
A66: 22 | B66: 7050 | C66: 13 | D66: 7061 | E66: 14 | F66: 7066 | K66: 0 | L66: 211
A67: 22 | B67: 7165 | C67: 13 | D67: 7176 | E67: 14 | F67: 7181 | K67: 0 | L67: 211
A68: 22 | B68: 7295 | C68: 13 | D68: 7308 | E68: 14 | F68: 7316 | K68: 0 | L68: 211
A69: 22 | B69: 7433 | C69: 13 | D69: 7444 | E69: 14 | F69: 7452 | K69: 0 | L69: 211
A70: 22 | B70: 7554 | C70: 24 | D70: 7562 | E70: 23 | F70: 7571 | K70: 0 | L70: 222
A71: 22 | B71: 7670 | C71: 24 | D71: 7680 | E71: 23 | F71: 7689 | K71: 0 | L71: 222
A72: 22 | B72: 7788 | C72: 13 | D72: 7799 | E72: 14 | F72: 7803 | K72: 0 | L72: 211
A73: 22 | B73: 7902 | C73: 13 | D73: 7915 | E73: 14 | F73: 7920 | K73: 0 | L73: 211
A74: 22 | B74: 8019 | C74: 24 | D74: 8028 | E74: 23 | F74: 8037 | K74: 0 | L74: 222
A75: 22 | B75: 8144 | C75: 13 | D75: 8155 | E75: 14 | F75: 8162 | K75: 0 | L75: 211
A76: 22 | B76: 8263 | C76: 13 | D76: 8275 | E76: 14 | F76: 8285 | K76: 0 | L76: 211
A77: 22 | B77: 8383 | C77: 13 | D77: 8394 | E77: 14 | F77: 8407 | K77: 0 | L77: 211
A78: 22 | B78: 8508 | C78: 24 | D78: 8516 | E78: 23 | F78: 8551 | K78: 0 | L78: 222
A79: 22 | B79: 8648 | C79: 24 | D79: 8656 | E79: 23 | F79: 8665 | K79: 0 | L79: 222
A80: 11 | B80: 8774 | C80: 11 | D80: 8778 | E80: 12 | F80: 8786 | K80: 0 | L80: 111
A81: 22 | B81: 8885 | C81: 13 | D81: 8895 | E81: 14 | F81: 8905 | K81: 0 | L81: 211
A82: 22 | B82: 9006 | C82: 13 | D82: 9018 | E82: 14 | F82: 9023 | K82: 0 | L82: 211
A83: 22 | B83: 9121 | C83: 13 | D83: 9131 | E83: 14 | F83: 9135 | K83: 0 | L83: 211
A84: 22 | B84: 9243 | C84: 24 | D84: 9269 | E84: 14 | F84: 9279 | K84: 0 | L84: 221
A85: 11 | B85: 9397 | C85: 11 | D85: 9404 | E85: 12 | F85: 9411 | K85: 0 | L85: 111
A86: 22 | B86: 9508 | C86: 13 | D86: 9519 | E86: 14 | F86: 9523 | K86: 0 | L86: 211
A87: 22 | B87: 9623 | C87: 13 | D87: 9632 | E87: 14 | F87: 9636 | K87: 0 | L87: 211
A88: 22 | B88: 9736 | C88: 24 | D88: 9744 | E88: 23 | F88: 9753 | K88: 0 | L88: 222
A89: 22 | B89: 9852 | C89: 13 | D89: 9865 | E89: 14 | F89: 9870 | K89: 0 | L89: 211
A90: 22 | B90: 9992 | C90: 13 | D90: 10004 | E90: 14 | F90: 10011 | K90: 0 | L90: 211
A91: 11 | B91: 10120 | C91: 11 | D91: 10139 | E91: 12 | F91: 10145 | K91: 0 | L91: 111
A92: 22 | B92: 10257 | C92: 13 | D92: 10268 | E92: 14 | F92: 10273 | K92: 0 | L92: 211
A93: 22 | B93: 10377 | C93: 13 | D93: 10386 | E93: 14 | F93: 10390 | K93: 0 | L93: 211
A94: 22 | B94: 10491 | C94: 13 | D94: 10503 | E94: 14 | F94: 10508 | K94: 0 | L94: 211
A95: 22 | B95: 10605 | C95: 13 | D95: 10615 | E95: 14 | F95: 10620 | K95: 0 | L95: 211
A96: 22 | B96: 10719 | C96: 13 | D96: 10732 | E96: 14 | F96: 10740 | K96: 0 | L96: 211
A97: 11 | B97: 10849 | C97: 22 | D97: 10857 | E97: 23 | F97: 10866 | K97: 0 | L97: 122
A98: 22 | B98: 10965 | C98: 24 | D98: 10986 | E98: 23 | F98: 10995 | K98: 0 | L98: 222
A99: 22 | B99: 11095 | C99: 13 | D99: 11110 | E99: 14 | F99: 11118 | K99: 0 | L99: 211
A100: 22 | B100: 11217 | C100: 13 | D100: 11226 | E100: 14 | F100: 11231 | K100: 0 | L100: 211
A101: 22 | B101: 11331 | C101: 24 | D101: 11353 | E101: 14 | F101: 11363 | K101: 0 | L101: 221
A102: 22 | B102: 11464 | C102: 24 | D102: 11473 | E102: 14 | F102: 11485 | K102: 0 | L102: 221
A103: 22 | B103: 11581 | C103: 13 | D103: 11591 | E103: 14 | F103: 11596 | K103: 0 | L103: 211
A104: 22 | B104: 11693 | C104: 13 | D104: 11703 | E104: 14 | F104: 11707 | K104: 0 | L104: 211
A105: 11 | B105: 11817 | C105: 11 | D105: 11831 | E105: 12 | F105: 11839 | K105: 0 | L105: 111
A106: 22 | B106: 11937 | C106: 13 | D106: 11946 | E106: 14 | F106: 11950 | K106: 0 | L106: 211
A107: 22 | B107: 12048 | C107: 13 | D107: 12058 | E107: 14 | F107: 12063 | K107: 0 | L107: 211
A108: 22 | B108: 12165 | C108: 24 | D108: 12174 | E108: 14 | F108: 12183 | K108: 0 | L108: 221
A109: 22 | B109: 12280 | C109: 24 | D109: 12290 | E109: 14 | F109: 12298 | K109: 0 | L109: 221
A110: 22 | B110: 12406 | C110: 13 | D110: 12414 | E110: 14 | F110: 12419 | K110: 0 | L110: 211
A111: 22 | B111: 12518 | C111: 13 | D111: 12526 | E111: 14 | F111: 12531 | K111: 0 | L111: 211
A112: 11 | B112: 12637 | C112: 11 | D112: 12641 | E112: 21 | F112: 12652 | K112: 0 | L112: 112
A113: 22 | B113: 12741 | C113: 24 | D113: 12751 | E113: 23 | F113: 12760 | K113: 0 | L113: 222
A114: 22 | B114: 12860 | C114: 24 | D114: 12868 | E114: 14 | F114: 12880 | K114: 0 | L114: 221
A115: 22 | B115: 12978 | C115: 24 | D115: 12988 | E115: 14 | F115: 12999 | K115: 0 | L115: 221
A116: 22 | B116: 13099 | C116: 13 | D116: 13110 | E116: 14 | F116: 13115 | K116: 0 | L116: 211
A117: 22 | B117: 13219 | C117: 13 | D117: 13229 | E117: 14 | F117: 13234 | K117: 0 | L117: 211
A118: 22 | B118: 13334 | C118: 13 | D118: 13346 | E118: 14 | F118: 13350 | K118: 0 | L118: 211
A119: 22 | B119: 13446 | C119: 13 | D119: 13461 | E119: 23 | F119: 13471 | K119: 0 | L119: 212
A120: 22 | B120: 13569 | C120: 24 | D120: 13578 | E120: 14 | F120: 13589 | K120: 0 | L120: 221
A121: 22 | B121: 13687 | C121: 13 | D121: 13698 | E121: 14 | F121: 13703 | K121: 0 | L121: 211
A122: 22 | B122: 13798 | C122: 13 | D122: 13809 | E122: 14 | F122: 13814 | K122: 0 | L122: 211
A123: 22 | B123: 13916 | C123: 13 | D123: 13924 | E123: 14 | F123: 13929 | K123: 0 | L123: 211
A124: 22 | B124: 14026 | C124: 13 | D124: 14036 | E124: 14 | F124: 14040 | K124: 0 | L124: 211
A125: 22 | B125: 14140 | C125: 13 | D125: 14152 | E125: 14 | F125: 14156 | K125: 0 | L125: 211
A126: 22 | B126: 14268 | C126: 13 | D126: 14278 | E126: 23 | F126: 14291 | K126: 0 | L126: 212
A127: 22 | B127: 14389 | C127: 13 | D127: 14402 | E127: 14 | F127: 14410 | K127: 0 | L127: 211
A128: 22 | B128: 14506 | C128: 13 | D128: 14514 | E128: 14 | F128: 14518 | K128: 0 | L128: 211
A129: 22 | B129: 14617 | C129: 13 | D129: 14626 | E129: 14 | F129: 14631 | K129: 0 | L129: 211
A130: 22 | B130: 14729 | C130: 13 | D130: 14740 | E130: 14 | F130: 14745 | K130: 0 | L130: 211
A131: 22 | B131: 14844 | C131: 13 | D131: 14853 | E131: 14 | F131: 14863 | K131: 0 | L131: 211
A132: 22 | B132: 14961 | C132: 24 | D132: 14971 | E132: 23 | F132: 14982 | K132: 0 | L132: 222
A133: 22 | B133: 15081 | C133: 13 | D133: 15090 | E133: 14 | F133: 15094 | K133: 0 | L133: 211
A134: 22 | B134: 15191 | C134: 13 | D134: 15201 | E134: 14 | F134: 15205 | K134: 0 | L134: 211
A135: 22 | B135: 15304 | C135: 13 | D135: 15314 | E135: 14 | F135: 15318 | K135: 0 | L135: 211
A136: 22 | B136: 15415 | C136: 13 | D136: 15424 | E136: 14 | F136: 15429 | K136: 0 | L136: 211
A137: 22 | B137: 15526 | C137: 13 | D137: 15534 | E137: 14 | F137: 15539 | K137: 0 | L137: 211
A138: 22 | B138: 15666 | C138: 24 | D138: 15674 | E138: 14 | F138: 15686 | K138: 0 | L138: 221
A139: 22 | B139: 15783 | C139: 13 | D139: 15792 | E139: 14 | F139: 15797 | K139: 0 | L139: 211
A140: 22 | B140: 15905 | C140: 13 | D140: 15916 | E140: 14 | F140: 15922 | K140: 0 | L140: 211
A141: 22 | B141: 16022 | C141: 13 | D141: 16033 | E141: 14 | F141: 16039 | K141: 0 | L141: 211
A142: 22 | B142: 16135 | C142: 13 | D142: 16145 | E142: 14 | F142: 16150 | K142: 0 | L142: 211
A143: 22 | B143: 16250 | C143: 24 | D143: 16258 | E143: 23 | F143: 16271 | K143: 0 | L143: 222
A144: 22 | B144: 16373 | C144: 24 | D144: 16380 | E144: 23 | F144: 16390 | K144: 0 | L144: 222
A145: 22 | B145: 16488 | C145: 13 | D145: 16500 | E145: 14 | F145: 16505 | K145: 0 | L145: 211
A146: 22 | B146: 16602 | C146: 13 | D146: 16612 | E146: 23 | F146: 16624 | K146: 0 | L146: 212
A147: 22 | B147: 16726 | C147: 24 | D147: 16742 | E147: 23 | F147: 16753 | K147: 0 | L147: 222
A148: 22 | B148: 16853 | C148: 24 | D148: 16863 | E148: 23 | F148: 16880 | K148: 0 | L148: 222
A149: 22 | B149: 16977 | C149: 24 | D149: 16997 | E149: 23 | F149: 17005 | K149: 0 | L149: 222
A150: 22 | B150: 17103 | C150: 13 | D150: 17115 | E150: 14 | F150: 17119 | K150: 0 | L150: 211
A151: 22 | B151: 17219 | C151: 24 | D151: 17226 | E151: 23 | F151: 17234 | K151: 0 | L151: 222
A152: 22 | B152: 17333 | C152: 24 | D152: 17341 | E152: 23 | F152: 17349 | K152: 0 | L152: 222
A153: 22 | B153: 17459 | C153: 24 | D153: 17467 | E153: 14 | F153: 17480 | K153: 0 | L153: 221
A154: 22 | B154: 17581 | C154: 13 | D154: 17590 | E154: 14 | F154: 17594 | K154: 0 | L154: 211
A155: 22 | B155: 17693 | C155: 24 | D155: 17716 | E155: 23 | F155: 17723 | K155: 0 | L155: 222
A156: 22 | B156: 17825 | C156: 13 | D156: 17834 | E156: 23 | F156: 17847 | K156: 0 | L156: 212
A157: 22 | B157: 17948 | C157: 24 | D157: 17955 | E157: 23 | F157: 17964 | K157: 0 | L157: 222
A158: 22 | B158: 18060 | C158: 24 | D158: 18079 | E158: 23 | F158: 18087 | K158: 0 | L158: 222
A159: 22 | B159: 18196 | C159: 13 | D159: 18208 | E159: 23 | F159: 18220 | K159: 0 | L159: 212
A160: 22 | B160: 18327 | C160: 13 | D160: 18336 | E160: 14 | F160: 18341 | K160: 0 | L160: 211
A161: 22 | B161: 18442 | C161: 13 | D161: 18452 | E161: 23 | F161: 18465 | K161: 0 | L161: 212
A162: 22 | B162: 18562 | C162: 24 | D162: 18585 | E162: 23 | F162: 18593 | K162: 0 | L162: 222
A163: 22 | B163: 18691 | C163: 13 | D163: 18700 | E163: 14 | F163: 18704 | K163: 0 | L163: 211
A164: 22 | B164: 18802 | C164: 24 | D164: 18810 | E164: 23 | F164: 18819 | K164: 0 | L164: 222
A165: 11 | B165: 18938 | C165: 11 | D165: 18943 | E165: 21 | F165: 18957 | K165: 0 | L165: 112
A166: 22 | B166: 19049 | C166: 24 | D166: 19057 | E166: 23 | F166: 19065 | K166: 0 | L166: 222
A167: 22 | B167: 19185 | C167: 13 | D167: 19195 | E167: 14 | F167: 19202 | K167: 0 | L167: 211
A168: 22 | B168: 19308 | C168: 13 | D168: 19321 | E168: 23 | F168: 19330 | K168: 0 | L168: 212
A169: 11 | B169: 19437 | C169: 22 | D169: 19453 | E169: 14 | F169: 19464 | K169: 0 | L169: 121
A170: 22 | B170: 19587 | C170: 13 | D170: 19598 | E170: 14 | F170: 19605 | K170: 0 | L170: 211
A171: 22 | B171: 19705 | C171: 13 | D171: 19720 | E171: 23 | F171: 19729 | K171: 0 | L171: 212
A172: 22 | B172: 19826 | C172: 13 | D172: 19836 | E172: 14 | F172: 19841 | K172: 0 | L172: 211
A173: 22 | B173: 19953 | C173: 24 | D173: 19963 | E173: 14 | F173: 19974 | K173: 0 | L173: 221
A174: 22 | B174: 20070 | C174: 24 | D174: 20089 | E174: 23 | F174: 20099 | K174: 0 | L174: 222
A175: 22 | B175: 20204 | C175: 24 | D175: 20213 | E175: 14 | F175: 20224 | K175: 0 | L175: 221
A176: 22 | B176: 20338 | C176: 13 | D176: 20349 | E176: 14 | F176: 20354 | K176: 0 | L176: 211
A177: 22 | B177: 20453 | C177: 13 | D177: 20466 | E177: 23 | F177: 20479 | K177: 0 | L177: 212
A178: 11 | B178: 20603 | C178: 11 | D178: 20610 | E178: 12 | F178: 20617 | K178: 0 | L178: 111
A179: 22 | B179: 20730 | C179: 24 | D179: 20745 | E179: 14 | F179: 20756 | K179: 0 | L179: 221
A180: 22 | B180: 20853 | C180: 13 | D180: 20862 | E180: 23 | F180: 20877 | K180: 0 | L180: 212
A181: 22 | B181: 20987 | C181: 13 | D181: 20996 | E181: 14 | F181: 21000 | K181: 0 | L181: 211
A182: 22 | B182: 21102 | C182: 13 | D182: 21115 | E182: 23 | F182: 21125 | K182: 0 | L182: 212
A183: 22 | B183: 21226 | C183: 24 | D183: 21246 | E183: 23 | F183: 21265 | K183: 0 | L183: 222
A184: 22 | B184: 21385 | C184: 13 | D184: 21398 | E184: 14 | F184: 21426 | K184: 0 | L184: 211
A185: 22 | B185: 21542 | C185: 24 | D185: 21558 | E185: 14 | F185: 21584 | K185: 0 | L185: 221
A186: 22 | B186: 21682 | C186: 13 | D186: 21693 | E186: 23 | F186: 21709 | K186: 0 | L186: 212
A187: 22 | B187: 21810 | C187: 13 | D187: 21841 | E187: 23 | F187: 21853 | K187: 0 | L187: 212
A188: 22 | B188: 21952 | C188: 24 | D188: 21971 | E188: 23 | F188: 21980 | K188: 0 | L188: 222
A189: 22 | B189: 22076 | C189: 24 | D189: 22094 | E189: 14 | F189: 22106 | K189: 0 | L189: 221
A190: 22 | B190: 22206 | C190: 24 | D190: 22222 | E190: 14 | F190: 22231 | K190: 0 | L190: 221
A191: 22 | B191: 22330 | C191: 13 | D191: 22339 | E191: 14 | F191: 22343 | K191: 0 | L191: 211
A192: 22 | B192: 22450 | C192: 24 | D192: 22466 | E192: 14 | F192: 22477 | K192: 0 | L192: 221
A193: 22 | B193: 22575 | C193: 24 | D193: 22591 | E193: 23 | F193: 22610 | K193: 0 | L193: 222
A194: 22 | B194: 22707 | C194: 24 | D194: 22726 | E194: 23 | F194: 22735 | K194: 0 | L194: 222
A195: 22 | B195: 22841 | C195: 13 | D195: 22849 | E195: 23 | F195: 22870 | K195: 0 | L195: 212
A196: 22 | B196: 22993 | C196: 13 | D196: 23004 | E196: 23 | F196: 23018 | K196: 0 | L196: 212
A197: 22 | B197: 23131 | C197: 24 | D197: 23146 | E197: 14 | F197: 23160 | K197: 0 | L197: 221
A198: 22 | B198: 23266 | C198: 13 | D198: 23274 | E198: 23 | F198: 23290 | K198: 0 | L198: 212
A199: 22 | B199: 23388 | C199: 13 | D199: 23400 | E199: 23 | F199: 23409 | K199: 0 | L199: 212
A200: 11 | B200: 23522 | C200: 11 | D200: 23526 | E200: 12 | F200: 23537 | K200: 0 | L200: 111
... 3 more rows

Sheet !M514B20.176
A1: Report for:!M514B20.176
A2: Date: | B2: <date>
A3: Hen: | B3: <hen> | F3: Correct Sequence | G3: =Start!J2 -> 122 | P3: Total Sequences in Data | Q3: =4994-COUNTBLANK(L7:L5000) -> 171 | V3: Total Sequences in Block Data | W3: =COUNTA(L7:L35) -> 29 | AA3: Total Sequences in Block Data | AB3: =COUNTA(L36:L63) -> 28 | AF3: Total Sequences in Block Data | AG3: =COUNTA(L64:L92) -> 29 | AK3: Total Sequences in Block Data | AL3: =COUNTA(L93:L120) -> 28 | AP3: Total Sequences in Block Data | AQ3: =COUNTA(L121:L149) -> 29 | AU3: Total Sequences in Block Data | AV3: =COUNTA(L150:L177) -> 28
P4: Total Sequences in Summary | Q4: =SUM(O7:O14) -> 170 | V4: Total Sequences in Block Summary | W4: =SUM(U7:U14) -> 29 | AA4: Total Sequences in Block Summary | AB4: =SUM(Z7:Z14) -> 28 | AF4: Total Sequences in Block Summary | AG4: =SUM(AE7:AE14) -> 29 | AK4: Total Sequences in Block Summary | AL4: =SUM(AJ7:AJ14) -> 28 | AP4: Total Sequences in Block Summary | AQ4: =SUM(AO7:AO14) -> 29 | AU4: Total Sequences in Block Summary | AV4: =SUM(AT7:AT14) -> 27
T5: Block 1 | Y5: Block 2 | AD5: Block 3 | AI5: Block 4 | AN5: Block 5 | AS5: Block 6
A6: Sequence Component 1 | B6: Time 1 | C6: Sequence Component 2 | D6: Time 2 | E6: Sequence Component 3 | F6: Time 3 | G6: Sequence Component 4 | H6: Time 4 | I6: Sequence Component 5 | J6: Time 5 | K6: Correct? 0=No 1=Yes | L6: Sequence | N6: Frequency | P6: Relative Frequency | Q6: Variability | T6: Frequency | V6: Relative Frequency | W6: Variability | Y6: Frequency | AA6: Relative Frequency | AB6: Variability | AD6: Frequency | AF6: Relative Frequency | AG6: Variability | AI6: Frequency | AK6: Relative Frequency | AL6: Variability | AN6: Frequency | AP6: Relative Frequency | AQ6: Variability | AS6: Frequency | AU6: Relative Frequency | AV6: Variability
A7: 22 | B7: 18 | C7: 24 | D7: 40 | E7: 14 | F7: 52 | K7: 0 | L7: 221 | N7: 111 | O7: =COUNTIF($L$7:$L$500,N7) -> 1 | P7: =O7/$Q$4 -> 0.005882352941 | Q7: =IF(P7=0,0,(P7*((LOG(P7))/LOG(2)))) -> -0.04358465257 | T7: =N7 -> 111 | U7: =COUNTIF(L7:L35,T7) -> 0 | V7: =U7/(W4-U10) -> 0 | W7: =IF(V7=0,0,(V7*((LOG(V7))/LOG(2)))) -> 0 | Y7: =N7 -> 111 | Z7: =COUNTIF(L36:L63,Y7) -> 0 | AA7: =Z7/(AB4-Z10) -> 0 | AB7: =IF(AA7=0,0,(AA7*((LOG(AA7))/LOG(2)))) -> 0 | AD7: =N7 -> 111 | AE7: =COUNTIF(L64:L92,AD7) -> 0 | AF7: =AE7/(AG4-AE10) -> 0 | AG7: =IF(AF7=0,0,(AF7*((LOG(AF7))/LOG(2)))) -> 0 | AI7: =N7 -> 111 | AJ7: =COUNTIF(L93:L120,AI7) -> 0 | AK7: =AJ7/(AL4-AJ10) -> 0 | AL7: =IF(AK7=0,0,(AK7*((LOG(AK7))/LOG(2)))) -> 0 | AN7: =N7 -> 111 | AO7: =COUNTIF(L121:L149,AN7) -> 0 | AP7: =AO7/(AQ4-AO10) -> 0 | AQ7: =IF(AP7=0,0,(AP7*((LOG(AP7))/LOG(2)))) -> 0 | AS7: =N7 -> 111 | AT7: =COUNTIF(L150:L177,AS7) -> 1 | AU7: =AT7/(AV4-AT10) -> 0.03846153846 | AV7: =IF(AU7=0,0,(AU7*((LOG(AU7))/LOG(2)))) -> -0.180786143
A8: 22 | B8: 153 | C8: 13 | D8: 167 | E8: 23 | F8: 180 | K8: 0 | L8: 212 | N8: 112 | O8: =COUNTIF($L$7:$L$500,N8) -> 9 | P8: =O8/$Q$4 -> 0.05294117647 | Q8: =IF(P8=0,0,(P8*((LOG(P8))/LOG(2)))) -> -0.2244423142 | T8: =N8 -> 112 | U8: =COUNTIF(L7:L35,T8) -> 0 | V8: =U8/(W4-U10) -> 0 | W8: =IF(V8=0,0,(V8*((LOG(V8))/LOG(2)))) -> 0 | Y8: =N8 -> 112 | Z8: =COUNTIF(L36:L63,Y8) -> 1 | AA8: =Z8/(AB4-Z10) -> 0.03571428571 | AB8: =IF(AA8=0,0,(AA8*((LOG(AA8))/LOG(2)))) -> -0.1716912472 | AD8: =N8 -> 112 | AE8: =COUNTIF(L64:L92,AD8) -> 0 | AF8: =AE8/(AG4-AE10) -> 0 | AG8: =IF(AF8=0,0,(AF8*((LOG(AF8))/LOG(2)))) -> 0 | AI8: =N8 -> 112 | AJ8: =COUNTIF(L93:L120,AI8) -> 2 | AK8: =AJ8/(AL4-AJ10) -> 0.07407407407 | AL8: =IF(AK8=0,0,(AK8*((LOG(AK8))/LOG(2)))) -> -0.278139815 | AN8: =N8 -> 112 | AO8: =COUNTIF(L121:L149,AN8) -> 3 | AP8: =AO8/(AQ4-AO10) -> 0.1071428571 | AQ8: =IF(AP8=0,0,(AP8*((LOG(AP8))/LOG(2)))) -> -0.3452563309 | AS8: =N8 -> 112 | AT8: =COUNTIF(L150:L177,AS8) -> 3 | AU8: =AT8/(AV4-AT10) -> 0.1153846154 | AV8: =IF(AU8=0,0,(AU8*((LOG(AU8))/LOG(2)))) -> -0.3594781405
A9: 22 | B9: 278 | C9: 24 | D9: 295 | E9: 14 | F9: 314 | K9: 0 | L9: 221 | N9: 121 | O9: =COUNTIF($L$7:$L$500,N9) -> 4 | P9: =O9/$Q$4 -> 0.02352941176 | Q9: =IF(P9=0,0,(P9*((LOG(P9))/LOG(2)))) -> -0.1272797867 | T9: =N9 -> 121 | U9: =COUNTIF(L7:L35,T9) -> 0 | V9: =U9/(W4-U10) -> 0 | W9: =IF(V9=0,0,(V9*((LOG(V9))/LOG(2)))) -> 0 | Y9: =N9 -> 121 | Z9: =COUNTIF(L36:L63,Y9) -> 0 | AA9: =Z9/(AB4-Z10) -> 0 | AB9: =IF(AA9=0,0,(AA9*((LOG(AA9))/LOG(2)))) -> 0 | AD9: =N9 -> 121 | AE9: =COUNTIF(L64:L92,AD9) -> 0 | AF9: =AE9/(AG4-AE10) -> 0 | AG9: =IF(AF9=0,0,(AF9*((LOG(AF9))/LOG(2)))) -> 0 | AI9: =N9 -> 121 | AJ9: =COUNTIF(L93:L120,AI9) -> 2 | AK9: =AJ9/(AL4-AJ10) -> 0.07407407407 | AL9: =IF(AK9=0,0,(AK9*((LOG(AK9))/LOG(2)))) -> -0.278139815 | AN9: =N9 -> 121 | AO9: =COUNTIF(L121:L149,AN9) -> 1 | AP9: =AO9/(AQ4-AO10) -> 0.03571428571 | AQ9: =IF(AP9=0,0,(AP9*((LOG(AP9))/LOG(2)))) -> -0.1716912472 | AS9: =N9 -> 121 | AT9: =COUNTIF(L150:L177,AS9) -> 1 | AU9: =AT9/(AV4-AT10) -> 0.03846153846 | AV9: =IF(AU9=0,0,(AU9*((LOG(AU9))/LOG(2)))) -> -0.180786143
A10: 22 | B10: 416 | C10: 24 | D10: 424 | E10: 23 | F10: 434 | K10: 0 | L10: 222 | N10: 122 | O10: =COUNTIF($L$7:$L$500,N10) -> 5 | P10: =O10/$Q$4 -> 0.02941176471 | Q10: =IF(P10=0,0,(P10*((LOG(P10))/LOG(2)))) -> -0.14963126 | T10: =N10 -> 122 | U10: =COUNTIF(L7:L35,T10) -> 0 | Y10: =N10 -> 122 | Z10: =COUNTIF(L36:L63,Y10) -> 0 | AD10: =N10 -> 122 | AE10: =COUNTIF(L64:L92,AD10) -> 2 | AI10: =N10 -> 122 | AJ10: =COUNTIF(L93:L120,AI10) -> 1 | AN10: =N10 -> 122 | AO10: =COUNTIF(L121:L149,AN10) -> 1 | AS10: =N10 -> 122 | AT10: =COUNTIF(L150:L177,AS10) -> 1
A11: 22 | B11: 537 | C11: 24 | D11: 546 | E11: 23 | F11: 555 | K11: 0 | L11: 222 | N11: 211 | O11: =COUNTIF($L$7:$L$500,N11) -> 14 | P11: =O11/$Q$4 -> 0.08235294118 | Q11: =IF(P11=0,0,(P11*((LOG(P11))/LOG(2)))) -> -0.29663826 | T11: =N11 -> 211 | U11: =COUNTIF(L7:L35,T11) -> 0 | V11: =U11/(W4-U10) -> 0 | W11: =IF(V11=0,0,(V11*((LOG(V11))/LOG(2)))) -> 0 | Y11: =N11 -> 211 | Z11: =COUNTIF(L36:L63,Y11) -> 3 | AA11: =Z11/(AB4-Z10) -> 0.1071428571 | AB11: =IF(AA11=0,0,(AA11*((LOG(AA11))/LOG(2)))) -> -0.3452563309 | AD11: =N11 -> 211 | AE11: =COUNTIF(L64:L92,AD11) -> 3 | AF11: =AE11/(AG4-AE10) -> 0.1111111111 | AG11: =IF(AF11=0,0,(AF11*((LOG(AF11))/LOG(2)))) -> -0.352213889 | AI11: =N11 -> 211 | AJ11: =COUNTIF(L93:L120,AI11) -> 4 | AK11: =AJ11/(AL4-AJ10) -> 0.1481481481 | AL11: =IF(AK11=0,0,(AK11*((LOG(AK11))/LOG(2)))) -> -0.4081314818 | AN11: =N11 -> 211 | AO11: =COUNTIF(L121:L149,AN11) -> 1 | AP11: =AO11/(AQ4-AO10) -> 0.03571428571 | AQ11: =IF(AP11=0,0,(AP11*((LOG(AP11))/LOG(2)))) -> -0.1716912472 | AS11: =N11 -> 211 | AT11: =COUNTIF(L150:L177,AS11) -> 3 | AU11: =AT11/(AV4-AT10) -> 0.1153846154 | AV11: =IF(AU11=0,0,(AU11*((LOG(AU11))/LOG(2)))) -> -0.3594781405
A12: 22 | B12: 657 | C12: 24 | D12: 673 | E12: 23 | F12: 681 | K12: 0 | L12: 222 | N12: 212 | O12: =COUNTIF($L$7:$L$500,N12) -> 23 | P12: =O12/$Q$4 -> 0.1352941176 | Q12: =IF(P12=0,0,(P12*((LOG(P12))/LOG(2)))) -> -0.3904356855 | T12: =N12 -> 212 | U12: =COUNTIF(L7:L35,T12) -> 1 | V12: =U12/(W4-U10) -> 0.03448275862 | W12: =IF(V12=0,0,(V12*((LOG(V12))/LOG(2)))) -> -0.167516586 | Y12: =N12 -> 212 | Z12: =COUNTIF(L36:L63,Y12) -> 7 | AA12: =Z12/(AB4-Z10) -> 0.25 | AB12: =IF(AA12=0,0,(AA12*((LOG(AA12))/LOG(2)))) -> -0.5 | AD12: =N12 -> 212 | AE12: =COUNTIF(L64:L92,AD12) -> 7 | AF12: =AE12/(AG4-AE10) -> 0.2592592593 | AG12: =IF(AF12=0,0,(AF12*((LOG(AF12))/LOG(2)))) -> -0.5049158541 | AI12: =N12 -> 212 | AJ12: =COUNTIF(L93:L120,AI12) -> 0 | AK12: =AJ12/(AL4-AJ10) -> 0 | AL12: =IF(AK12=0,0,(AK12*((LOG(AK12))/LOG(2)))) -> 0 | AN12: =N12 -> 212 | AO12: =COUNTIF(L121:L149,AN12) -> 4 | AP12: =AO12/(AQ4-AO10) -> 0.1428571429 | AQ12: =IF(AP12=0,0,(AP12*((LOG(AP12))/LOG(2)))) -> -0.4010507032 | AS12: =N12 -> 212 | AT12: =COUNTIF(L150:L177,AS12) -> 4 | AU12: =AT12/(AV4-AT10) -> 0.1538461538 | AV12: =IF(AU12=0,0,(AU12*((LOG(AU12))/LOG(2)))) -> -0.4154522643
A13: 22 | B13: 783 | C13: 24 | D13: 798 | E13: 23 | F13: 807 | K13: 0 | L13: 222 | N13: 221 | O13: =COUNTIF($L$7:$L$500,N13) -> 39 | P13: =O13/$Q$4 -> 0.2294117647 | Q13: =IF(P13=0,0,(P13*((LOG(P13))/LOG(2)))) -> -0.4872679998 | T13: =N13 -> 221 | U13: =COUNTIF(L7:L35,T13) -> 8 | V13: =U13/(W4-U10) -> 0.275862069 | W13: =IF(V13=0,0,(V13*((LOG(V13))/LOG(2)))) -> -0.5125464814 | Y13: =N13 -> 221 | Z13: =COUNTIF(L36:L63,Y13) -> 9 | AA13: =Z13/(AB4-Z10) -> 0.3214285714 | AB13: =IF(AA13=0,0,(AA13*((LOG(AA13))/LOG(2)))) -> -0.5263167602 | AD13: =N13 -> 221 | AE13: =COUNTIF(L64:L92,AD13) -> 7 | AF13: =AE13/(AG4-AE10) -> 0.2592592593 | AG13: =IF(AF13=0,0,(AF13*((LOG(AF13))/LOG(2)))) -> -0.5049158541 | AI13: =N13 -> 221 | AJ13: =COUNTIF(L93:L120,AI13) -> 5 | AK13: =AJ13/(AL4-AJ10) -> 0.1851851852 | AL13: =IF(AK13=0,0,(AK13*((LOG(AK13))/LOG(2)))) -> -0.4505480384 | AN13: =N13 -> 221 | AO13: =COUNTIF(L121:L149,AN13) -> 3 | AP13: =AO13/(AQ4-AO10) -> 0.1071428571 | AQ13: =IF(AP13=0,0,(AP13*((LOG(AP13))/LOG(2)))) -> -0.3452563309 | AS13: =N13 -> 221 | AT13: =COUNTIF(L150:L177,AS13) -> 7 | AU13: =AT13/(AV4-AT10) -> 0.2692307692 | AV13: =IF(AU13=0,0,(AU13*((LOG(AU13))/LOG(2)))) -> -0.5096766759
A14: 22 | B14: 907 | C14: 24 | D14: 915 | E14: 23 | F14: 923 | K14: 0 | L14: 222 | N14: 222 | O14: =COUNTIF($L$7:$L$500,N14) -> 75 | P14: =O14/$Q$4 -> 0.4411764706 | Q14: =IF(P14=0,0,(P14*((LOG(P14))/LOG(2)))) -> -0.5208406966 | T14: =N14 -> 222 | U14: =COUNTIF(L7:L35,T14) -> 20 | V14: =U14/(W4-U10) -> 0.6896551724 | W14: =IF(V14=0,0,(V14*((LOG(V14))/LOG(2)))) -> -0.3696916553 | Y14: =N14 -> 222 | Z14: =COUNTIF(L36:L63,Y14) -> 8 | AA14: =Z14/(AB4-Z10) -> 0.2857142857 | AB14: =IF(AA14=0,0,(AA14*((LOG(AA14))/LOG(2)))) -> -0.5163871206 | AD14: =N14 -> 222 | AE14: =COUNTIF(L64:L92,AD14) -> 10 | AF14: =AE14/(AG4-AE10) -> 0.3703703704 | AG14: =IF(AF14=0,0,(AF14*((LOG(AF14))/LOG(2)))) -> -0.5307257064 | AI14: =N14 -> 222 | AJ14: =COUNTIF(L93:L120,AI14) -> 14 | AK14: =AJ14/(AL4-AJ10) -> 0.5185185185 | AL14: =IF(AK14=0,0,(AK14*((LOG(AK14))/LOG(2)))) -> -0.4913131897 | AN14: =N14 -> 222 | AO14: =COUNTIF(L121:L149,AN14) -> 16 | AP14: =AO14/(AQ4-AO10) -> 0.5714285714 | AQ14: =IF(AP14=0,0,(AP14*((LOG(AP14))/LOG(2)))) -> -0.4613456697 | AS14: =N14 -> 222 | AT14: =COUNTIF(L150:L177,AS14) -> 7 | AU14: =AT14/(AV4-AT10) -> 0.2692307692 | AV14: =IF(AU14=0,0,(AU14*((LOG(AU14))/LOG(2)))) -> -0.5096766759
A15: 22 | B15: 1028 | C15: 24 | D15: 1036 | E15: 23 | F15: 1045 | K15: 0 | L15: 222 | P15: =SUM(P7:P14) -> 1 | Q15: =-SUM(Q7:Q14) -> 2.240120656 | V15: =SUM(V7:V14) -> 1 | W15: =-SUM(W7:W14) -> 1.049754723 | AA15: =SUM(AA7:AA14) -> 1 | AB15: =-SUM(AB7:AB14) -> 2.059651459 | AF15: =SUM(AF7:AF14) -> 1 | AG15: =-SUM(AG7:AG14) -> 1.892771304 | AK15: =SUM(AK7:AK14) -> 1 | AL15: =-SUM(AL7:AL14) -> 1.90627234 | AP15: =SUM(AP7:AP14) -> 1 | AQ15: =-SUM(AQ7:AQ14) -> 1.896291529 | AU15: =SUM(AU7:AU14) -> 1 | AV15: =-SUM(AV7:AV14) -> 2.515334183
A16: 22 | B16: 1152 | C16: 24 | D16: 1163 | E16: 14 | F16: 1175 | K16: 0 | L16: 221 | P16: U= | Q16: =Q15/(LOG(Q4)/LOG(2)) -> 0.3023353302 | V16: U1= | W16: =W15/(LOG(W4)/LOG(2)) -> 0.2160886845 | AA16: U2= | AB16: =AB15/(LOG(AB4)/LOG(2)) -> 0.4284375696 | AF16: U3= | AG16: =AG15/(LOG(AG4)/LOG(2)) -> 0.3896209774 | AK16: U4= | AL16: =AL15/(LOG(AL4)/LOG(2)) -> 0.3965324738 | AP16: U5= | AQ16: =AQ15/(LOG(AQ4)/LOG(2)) -> 0.3903456047 | AU16: U6= | AV16: =AV15/(LOG(AV4)/LOG(2)) -> 0.5289997254
A17: 22 | B17: 1277 | C17: 24 | D17: 1286 | E17: 23 | F17: 1295 | K17: 0 | L17: 222
A18: 22 | B18: 1396 | C18: 24 | D18: 1418 | E18: 23 | F18: 1428 | K18: 0 | L18: 222
A19: 22 | B19: 1526 | C19: 24 | D19: 1539 | E19: 23 | F19: 1547 | K19: 0 | L19: 222 | N19: Total Target Seq
A20: 22 | B20: 1652 | C20: 24 | D20: 1659 | E20: 23 | F20: 1668 | K20: 0 | L20: 222 | N20: =COUNTIF(L7:L177,G3) -> 5 | P20: 29 | Q20: 28 | R20: 29 | S20: 28 | T20: 29 | U20: 28
A21: 22 | B21: 1772 | C21: 24 | D21: 1779 | E21: 23 | F21: 1800 | K21: 0 | L21: 222 | P21: % of reinforcement given in 6 equal intervals based on number of trials
A22: 22 | B22: 1907 | C22: 24 | D22: 1914 | E22: 23 | F22: 1923 | K22: 0 | L22: 222 | P22: %_1 | Q22: %_2 | R22: %_3 | S22: %_4 | T22: %_5 | U22: %_6
A23: 22 | B23: 2026 | C23: 24 | D23: 2044 | E23: 23 | F23: 2053 | K23: 0 | L23: 222 | O23: target sequence | P23: =$G$3 -> 122 | Q23: =$G$3 -> 122 | R23: =$G$3 -> 122 | S23: =$G$3 -> 122 | T23: =$G$3 -> 122 | U23: =$G$3 -> 122
A24: 22 | B24: 2156 | C24: 24 | D24: 2178 | E24: 14 | F24: 2190 | K24: 0 | L24: 221 | O24: total reinforcement | P24: =U10 -> 0 | Q24: =Z10 -> 0 | R24: =AE10 -> 2 | S24: =AJ10 -> 1 | T24: =AO10 -> 1 | U24: =AT10 -> 1
A25: 22 | B25: 2289 | C25: 24 | D25: 2310 | E25: 23 | F25: 2320 | K25: 0 | L25: 222 | O25: % target
A26: 22 | B26: 2431 | C26: 24 | D26: 2438 | E26: 14 | F26: 2450 | K26: 0 | L26: 221 | O26: CCRF
A27: 22 | B27: 2552 | C27: 24 | D27: 2579 | E27: 14 | F27: 2590 | K27: 0 | L27: 221 | O27: % CCRf
A28: 22 | B28: 2702 | C28: 24 | D28: 2717 | E28: 23 | F28: 2726 | K28: 0 | L28: 222 | O28: average response rate | P28: =F35/P20 -> 126.9655172 | Q28: =(F63-F35)/Q20 -> 137.5714286 | R28: =(F92-F63)/R20 -> 143.6206897 | S28: =(F120-F92)/S20 -> 144.2142857 | T28: =(F149-F120)/T20 -> 147.2413793 | U28: =(F177-F149)/U20 -> -714.5357143
A29: 22 | B29: 2827 | C29: 24 | D29: 2850 | E29: 23 | F29: 2857 | K29: 0 | L29: 222
A30: 22 | B30: 2960 | C30: 24 | D30: 2981 | E30: 14 | F30: 2997 | K30: 0 | L30: 221
A31: 22 | B31: 3103 | C31: 24 | D31: 3134 | E31: 23 | F31: 3169 | K31: 0 | L31: 222
A32: 22 | B32: 3284 | C32: 24 | D32: 3292 | E32: 23 | F32: 3301 | K32: 0 | L32: 222
A33: 22 | B33: 3403 | C33: 24 | D33: 3419 | E33: 23 | F33: 3429 | K33: 0 | L33: 222
A34: 22 | B34: 3533 | C34: 24 | D34: 3546 | E34: 23 | F34: 3554 | K34: 0 | L34: 222
A35: 22 | B35: 3652 | C35: 24 | D35: 3667 | E35: 14 | F35: 3682 | K35: 0 | L35: 221
A36: 22 | B36: 3798 | C36: 24 | D36: 3806 | E36: 23 | F36: 3816 | K36: 0 | L36: 222
A37: 22 | B37: 3914 | C37: 13 | D37: 3955 | E37: 14 | F37: 3964 | K37: 0 | L37: 211
A38: 22 | B38: 4066 | C38: 24 | D38: 4074 | E38: 23 | F38: 4091 | K38: 0 | L38: 222
A39: 22 | B39: 4191 | C39: 24 | D39: 4217 | E39: 14 | F39: 4229 | K39: 0 | L39: 221
A40: 22 | B40: 4336 | C40: 24 | D40: 4366 | E40: 23 | F40: 4383 | K40: 0 | L40: 222
A41: 22 | B41: 4487 | C41: 13 | D41: 4502 | E41: 23 | F41: 4512 | K41: 0 | L41: 212
A42: 22 | B42: 4623 | C42: 24 | D42: 4647 | E42: 14 | F42: 4659 | K42: 0 | L42: 221
A43: 22 | B43: 4760 | C43: 24 | D43: 4765 | E43: 23 | F43: 4785 | K43: 0 | L43: 222
A44: 22 | B44: 4885 | C44: 24 | D44: 4901 | E44: 14 | F44: 4913 | K44: 0 | L44: 221
A45: 22 | B45: 5015 | C45: 24 | D45: 5023 | E45: 14 | F45: 5039 | K45: 0 | L45: 221
A46: 22 | B46: 5144 | C46: 24 | D46: 5153 | E46: 23 | F46: 5171 | K46: 0 | L46: 222
A47: 22 | B47: 5282 | C47: 24 | D47: 5290 | E47: 23 | F47: 5298 | K47: 0 | L47: 222
A48: 22 | B48: 5410 | C48: 13 | D48: 5421 | E48: 23 | F48: 5441 | K48: 0 | L48: 212
A49: 11 | B49: 5571 | C49: 11 | D49: 5582 | E49: 21 | F49: 5594 | K49: 0 | L49: 112
A50: 22 | B50: 5720 | C50: 13 | D50: 5737 | E50: 14 | F50: 5749 | K50: 0 | L50: 211
A51: 22 | B51: 5847 | C51: 13 | D51: 5864 | E51: 23 | F51: 5875 | K51: 0 | L51: 212
A52: 22 | B52: 5999 | C52: 13 | D52: 6023 | E52: 14 | F52: 6035 | K52: 0 | L52: 211
A53: 22 | B53: 6152 | C53: 13 | D53: 6167 | E53: 23 | F53: 6182 | K53: 0 | L53: 212
A54: 22 | B54: 6284 | C54: 13 | D54: 6305 | E54: 23 | F54: 6316 | K54: 0 | L54: 212
A55: 22 | B55: 6415 | C55: 24 | D55: 6430 | E55: 14 | F55: 6459 | K55: 0 | L55: 221
A56: 22 | B56: 6566 | C56: 24 | D56: 6574 | E56: 14 | F56: 6595 | K56: 0 | L56: 221
A57: 22 | B57: 6715 | C57: 24 | D57: 6722 | E57: 14 | F57: 6734 | K57: 0 | L57: 221
A58: 22 | B58: 6836 | C58: 13 | D58: 6850 | E58: 23 | F58: 6860 | K58: 0 | L58: 212
A59: 22 | B59: 6968 | C59: 13 | D59: 6980 | E59: 23 | F59: 6989 | K59: 0 | L59: 212
A60: 22 | B60: 7089 | C60: 24 | D60: 7115 | E60: 23 | F60: 7123 | K60: 0 | L60: 222
A61: 22 | B61: 7225 | C61: 24 | D61: 7242 | E61: 14 | F61: 7256 | K61: 0 | L61: 221
A62: 22 | B62: 7370 | C62: 24 | D62: 7392 | E62: 14 | F62: 7404 | K62: 0 | L62: 221
A63: 22 | B63: 7505 | C63: 24 | D63: 7525 | E63: 23 | F63: 7534 | K63: 0 | L63: 222
A64: 22 | B64: 7656 | C64: 24 | D64: 7677 | E64: 14 | F64: 7689 | K64: 0 | L64: 221
A65: 22 | B65: 7794 | C65: 24 | D65: 7802 | E65: 23 | F65: 7810 | K65: 0 | L65: 222
A66: 22 | B66: 7924 | C66: 24 | D66: 7942 | E66: 23 | F66: 7959 | K66: 0 | L66: 222
A67: 11 | B67: 8062 | C67: 22 | D67: 8075 | E67: 23 | F67: 8106 | K67: 0 | L67: 122
A68: 22 | B68: 8223 | C68: 13 | D68: 8235 | E68: 23 | F68: 8246 | K68: 0 | L68: 212
A69: 22 | B69: 8359 | C69: 13 | D69: 8375 | E69: 14 | F69: 8383 | K69: 0 | L69: 211
A70: 22 | B70: 8494 | C70: 13 | D70: 8515 | E70: 14 | F70: 8522 | K70: 0 | L70: 211
A71: 22 | B71: 8626 | C71: 13 | D71: 8645 | E71: 23 | F71: 8656 | K71: 0 | L71: 212
A72: 22 | B72: 8769 | C72: 24 | D72: 8778 | E72: 14 | F72: 8793 | K72: 0 | L72: 221
A73: 22 | B73: 8907 | C73: 24 | D73: 8918 | E73: 14 | F73: 8936 | K73: 0 | L73: 221
A74: 22 | B74: 9040 | C74: 13 | D74: 9051 | E74: 23 | F74: 9064 | K74: 0 | L74: 212
A75: 22 | B75: 9175 | C75: 13 | D75: 9195 | E75: 14 | F75: 9215 | K75: 0 | L75: 211
A76: 22 | B76: 9319 | C76: 24 | D76: 9328 | E76: 14 | F76: 9370 | K76: 0 | L76: 221
A77: 22 | B77: 9482 | C77: 24 | D77: 9520 | E77: 14 | F77: 9536 | K77: 0 | L77: 221
A78: 22 | B78: 9638 | C78: 24 | D78: 9649 | E78: 23 | F78: 9669 | K78: 0 | L78: 222
A79: 22 | B79: 9809 | C79: 24 | D79: 9829 | E79: 23 | F79: 9837 | K79: 0 | L79: 222
A80: 22 | B80: 9995 | C80: 13 | D80: 10009 | E80: 23 | F80: 10030 | K80: 0 | L80: 212
A81: 22 | B81: 10144 | C81: 13 | D81: 10158 | E81: 23 | F81: 10178 | K81: 0 | L81: 212
A82: 22 | B82: 10283 | C82: 24 | D82: 10291 | E82: 23 | F82: 10308 | K82: 0 | L82: 222
A83: 22 | B83: 10419 | C83: 24 | D83: 10432 | E83: 14 | F83: 10445 | K83: 0 | L83: 221
A84: 22 | B84: 10556 | C84: 24 | D84: 10576 | E84: 14 | F84: 10589 | K84: 0 | L84: 221
A85: 22 | B85: 10712 | C85: 13 | D85: 10723 | E85: 23 | F85: 10731 | K85: 0 | L85: 212
A86: 22 | B86: 10832 | C86: 24 | D86: 10839 | E86: 23 | F86: 10854 | K86: 0 | L86: 222
A87: 22 | B87: 10965 | C87: 24 | D87: 10974 | E87: 23 | F87: 10990 | K87: 0 | L87: 222
A88: 22 | B88: 11091 | C88: 24 | D88: 11107 | E88: 23 | F88: 11115 | K88: 0 | L88: 222
A89: 22 | B89: 11233 | C89: 24 | D89: 11241 | E89: 23 | F89: 11248 | K89: 0 | L89: 222
A90: 22 | B90: 11364 | C90: 13 | D90: 11377 | E90: 23 | F90: 11393 | K90: 0 | L90: 212
A91: 22 | B91: 11505 | C91: 24 | D91: 11520 | E91: 23 | F91: 11540 | K91: 0 | L91: 222
A92: 11 | B92: 11654 | C92: 22 | D92: 11666 | E92: 23 | F92: 11699 | K92: 0 | L92: 122
A93: 22 | B93: 11802 | C93: 24 | D93: 11819 | E93: 14 | F93: 11835 | K93: 0 | L93: 221
A94: 22 | B94: 11937 | C94: 24 | D94: 11958 | E94: 23 | F94: 11966 | K94: 0 | L94: 222
A95: 22 | B95: 12073 | C95: 24 | D95: 12080 | E95: 23 | F95: 12097 | K95: 0 | L95: 222
A96: 22 | B96: 12212 | C96: 13 | D96: 12224 | E96: 14 | F96: 12229 | K96: 0 | L96: 211
A97: 11 | B97: 12360 | C97: 22 | D97: 12375 | E97: 14 | F97: 12386 | K97: 0 | L97: 121
A98: 11 | B98: 12506 | C98: 22 | D98: 12519 | E98: 14 | F98: 12531 | K98: 0 | L98: 121
A99: 11 | B99: 12635 | C99: 11 | D99: 12657 | E99: 21 | F99: 12669 | K99: 0 | L99: 112
A100: 22 | B100: 12790 | C100: 24 | D100: 12806 | E100: 14 | F100: 12824 | K100: 0 | L100: 221
A101: 22 | B101: 12931 | C101: 24 | D101: 12950 | E101: 14 | F101: 12963 | K101: 0 | L101: 221
A102: 22 | B102: 13095 | C102: 13 | D102: 13133 | E102: 14 | F102: 13145 | K102: 0 | L102: 211
A103: 22 | B103: 13266 | C103: 24 | D103: 13282 | E103: 23 | F103: 13302 | K103: 0 | L103: 222
A104: 22 | B104: 13429 | C104: 24 | D104: 13438 | E104: 23 | F104: 13446 | K104: 0 | L104: 222
A105: 22 | B105: 13555 | C105: 24 | D105: 13564 | E105: 23 | F105: 13587 | K105: 0 | L105: 222
A106: 22 | B106: 13712 | C106: 24 | D106: 13728 | E106: 23 | F106: 13740 | K106: 0 | L106: 222
A107: 22 | B107: 13851 | C107: 24 | D107: 13859 | E107: 23 | F107: 13870 | K107: 0 | L107: 222
A108: 22 | B108: 13977 | C108: 24 | D108: 13995 | E108: 14 | F108: 14008 | K108: 0 | L108: 221
A109: 22 | B109: 14123 | C109: 24 | D109: 14146 | E109: 23 | F109: 14164 | K109: 0 | L109: 222
A110: 22 | B110: 14275 | C110: 24 | D110: 14295 | E110: 23 | F110: 14304 | K110: 0 | L110: 222
A111: 22 | B111: 14414 | C111: 24 | D111: 14434 | E111: 23 | F111: 14441 | K111: 0 | L111: 222
A112: 22 | B112: 14554 | C112: 24 | D112: 14577 | E112: 23 | F112: 14584 | K112: 0 | L112: 222
A113: 22 | B113: 14689 | C113: 24 | D113: 14700 | E113: 23 | F113: 14713 | K113: 0 | L113: 222
A114: 11 | B114: 14822 | C114: 22 | D114: 14831 | E114: 23 | F114: 14838 | K114: 0 | L114: 122
A115: 22 | B115: 14943 | C115: 24 | D115: 14965 | E115: 23 | F115: 14973 | K115: 0 | L115: 222
A116: 22 | B116: 15089 | C116: 13 | D116: 15105 | E116: 14 | F116: 15113 | K116: 0 | L116: 211
A117: 22 | B117: 15230 | C117: 24 | D117: 15238 | E117: 14 | F117: 15255 | K117: 0 | L117: 221
A118: 11 | B118: 15395 | C118: 11 | D118: 15399 | E118: 21 | F118: 15412 | K118: 0 | L118: 112
A119: 22 | B119: 15545 | C119: 13 | D119: 15558 | E119: 14 | F119: 15581 | K119: 0 | L119: 211
A120: 22 | B120: 15720 | C120: 24 | D120: 15727 | E120: 23 | F120: 15737 | K120: 0 | L120: 222
A121: 22 | B121: 15849 | C121: 24 | D121: 15864 | E121: 23 | F121: 15900 | K121: 0 | L121: 222
A122: 22 | B122: 16017 | C122: 13 | D122: 16037 | E122: 23 | F122: 16051 | K122: 0 | L122: 212
A123: 11 | B123: 16188 | C123: 22 | D123: 16198 | E123: 23 | F123: 16206 | K123: 0 | L123: 122
A124: 22 | B124: 16339 | C124: 24 | D124: 16362 | E124: 23 | F124: 16369 | K124: 0 | L124: 222
A125: 22 | B125: 16484 | C125: 24 | D125: 16492 | E125: 23 | F125: 16514 | K125: 0 | L125: 222
A126: 22 | B126: 16661 | C126: 24 | D126: 16686 | E126: 23 | F126: 16699 | K126: 0 | L126: 222
A127: 22 | B127: 16803 | C127: 24 | D127: 16826 | E127: 14 | F127: 16853 | K127: 0 | L127: 221
A128: 22 | B128: 16957 | C128: 24 | D128: 16978 | E128: 23 | F128: 16985 | K128: 0 | L128: 222
A129: 22 | B129: 17093 | C129: 24 | D129: 17112 | E129: 23 | F129: 17118 | K129: 0 | L129: 222
A130: 22 | B130: 17227 | C130: 24 | D130: 17248 | E130: 14 | F130: 17264 | K130: 0 | L130: 221
A131: 22 | B131: 17374 | C131: 24 | D131: 17397 | E131: 23 | F131: 17405 | K131: 0 | L131: 222
A132: 22 | B132: 17509 | C132: 24 | D132: 17537 | E132: 23 | F132: 17547 | K132: 0 | L132: 222
A133: 22 | B133: 17650 | C133: 24 | D133: 17668 | E133: 23 | F133: 17694 | K133: 0 | L133: 222
A134: 22 | B134: 17800 | C134: 24 | D134: 17809 | E134: 23 | F134: 17817 | K134: 0 | L134: 222
A135: 22 | B135: 17938 | C135: 13 | D135: 17952 | E135: 23 | F135: 17965 | K135: 0 | L135: 212
A136: 11 | B136: 18070 | C136: 11 | D136: 18088 | E136: 21 | F136: 18101 | K136: 0 | L136: 112
A137: 22 | B137: 18299 | C137: 24 | D137: 18307 | E137: 23 | F137: 18326 | K137: 0 | L137: 222
A138: 11 | B138: 18437 | C138: 22 | D138: 18447 | E138: 14 | F138: 18463 | K138: 0 | L138: 121
A139: 22 | B139: 18584 | C139: 24 | D139: 18607 | E139: 14 | F139: 18627 | K139: 0 | L139: 221
A140: 11 | B140: 18743 | C140: 11 | D140: 18756 | E140: 21 | F140: 18771 | K140: 0 | L140: 112
A141: 22 | B141: 18890 | C141: 13 | D141: 18909 | E141: 23 | F141: 18922 | K141: 0 | L141: 212
A142: 22 | B142: 19024 | C142: 13 | D142: 19035 | E142: 14 | F142: 19051 | K142: 0 | L142: 211
A143: 11 | B143: 19168 | C143: 11 | D143: 19177 | E143: 21 | F143: 19196 | K143: 0 | L143: 112
A144: 22 | B144: 19294 | C144: 24 | D144: 19300 | E144: 23 | F144: 19307 | K144: 0 | L144: 222
A145: 22 | B145: 19426 | C145: 24 | D145: 19445 | E145: 23 | F145: 19453 | K145: 0 | L145: 222
A146: 22 | B146: 19586 | C146: 13 | D146: 19599 | E146: 23 | F146: 19621 | K146: 0 | L146: 212
A147: 22 | B147: 19720 | C147: 24 | D147: 19740 | E147: 23 | F147: 19747 | K147: 0 | L147: 222
A148: 22 | B148: 19854 | C148: 24 | D148: 19866 | E148: 23 | F148: 19878 | K148: 0 | L148: 222
A149: 22 | B149: 19977 | C149: 24 | D149: 20000 | E149: 23 | F149: 20007 | K149: 0 | L149: 222
A150: 22 | B150: 20132 | C150: 13 | D150: 20142 | E150: 14 | F150: 20167 | K150: 0 | L150: 211
A151: 11 | B151: 20289 | C151: 11 | D151: 20294 | E151: 21 | F151: 20302 | K151: 0 | L151: 112
A152: 22 | B152: 20415 | C152: 24 | D152: 20443 | E152: 14 | F152: 20462 | K152: 0 | L152: 221
A153: 22 | B153: 20569 | C153: 24 | D153: 20577 | E153: 14 | F153: 20590 | K153: 0 | L153: 221
A154: 22 | B154: 20709 | C154: 24 | D154: 20719 | E154: 14 | F154: 20737 | K154: 0 | L154: 221
A155: 22 | B155: 20837 | C155: 24 | D155: 20855 | E155: 23 | F155: 20865 | K155: 0 | L155: 222
A156: 22 | B156: 20970 | C156: 13 | D156: 20987 | E156: 23 | F156: 20998 | K156: 0 | L156: 212
A157: 22 | B157: 21108 | C157: 13 | D157: 21128 | E157: 23 | F157: 21148 | K157: 0 | L157: 212
A158: 22 | B158: 21260 | C158: 24 | D158: 21285 | E158: 23 | F158: 21293 | K158: 0 | L158: 222
A159: 22 | B159: 21399 | C159: 13 | D159: 21420 | E159: 23 | F159: 21435 | K159: 0 | L159: 212
A160: 22 | B160: 21553 | C160: 24 | D160: 21561 | E160: 14 | F160: 21579 | K160: 0 | L160: 221
A161: 11 | B161: 21680 | C161: 22 | D161: 21691 | E161: 23 | F161: 21700 | K161: 0 | L161: 122
A162: 22 | B162: 21830 | C162: 13 | D162: 21842 | E162: 14 | F162: 21852 | K162: 0 | L162: 211
A163: 22 | B163: 21969 | C163: 24 | D163: 21985 | E163: 23 | F163: 21992 | K163: 0 | L163: 222
A164: 22 | B164: 22111 | C164: 24 | D164: 22131 | E164: 23 | F164: 22138 | K164: 0 | L164: 222
A165: 22 | B165: 22269 | C165: 24 | D165: 22276 | E165: 23 | F165: 22284 | K165: 0 | L165: 222
A166: 11 | B166: 22397 | C166: 11 | D166: 22418 | E166: 12 | F166: 22423 | K166: 0 | L166: 111
A167: 22 | B167: 22564 | C167: 24 | D167: 22572 | E167: 14 | F167: 22588 | K167: 0 | L167: 221
A168: 11 | B168: 22719 | C168: 11 | D168: 22731 | E168: 21 | F168: 22743 | K168: 0 | L168: 112
A169: 22 | B169: 22884 | C169: 24 | D169: 22891 | E169: 23 | F169: 22917 | K169: 0 | L169: 222
A170: 22 | B170: 23034 | C170: 24 | D170: 23056 | E170: 23 | F170: 23065 | K170: 0 | L170: 222
A171: 22 | B171: 23164 | C171: 24 | D171: 23182 | E171: 14 | F171: 23194 | K171: 0 | L171: 221
A172: 22 | B172: 23308 | C172: 13 | D172: 23321 | E172: 23 | F172: 23331 | K172: 0 | L172: 212
A173: 22 | B173: 23450 | C173: 13 | D173: 23460 | E173: 14 | F173: 23469 | K173: 0 | L173: 211
A174: 11 | B174: 23580 | C174: 22 | D174: 23605 | E174: 14 | F174: 23621 | K174: 0 | L174: 121
A175: 22 | B175: 23747 | C175: 24 | D175: 23756 | E175: 14 | F175: 23773 | K175: 0 | L175: 221
A176: 11 | B176: 23871 | C176: 11 | D176: 23876 | E176: 21 | F176: 23888 | K176: 0 | L176: 112
A177: 22 | B177: 23997 | L177: 2

Sheet !M516A20.176
A1: Report for:!M516A20.176
A2: Date: | B2: <date>
A3: Hen: | B3: <hen> | F3: Correct Sequence | G3: =Start!J2 -> 122 | P3: Total Sequences in Data | Q3: =4994-COUNTBLANK(L7:L5000) -> 181 | V3: Total Sequences in Block Data | W3: =COUNTA(L7:L36) -> 30 | AA3: Total Sequences in Block Data | AB3: =COUNTA(L37:L66) -> 30 | AF3: Total Sequences in Block Data | AG3: =COUNTA(L67:L97) -> 31 | AK3: Total Sequences in Block Data | AL3: =COUNTA(L98:L127) -> 30 | AP3: Total Sequences in Block Data | AQ3: =COUNTA(L128:L157) -> 30 | AU3: Total Sequences in Block Data | AV3: =COUNTA(L158:L187) -> 30
P4: Total Sequences in Summary | Q4: =SUM(O7:O14) -> 181 | V4: Total Sequences in Block Summary | W4: =SUM(U7:U14) -> 30 | AA4: Total Sequences in Block Summary | AB4: =SUM(Z7:Z14) -> 30 | AF4: Total Sequences in Block Summary | AG4: =SUM(AE7:AE14) -> 31 | AK4: Total Sequences in Block Summary | AL4: =SUM(AJ7:AJ14) -> 30 | AP4: Total Sequences in Block Summary | AQ4: =SUM(AO7:AO14) -> 30 | AU4: Total Sequences in Block Summary | AV4: =SUM(AT7:AT14) -> 30
T5: Block 1 | Y5: Block 2 | AD5: Block 3 | AI5: Block 4 | AN5: Block 5 | AS5: Block 6
A6: Sequence Component 1 | B6: Time 1 | C6: Sequence Component 2 | D6: Time 2 | E6: Sequence Component 3 | F6: Time 3 | G6: Sequence Component 4 | H6: Time 4 | I6: Sequence Component 5 | J6: Time 5 | K6: Correct? 0=No 1=Yes | L6: Sequence | N6: Frequency | P6: Relative Frequency | Q6: Variability | T6: Frequency | V6: Relative Frequency | W6: Variability | Y6: Frequency | AA6: Relative Frequency | AB6: Variability | AD6: Frequency | AF6: Relative Frequency | AG6: Variability | AI6: Frequency | AK6: Relative Frequency | AL6: Variability | AN6: Frequency | AP6: Relative Frequency | AQ6: Variability | AS6: Frequency | AU6: Relative Frequency | AV6: Variability
A7: 11 | B7: 32 | C7: 22 | D7: 48 | E7: 14 | F7: 73 | K7: 0 | L7: 121 | N7: 111 | O7: =COUNTIF($L$7:$L$500,N7) -> 12 | P7: =O7/$Q$4 -> 0.06629834254 | Q7: =IF(P7=0,0,(P7*((LOG(P7))/LOG(2)))) -> -0.2595502798 | T7: =N7 -> 111 | U7: =COUNTIF(L7:L36,T7) -> 0 | V7: =U7/(W4-U10) -> 0 | W7: =IF(V7=0,0,(V7*((LOG(V7))/LOG(2)))) -> 0 | Y7: =N7 -> 111 | Z7: =COUNTIF(L37:L66,Y7) -> 3 | AA7: =Z7/(AB4-Z10) -> 0.12 | AB7: =IF(AA7=0,0,(AA7*((LOG(AA7))/LOG(2)))) -> -0.3670672427 | AD7: =N7 -> 111 | AE7: =COUNTIF(L67:L97,AD7) -> 7 | AF7: =AE7/(AG4-AE10) -> 0.2333333333 | AG7: =IF(AF7=0,0,(AF7*((LOG(AF7))/LOG(2)))) -> -0.4898916572 | AI7: =N7 -> 111 | AJ7: =COUNTIF(L98:L127,AI7) -> 1 | AK7: =AJ7/(AL4-AJ10) -> 0.03703703704 | AL7: =IF(AK7=0,0,(AK7*((LOG(AK7))/LOG(2)))) -> -0.1761069445 | AN7: =N7 -> 111 | AO7: =COUNTIF(L128:L157,AN7) -> 1 | AP7: =AO7/(AQ4-AO10) -> 0.03703703704 | AQ7: =IF(AP7=0,0,(AP7*((LOG(AP7))/LOG(2)))) -> -0.1761069445 | AS7: =N7 -> 111 | AT7: =COUNTIF(L158:L187,AS7) -> 0 | AU7: =AT7/(AV4-AT10) -> 0 | AV7: =IF(AU7=0,0,(AU7*((LOG(AU7))/LOG(2)))) -> 0
A8: 22 | B8: 177 | C8: 24 | D8: 195 | E8: 14 | F8: 208 | K8: 0 | L8: 221 | N8: 112 | O8: =COUNTIF($L$7:$L$500,N8) -> 25 | P8: =O8/$Q$4 -> 0.138121547 | Q8: =IF(P8=0,0,(P8*((LOG(P8))/LOG(2)))) -> -0.3944737151 | T8: =N8 -> 112 | U8: =COUNTIF(L7:L36,T8) -> 1 | V8: =U8/(W4-U10) -> 0.03846153846 | W8: =IF(V8=0,0,(V8*((LOG(V8))/LOG(2)))) -> -0.180786143 | Y8: =N8 -> 112 | Z8: =COUNTIF(L37:L66,Y8) -> 1 | AA8: =Z8/(AB4-Z10) -> 0.04 | AB8: =IF(AA8=0,0,(AA8*((LOG(AA8))/LOG(2)))) -> -0.1857542476 | AD8: =N8 -> 112 | AE8: =COUNTIF(L67:L97,AD8) -> 5 | AF8: =AE8/(AG4-AE10) -> 0.1666666667 | AG8: =IF(AF8=0,0,(AF8*((LOG(AF8))/LOG(2)))) -> -0.4308270835 | AI8: =N8 -> 112 | AJ8: =COUNTIF(L98:L127,AI8) -> 5 | AK8: =AJ8/(AL4-AJ10) -> 0.1851851852 | AL8: =IF(AK8=0,0,(AK8*((LOG(AK8))/LOG(2)))) -> -0.4505480384 | AN8: =N8 -> 112 | AO8: =COUNTIF(L128:L157,AN8) -> 6 | AP8: =AO8/(AQ4-AO10) -> 0.2222222222 | AQ8: =IF(AP8=0,0,(AP8*((LOG(AP8))/LOG(2)))) -> -0.4822055559 | AS8: =N8 -> 112 | AT8: =COUNTIF(L158:L187,AS8) -> 7 | AU8: =AT8/(AV4-AT10) -> 0.3181818182 | AV8: =IF(AU8=0,0,(AU8*((LOG(AU8))/LOG(2)))) -> -0.5256607671
A9: 22 | B9: 307 | C9: 24 | D9: 317 | E9: 23 | F9: 325 | K9: 0 | L9: 222 | N9: 121 | O9: =COUNTIF($L$7:$L$500,N9) -> 3 | P9: =O9/$Q$4 -> 0.01657458564 | Q9: =IF(P9=0,0,(P9*((LOG(P9))/LOG(2)))) -> -0.09803674121 | T9: =N9 -> 121 | U9: =COUNTIF(L7:L36,T9) -> 2 | V9: =U9/(W4-U10) -> 0.07692307692 | W9: =IF(V9=0,0,(V9*((LOG(V9))/LOG(2)))) -> -0.2846492091 | Y9: =N9 -> 121 | Z9: =COUNTIF(L37:L66,Y9) -> 1 | AA9: =Z9/(AB4-Z10) -> 0.04 | AB9: =IF(AA9=0,0,(AA9*((LOG(AA9))/LOG(2)))) -> -0.1857542476 | AD9: =N9 -> 121 | AE9: =COUNTIF(L67:L97,AD9) -> 0 | AF9: =AE9/(AG4-AE10) -> 0 | AG9: =IF(AF9=0,0,(AF9*((LOG(AF9))/LOG(2)))) -> 0 | AI9: =N9 -> 121 | AJ9: =COUNTIF(L98:L127,AI9) -> 0 | AK9: =AJ9/(AL4-AJ10) -> 0 | AL9: =IF(AK9=0,0,(AK9*((LOG(AK9))/LOG(2)))) -> 0 | AN9: =N9 -> 121 | AO9: =COUNTIF(L128:L157,AN9) -> 0 | AP9: =AO9/(AQ4-AO10) -> 0 | AQ9: =IF(AP9=0,0,(AP9*((LOG(AP9))/LOG(2)))) -> 0 | AS9: =N9 -> 121 | AT9: =COUNTIF(L158:L187,AS9) -> 0 | AU9: =AT9/(AV4-AT10) -> 0 | AV9: =IF(AU9=0,0,(AU9*((LOG(AU9))/LOG(2)))) -> 0
A10: 22 | B10: 426 | C10: 24 | D10: 435 | E10: 14 | F10: 458 | K10: 0 | L10: 221 | N10: 122 | O10: =COUNTIF($L$7:$L$500,N10) -> 24 | P10: =O10/$Q$4 -> 0.1325966851 | Q10: =IF(P10=0,0,(P10*((LOG(P10))/LOG(2)))) -> -0.3865038744 | T10: =N10 -> 122 | U10: =COUNTIF(L7:L36,T10) -> 4 | Y10: =N10 -> 122 | Z10: =COUNTIF(L37:L66,Y10) -> 5 | AD10: =N10 -> 122 | AE10: =COUNTIF(L67:L97,AD10) -> 1 | AI10: =N10 -> 122 | AJ10: =COUNTIF(L98:L127,AI10) -> 3 | AN10: =N10 -> 122 | AO10: =COUNTIF(L128:L157,AN10) -> 3 | AS10: =N10 -> 122 | AT10: =COUNTIF(L158:L187,AS10) -> 8
A11: 22 | B11: 572 | C11: 24 | D11: 589 | E11: 14 | F11: 605 | K11: 0 | L11: 221 | N11: 211 | O11: =COUNTIF($L$7:$L$500,N11) -> 20 | P11: =O11/$Q$4 -> 0.1104972376 | Q11: =IF(P11=0,0,(P11*((LOG(P11))/LOG(2)))) -> -0.3511511373 | T11: =N11 -> 211 | U11: =COUNTIF(L7:L36,T11) -> 1 | V11: =U11/(W4-U10) -> 0.03846153846 | W11: =IF(V11=0,0,(V11*((LOG(V11))/LOG(2)))) -> -0.180786143 | Y11: =N11 -> 211 | Z11: =COUNTIF(L37:L66,Y11) -> 4 | AA11: =Z11/(AB4-Z10) -> 0.16 | AB11: =IF(AA11=0,0,(AA11*((LOG(AA11))/LOG(2)))) -> -0.4230169904 | AD11: =N11 -> 211 | AE11: =COUNTIF(L67:L97,AD11) -> 2 | AF11: =AE11/(AG4-AE10) -> 0.06666666667 | AG11: =IF(AF11=0,0,(AF11*((LOG(AF11))/LOG(2)))) -> -0.260459373 | AI11: =N11 -> 211 | AJ11: =COUNTIF(L98:L127,AI11) -> 10 | AK11: =AJ11/(AL4-AJ10) -> 0.3703703704 | AL11: =IF(AK11=0,0,(AK11*((LOG(AK11))/LOG(2)))) -> -0.5307257064 | AN11: =N11 -> 211 | AO11: =COUNTIF(L128:L157,AN11) -> 3 | AP11: =AO11/(AQ4-AO10) -> 0.1111111111 | AQ11: =IF(AP11=0,0,(AP11*((LOG(AP11))/LOG(2)))) -> -0.352213889 | AS11: =N11 -> 211 | AT11: =COUNTIF(L158:L187,AS11) -> 0 | AU11: =AT11/(AV4-AT10) -> 0 | AV11: =IF(AU11=0,0,(AU11*((LOG(AU11))/LOG(2)))) -> 0
A12: 22 | B12: 705 | C12: 24 | D12: 721 | E12: 23 | F12: 729 | K12: 0 | L12: 222 | N12: 212 | O12: =COUNTIF($L$7:$L$500,N12) -> 13 | P12: =O12/$Q$4 -> 0.07182320442 | Q12: =IF(P12=0,0,(P12*((LOG(P12))/LOG(2)))) -> -0.2728855259 | T12: =N12 -> 212 | U12: =COUNTIF(L7:L36,T12) -> 0 | V12: =U12/(W4-U10) -> 0 | W12: =IF(V12=0,0,(V12*((LOG(V12))/LOG(2)))) -> 0 | Y12: =N12 -> 212 | Z12: =COUNTIF(L37:L66,Y12) -> 3 | AA12: =Z12/(AB4-Z10) -> 0.12 | AB12: =IF(AA12=0,0,(AA12*((LOG(AA12))/LOG(2)))) -> -0.3670672427 | AD12: =N12 -> 212 | AE12: =COUNTIF(L67:L97,AD12) -> 5 | AF12: =AE12/(AG4-AE10) -> 0.1666666667 | AG12: =IF(AF12=0,0,(AF12*((LOG(AF12))/LOG(2)))) -> -0.4308270835 | AI12: =N12 -> 212 | AJ12: =COUNTIF(L98:L127,AI12) -> 1 | AK12: =AJ12/(AL4-AJ10) -> 0.03703703704 | AL12: =IF(AK12=0,0,(AK12*((LOG(AK12))/LOG(2)))) -> -0.1761069445 | AN12: =N12 -> 212 | AO12: =COUNTIF(L128:L157,AN12) -> 3 | AP12: =AO12/(AQ4-AO10) -> 0.1111111111 | AQ12: =IF(AP12=0,0,(AP12*((LOG(AP12))/LOG(2)))) -> -0.352213889 | AS12: =N12 -> 212 | AT12: =COUNTIF(L158:L187,AS12) -> 1 | AU12: =AT12/(AV4-AT10) -> 0.04545454545 | AV12: =IF(AU12=0,0,(AU12*((LOG(AU12))/LOG(2)))) -> -0.2027014372
A13: 22 | B13: 827 | C13: 24 | D13: 858 | E13: 23 | F13: 866 | K13: 0 | L13: 222 | N13: 221 | O13: =COUNTIF($L$7:$L$500,N13) -> 12 | P13: =O13/$Q$4 -> 0.06629834254 | Q13: =IF(P13=0,0,(P13*((LOG(P13))/LOG(2)))) -> -0.2595502798 | T13: =N13 -> 221 | U13: =COUNTIF(L7:L36,T13) -> 7 | V13: =U13/(W4-U10) -> 0.2692307692 | W13: =IF(V13=0,0,(V13*((LOG(V13))/LOG(2)))) -> -0.5096766759 | Y13: =N13 -> 221 | Z13: =COUNTIF(L37:L66,Y13) -> 0 | AA13: =Z13/(AB4-Z10) -> 0 | AB13: =IF(AA13=0,0,(AA13*((LOG(AA13))/LOG(2)))) -> 0 | AD13: =N13 -> 221 | AE13: =COUNTIF(L67:L97,AD13) -> 1 | AF13: =AE13/(AG4-AE10) -> 0.03333333333 | AG13: =IF(AF13=0,0,(AF13*((LOG(AF13))/LOG(2)))) -> -0.1635630199 | AI13: =N13 -> 221 | AJ13: =COUNTIF(L98:L127,AI13) -> 0 | AK13: =AJ13/(AL4-AJ10) -> 0 | AL13: =IF(AK13=0,0,(AK13*((LOG(AK13))/LOG(2)))) -> 0 | AN13: =N13 -> 221 | AO13: =COUNTIF(L128:L157,AN13) -> 2 | AP13: =AO13/(AQ4-AO10) -> 0.07407407407 | AQ13: =IF(AP13=0,0,(AP13*((LOG(AP13))/LOG(2)))) -> -0.278139815 | AS13: =N13 -> 221 | AT13: =COUNTIF(L158:L187,AS13) -> 2 | AU13: =AT13/(AV4-AT10) -> 0.09090909091 | AV13: =IF(AU13=0,0,(AU13*((LOG(AU13))/LOG(2)))) -> -0.3144937835
A14: 22 | B14: 969 | C14: 24 | D14: 976 | E14: 23 | F14: 985 | K14: 0 | L14: 222 | N14: 222 | O14: =COUNTIF($L$7:$L$500,N14) -> 72 | P14: =O14/$Q$4 -> 0.3977900552 | Q14: =IF(P14=0,0,(P14*((LOG(P14))/LOG(2)))) -> -0.5290293026 | T14: =N14 -> 222 | U14: =COUNTIF(L7:L36,T14) -> 15 | V14: =U14/(W4-U10) -> 0.5769230769 | W14: =IF(V14=0,0,(V14*((LOG(V14))/LOG(2)))) -> -0.4578168015 | Y14: =N14 -> 222 | Z14: =COUNTIF(L37:L66,Y14) -> 13 | AA14: =Z14/(AB4-Z10) -> 0.52 | AB14: =IF(AA14=0,0,(AA14*((LOG(AA14))/LOG(2)))) -> -0.4905765652 | AD14: =N14 -> 222 | AE14: =COUNTIF(L67:L97,AD14) -> 10 | AF14: =AE14/(AG4-AE10) -> 0.3333333333 | AG14: =IF(AF14=0,0,(AF14*((LOG(AF14))/LOG(2)))) -> -0.5283208336 | AI14: =N14 -> 222 | AJ14: =COUNTIF(L98:L127,AI14) -> 10 | AK14: =AJ14/(AL4-AJ10) -> 0.3703703704 | AL14: =IF(AK14=0,0,(AK14*((LOG(AK14))/LOG(2)))) -> -0.5307257064 | AN14: =N14 -> 222 | AO14: =COUNTIF(L128:L157,AN14) -> 12 | AP14: =AO14/(AQ4-AO10) -> 0.4444444444 | AQ14: =IF(AP14=0,0,(AP14*((LOG(AP14))/LOG(2)))) -> -0.5199666673 | AS14: =N14 -> 222 | AT14: =COUNTIF(L158:L187,AS14) -> 12 | AU14: =AT14/(AV4-AT10) -> 0.5454545455 | AV14: =IF(AU14=0,0,(AU14*((LOG(AU14))/LOG(2)))) -> -0.4769831552
A15: 22 | B15: 1093 | C15: 24 | D15: 1100 | E15: 23 | F15: 1109 | K15: 0 | L15: 222 | P15: =SUM(P7:P14) -> 1 | Q15: =-SUM(Q7:Q14) -> 2.551180856 | V15: =SUM(V7:V14) -> 1 | W15: =-SUM(W7:W14) -> 1.613714972 | AA15: =SUM(AA7:AA14) -> 1 | AB15: =-SUM(AB7:AB14) -> 2.019236536 | AF15: =SUM(AF7:AF14) -> 1 | AG15: =-SUM(AG7:AG14) -> 2.303889051 | AK15: =SUM(AK7:AK14) -> 1 | AL15: =-SUM(AL7:AL14) -> 1.86421334 | AP15: =SUM(AP7:AP14) -> 1 | AQ15: =-SUM(AQ7:AQ14) -> 2.160846761 | AU15: =SUM(AU7:AU14) -> 1 | AV15: =-SUM(AV7:AV14) -> 1.519839143
A16: 11 | B16: 1229 | C16: 22 | D16: 1240 | E16: 23 | F16: 1248 | K16: 0 | L16: 122 | P16: U= | Q16: =Q15/(LOG(Q4)/LOG(2)) -> 0.3401644373 | V16: U1= | W16: =W15/(LOG(W4)/LOG(2)) -> 0.3288671188 | AA16: U2= | AB16: =AB15/(LOG(AB4)/LOG(2)) -> 0.411510405 | AF16: U3= | AG16: =AG15/(LOG(AG4)/LOG(2)) -> 0.4650379004 | AK16: U4= | AL16: =AL15/(LOG(AL4)/LOG(2)) -> 0.3799174455 | AP16: U5= | AQ16: =AQ15/(LOG(AQ4)/LOG(2)) -> 0.4403698674 | AU16: U6= | AV16: =AV15/(LOG(AV4)/LOG(2)) -> 0.3097356897
A17: 22 | B17: 1359 | C17: 24 | D17: 1364 | E17: 23 | F17: 1372 | K17: 0 | L17: 222
A18: 22 | B18: 1481 | C18: 24 | D18: 1505 | E18: 23 | F18: 1513 | K18: 0 | L18: 222
A19: 22 | B19: 1621 | C19: 24 | D19: 1629 | E19: 23 | F19: 1646 | K19: 0 | L19: 222 | N19: Total Target Seq
A20: 22 | B20: 1760 | C20: 24 | D20: 1782 | E20: 14 | F20: 1797 | K20: 0 | L20: 221 | N20: =COUNTIF(L7:L187,G3) -> 24 | P20: 30 | Q20: 30 | R20: 31 | S20: 30 | T20: 30 | U20: 30
A21: 22 | B21: 1906 | C21: 24 | D21: 1915 | E21: 23 | F21: 1922 | K21: 0 | L21: 222 | P21: % of reinforcement given in 6 equal intervals based on number of trials
A22: 22 | B22: 2022 | C22: 24 | D22: 2040 | E22: 23 | F22: 2049 | K22: 0 | L22: 222 | P22: %_1 | Q22: %_2 | R22: %_3 | S22: %_4 | T22: %_5 | U22: %_6
A23: 22 | B23: 2161 | C23: 24 | D23: 2169 | E23: 23 | F23: 2176 | K23: 0 | L23: 222 | O23: target sequence | P23: =$G$3 -> 122 | Q23: =$G$3 -> 122 | R23: =$G$3 -> 122 | S23: =$G$3 -> 122 | T23: =$G$3 -> 122 | U23: =$G$3 -> 122
A24: 11 | B24: 2300 | C24: 22 | D24: 2326 | E24: 23 | F24: 2335 | K24: 0 | L24: 122 | O24: total reinforcement | P24: =U10 -> 4 | Q24: =Z10 -> 5 | R24: =AE10 -> 1 | S24: =AJ10 -> 3 | T24: =AO10 -> 3 | U24: =AT10 -> 8
A25: 22 | B25: 2447 | C25: 24 | D25: 2453 | E25: 14 | F25: 2475 | K25: 0 | L25: 221 | O25: % target
A26: 22 | B26: 2578 | C26: 24 | D26: 2610 | E26: 14 | F26: 2626 | K26: 0 | L26: 221 | O26: CCRF
A27: 22 | B27: 2749 | C27: 24 | D27: 2757 | E27: 23 | F27: 2765 | K27: 0 | L27: 222 | O27: % CCRf
A28: 22 | B28: 2879 | C28: 24 | D28: 2888 | E28: 14 | F28: 2900 | K28: 0 | L28: 221 | O28: average response rate | P28: =F36/P20 -> 132.3666667 | Q28: =(F66-F36)/Q20 -> 137.4666667 | R28: =(F97-F66)/R20 -> 126.4516129 | S28: =(F127-F97)/S20 -> 122.2 | T28: =(F157-F127)/T20 -> 139.1666667 | U28: =(F187-F157)/U20 -> 136.6
A29: 11 | B29: 3005 | C29: 22 | D29: 3018 | E29: 23 | F29: 3027 | K29: 0 | L29: 122
A30: 11 | B30: 3130 | C30: 22 | D30: 3143 | E30: 14 | F30: 3161 | K30: 0 | L30: 121
A31: 22 | B31: 3291 | C31: 13 | D31: 3306 | E31: 14 | F31: 3316 | K31: 0 | L31: 211
A32: 11 | B32: 3418 | C32: 22 | D32: 3440 | E32: 23 | F32: 3449 | K32: 0 | L32: 122
A33: 22 | B33: 3546 | C33: 24 | D33: 3569 | E33: 23 | F33: 3576 | K33: 0 | L33: 222
A34: 11 | B34: 3690 | C34: 11 | D34: 3705 | E34: 21 | F34: 3716 | K34: 0 | L34: 112
A35: 22 | B35: 3817 | C35: 24 | D35: 3823 | E35: 23 | F35: 3830 | K35: 0 | L35: 222
A36: 22 | B36: 3951 | C36: 24 | D36: 3962 | E36: 23 | F36: 3971 | K36: 0 | L36: 222
A37: 22 | B37: 4074 | C37: 13 | D37: 4096 | E37: 23 | F37: 4107 | K37: 0 | L37: 212
A38: 22 | B38: 4222 | C38: 24 | D38: 4230 | E38: 23 | F38: 4239 | K38: 0 | L38: 222
A39: 22 | B39: 4339 | C39: 13 | D39: 4367 | E39: 14 | F39: 4377 | K39: 0 | L39: 211
A40: 11 | B40: 4484 | C40: 22 | D40: 4494 | E40: 23 | F40: 4502 | K40: 0 | L40: 122
A41: 11 | B41: 4609 | C41: 11 | D41: 4622 | E41: 12 | F41: 4641 | K41: 0 | L41: 111
A42: 22 | B42: 4754 | C42: 24 | D42: 4762 | E42: 23 | F42: 4776 | K42: 0 | L42: 222
A43: 11 | B43: 4903 | C43: 11 | D43: 4911 | E43: 12 | F43: 4916 | K43: 0 | L43: 111
A44: 22 | B44: 5035 | C44: 24 | D44: 5043 | E44: 23 | F44: 5051 | K44: 0 | L44: 222
A45: 22 | B45: 5173 | C45: 13 | D45: 5186 | E45: 14 | F45: 5195 | K45: 0 | L45: 211
A46: 22 | B46: 5308 | C46: 13 | D46: 5324 | E46: 14 | F46: 5329 | K46: 0 | L46: 211
A47: 22 | B47: 5444 | C47: 24 | D47: 5452 | E47: 23 | F47: 5461 | K47: 0 | L47: 222
A48: 11 | B48: 5581 | C48: 22 | D48: 5592 | E48: 14 | F48: 5608 | K48: 0 | L48: 121
A49: 22 | B49: 5735 | C49: 24 | D49: 5741 | E49: 23 | F49: 5749 | K49: 0 | L49: 222
A50: 22 | B50: 5859 | C50: 13 | D50: 5874 | E50: 23 | F50: 5883 | K50: 0 | L50: 212
A51: 22 | B51: 6006 | C51: 24 | D51: 6014 | E51: 23 | F51: 6023 | K51: 0 | L51: 222
A52: 22 | B52: 6139 | C52: 13 | D52: 6161 | E52: 23 | F52: 6178 | K52: 0 | L52: 212
A53: 22 | B53: 6297 | C53: 24 | D53: 6310 | E53: 23 | F53: 6318 | K53: 0 | L53: 222
A54: 11 | B54: 6450 | C54: 11 | D54: 6470 | E54: 12 | F54: 6480 | K54: 0 | L54: 111
A55: 22 | B55: 6580 | C55: 24 | D55: 6598 | E55: 23 | F55: 6606 | K55: 0 | L55: 222
A56: 22 | B56: 6723 | C56: 24 | D56: 6728 | E56: 23 | F56: 6758 | K56: 0 | L56: 222
A57: 11 | B57: 6869 | C57: 22 | D57: 6893 | E57: 23 | F57: 6900 | K57: 0 | L57: 122
A58: 11 | B58: 7028 | C58: 22 | D58: 7038 | E58: 23 | F58: 7045 | K58: 0 | L58: 122
A59: 22 | B59: 7190 | C59: 24 | D59: 7198 | E59: 23 | F59: 7206 | K59: 0 | L59: 222
A60: 11 | B60: 7313 | C60: 11 | D60: 7322 | E60: 21 | F60: 7334 | K60: 0 | L60: 112
A61: 22 | B61: 7440 | C61: 24 | D61: 7452 | E61: 23 | F61: 7457 | K61: 0 | L61: 222
A62: 11 | B62: 7567 | C62: 22 | D62: 7577 | E62: 23 | F62: 7582 | K62: 0 | L62: 122
A63: 22 | B63: 7700 | C63: 24 | D63: 7706 | E63: 23 | F63: 7713 | K63: 0 | L63: 222
A64: 22 | B64: 7813 | C64: 13 | D64: 7822 | E64: 14 | F64: 7843 | K64: 0 | L64: 211
A65: 22 | B65: 7954 | C65: 24 | D65: 7961 | E65: 23 | F65: 7967 | K65: 0 | L65: 222
A66: 11 | B66: 8072 | C66: 22 | D66: 8089 | E66: 23 | F66: 8095 | K66: 0 | L66: 122
A67: 22 | B67: 8241 | C67: 24 | D67: 8249 | E67: 23 | F67: 8257 | K67: 0 | L67: 222
A68: 11 | B68: 8358 | C68: 11 | D68: 8371 | E68: 12 | F68: 8386 | K68: 0 | L68: 111
A69: 22 | B69: 8484 | C69: 13 | D69: 8509 | E69: 23 | F69: 8521 | K69: 0 | L69: 212
A70: 11 | B70: 8643 | C70: 11 | D70: 8648 | E70: 12 | F70: 8653 | K70: 0 | L70: 111
A71: 11 | B71: 8753 | C71: 11 | D71: 8758 | E71: 12 | F71: 8763 | K71: 0 | L71: 111
A72: 22 | B72: 8862 | C72: 13 | D72: 8871 | E72: 14 | F72: 8876 | K72: 0 | L72: 211
A73: 22 | B73: 8990 | C73: 24 | D73: 8998 | E73: 23 | F73: 9007 | K73: 0 | L73: 222
A74: 11 | B74: 9120 | C74: 11 | D74: 9125 | E74: 21 | F74: 9138 | K74: 0 | L74: 112
A75: 11 | B75: 9236 | C75: 22 | D75: 9246 | E75: 23 | F75: 9251 | K75: 0 | L75: 122
A76: 22 | B76: 9349 | C76: 13 | D76: 9364 | E76: 23 | F76: 9378 | K76: 0 | L76: 212
A77: 22 | B77: 9475 | C77: 24 | D77: 9496 | E77: 23 | F77: 9502 | K77: 0 | L77: 222
A78: 11 | B78: 9605 | C78: 11 | D78: 9609 | E78: 12 | F78: 9613 | K78: 0 | L78: 111
A79: 22 | B79: 9713 | C79: 13 | D79: 9731 | E79: 23 | F79: 9748 | K79: 0 | L79: 212
A80: 22 | B80: 9866 | C80: 24 | D80: 9871 | E80: 14 | F80: 9895 | K80: 0 | L80: 221
A81: 22 | B81: 10008 | C81: 24 | D81: 10021 | E81: 23 | F81: 10030 | K81: 0 | L81: 222
A82: 11 | B82: 10132 | C82: 11 | D82: 10137 | E82: 21 | F82: 10148 | K82: 0 | L82: 112
A83: 22 | B83: 10248 | C83: 24 | D83: 10253 | E83: 23 | F83: 10261 | K83: 0 | L83: 222
A84: 22 | B84: 10374 | C84: 13 | D84: 10394 | E84: 23 | F84: 10403 | K84: 0 | L84: 212
A85: 11 | B85: 10528 | C85: 11 | D85: 10532 | E85: 21 | F85: 10544 | K85: 0 | L85: 112
A86: 22 | B86: 10669 | C86: 24 | D86: 10675 | E86: 23 | F86: 10680 | K86: 0 | L86: 222
A87: 22 | B87: 10776 | C87: 13 | D87: 10786 | E87: 14 | F87: 10791 | K87: 0 | L87: 211
A88: 22 | B88: 10900 | C88: 24 | D88: 10904 | E88: 23 | F88: 10911 | K88: 0 | L88: 222
A89: 11 | B89: 11017 | C89: 11 | D89: 11034 | E89: 21 | F89: 11043 | K89: 0 | L89: 112
A90: 22 | B90: 11142 | C90: 24 | D90: 11147 | E90: 23 | F90: 11162 | K90: 0 | L90: 222
A91: 22 | B91: 11260 | C91: 13 | D91: 11275 | E91: 23 | F91: 11287 | K91: 0 | L91: 212
A92: 11 | B92: 11395 | C92: 11 | D92: 11400 | E92: 12 | F92: 11410 | K92: 0 | L92: 111
A93: 11 | B93: 11517 | C93: 11 | D93: 11525 | E93: 12 | F93: 11529 | K93: 0 | L93: 111
A94: 11 | B94: 11627 | C94: 11 | D94: 11635 | E94: 12 | F94: 11642 | K94: 0 | L94: 111
A95: 22 | B95: 11756 | C95: 24 | D95: 11761 | E95: 23 | F95: 11770 | K95: 0 | L95: 222
A96: 22 | B96: 11883 | C96: 24 | D96: 11888 | E96: 23 | F96: 11897 | K96: 0 | L96: 222
A97: 11 | B97: 11997 | C97: 11 | D97: 12002 | E97: 21 | F97: 12015 | K97: 0 | L97: 112
A98: 11 | B98: 12112 | C98: 11 | D98: 12120 | E98: 21 | F98: 12130 | K98: 0 | L98: 112
A99: 22 | B99: 12218 | C99: 13 | D99: 12228 | E99: 14 | F99: 12238 | K99: 0 | L99: 211
A100: 22 | B100: 12338 | C100: 13 | D100: 12354 | E100: 14 | F100: 12375 | K100: 0 | L100: 211
A101: 22 | B101: 12472 | C101: 13 | D101: 12481 | E101: 14 | F101: 12485 | K101: 0 | L101: 211
A102: 22 | B102: 12582 | C102: 13 | D102: 12590 | E102: 14 | F102: 12600 | K102: 0 | L102: 211
A103: 22 | B103: 12717 | C103: 24 | D103: 12725 | E103: 23 | F103: 12734 | K103: 0 | L103: 222
A104: 22 | B104: 12847 | C104: 24 | D104: 12854 | E104: 23 | F104: 12862 | K104: 0 | L104: 222
A105: 22 | B105: 12971 | C105: 24 | D105: 12990 | E105: 23 | F105: 12997 | K105: 0 | L105: 222
A106: 11 | B106: 13098 | C106: 11 | D106: 13102 | E106: 12 | F106: 13110 | K106: 0 | L106: 111
A107: 22 | B107: 13206 | C107: 24 | D107: 13229 | E107: 23 | F107: 13236 | K107: 0 | L107: 222
A108: 11 | B108: 13335 | C108: 11 | D108: 13341 | E108: 21 | F108: 13353 | K108: 0 | L108: 112
A109: 22 | B109: 13459 | C109: 24 | D109: 13467 | E109: 23 | F109: 13474 | K109: 0 | L109: 222
A110: 22 | B110: 13571 | C110: 13 | D110: 13584 | E110: 14 | F110: 13591 | K110: 0 | L110: 211
A111: 22 | B111: 13689 | C111: 24 | D111: 13708 | E111: 23 | F111: 13716 | K111: 0 | L111: 222
A112: 11 | B112: 13814 | C112: 11 | D112: 13819 | E112: 21 | F112: 13832 | K112: 0 | L112: 112
A113: 11 | B113: 13922 | C113: 22 | D113: 13937 | E113: 23 | F113: 13944 | K113: 0 | L113: 122
A114: 22 | B114: 14041 | C114: 13 | D114: 14053 | E114: 14 | F114: 14061 | K114: 0 | L114: 211
A115: 11 | B115: 14170 | C115: 22 | D115: 14178 | E115: 23 | F115: 14186 | K115: 0 | L115: 122
A116: 22 | B116: 14302 | C116: 24 | D116: 14310 | E116: 23 | F116: 14318 | K116: 0 | L116: 222
A117: 22 | B117: 14417 | C117: 13 | D117: 14427 | E117: 14 | F117: 14435 | K117: 0 | L117: 211
A118: 22 | B118: 14533 | C118: 13 | D118: 14541 | E118: 14 | F118: 14549 | K118: 0 | L118: 211
A119: 22 | B119: 14648 | C119: 13 | D119: 14656 | E119: 14 | F119: 14661 | K119: 0 | L119: 211
A120: 22 | B120: 14757 | C120: 13 | D120: 14767 | E120: 14 | F120: 14772 | K120: 0 | L120: 211
A121: 22 | B121: 14885 | C121: 24 | D121: 14893 | E121: 23 | F121: 14904 | K121: 0 | L121: 222
A122: 11 | B122: 15006 | C122: 11 | D122: 15014 | E122: 21 | F122: 15023 | K122: 0 | L122: 112
A123: 22 | B123: 15115 | C123: 24 | D123: 15135 | E123: 23 | F123: 15164 | K123: 0 | L123: 222
A124: 22 | B124: 15262 | C124: 13 | D124: 15275 | E124: 23 | F124: 15283 | K124: 0 | L124: 212
A125: 11 | B125: 15381 | C125: 22 | D125: 15402 | E125: 23 | F125: 15419 | K125: 0 | L125: 122
A126: 11 | B126: 15541 | C126: 11 | D126: 15549 | E126: 21 | F126: 15562 | K126: 0 | L126: 112
A127: 22 | B127: 15662 | C127: 24 | D127: 15672 | E127: 23 | F127: 15681 | K127: 0 | L127: 222
A128: 22 | B128: 15779 | C128: 13 | D128: 15788 | E128: 14 | F128: 15822 | K128: 0 | L128: 211
A129: 22 | B129: 15919 | C129: 13 | D129: 15933 | E129: 23 | F129: 15941 | K129: 0 | L129: 212
A130: 11 | B130: 16046 | C130: 22 | D130: 16060 | E130: 23 | F130: 16065 | K130: 0 | L130: 122
A131: 22 | B131: 16163 | C131: 13 | D131: 16184 | E131: 23 | F131: 16198 | K131: 0 | L131: 212
A132: 22 | B132: 16323 | C132: 24 | D132: 16329 | E132: 23 | F132: 16350 | K132: 0 | L132: 222
A133: 22 | B133: 16467 | C133: 24 | D133: 16486 | E133: 23 | F133: 16495 | K133: 0 | L133: 222
A134: 22 | B134: 16610 | C134: 24 | D134: 16627 | E134: 14 | F134: 16642 | K134: 0 | L134: 221
A135: 11 | B135: 16740 | C135: 11 | D135: 16775 | E135: 21 | F135: 16785 | K135: 0 | L135: 112
A136: 22 | B136: 16976 | C136: 24 | D136: 16991 | E136: 23 | F136: 17008 | K136: 0 | L136: 222
A137: 22 | B137: 17121 | C137: 24 | D137: 17129 | E137: 23 | F137: 17157 | K137: 0 | L137: 222
A138: 22 | B138: 17286 | C138: 13 | D138: 17320 | E138: 14 | F138: 17329 | K138: 0 | L138: 211
A139: 22 | B139: 17447 | C139: 24 | D139: 17456 | E139: 14 | F139: 17474 | K139: 0 | L139: 221
A140: 22 | B140: 17590 | C140: 13 | D140: 17608 | E140: 23 | F140: 17620 | K140: 0 | L140: 212
A141: 11 | B141: 17740 | C141: 11 | D141: 17745 | E141: 21 | F141: 17758 | K141: 0 | L141: 112
A142: 11 | B142: 17875 | C142: 22 | D142: 17887 | E142: 23 | F142: 17923 | K142: 0 | L142: 122
A143: 22 | B143: 18035 | C143: 24 | D143: 18041 | E143: 23 | F143: 18048 | K143: 0 | L143: 222
A144: 11 | B144: 18148 | C144: 11 | D144: 18157 | E144: 21 | F144: 18166 | K144: 0 | L144: 112
A145: 22 | B145: 18270 | C145: 24 | D145: 18278 | E145: 23 | F145: 18305 | K145: 0 | L145: 222
A146: 11 | B146: 18404 | C146: 11 | D146: 18408 | E146: 12 | F146: 18412 | K146: 0 | L146: 111
A147: 11 | B147: 18523 | C147: 11 | D147: 18527 | E147: 21 | F147: 18536 | K147: 0 | L147: 112
A148: 22 | B148: 18637 | C148: 24 | D148: 18646 | E148: 23 | F148: 18665 | K148: 0 | L148: 222
A149: 11 | B149: 18766 | C149: 11 | D149: 18774 | E149: 21 | F149: 18793 | K149: 0 | L149: 112
A150: 22 | B150: 18899 | C150: 24 | D150: 18905 | E150: 23 | F150: 18913 | K150: 0 | L150: 222
A151: 22 | B151: 19032 | C151: 24 | D151: 19046 | E151: 23 | F151: 19053 | K151: 0 | L151: 222
A152: 11 | B152: 19153 | C152: 22 | D152: 19169 | E152: 23 | F152: 19183 | K152: 0 | L152: 122
A153: 11 | B153: 19321 | C153: 11 | D153: 19330 | E153: 21 | F153: 19347 | K153: 0 | L153: 112
A154: 22 | B154: 19461 | C154: 24 | D154: 19469 | E154: 23 | F154: 19481 | K154: 0 | L154: 222
A155: 22 | B155: 19578 | C155: 24 | D155: 19602 | E155: 23 | F155: 19609 | K155: 0 | L155: 222
A156: 22 | B156: 19706 | C156: 13 | D156: 19715 | E156: 14 | F156: 19722 | K156: 0 | L156: 211
A157: 22 | B157: 19840 | C157: 24 | D157: 19847 | E157: 23 | F157: 19856 | K157: 0 | L157: 222
A158: 22 | B158: 19953 | C158: 24 | D158: 19978 | E158: 23 | F158: 19986 | K158: 0 | L158: 222
A159: 11 | B159: 20085 | C159: 22 | D159: 20099 | E159: 23 | F159: 20104 | K159: 0 | L159: 122
A160: 22 | B160: 20202 | C160: 24 | D160: 20224 | E160: 23 | F160: 20231 | K160: 0 | L160: 222
A161: 22 | B161: 20329 | C161: 24 | D161: 20353 | E161: 23 | F161: 20361 | K161: 0 | L161: 222
A162: 11 | B162: 20461 | C162: 11 | D162: 20466 | E162: 21 | F162: 20477 | K162: 0 | L162: 112
A163: 22 | B163: 20581 | C163: 24 | D163: 20588 | E163: 23 | F163: 20597 | K163: 0 | L163: 222
A164: 22 | B164: 20720 | C164: 24 | D164: 20729 | E164: 23 | F164: 20753 | K164: 0 | L164: 222
A165: 11 | B165: 20853 | C165: 22 | D165: 20866 | E165: 23 | F165: 20891 | K165: 0 | L165: 122
A166: 11 | B166: 20990 | C166: 11 | D166: 20994 | E166: 21 | F166: 21002 | K166: 0 | L166: 112
A167: 22 | B167: 21123 | C167: 24 | D167: 21136 | E167: 23 | F167: 21144 | K167: 0 | L167: 222
A168: 22 | B168: 21243 | C168: 24 | D168: 21264 | E168: 23 | F168: 21269 | K168: 0 | L168: 222
A169: 11 | B169: 21369 | C169: 11 | D169: 21373 | E169: 21 | F169: 21382 | K169: 0 | L169: 112
A170: 11 | B170: 21474 | C170: 22 | D170: 21485 | E170: 23 | F170: 21520 | K170: 0 | L170: 122
A171: 11 | B171: 21618 | C171: 11 | D171: 21623 | E171: 21 | F171: 21665 | K171: 0 | L171: 112
A172: 22 | B172: 21770 | C172: 24 | D172: 21794 | E172: 23 | F172: 21801 | K172: 0 | L172: 222
A173: 11 | B173: 21901 | C173: 22 | D173: 21914 | E173: 23 | F173: 21925 | K173: 0 | L173: 122
A174: 22 | B174: 22052 | C174: 24 | D174: 22060 | E174: 23 | F174: 22070 | K174: 0 | L174: 222
A175: 11 | B175: 22179 | C175: 22 | D175: 22198 | E175: 23 | F175: 22206 | K175: 0 | L175: 122
A176: 11 | B176: 22332 | C176: 22 | D176: 22345 | E176: 23 | F176: 22353 | K176: 0 | L176: 122
A177: 11 | B177: 22478 | C177: 11 | D177: 22482 | E177: 21 | F177: 22493 | K177: 0 | L177: 112
A178: 22 | B178: 22607 | C178: 13 | D178: 22623 | E178: 23 | F178: 22636 | K178: 0 | L178: 212
A179: 22 | B179: 22773 | C179: 24 | D179: 22792 | E179: 23 | F179: 22801 | K179: 0 | L179: 222
A180: 11 | B180: 22917 | C180: 11 | D180: 22931 | E180: 21 | F180: 22943 | K180: 0 | L180: 112
A181: 22 | B181: 23067 | C181: 24 | D181: 23074 | E181: 14 | F181: 23114 | K181: 0 | L181: 221
A182: 22 | B182: 23219 | C182: 24 | D182: 23229 | E182: 14 | F182: 23238 | K182: 0 | L182: 221
A183: 11 | B183: 23338 | C183: 22 | D183: 23357 | E183: 23 | F183: 23369 | K183: 0 | L183: 122
A184: 11 | B184: 23494 | C184: 11 | D184: 23507 | E184: 21 | F184: 23526 | K184: 0 | L184: 112
A185: 22 | B185: 23663 | C185: 24 | D185: 23683 | E185: 23 | F185: 23689 | K185: 0 | L185: 222
A186: 22 | B186: 23810 | C186: 24 | D186: 23815 | E186: 23 | F186: 23824 | K186: 0 | L186: 222
A187: 11 | B187: 23921 | C187: 22 | D187: 23945 | E187: 23 | F187: 23954 | L187: 122

Sheet !M517900.096
A1: Report for:!M517900.096
A2: Date: | B2: <date>
A3: Hen: | B3: <hen> | F3: Correct Sequence | G3: =Start!J2 -> 122 | P3: Total Sequences in Data | Q3: =4994-COUNTBLANK(L7:L5000) -> 133 | V3: Total Sequences in Block Data | W3: =COUNTA(L7:L28) -> 22 | AA3: Total Sequences in Block Data | AB3: =COUNTA(L29:L50) -> 22 | AF3: Total Sequences in Block Data | AG3: =COUNTA(L51:L73) -> 23 | AK3: Total Sequences in Block Data | AL3: =COUNTA(L74:L95) -> 22 | AP3: Total Sequences in Block Data | AQ3: =COUNTA(L96:L117) -> 22 | AU3: Total Sequences in Block Data | AV3: =COUNTA(L118:L139) -> 22
P4: Total Sequences in Summary | Q4: =SUM(O7:O14) -> 133 | V4: Total Sequences in Block Summary | W4: =SUM(U7:U14) -> 22 | AA4: Total Sequences in Block Summary | AB4: =SUM(Z7:Z14) -> 22 | AF4: Total Sequences in Block Summary | AG4: =SUM(AE7:AE14) -> 23 | AK4: Total Sequences in Block Summary | AL4: =SUM(AJ7:AJ14) -> 22 | AP4: Total Sequences in Block Summary | AQ4: =SUM(AO7:AO14) -> 22 | AU4: Total Sequences in Block Summary | AV4: =SUM(AT7:AT14) -> 22
T5: Block 1 | Y5: Block 2 | AD5: Block 3 | AI5: Block 4 | AN5: Block 5 | AS5: Block 6
A6: Sequence Component 1 | B6: Time 1 | C6: Sequence Component 2 | D6: Time 2 | E6: Sequence Component 3 | F6: Time 3 | G6: Sequence Component 4 | H6: Time 4 | I6: Sequence Component 5 | J6: Time 5 | K6: Correct? 0=No 1=Yes | L6: Sequence | N6: Frequency | P6: Relative Frequency | Q6: Variability | T6: Frequency | V6: Relative Frequency | W6: Variability | Y6: Frequency | AA6: Relative Frequency | AB6: Variability | AD6: Frequency | AF6: Relative Frequency | AG6: Variability | AI6: Frequency | AK6: Relative Frequency | AL6: Variability | AN6: Frequency | AP6: Relative Frequency | AQ6: Variability | AS6: Frequency | AU6: Relative Frequency | AV6: Variability
A7: 22 | B7: 26 | C7: 13 | D7: 39 | E7: 23 | F7: 49 | K7: 0 | L7: 212 | N7: 111 | O7: =COUNTIF($L$7:$L$500,N7) -> 8 | P7: =O7/$Q$4 -> 0.06015037594 | Q7: =IF(P7=0,0,(P7*((LOG(P7))/LOG(2)))) -> -0.243926763 | T7: =N7 -> 111 | U7: =COUNTIF(L7:L28,T7) -> 3 | V7: =U7/(W4-U10) -> 0.1578947368 | W7: =IF(V7=0,0,(V7*((LOG(V7))/LOG(2)))) -> -0.4204681599 | Y7: =N7 -> 111 | Z7: =COUNTIF(L29:L50,Y7) -> 2 | AA7: =Z7/(AB4-Z10) -> 0.125 | AB7: =IF(AA7=0,0,(AA7*((LOG(AA7))/LOG(2)))) -> -0.375 | AD7: =N7 -> 111 | AE7: =COUNTIF(L51:L73,AD7) -> 1 | AF7: =AE7/(AG4-AE10) -> 0.05882352941 | AG7: =IF(AF7=0,0,(AF7*((LOG(AF7))/LOG(2)))) -> -0.2404389907 | AI7: =N7 -> 111 | AJ7: =COUNTIF(L74:L95,AI7) -> 1 | AK7: =AJ7/(AL4-AJ10) -> 0.06666666667 | AL7: =IF(AK7=0,0,(AK7*((LOG(AK7))/LOG(2)))) -> -0.260459373 | AN7: =N7 -> 111 | AO7: =COUNTIF(L96:L117,AN7) -> 1 | AP7: =AO7/(AQ4-AO10) -> 0.07692307692 | AQ7: =IF(AP7=0,0,(AP7*((LOG(AP7))/LOG(2)))) -> -0.2846492091 | AS7: =N7 -> 111 | AT7: =COUNTIF(L118:L139,AS7) -> 0 | AU7: =AT7/(AV4-AT10) -> 0 | AV7: =IF(AU7=0,0,(AU7*((LOG(AU7))/LOG(2)))) -> 0
A8: 22 | B8: 169 | C8: 24 | D8: 180 | E8: 14 | F8: 198 | K8: 0 | L8: 221 | N8: 112 | O8: =COUNTIF($L$7:$L$500,N8) -> 40 | P8: =O8/$Q$4 -> 0.3007518797 | Q8: =IF(P8=0,0,(P8*((LOG(P8))/LOG(2)))) -> -0.5213095761 | T8: =N8 -> 112 | U8: =COUNTIF(L7:L28,T8) -> 5 | V8: =U8/(W4-U10) -> 0.2631578947 | W8: =IF(V8=0,0,(V8*((LOG(V8))/LOG(2)))) -> -0.5068419523 | Y8: =N8 -> 112 | Z8: =COUNTIF(L29:L50,Y8) -> 3 | AA8: =Z8/(AB4-Z10) -> 0.1875 | AB8: =IF(AA8=0,0,(AA8*((LOG(AA8))/LOG(2)))) -> -0.4528195311 | AD8: =N8 -> 112 | AE8: =COUNTIF(L51:L73,AD8) -> 7 | AF8: =AE8/(AG4-AE10) -> 0.4117647059 | AG8: =IF(AF8=0,0,(AF8*((LOG(AF8))/LOG(2)))) -> -0.5271032608 | AI8: =N8 -> 112 | AJ8: =COUNTIF(L74:L95,AI8) -> 6 | AK8: =AJ8/(AL4-AJ10) -> 0.4 | AL8: =IF(AK8=0,0,(AK8*((LOG(AK8))/LOG(2)))) -> -0.528771238 | AN8: =N8 -> 112 | AO8: =COUNTIF(L96:L117,AN8) -> 7 | AP8: =AO8/(AQ4-AO10) -> 0.5384615385 | AQ8: =IF(AP8=0,0,(AP8*((LOG(AP8))/LOG(2)))) -> -0.4808918133 | AS8: =N8 -> 112 | AT8: =COUNTIF(L118:L139,AS8) -> 12 | AU8: =AT8/(AV4-AT10) -> 0.6315789474 | AV8: =IF(AU8=0,0,(AU8*((LOG(AU8))/LOG(2)))) -> -0.4187147449
A9: 22 | B9: 314 | C9: 24 | D9: 325 | E9: 23 | F9: 337 | K9: 0 | L9: 222 | N9: 121 | O9: =COUNTIF($L$7:$L$500,N9) -> 4 | P9: =O9/$Q$4 -> 0.03007518797 | Q9: =IF(P9=0,0,(P9*((LOG(P9))/LOG(2)))) -> -0.1520385695 | T9: =N9 -> 121 | U9: =COUNTIF(L7:L28,T9) -> 0 | V9: =U9/(W4-U10) -> 0 | W9: =IF(V9=0,0,(V9*((LOG(V9))/LOG(2)))) -> 0 | Y9: =N9 -> 121 | Z9: =COUNTIF(L29:L50,Y9) -> 2 | AA9: =Z9/(AB4-Z10) -> 0.125 | AB9: =IF(AA9=0,0,(AA9*((LOG(AA9))/LOG(2)))) -> -0.375 | AD9: =N9 -> 121 | AE9: =COUNTIF(L51:L73,AD9) -> 0 | AF9: =AE9/(AG4-AE10) -> 0 | AG9: =IF(AF9=0,0,(AF9*((LOG(AF9))/LOG(2)))) -> 0 | AI9: =N9 -> 121 | AJ9: =COUNTIF(L74:L95,AI9) -> 1 | AK9: =AJ9/(AL4-AJ10) -> 0.06666666667 | AL9: =IF(AK9=0,0,(AK9*((LOG(AK9))/LOG(2)))) -> -0.260459373 | AN9: =N9 -> 121 | AO9: =COUNTIF(L96:L117,AN9) -> 1 | AP9: =AO9/(AQ4-AO10) -> 0.07692307692 | AQ9: =IF(AP9=0,0,(AP9*((LOG(AP9))/LOG(2)))) -> -0.2846492091 | AS9: =N9 -> 121 | AT9: =COUNTIF(L118:L139,AS9) -> 0 | AU9: =AT9/(AV4-AT10) -> 0 | AV9: =IF(AU9=0,0,(AU9*((LOG(AU9))/LOG(2)))) -> 0
A10: 11 | B10: 444 | C10: 11 | D10: 450 | E10: 12 | F10: 457 | K10: 0 | L10: 111 | N10: 122 | O10: =COUNTIF($L$7:$L$500,N10) -> 34 | P10: =O10/$Q$4 -> 0.2556390977 | Q10: =IF(P10=0,0,(P10*((LOG(P10))/LOG(2)))) -> -0.5030516256 | T10: =N10 -> 122 | U10: =COUNTIF(L7:L28,T10) -> 3 | Y10: =N10 -> 122 | Z10: =COUNTIF(L29:L50,Y10) -> 6 | AD10: =N10 -> 122 | AE10: =COUNTIF(L51:L73,AD10) -> 6 | AI10: =N10 -> 122 | AJ10: =COUNTIF(L74:L95,AI10) -> 7 | AN10: =N10 -> 122 | AO10: =COUNTIF(L96:L117,AN10) -> 9 | AS10: =N10 -> 122 | AT10: =COUNTIF(L118:L139,AS10) -> 3
A11: 11 | B11: 571 | C11: 11 | D11: 575 | E11: 21 | F11: 598 | K11: 0 | L11: 112 | N11: 211 | O11: =COUNTIF($L$7:$L$500,N11) -> 2 | P11: =O11/$Q$4 -> 0.01503759398 | Q11: =IF(P11=0,0,(P11*((LOG(P11))/LOG(2)))) -> -0.09105687873 | T11: =N11 -> 211 | U11: =COUNTIF(L7:L28,T11) -> 0 | V11: =U11/(W4-U10) -> 0 | W11: =IF(V11=0,0,(V11*((LOG(V11))/LOG(2)))) -> 0 | Y11: =N11 -> 211 | Z11: =COUNTIF(L29:L50,Y11) -> 0 | AA11: =Z11/(AB4-Z10) -> 0 | AB11: =IF(AA11=0,0,(AA11*((LOG(AA11))/LOG(2)))) -> 0 | AD11: =N11 -> 211 | AE11: =COUNTIF(L51:L73,AD11) -> 1 | AF11: =AE11/(AG4-AE10) -> 0.05882352941 | AG11: =IF(AF11=0,0,(AF11*((LOG(AF11))/LOG(2)))) -> -0.2404389907 | AI11: =N11 -> 211 | AJ11: =COUNTIF(L74:L95,AI11) -> 0 | AK11: =AJ11/(AL4-AJ10) -> 0 | AL11: =IF(AK11=0,0,(AK11*((LOG(AK11))/LOG(2)))) -> 0 | AN11: =N11 -> 211 | AO11: =COUNTIF(L96:L117,AN11) -> 1 | AP11: =AO11/(AQ4-AO10) -> 0.07692307692 | AQ11: =IF(AP11=0,0,(AP11*((LOG(AP11))/LOG(2)))) -> -0.2846492091 | AS11: =N11 -> 211 | AT11: =COUNTIF(L118:L139,AS11) -> 0 | AU11: =AT11/(AV4-AT10) -> 0 | AV11: =IF(AU11=0,0,(AU11*((LOG(AU11))/LOG(2)))) -> 0
A12: 22 | B12: 709 | C12: 24 | D12: 718 | E12: 23 | F12: 749 | K12: 0 | L12: 222 | N12: 212 | O12: =COUNTIF($L$7:$L$500,N12) -> 7 | P12: =O12/$Q$4 -> 0.05263157895 | Q12: =IF(P12=0,0,(P12*((LOG(P12))/LOG(2)))) -> -0.2235751323 | T12: =N12 -> 212 | U12: =COUNTIF(L7:L28,T12) -> 2 | V12: =U12/(W4-U10) -> 0.1052631579 | W12: =IF(V12=0,0,(V12*((LOG(V12))/LOG(2)))) -> -0.3418871067 | Y12: =N12 -> 212 | Z12: =COUNTIF(L29:L50,Y12) -> 2 | AA12: =Z12/(AB4-Z10) -> 0.125 | AB12: =IF(AA12=0,0,(AA12*((LOG(AA12))/LOG(2)))) -> -0.375 | AD12: =N12 -> 212 | AE12: =COUNTIF(L51:L73,AD12) -> 0 | AF12: =AE12/(AG4-AE10) -> 0 | AG12: =IF(AF12=0,0,(AF12*((LOG(AF12))/LOG(2)))) -> 0 | AI12: =N12 -> 212 | AJ12: =COUNTIF(L74:L95,AI12) -> 1 | AK12: =AJ12/(AL4-AJ10) -> 0.06666666667 | AL12: =IF(AK12=0,0,(AK12*((LOG(AK12))/LOG(2)))) -> -0.260459373 | AN12: =N12 -> 212 | AO12: =COUNTIF(L96:L117,AN12) -> 1 | AP12: =AO12/(AQ4-AO10) -> 0.07692307692 | AQ12: =IF(AP12=0,0,(AP12*((LOG(AP12))/LOG(2)))) -> -0.2846492091 | AS12: =N12 -> 212 | AT12: =COUNTIF(L118:L139,AS12) -> 1 | AU12: =AT12/(AV4-AT10) -> 0.05263157895 | AV12: =IF(AU12=0,0,(AU12*((LOG(AU12))/LOG(2)))) -> -0.2235751323
A13: 22 | B13: 854 | C13: 24 | D13: 885 | E13: 23 | F13: 897 | K13: 0 | L13: 222 | N13: 221 | O13: =COUNTIF($L$7:$L$500,N13) -> 6 | P13: =O13/$Q$4 -> 0.04511278195 | Q13: =IF(P13=0,0,(P13*((LOG(P13))/LOG(2)))) -> -0.2016685685 | T13: =N13 -> 221 | U13: =COUNTIF(L7:L28,T13) -> 2 | V13: =U13/(W4-U10) -> 0.1052631579 | W13: =IF(V13=0,0,(V13*((LOG(V13))/LOG(2)))) -> -0.3418871067 | Y13: =N13 -> 221 | Z13: =COUNTIF(L29:L50,Y13) -> 2 | AA13: =Z13/(AB4-Z10) -> 0.125 | AB13: =IF(AA13=0,0,(AA13*((LOG(AA13))/LOG(2)))) -> -0.375 | AD13: =N13 -> 221 | AE13: =COUNTIF(L51:L73,AD13) -> 1 | AF13: =AE13/(AG4-AE10) -> 0.05882352941 | AG13: =IF(AF13=0,0,(AF13*((LOG(AF13))/LOG(2)))) -> -0.2404389907 | AI13: =N13 -> 221 | AJ13: =COUNTIF(L74:L95,AI13) -> 1 | AK13: =AJ13/(AL4-AJ10) -> 0.06666666667 | AL13: =IF(AK13=0,0,(AK13*((LOG(AK13))/LOG(2)))) -> -0.260459373 | AN13: =N13 -> 221 | AO13: =COUNTIF(L96:L117,AN13) -> 0 | AP13: =AO13/(AQ4-AO10) -> 0 | AQ13: =IF(AP13=0,0,(AP13*((LOG(AP13))/LOG(2)))) -> 0 | AS13: =N13 -> 221 | AT13: =COUNTIF(L118:L139,AS13) -> 0 | AU13: =AT13/(AV4-AT10) -> 0 | AV13: =IF(AU13=0,0,(AU13*((LOG(AU13))/LOG(2)))) -> 0
A14: 11 | B14: 1011 | C14: 11 | D14: 1016 | E14: 21 | F14: 1038 | K14: 0 | L14: 112 | N14: 222 | O14: =COUNTIF($L$7:$L$500,N14) -> 32 | P14: =O14/$Q$4 -> 0.2406015038 | Q14: =IF(P14=0,0,(P14*((LOG(P14))/LOG(2)))) -> -0.4945040446 | T14: =N14 -> 222 | U14: =COUNTIF(L7:L28,T14) -> 7 | V14: =U14/(W4-U10) -> 0.3684210526 | W14: =IF(V14=0,0,(V14*((LOG(V14))/LOG(2)))) -> -0.5307372705 | Y14: =N14 -> 222 | Z14: =COUNTIF(L29:L50,Y14) -> 5 | AA14: =Z14/(AB4-Z10) -> 0.3125 | AB14: =IF(AA14=0,0,(AA14*((LOG(AA14))/LOG(2)))) -> -0.5243974703 | AD14: =N14 -> 222 | AE14: =COUNTIF(L51:L73,AD14) -> 7 | AF14: =AE14/(AG4-AE10) -> 0.4117647059 | AG14: =IF(AF14=0,0,(AF14*((LOG(AF14))/LOG(2)))) -> -0.5271032608 | AI14: =N14 -> 222 | AJ14: =COUNTIF(L74:L95,AI14) -> 5 | AK14: =AJ14/(AL4-AJ10) -> 0.3333333333 | AL14: =IF(AK14=0,0,(AK14*((LOG(AK14))/LOG(2)))) -> -0.5283208336 | AN14: =N14 -> 222 | AO14: =COUNTIF(L96:L117,AN14) -> 2 | AP14: =AO14/(AQ4-AO10) -> 0.1538461538 | AQ14: =IF(AP14=0,0,(AP14*((LOG(AP14))/LOG(2)))) -> -0.4154522643 | AS14: =N14 -> 222 | AT14: =COUNTIF(L118:L139,AS14) -> 6 | AU14: =AT14/(AV4-AT10) -> 0.3157894737 | AV14: =IF(AU14=0,0,(AU14*((LOG(AU14))/LOG(2)))) -> -0.5251468461
A15: 11 | B15: 1169 | C15: 11 | D15: 1174 | E15: 12 | F15: 1179 | K15: 0 | L15: 111 | P15: =SUM(P7:P14) -> 1 | Q15: =-SUM(Q7:Q14) -> 2.431131158 | V15: =SUM(V7:V14) -> 1 | W15: =-SUM(W7:W14) -> 2.141821596 | AA15: =SUM(AA7:AA14) -> 1 | AB15: =-SUM(AB7:AB14) -> 2.477217001 | AF15: =SUM(AF7:AF14) -> 1 | AG15: =-SUM(AG7:AG14) -> 1.775523494 | AK15: =SUM(AK7:AK14) -> 1 | AL15: =-SUM(AL7:AL14) -> 2.098929564 | AP15: =SUM(AP7:AP14) -> 1 | AQ15: =-SUM(AQ7:AQ14) -> 2.034940914 | AU15: =SUM(AU7:AU14) -> 1 | AV15: =-SUM(AV7:AV14) -> 1.167436723
A16: 22 | B16: 1279 | C16: 24 | D16: 1311 | E16: 23 | F16: 1325 | K16: 0 | L16: 222 | P16: U= | Q16: =Q15/(LOG(Q4)/LOG(2)) -> 0.3445831093 | V16: U1= | W16: =W15/(LOG(W4)/LOG(2)) -> 0.4802902655 | AA16: U2= | AB16: =AB15/(LOG(AB4)/LOG(2)) -> 0.5555006138 | AF16: U3= | AG16: =AG15/(LOG(AG4)/LOG(2)) -> 0.3925056208 | AK16: U4= | AL16: =AL15/(LOG(AL4)/LOG(2)) -> 0.4706719921 | AP16: U5= | AQ16: =AQ15/(LOG(AQ4)/LOG(2)) -> 0.4563229326 | AU16: U6= | AV16: =AV15/(LOG(AV4)/LOG(2)) -> 0.2617904754
A17: 22 | B17: 1424 | C17: 13 | D17: 1434 | E17: 23 | F17: 1461 | K17: 0 | L17: 212
A18: 22 | B18: 1560 | C18: 24 | D18: 1585 | E18: 23 | F18: 1597 | K18: 0 | L18: 222
A19: 11 | B19: 1700 | C19: 22 | D19: 1709 | E19: 23 | F19: 1714 | K19: 0 | L19: 122 | N19: Total Target Seq
A20: 22 | B20: 1844 | C20: 24 | D20: 1855 | E20: 23 | F20: 1866 | K20: 0 | L20: 222 | N20: =COUNTIF(L7:L139,G3) -> 34 | P20: 22 | Q20: 22 | R20: 23 | S20: 22 | T20: 22 | U20: 22
A21: 11 | B21: 1970 | C21: 22 | D21: 1992 | E21: 23 | F21: 2017 | K21: 0 | L21: 122 | P21: % of reinforcement given in 6 equal intervals based on number of trials
A22: 11 | B22: 2121 | C22: 11 | D22: 2134 | E22: 21 | F22: 2155 | K22: 0 | L22: 112 | P22: %_1 | Q22: %_2 | R22: %_3 | S22: %_4 | T22: %_5 | U22: %_6
A23: 11 | B23: 2253 | C23: 22 | D23: 2270 | E23: 23 | F23: 2310 | K23: 0 | L23: 122 | O23: target sequence | P23: =$G$3 -> 122 | Q23: =$G$3 -> 122 | R23: =$G$3 -> 122 | S23: =$G$3 -> 122 | T23: =$G$3 -> 122 | U23: =$G$3 -> 122
A24: 22 | B24: 2423 | C24: 24 | D24: 2428 | E24: 14 | F24: 2445 | K24: 0 | L24: 221 | O24: total reinforcement | P24: =U10 -> 3 | Q24: =Z10 -> 6 | R24: =AE10 -> 6 | S24: =AJ10 -> 7 | T24: =AO10 -> 9 | U24: =AT10 -> 3
A25: 11 | B25: 2548 | C25: 11 | D25: 2552 | E25: 12 | F25: 2556 | K25: 0 | L25: 111 | O25: % target
A26: 11 | B26: 2657 | C26: 11 | D26: 2665 | E26: 21 | F26: 2676 | K26: 0 | L26: 112 | O26: CCRF
A27: 11 | B27: 2766 | C27: 11 | D27: 2781 | E27: 21 | F27: 2804 | K27: 0 | L27: 112 | O27: % CCRf
A28: 22 | B28: 2913 | C28: 24 | D28: 2922 | E28: 23 | F28: 2934 | K28: 0 | L28: 222 | O28: average response rate | P28: =F28/P20 -> 133.3636364 | Q28: =(F50-F28)/Q20 -> 132.7272727 | R28: =(F73-F50)/R20 -> 127.6956522 | S28: =(F95-F73)/S20 -> 126.7272727 | T28: =(F117-F95)/T20 -> 125.5 | U28: =(F139-F117)/U20 -> 124.7727273
A29: 22 | B29: 3037 | C29: 24 | D29: 3066 | E29: 23 | F29: 3088 | K29: 0 | L29: 222
A30: 11 | B30: 3189 | C30: 22 | D30: 3207 | E30: 23 | F30: 3216 | K30: 0 | L30: 122
A31: 11 | B31: 3318 | C31: 22 | D31: 3339 | E31: 23 | F31: 3347 | K31: 0 | L31: 122
A32: 11 | B32: 3448 | C32: 22 | D32: 3470 | E32: 14 | F32: 3487 | K32: 0 | L32: 121
A33: 11 | B33: 3591 | C33: 11 | D33: 3596 | E33: 12 | F33: 3600 | K33: 0 | L33: 111
A34: 22 | B34: 3715 | C34: 24 | D34: 3720 | E34: 23 | F34: 3726 | K34: 0 | L34: 222
A35: 11 | B35: 3847 | C35: 22 | D35: 3856 | E35: 23 | F35: 3864 | K35: 0 | L35: 122
A36: 11 | B36: 3966 | C36: 22 | D36: 3987 | E36: 23 | F36: 4003 | K36: 0 | L36: 122
A37: 22 | B37: 4121 | C37: 24 | D37: 4127 | E37: 23 | F37: 4137 | K37: 0 | L37: 222
A38: 22 | B38: 4235 | C38: 24 | D38: 4259 | E38: 23 | F38: 4268 | K38: 0 | L38: 222
A39: 22 | B39: 4382 | C39: 24 | D39: 4390 | E39: 23 | F39: 4399 | K39: 0 | L39: 222
A40: 11 | B40: 4501 | C40: 22 | D40: 4518 | E40: 23 | F40: 4524 | K40: 0 | L40: 122
A41: 11 | B41: 4623 | C41: 11 | D41: 4627 | E41: 21 | F41: 4645 | K41: 0 | L41: 112
A42: 11 | B42: 4733 | C42: 22 | D42: 4758 | E42: 23 | F42: 4784 | K42: 0 | L42: 122
A43: 11 | B43: 4884 | C43: 11 | D43: 4888 | E43: 21 | F43: 4902 | K43: 0 | L43: 112
A44: 22 | B44: 4992 | C44: 13 | D44: 5007 | E44: 23 | F44: 5015 | K44: 0 | L44: 212
A45: 11 | B45: 5122 | C45: 22 | D45: 5148 | E45: 14 | F45: 5158 | K45: 0 | L45: 121
A46: 11 | B46: 5259 | C46: 11 | D46: 5264 | E46: 12 | F46: 5268 | K46: 0 | L46: 111
A47: 11 | B47: 5375 | C47: 11 | D47: 5379 | E47: 21 | F47: 5398 | K47: 0 | L47: 112
A48: 22 | B48: 5550 | C48: 24 | D48: 5560 | E48: 14 | F48: 5571 | K48: 0 | L48: 221
A49: 22 | B49: 5693 | C49: 24 | D49: 5705 | E49: 14 | F49: 5737 | K49: 0 | L49: 221
A50: 22 | B50: 5836 | C50: 13 | D50: 5845 | E50: 23 | F50: 5854 | K50: 0 | L50: 212
A51: 11 | B51: 5953 | C51: 11 | D51: 5976 | E51: 12 | F51: 5981 | K51: 0 | L51: 111
A52: 11 | B52: 6102 | C52: 11 | D52: 6109 | E52: 21 | F52: 6129 | K52: 0 | L52: 112
A53: 11 | B53: 6220 | C53: 22 | D53: 6259 | E53: 23 | F53: 6264 | K53: 0 | L53: 122
A54: 11 | B54: 6371 | C54: 22 | D54: 6380 | E54: 23 | F54: 6386 | K54: 0 | L54: 122
A55: 22 | B55: 6484 | C55: 24 | D55: 6512 | E55: 23 | F55: 6526 | K55: 0 | L55: 222
A56: 11 | B56: 6627 | C56: 22 | D56: 6650 | E56: 23 | F56: 6657 | K56: 0 | L56: 122
A57: 22 | B57: 6772 | C57: 24 | D57: 6777 | E57: 14 | F57: 6789 | K57: 0 | L57: 221
A58: 22 | B58: 6910 | C58: 24 | D58: 6916 | E58: 23 | F58: 6923 | K58: 0 | L58: 222
A59: 11 | B59: 7036 | C59: 11 | D59: 7041 | E59: 21 | F59: 7055 | K59: 0 | L59: 112
A60: 11 | B60: 7145 | C60: 11 | D60: 7149 | E60: 21 | F60: 7167 | K60: 0 | L60: 112
A61: 22 | B61: 7281 | C61: 24 | D61: 7295 | E61: 23 | F61: 7314 | K61: 0 | L61: 222
A62: 22 | B62: 7411 | C62: 24 | D62: 7435 | E62: 23 | F62: 7449 | K62: 0 | L62: 222
A63: 11 | B63: 7547 | C63: 11 | D63: 7552 | E63: 21 | F63: 7560 | K63: 0 | L63: 112
A64: 11 | B64: 7650 | C64: 11 | D64: 7656 | E64: 21 | F64: 7681 | K64: 0 | L64: 112
A65: 22 | B65: 7786 | C65: 24 | D65: 7791 | E65: 23 | F65: 7802 | K65: 0 | L65: 222
A66: 22 | B66: 7900 | C66: 13 | D66: 7908 | E66: 14 | F66: 7913 | K66: 0 | L66: 211
A67: 22 | B67: 8030 | C67: 24 | D67: 8035 | E67: 23 | F67: 8043 | K67: 0 | L67: 222
A68: 11 | B68: 8139 | C68: 22 | D68: 8151 | E68: 23 | F68: 8156 | K68: 0 | L68: 122
A69: 22 | B69: 8253 | C69: 24 | D69: 8275 | E69: 23 | F69: 8287 | K69: 0 | L69: 222
A70: 11 | B70: 8414 | C70: 22 | D70: 8435 | E70: 23 | F70: 8443 | K70: 0 | L70: 122
A71: 11 | B71: 8542 | C71: 11 | D71: 8546 | E71: 21 | F71: 8555 | K71: 0 | L71: 112
A72: 11 | B72: 8655 | C72: 22 | D72: 8664 | E72: 23 | F72: 8673 | K72: 0 | L72: 122
A73: 11 | B73: 8771 | C73: 11 | D73: 8775 | E73: 21 | F73: 8791 | K73: 0 | L73: 112
A74: 22 | B74: 8899 | C74: 24 | D74: 8925 | E74: 23 | F74: 8933 | K74: 0 | L74: 222
A75: 11 | B75: 9035 | C75: 11 | D75: 9040 | E75: 21 | F75: 9049 | K75: 0 | L75: 112
A76: 22 | B76: 9159 | C76: 24 | D76: 9164 | E76: 23 | F76: 9170 | K76: 0 | L76: 222
A77: 11 | B77: 9273 | C77: 11 | D77: 9277 | E77: 21 | F77: 9294 | K77: 0 | L77: 112
A78: 22 | B78: 9418 | C78: 24 | D78: 9426 | E78: 23 | F78: 9434 | K78: 0 | L78: 222
A79: 11 | B79: 9537 | C79: 11 | D79: 9547 | E79: 21 | F79: 9556 | K79: 0 | L79: 112
A80: 11 | B80: 9651 | C80: 11 | D80: 9655 | E80: 12 | F80: 9659 | K80: 0 | L80: 111
A81: 22 | B81: 9786 | C81: 24 | D81: 9791 | E81: 23 | F81: 9798 | K81: 0 | L81: 222
A82: 11 | B82: 9900 | C82: 22 | D82: 9927 | E82: 23 | F82: 9932 | K82: 0 | L82: 122
A83: 11 | B83: 10034 | C83: 11 | D83: 10038 | E83: 21 | F83: 10052 | K83: 0 | L83: 112
A84: 11 | B84: 10143 | C84: 11 | D84: 10147 | E84: 21 | F84: 10159 | K84: 0 | L84: 112
A85: 11 | B85: 10266 | C85: 22 | D85: 10279 | E85: 23 | F85: 10288 | K85: 0 | L85: 122
A86: 11 | B86: 10395 | C86: 22 | D86: 10408 | E86: 14 | F86: 10433 | K86: 0 | L86: 121
A87: 11 | B87: 10533 | C87: 22 | D87: 10550 | E87: 23 | F87: 10563 | K87: 0 | L87: 122
A88: 22 | B88: 10677 | C88: 24 | D88: 10682 | E88: 14 | F88: 10698 | K88: 0 | L88: 221
A89: 22 | B89: 10796 | C89: 13 | D89: 10806 | E89: 23 | F89: 10821 | K89: 0 | L89: 212
A90: 11 | B90: 10924 | C90: 22 | D90: 10940 | E90: 23 | F90: 10947 | K90: 0 | L90: 122
A91: 11 | B91: 11052 | C91: 22 | D91: 11072 | E91: 23 | F91: 11081 | K91: 0 | L91: 122
A92: 11 | B92: 11188 | C92: 22 | D92: 11196 | E92: 23 | F92: 11202 | K92: 0 | L92: 122
A93: 11 | B93: 11306 | C93: 11 | D93: 11310 | E93: 21 | F93: 11318 | K93: 0 | L93: 112
A94: 22 | B94: 11432 | C94: 24 | D94: 11449 | E94: 23 | F94: 11455 | K94: 0 | L94: 222
A95: 11 | B95: 11555 | C95: 22 | D95: 11572 | E95: 23 | F95: 11579 | K95: 0 | L95: 122
A96: 11 | B96: 11695 | C96: 11 | D96: 11699 | E96: 21 | F96: 11707 | K96: 0 | L96: 112
A97: 11 | B97: 11824 | C97: 22 | D97: 11835 | E97: 23 | F97: 11843 | K97: 0 | L97: 122
A98: 11 | B98: 11949 | C98: 22 | D98: 11958 | E98: 23 | F98: 11966 | K98: 0 | L98: 122
A99: 11 | B99: 12066 | C99: 11 | D99: 12094 | E99: 21 | F99: 12103 | K99: 0 | L99: 112
A100: 11 | B100: 12201 | C100: 22 | D100: 12209 | E100: 23 | F100: 12227 | K100: 0 | L100: 122
A101: 11 | B101: 12325 | C101: 22 | D101: 12348 | E101: 14 | F101: 12357 | K101: 0 | L101: 121
A102: 22 | B102: 12470 | C102: 13 | D102: 12483 | E102: 14 | F102: 12490 | K102: 0 | L102: 211
A103: 11 | B103: 12590 | C103: 22 | D103: 12614 | E103: 23 | F103: 12633 | K103: 0 | L103: 122
A104: 11 | B104: 12735 | C104: 22 | D104: 12749 | E104: 23 | F104: 12757 | K104: 0 | L104: 122
A105: 11 | B105: 12858 | C105: 11 | D105: 12862 | E105: 12 | F105: 12866 | K105: 0 | L105: 111
A106: 11 | B106: 12976 | C106: 22 | D106: 12993 | E106: 23 | F106: 12998 | K106: 0 | L106: 122
A107: 11 | B107: 13098 | C107: 22 | D107: 13110 | E107: 23 | F107: 13118 | K107: 0 | L107: 122
A108: 11 | B108: 13219 | C108: 22 | D108: 13231 | E108: 23 | F108: 13238 | K108: 0 | L108: 122
A109: 11 | B109: 13336 | C109: 11 | D109: 13340 | E109: 21 | F109: 13349 | K109: 0 | L109: 112
A110: 11 | B110: 13437 | C110: 11 | D110: 13442 | E110: 21 | F110: 13451 | K110: 0 | L110: 112
A111: 11 | B111: 13538 | C111: 11 | D111: 13544 | E111: 21 | F111: 13555 | K111: 0 | L111: 112
A112: 22 | B112: 13660 | C112: 24 | D112: 13665 | E112: 23 | F112: 13682 | K112: 0 | L112: 222
A113: 11 | B113: 13781 | C113: 11 | D113: 13786 | E113: 21 | F113: 13807 | K113: 0 | L113: 112
A114: 22 | B114: 13897 | C114: 13 | D114: 13914 | E114: 23 | F114: 13923 | K114: 0 | L114: 212
A115: 22 | B115: 14075 | C115: 24 | D115: 14080 | E115: 23 | F115: 14100 | K115: 0 | L115: 222
A116: 11 | B116: 14200 | C116: 22 | D116: 14216 | E116: 23 | F116: 14224 | K116: 0 | L116: 122
A117: 11 | B117: 14328 | C117: 11 | D117: 14332 | E117: 21 | F117: 14340 | K117: 0 | L117: 112
A118: 11 | B118: 14429 | C118: 11 | D118: 14433 | E118: 21 | F118: 14444 | K118: 0 | L118: 112
A119: 11 | B119: 14534 | C119: 11 | D119: 14540 | E119: 21 | F119: 14552 | K119: 0 | L119: 112
A120: 22 | B120: 14674 | C120: 24 | D120: 14681 | E120: 23 | F120: 14689 | K120: 0 | L120: 222
A121: 11 | B121: 14789 | C121: 11 | D121: 14793 | E121: 21 | F121: 14805 | K121: 0 | L121: 112
A122: 22 | B122: 14917 | C122: 24 | D122: 14924 | E122: 23 | F122: 14932 | K122: 0 | L122: 222
A123: 11 | B123: 15045 | C123: 22 | D123: 15058 | E123: 23 | F123: 15066 | K123: 0 | L123: 122
A124: 22 | B124: 15164 | C124: 13 | D124: 15178 | E124: 23 | F124: 15186 | K124: 0 | L124: 212
A125: 11 | B125: 15288 | C125: 11 | D125: 15292 | E125: 21 | F125: 15301 | K125: 0 | L125: 112
A126: 11 | B126: 15395 | C126: 11 | D126: 15399 | E126: 21 | F126: 15424 | K126: 0 | L126: 112
A127: 11 | B127: 15525 | C127: 11 | D127: 15529 | E127: 21 | F127: 15563 | K127: 0 | L127: 112
A128: 11 | B128: 15652 | C128: 11 | D128: 15657 | E128: 21 | F128: 15677 | K128: 0 | L128: 112
A129: 22 | B129: 15791 | C129: 24 | D129: 15796 | E129: 23 | F129: 15802 | K129: 0 | L129: 222
A130: 11 | B130: 15902 | C130: 11 | D130: 15906 | E130: 21 | F130: 15933 | K130: 0 | L130: 112
A131: 22 | B131: 16034 | C131: 24 | D131: 16041 | E131: 23 | F131: 16049 | K131: 0 | L131: 222
A132: 11 | B132: 16149 | C132: 22 | D132: 16161 | E132: 23 | F132: 16169 | K132: 0 | L132: 122
A133: 11 | B133: 16268 | C133: 11 | D133: 16272 | E133: 21 | F133: 16289 | K133: 0 | L133: 112
A134: 22 | B134: 16405 | C134: 24 | D134: 16420 | E134: 23 | F134: 16427 | K134: 0 | L134: 222
A135: 11 | B135: 16529 | C135: 11 | D135: 16533 | E135: 21 | F135: 16595 | K135: 0 | L135: 112
A136: 22 | B136: 16699 | C136: 24 | D136: 16704 | E136: 23 | F136: 16726 | K136: 0 | L136: 222
A137: 11 | B137: 16828 | C137: 11 | D137: 16833 | E137: 21 | F137: 16854 | K137: 0 | L137: 112
A138: 11 | B138: 16943 | C138: 22 | D138: 16961 | E138: 23 | F138: 16968 | K138: 0 | L138: 122
A139: 11 | B139: 17069 | C139: 11 | D139: 17073 | E139: 21 | F139: 17085 | K139: 1 | L139: 112

Sheet !M518A30.096
A1: Report for:!M518A30.096
A2: Date: | B2: <date>
A3: Hen: | B3: <hen> | F3: Correct Sequence | G3: =Start!J2 -> 122 | P3: Total Sequences in Data | Q3: =4994-COUNTBLANK(L7:L5000) -> 108 | V3: Total Sequences in Block Data | W3: =COUNTA(L7:L24) -> 18 | AA3: Total Sequences in Block Data | AB3: =COUNTA(L25:L42) -> 18 | AF3: Total Sequences in Block Data | AG3: =COUNTA(L43:L60) -> 18 | AK3: Total Sequences in Block Data | AL3: =COUNTA(L61:L78) -> 18 | AP3: Total Sequences in Block Data | AQ3: =COUNTA(L79:L96) -> 18 | AU3: Total Sequences in Block Data | AV3: =COUNTA(L97:L114) -> 18
P4: Total Sequences in Summary | Q4: =SUM(O7:O14) -> 108 | V4: Total Sequences in Block Summary | W4: =SUM(U7:U14) -> 18 | AA4: Total Sequences in Block Summary | AB4: =SUM(Z7:Z14) -> 18 | AF4: Total Sequences in Block Summary | AG4: =SUM(AE7:AE14) -> 18 | AK4: Total Sequences in Block Summary | AL4: =SUM(AJ7:AJ14) -> 18 | AP4: Total Sequences in Block Summary | AQ4: =SUM(AO7:AO14) -> 18 | AU4: Total Sequences in Block Summary | AV4: =SUM(AT7:AT14) -> 18
T5: Block 1 | Y5: Block 2 | AD5: Block 3 | AI5: Block 4 | AN5: Block 5 | AS5: Block 6
A6: Sequence Component 1 | B6: Time 1 | C6: Sequence Component 2 | D6: Time 2 | E6: Sequence Component 3 | F6: Time 3 | G6: Sequence Component 4 | H6: Time 4 | I6: Sequence Component 5 | J6: Time 5 | K6: Correct? 0=No 1=Yes | L6: Sequence | N6: Frequency | P6: Relative Frequency | Q6: Variability | T6: Frequency | V6: Relative Frequency | W6: Variability | Y6: Frequency | AA6: Relative Frequency | AB6: Variability | AD6: Frequency | AF6: Relative Frequency | AG6: Variability | AI6: Frequency | AK6: Relative Frequency | AL6: Variability | AN6: Frequency | AP6: Relative Frequency | AQ6: Variability | AS6: Frequency | AU6: Relative Frequency | AV6: Variability
A7: 22 | B7: 12 | C7: 24 | D7: 17 | E7: 23 | F7: 30 | K7: 0 | L7: 222 | N7: 111 | O7: =COUNTIF($L$7:$L$500,N7) -> 6 | P7: =O7/$Q$4 -> 0.05555555556 | Q7: =IF(P7=0,0,(P7*((LOG(P7))/LOG(2)))) -> -0.2316625001 | T7: =N7 -> 111 | U7: =COUNTIF(L7:L24,T7) -> 0 | V7: =U7/(W4-U10) -> 0 | W7: =IF(V7=0,0,(V7*((LOG(V7))/LOG(2)))) -> 0 | Y7: =N7 -> 111 | Z7: =COUNTIF(L25:L42,Y7) -> 0 | AA7: =Z7/(AB4-Z10) -> 0 | AB7: =IF(AA7=0,0,(AA7*((LOG(AA7))/LOG(2)))) -> 0 | AD7: =N7 -> 111 | AE7: =COUNTIF(L43:L60,AD7) -> 2 | AF7: =AE7/(AG4-AE10) -> 0.1538461538 | AG7: =IF(AF7=0,0,(AF7*((LOG(AF7))/LOG(2)))) -> -0.4154522643 | AI7: =N7 -> 111 | AJ7: =COUNTIF(L61:L78,AI7) -> 0 | AK7: =AJ7/(AL4-AJ10) -> 0 | AL7: =IF(AK7=0,0,(AK7*((LOG(AK7))/LOG(2)))) -> 0 | AN7: =N7 -> 111 | AO7: =COUNTIF(L79:L96,AN7) -> 3 | AP7: =AO7/(AQ4-AO10) -> 0.2 | AQ7: =IF(AP7=0,0,(AP7*((LOG(AP7))/LOG(2)))) -> -0.464385619 | AS7: =N7 -> 111 | AT7: =COUNTIF(L97:L114,AS7) -> 1 | AU7: =AT7/(AV4-AT10) -> 0.09090909091 | AV7: =IF(AU7=0,0,(AU7*((LOG(AU7))/LOG(2)))) -> -0.3144937835
A8: 22 | B8: 152 | C8: 13 | D8: 172 | E8: 23 | F8: 198 | K8: 0 | L8: 212 | N8: 112 | O8: =COUNTIF($L$7:$L$500,N8) -> 40 | P8: =O8/$Q$4 -> 0.3703703704 | Q8: =IF(P8=0,0,(P8*((LOG(P8))/LOG(2)))) -> -0.5307257064 | T8: =N8 -> 112 | U8: =COUNTIF(L7:L24,T8) -> 4 | V8: =U8/(W4-U10) -> 0.3333333333 | W8: =IF(V8=0,0,(V8*((LOG(V8))/LOG(2)))) -> -0.5283208336 | Y8: =N8 -> 112 | Z8: =COUNTIF(L25:L42,Y8) -> 7 | AA8: =Z8/(AB4-Z10) -> 0.6363636364 | AB8: =IF(AA8=0,0,(AA8*((LOG(AA8))/LOG(2)))) -> -0.4149578978 | AD8: =N8 -> 112 | AE8: =COUNTIF(L43:L60,AD8) -> 6 | AF8: =AE8/(AG4-AE10) -> 0.4615384615 | AG8: =IF(AF8=0,0,(AF8*((LOG(AF8))/LOG(2)))) -> -0.5148356388 | AI8: =N8 -> 112 | AJ8: =COUNTIF(L61:L78,AI8) -> 6 | AK8: =AJ8/(AL4-AJ10) -> 0.4285714286 | AL8: =IF(AK8=0,0,(AK8*((LOG(AK8))/LOG(2)))) -> -0.5238824663 | AN8: =N8 -> 112 | AO8: =COUNTIF(L79:L96,AN8) -> 10 | AP8: =AO8/(AQ4-AO10) -> 0.6666666667 | AQ8: =IF(AP8=0,0,(AP8*((LOG(AP8))/LOG(2)))) -> -0.3899750005 | AS8: =N8 -> 112 | AT8: =COUNTIF(L97:L114,AS8) -> 7 | AU8: =AT8/(AV4-AT10) -> 0.6363636364 | AV8: =IF(AU8=0,0,(AU8*((LOG(AU8))/LOG(2)))) -> -0.4149578978
A9: 11 | B9: 299 | C9: 11 | D9: 304 | E9: 21 | F9: 315 | K9: 0 | L9: 112 | N9: 121 | O9: =COUNTIF($L$7:$L$500,N9) -> 7 | P9: =O9/$Q$4 -> 0.06481481481 | Q9: =IF(P9=0,0,(P9*((LOG(P9))/LOG(2)))) -> -0.2558585932 | T9: =N9 -> 121 | U9: =COUNTIF(L7:L24,T9) -> 2 | V9: =U9/(W4-U10) -> 0.1666666667 | W9: =IF(V9=0,0,(V9*((LOG(V9))/LOG(2)))) -> -0.4308270835 | Y9: =N9 -> 121 | Z9: =COUNTIF(L25:L42,Y9) -> 1 | AA9: =Z9/(AB4-Z10) -> 0.09090909091 | AB9: =IF(AA9=0,0,(AA9*((LOG(AA9))/LOG(2)))) -> -0.3144937835 | AD9: =N9 -> 121 | AE9: =COUNTIF(L43:L60,AD9) -> 2 | AF9: =AE9/(AG4-AE10) -> 0.1538461538 | AG9: =IF(AF9=0,0,(AF9*((LOG(AF9))/LOG(2)))) -> -0.4154522643 | AI9: =N9 -> 121 | AJ9: =COUNTIF(L61:L78,AI9) -> 0 | AK9: =AJ9/(AL4-AJ10) -> 0 | AL9: =IF(AK9=0,0,(AK9*((LOG(AK9))/LOG(2)))) -> 0 | AN9: =N9 -> 121 | AO9: =COUNTIF(L79:L96,AN9) -> 2 | AP9: =AO9/(AQ4-AO10) -> 0.1333333333 | AQ9: =IF(AP9=0,0,(AP9*((LOG(AP9))/LOG(2)))) -> -0.3875854127 | AS9: =N9 -> 121 | AT9: =COUNTIF(L97:L114,AS9) -> 0 | AU9: =AT9/(AV4-AT10) -> 0 | AV9: =IF(AU9=0,0,(AU9*((LOG(AU9))/LOG(2)))) -> 0
A10: 11 | B10: 404 | C10: 11 | D10: 408 | E10: 21 | F10: 417 | K10: 0 | L10: 112 | N10: 122 | O10: =COUNTIF($L$7:$L$500,N10) -> 32 | P10: =O10/$Q$4 -> 0.2962962963 | Q10: =IF(P10=0,0,(P10*((LOG(P10))/LOG(2)))) -> -0.5199666673 | T10: =N10 -> 122 | U10: =COUNTIF(L7:L24,T10) -> 6 | Y10: =N10 -> 122 | Z10: =COUNTIF(L25:L42,Y10) -> 7 | AD10: =N10 -> 122 | AE10: =COUNTIF(L43:L60,AD10) -> 5 | AI10: =N10 -> 122 | AJ10: =COUNTIF(L61:L78,AI10) -> 4 | AN10: =N10 -> 122 | AO10: =COUNTIF(L79:L96,AN10) -> 3 | AS10: =N10 -> 122 | AT10: =COUNTIF(L97:L114,AS10) -> 7
A11: 22 | B11: 531 | C11: 24 | D11: 554 | E11: 23 | F11: 567 | K11: 0 | L11: 222 | N11: 211 | O11: =COUNTIF($L$7:$L$500,N11) -> 2 | P11: =O11/$Q$4 -> 0.01851851852 | Q11: =IF(P11=0,0,(P11*((LOG(P11))/LOG(2)))) -> -0.1065719908 | T11: =N11 -> 211 | U11: =COUNTIF(L7:L24,T11) -> 0 | V11: =U11/(W4-U10) -> 0 | W11: =IF(V11=0,0,(V11*((LOG(V11))/LOG(2)))) -> 0 | Y11: =N11 -> 211 | Z11: =COUNTIF(L25:L42,Y11) -> 0 | AA11: =Z11/(AB4-Z10) -> 0 | AB11: =IF(AA11=0,0,(AA11*((LOG(AA11))/LOG(2)))) -> 0 | AD11: =N11 -> 211 | AE11: =COUNTIF(L43:L60,AD11) -> 0 | AF11: =AE11/(AG4-AE10) -> 0 | AG11: =IF(AF11=0,0,(AF11*((LOG(AF11))/LOG(2)))) -> 0 | AI11: =N11 -> 211 | AJ11: =COUNTIF(L61:L78,AI11) -> 2 | AK11: =AJ11/(AL4-AJ10) -> 0.1428571429 | AL11: =IF(AK11=0,0,(AK11*((LOG(AK11))/LOG(2)))) -> -0.4010507032 | AN11: =N11 -> 211 | AO11: =COUNTIF(L79:L96,AN11) -> 0 | AP11: =AO11/(AQ4-AO10) -> 0 | AQ11: =IF(AP11=0,0,(AP11*((LOG(AP11))/LOG(2)))) -> 0 | AS11: =N11 -> 211 | AT11: =COUNTIF(L97:L114,AS11) -> 0 | AU11: =AT11/(AV4-AT10) -> 0 | AV11: =IF(AU11=0,0,(AU11*((LOG(AU11))/LOG(2)))) -> 0
A12: 11 | B12: 669 | C12: 22 | D12: 683 | E12: 23 | F12: 688 | K12: 0 | L12: 122 | N12: 212 | O12: =COUNTIF($L$7:$L$500,N12) -> 2 | P12: =O12/$Q$4 -> 0.01851851852 | Q12: =IF(P12=0,0,(P12*((LOG(P12))/LOG(2)))) -> -0.1065719908 | T12: =N12 -> 212 | U12: =COUNTIF(L7:L24,T12) -> 1 | V12: =U12/(W4-U10) -> 0.08333333333 | W12: =IF(V12=0,0,(V12*((LOG(V12))/LOG(2)))) -> -0.2987468751 | Y12: =N12 -> 212 | Z12: =COUNTIF(L25:L42,Y12) -> 0 | AA12: =Z12/(AB4-Z10) -> 0 | AB12: =IF(AA12=0,0,(AA12*((LOG(AA12))/LOG(2)))) -> 0 | AD12: =N12 -> 212 | AE12: =COUNTIF(L43:L60,AD12) -> 0 | AF12: =AE12/(AG4-AE10) -> 0 | AG12: =IF(AF12=0,0,(AF12*((LOG(AF12))/LOG(2)))) -> 0 | AI12: =N12 -> 212 | AJ12: =COUNTIF(L61:L78,AI12) -> 1 | AK12: =AJ12/(AL4-AJ10) -> 0.07142857143 | AL12: =IF(AK12=0,0,(AK12*((LOG(AK12))/LOG(2)))) -> -0.271953923 | AN12: =N12 -> 212 | AO12: =COUNTIF(L79:L96,AN12) -> 0 | AP12: =AO12/(AQ4-AO10) -> 0 | AQ12: =IF(AP12=0,0,(AP12*((LOG(AP12))/LOG(2)))) -> 0 | AS12: =N12 -> 212 | AT12: =COUNTIF(L97:L114,AS12) -> 0 | AU12: =AT12/(AV4-AT10) -> 0 | AV12: =IF(AU12=0,0,(AU12*((LOG(AU12))/LOG(2)))) -> 0
A13: 11 | B13: 791 | C13: 22 | D13: 804 | E13: 14 | F13: 816 | K13: 0 | L13: 121 | N13: 221 | O13: =COUNTIF($L$7:$L$500,N13) -> 3 | P13: =O13/$Q$4 -> 0.02777777778 | Q13: =IF(P13=0,0,(P13*((LOG(P13))/LOG(2)))) -> -0.1436090278 | T13: =N13 -> 221 | U13: =COUNTIF(L7:L24,T13) -> 1 | V13: =U13/(W4-U10) -> 0.08333333333 | W13: =IF(V13=0,0,(V13*((LOG(V13))/LOG(2)))) -> -0.2987468751 | Y13: =N13 -> 221 | Z13: =COUNTIF(L25:L42,Y13) -> 0 | AA13: =Z13/(AB4-Z10) -> 0 | AB13: =IF(AA13=0,0,(AA13*((LOG(AA13))/LOG(2)))) -> 0 | AD13: =N13 -> 221 | AE13: =COUNTIF(L43:L60,AD13) -> 1 | AF13: =AE13/(AG4-AE10) -> 0.07692307692 | AG13: =IF(AF13=0,0,(AF13*((LOG(AF13))/LOG(2)))) -> -0.2846492091 | AI13: =N13 -> 221 | AJ13: =COUNTIF(L61:L78,AI13) -> 1 | AK13: =AJ13/(AL4-AJ10) -> 0.07142857143 | AL13: =IF(AK13=0,0,(AK13*((LOG(AK13))/LOG(2)))) -> -0.271953923 | AN13: =N13 -> 221 | AO13: =COUNTIF(L79:L96,AN13) -> 0 | AP13: =AO13/(AQ4-AO10) -> 0 | AQ13: =IF(AP13=0,0,(AP13*((LOG(AP13))/LOG(2)))) -> 0 | AS13: =N13 -> 221 | AT13: =COUNTIF(L97:L114,AS13) -> 0 | AU13: =AT13/(AV4-AT10) -> 0 | AV13: =IF(AU13=0,0,(AU13*((LOG(AU13))/LOG(2)))) -> 0
A14: 11 | B14: 919 | C14: 22 | D14: 933 | E14: 23 | F14: 940 | K14: 0 | L14: 122 | N14: 222 | O14: =COUNTIF($L$7:$L$500,N14) -> 16 | P14: =O14/$Q$4 -> 0.1481481481 | Q14: =IF(P14=0,0,(P14*((LOG(P14))/LOG(2)))) -> -0.4081314818 | T14: =N14 -> 222 | U14: =COUNTIF(L7:L24,T14) -> 4 | V14: =U14/(W4-U10) -> 0.3333333333 | W14: =IF(V14=0,0,(V14*((LOG(V14))/LOG(2)))) -> -0.5283208336 | Y14: =N14 -> 222 | Z14: =COUNTIF(L25:L42,Y14) -> 3 | AA14: =Z14/(AB4-Z10) -> 0.2727272727 | AB14: =IF(AA14=0,0,(AA14*((LOG(AA14))/LOG(2)))) -> -0.5112188503 | AD14: =N14 -> 222 | AE14: =COUNTIF(L43:L60,AD14) -> 2 | AF14: =AE14/(AG4-AE10) -> 0.1538461538 | AG14: =IF(AF14=0,0,(AF14*((LOG(AF14))/LOG(2)))) -> -0.4154522643 | AI14: =N14 -> 222 | AJ14: =COUNTIF(L61:L78,AI14) -> 4 | AK14: =AJ14/(AL4-AJ10) -> 0.2857142857 | AL14: =IF(AK14=0,0,(AK14*((LOG(AK14))/LOG(2)))) -> -0.5163871206 | AN14: =N14 -> 222 | AO14: =COUNTIF(L79:L96,AN14) -> 0 | AP14: =AO14/(AQ4-AO10) -> 0 | AQ14: =IF(AP14=0,0,(AP14*((LOG(AP14))/LOG(2)))) -> 0 | AS14: =N14 -> 222 | AT14: =COUNTIF(L97:L114,AS14) -> 3 | AU14: =AT14/(AV4-AT10) -> 0.2727272727 | AV14: =IF(AU14=0,0,(AU14*((LOG(AU14))/LOG(2)))) -> -0.5112188503
A15: 11 | B15: 1045 | C15: 11 | D15: 1049 | E15: 21 | F15: 1059 | K15: 0 | L15: 112 | P15: =SUM(P7:P14) -> 1 | Q15: =-SUM(Q7:Q14) -> 2.303097958 | V15: =SUM(V7:V14) -> 1 | W15: =-SUM(W7:W14) -> 2.084962501 | AA15: =SUM(AA7:AA14) -> 1 | AB15: =-SUM(AB7:AB14) -> 1.240670532 | AF15: =SUM(AF7:AF14) -> 1 | AG15: =-SUM(AG7:AG14) -> 2.045841641 | AK15: =SUM(AK7:AK14) -> 1 | AL15: =-SUM(AL7:AL14) -> 1.985228136 | AP15: =SUM(AP7:AP14) -> 1 | AQ15: =-SUM(AQ7:AQ14) -> 1.241946032 | AU15: =SUM(AU7:AU14) -> 1 | AV15: =-SUM(AV7:AV14) -> 1.240670532
A16: 22 | B16: 1175 | C16: 24 | D16: 1183 | E16: 14 | F16: 1194 | K16: 0 | L16: 221 | P16: U= | Q16: =Q15/(LOG(Q4)/LOG(2)) -> 0.3409528223 | V16: U1= | W16: =W15/(LOG(W4)/LOG(2)) -> 0.5 | AA16: U2= | AB16: =AB15/(LOG(AB4)/LOG(2)) -> 0.2975282604 | AF16: U3= | AG16: =AG15/(LOG(AG4)/LOG(2)) -> 0.4906183301 | AK16: U4= | AL16: =AL15/(LOG(AL4)/LOG(2)) -> 0.476082456 | AP16: U5= | AQ16: =AQ15/(LOG(AQ4)/LOG(2)) -> 0.2978341413 | AU16: U6= | AV16: =AV15/(LOG(AV4)/LOG(2)) -> 0.2975282604
A17: 11 | B17: 1293 | C17: 11 | D17: 1297 | E17: 21 | F17: 1307 | K17: 0 | L17: 112
A18: 11 | B18: 1410 | C18: 22 | D18: 1434 | E18: 23 | F18: 1442 | K18: 0 | L18: 122
A19: 22 | B19: 1557 | C19: 24 | D19: 1565 | E19: 23 | F19: 1582 | K19: 0 | L19: 222 | N19: Total Target Seq
A20: 11 | B20: 1682 | C20: 22 | D20: 1699 | E20: 14 | F20: 1712 | K20: 0 | L20: 121 | N20: =COUNTIF(L7:L114,G3) -> 32 | P20: 18 | Q20: 18 | R20: 18 | S20: 18 | T20: 18 | U20: 18
A21: 11 | B21: 1818 | C21: 22 | D21: 1830 | E21: 23 | F21: 1835 | K21: 0 | L21: 122 | P21: % of reinforcement given in 6 equal intervals based on number of trials
A22: 22 | B22: 1959 | C22: 24 | D22: 1965 | E22: 23 | F22: 1982 | K22: 0 | L22: 222 | P22: %_1 | Q22: %_2 | R22: %_3 | S22: %_4 | T22: %_5 | U22: %_6
A23: 11 | B23: 2088 | C23: 22 | D23: 2098 | E23: 23 | F23: 2103 | K23: 0 | L23: 122 | O23: target sequence | P23: =$G$3 -> 122 | Q23: =$G$3 -> 122 | R23: =$G$3 -> 122 | S23: =$G$3 -> 122 | T23: =$G$3 -> 122 | U23: =$G$3 -> 122
A24: 11 | B24: 2204 | C24: 22 | D24: 2212 | E24: 23 | F24: 2231 | K24: 0 | L24: 122 | O24: total reinforcement | P24: =U10 -> 6 | Q24: =Z10 -> 7 | R24: =AE10 -> 5 | S24: =AJ10 -> 4 | T24: =AO10 -> 3 | U24: =AT10 -> 7
A25: 11 | B25: 2330 | C25: 11 | D25: 2334 | E25: 21 | F25: 2356 | K25: 0 | L25: 112 | O25: % target
A26: 11 | B26: 2461 | C26: 22 | D26: 2473 | E26: 23 | F26: 2483 | K26: 0 | L26: 122 | O26: CCRF
A27: 11 | B27: 2582 | C27: 11 | D27: 2591 | E27: 21 | F27: 2607 | K27: 0 | L27: 112 | O27: % CCRf
A28: 22 | B28: 2716 | C28: 24 | D28: 2735 | E28: 23 | F28: 2742 | K28: 0 | L28: 222 | O28: average response rate | P28: =F24/P20 -> 123.9444444 | Q28: =(F42-F24)/Q20 -> 128.6111111 | R28: =(F60-F42)/R20 -> 124.6666667 | S28: =(F78-F60)/S20 -> 126.2777778 | T28: =(F96-F78)/T20 -> 123.2222222 | U28: =(F114-F96)/U20 -> 122.5555556
A29: 11 | B29: 2842 | C29: 11 | D29: 2847 | E29: 21 | F29: 2868 | K29: 0 | L29: 112
A30: 11 | B30: 2960 | C30: 11 | D30: 2965 | E30: 21 | F30: 2989 | K30: 0 | L30: 112
A31: 11 | B31: 3085 | C31: 22 | D31: 3098 | E31: 23 | F31: 3104 | K31: 0 | L31: 122
A32: 22 | B32: 3219 | C32: 24 | D32: 3245 | E32: 23 | F32: 3261 | K32: 0 | L32: 222
A33: 11 | B33: 3361 | C33: 22 | D33: 3376 | E33: 23 | F33: 3384 | K33: 0 | L33: 122
A34: 11 | B34: 3498 | C34: 22 | D34: 3511 | E34: 23 | F34: 3532 | K34: 0 | L34: 122
A35: 11 | B35: 3632 | C35: 22 | D35: 3642 | E35: 14 | F35: 3657 | K35: 0 | L35: 121
A36: 11 | B36: 3756 | C36: 22 | D36: 3797 | E36: 23 | F36: 3806 | K36: 0 | L36: 122
A37: 11 | B37: 3906 | C37: 11 | D37: 3911 | E37: 21 | F37: 3938 | K37: 0 | L37: 112
A38: 11 | B38: 4025 | C38: 11 | D38: 4038 | E38: 21 | F38: 4056 | K38: 0 | L38: 112
A39: 22 | B39: 4166 | C39: 24 | D39: 4172 | E39: 23 | F39: 4187 | K39: 0 | L39: 222
A40: 11 | B40: 4287 | C40: 22 | D40: 4304 | E40: 23 | F40: 4310 | K40: 0 | L40: 122
A41: 11 | B41: 4408 | C41: 11 | D41: 4413 | E41: 21 | F41: 4422 | K41: 0 | L41: 112
A42: 11 | B42: 4518 | C42: 22 | D42: 4537 | E42: 23 | F42: 4546 | K42: 0 | L42: 122
A43: 11 | B43: 4662 | C43: 11 | D43: 4666 | E43: 21 | F43: 4674 | K43: 0 | L43: 112
A44: 22 | B44: 4796 | C44: 24 | D44: 4817 | E44: 23 | F44: 4837 | K44: 0 | L44: 222
A45: 11 | B45: 4940 | C45: 22 | D45: 4948 | E45: 23 | F45: 4956 | K45: 0 | L45: 122
A46: 11 | B46: 5053 | C46: 22 | D46: 5074 | E46: 14 | F46: 5106 | K46: 0 | L46: 121
A47: 11 | B47: 5204 | C47: 11 | D47: 5208 | E47: 21 | F47: 5223 | K47: 0 | L47: 112
A48: 11 | B48: 5312 | C48: 11 | D48: 5333 | E48: 12 | F48: 5337 | K48: 0 | L48: 111
A49: 22 | B49: 5436 | C49: 24 | D49: 5450 | E49: 23 | F49: 5459 | K49: 0 | L49: 222
A50: 11 | B50: 5559 | C50: 11 | D50: 5564 | E50: 21 | F50: 5573 | K50: 0 | L50: 112
A51: 11 | B51: 5668 | C51: 22 | D51: 5683 | E51: 23 | F51: 5696 | K51: 0 | L51: 122
A52: 11 | B52: 5793 | C52: 11 | D52: 5809 | E52: 12 | F52: 5813 | K52: 0 | L52: 111
A53: 11 | B53: 5915 | C53: 22 | D53: 5922 | E53: 23 | F53: 5930 | K53: 0 | L53: 122
A54: 11 | B54: 6026 | C54: 11 | D54: 6031 | E54: 21 | F54: 6044 | K54: 0 | L54: 112
A55: 11 | B55: 6133 | C55: 11 | D55: 6138 | E55: 21 | F55: 6148 | K55: 0 | L55: 112
A56: 11 | B56: 6245 | C56: 22 | D56: 6259 | E56: 23 | F56: 6272 | K56: 0 | L56: 122
A57: 11 | B57: 6370 | C57: 22 | D57: 6378 | E57: 14 | F57: 6399 | K57: 0 | L57: 121
A58: 11 | B58: 6498 | C58: 11 | D58: 6501 | E58: 21 | F58: 6514 | K58: 0 | L58: 112
A59: 22 | B59: 6621 | C59: 24 | D59: 6632 | E59: 14 | F59: 6660 | K59: 0 | L59: 221
A60: 11 | B60: 6757 | C60: 22 | D60: 6777 | E60: 23 | F60: 6790 | K60: 0 | L60: 122
A61: 11 | B61: 6890 | C61: 11 | D61: 6894 | E61: 21 | F61: 6901 | K61: 0 | L61: 112
A62: 11 | B62: 7013 | C62: 22 | D62: 7026 | E62: 23 | F62: 7039 | K62: 0 | L62: 122
A63: 11 | B63: 7138 | C63: 22 | D63: 7147 | E63: 23 | F63: 7169 | K63: 0 | L63: 122
A64: 22 | B64: 7267 | C64: 13 | D64: 7275 | E64: 14 | F64: 7279 | K64: 0 | L64: 211
A65: 11 | B65: 7377 | C65: 11 | D65: 7381 | E65: 21 | F65: 7397 | K65: 0 | L65: 112
A66: 22 | B66: 7522 | C66: 24 | D66: 7540 | E66: 14 | F66: 7562 | K66: 0 | L66: 221
A67: 11 | B67: 7661 | C67: 11 | D67: 7665 | E67: 21 | F67: 7674 | K67: 0 | L67: 112
A68: 22 | B68: 7784 | C68: 24 | D68: 7791 | E68: 23 | F68: 7802 | K68: 0 | L68: 222
A69: 22 | B69: 7910 | C69: 24 | D69: 7916 | E69: 23 | F69: 7927 | K69: 0 | L69: 222
A70: 22 | B70: 8025 | C70: 13 | D70: 8037 | E70: 23 | F70: 8045 | K70: 0 | L70: 212
A71: 22 | B71: 8144 | C71: 13 | D71: 8153 | E71: 14 | F71: 8157 | K71: 0 | L71: 211
A72: 11 | B72: 8257 | C72: 11 | D72: 8262 | E72: 21 | F72: 8270 | K72: 0 | L72: 112
A73: 22 | B73: 8377 | C73: 24 | D73: 8387 | E73: 23 | F73: 8410 | K73: 0 | L73: 222
A74: 11 | B74: 8508 | C74: 22 | D74: 8532 | E74: 23 | F74: 8542 | K74: 0 | L74: 122
A75: 11 | B75: 8643 | C75: 11 | D75: 8647 | E75: 21 | F75: 8655 | K75: 0 | L75: 112
A76: 22 | B76: 8781 | C76: 24 | D76: 8794 | E76: 23 | F76: 8808 | K76: 0 | L76: 222
A77: 11 | B77: 8910 | C77: 11 | D77: 8914 | E77: 21 | F77: 8939 | K77: 0 | L77: 112
A78: 11 | B78: 9033 | C78: 22 | D78: 9050 | E78: 23 | F78: 9063 | K78: 0 | L78: 122
A79: 11 | B79: 9162 | C79: 11 | D79: 9167 | E79: 12 | F79: 9175 | K79: 0 | L79: 111
A80: 11 | B80: 9274 | C80: 11 | D80: 9286 | E80: 21 | F80: 9294 | K80: 0 | L80: 112
A81: 11 | B81: 9399 | C81: 22 | D81: 9407 | E81: 23 | F81: 9414 | K81: 0 | L81: 122
A82: 11 | B82: 9514 | C82: 22 | D82: 9533 | E82: 14 | F82: 9556 | K82: 0 | L82: 121
A83: 11 | B83: 9653 | C83: 11 | D83: 9658 | E83: 21 | F83: 9678 | K83: 0 | L83: 112
A84: 11 | B84: 9795 | C84: 11 | D84: 9799 | E84: 21 | F84: 9832 | K84: 0 | L84: 112
A85: 11 | B85: 9921 | C85: 11 | D85: 9926 | E85: 21 | F85: 9935 | K85: 0 | L85: 112
A86: 11 | B86: 10026 | C86: 22 | D86: 10046 | E86: 14 | F86: 10076 | K86: 0 | L86: 121
A87: 11 | B87: 10174 | C87: 11 | D87: 10216 | E87: 21 | F87: 10224 | K87: 0 | L87: 112
A88: 11 | B88: 10328 | C88: 11 | D88: 10332 | E88: 21 | F88: 10343 | K88: 0 | L88: 112
A89: 11 | B89: 10431 | C89: 11 | D89: 10443 | E89: 21 | F89: 10469 | K89: 0 | L89: 112
A90: 11 | B90: 10558 | C90: 11 | D90: 10567 | E90: 12 | F90: 10578 | K90: 0 | L90: 111
A91: 11 | B91: 10676 | C91: 11 | D91: 10681 | E91: 21 | F91: 10690 | K91: 0 | L91: 112
A92: 11 | B92: 10781 | C92: 22 | D92: 10798 | E92: 23 | F92: 10806 | K92: 0 | L92: 122
A93: 11 | B93: 10905 | C93: 11 | D93: 10909 | E93: 12 | F93: 10913 | K93: 0 | L93: 111
A94: 11 | B94: 11012 | C94: 11 | D94: 11017 | E94: 21 | F94: 11025 | K94: 0 | L94: 112
A95: 11 | B95: 11138 | C95: 22 | D95: 11146 | E95: 23 | F95: 11153 | K95: 0 | L95: 122
A96: 11 | B96: 11253 | C96: 11 | D96: 11272 | E96: 21 | F96: 11281 | K96: 0 | L96: 112
A97: 11 | B97: 11374 | C97: 22 | D97: 11386 | E97: 23 | F97: 11424 | K97: 0 | L97: 122
A98: 11 | B98: 11523 | C98: 11 | D98: 11528 | E98: 21 | F98: 11537 | K98: 0 | L98: 112
A99: 11 | B99: 11637 | C99: 11 | D99: 11642 | E99: 21 | F99: 11669 | K99: 0 | L99: 112
A100: 22 | B100: 11776 | C100: 24 | D100: 11789 | E100: 23 | F100: 11796 | K100: 0 | L100: 222
A101: 11 | B101: 11895 | C101: 22 | D101: 11910 | E101: 23 | F101: 11919 | K101: 0 | L101: 122
A102: 11 | B102: 12022 | C102: 22 | D102: 12040 | E102: 23 | F102: 12046 | K102: 0 | L102: 122
A103: 11 | B103: 12155 | C103: 22 | D103: 12171 | E103: 23 | F103: 12191 | K103: 0 | L103: 122
A104: 11 | B104: 12297 | C104: 22 | D104: 12306 | E104: 23 | F104: 12314 | K104: 0 | L104: 122
A105: 11 | B105: 12414 | C105: 11 | D105: 12418 | E105: 21 | F105: 12426 | K105: 0 | L105: 112
A106: 11 | B106: 12528 | C106: 22 | D106: 12540 | E106: 23 | F106: 12555 | K106: 0 | L106: 122
A107: 22 | B107: 12674 | C107: 24 | D107: 12681 | E107: 23 | F107: 12693 | K107: 0 | L107: 222
A108: 11 | B108: 12791 | C108: 11 | D108: 12796 | E108: 12 | F108: 12801 | K108: 0 | L108: 111
A109: 22 | B109: 12916 | C109: 24 | D109: 12925 | E109: 23 | F109: 12945 | K109: 0 | L109: 222
A110: 11 | B110: 13045 | C110: 11 | D110: 13049 | E110: 21 | F110: 13056 | K110: 0 | L110: 112
A111: 11 | B111: 13149 | C111: 11 | D111: 13153 | E111: 21 | F111: 13161 | K111: 0 | L111: 112
A112: 11 | B112: 13248 | C112: 11 | D112: 13252 | E112: 21 | F112: 13260 | K112: 0 | L112: 112
A113: 11 | B113: 13351 | C113: 22 | D113: 13362 | E113: 23 | F113: 13374 | K113: 0 | L113: 122
A114: 11 | B114: 13472 | C114: 11 | D114: 13479 | E114: 21 | F114: 13487 | K114: 1 | L114: 112

Sheet !M519920.096
A1: Report for:!M519920.096
A2: Date: | B2: <date>
A3: Hen: | B3: <hen> | F3: Correct Sequence | G3: =Start!J2 -> 122 | P3: Total Sequences in Data | Q3: =4994-COUNTBLANK(L7:L5000) -> 86 | V3: Total Sequences in Block Data | W3: =COUNTA(L7:L20) -> 14 | AA3: Total Sequences in Block Data | AB3: =COUNTA(L21:L35) -> 15 | AF3: Total Sequences in Block Data | AG3: =COUNTA(L36:L49) -> 14 | AK3: Total Sequences in Block Data | AL3: =COUNTA(L50:L63) -> 14 | AP3: Total Sequences in Block Data | AQ3: =COUNTA(L64:L78) -> 15 | AU3: Total Sequences in Block Data | AV3: =COUNTA(L79:L92) -> 14
P4: Total Sequences in Summary | Q4: =SUM(O7:O14) -> 86 | V4: Total Sequences in Block Summary | W4: =SUM(U7:U14) -> 14 | AA4: Total Sequences in Block Summary | AB4: =SUM(Z7:Z14) -> 15 | AF4: Total Sequences in Block Summary | AG4: =SUM(AE7:AE14) -> 14 | AK4: Total Sequences in Block Summary | AL4: =SUM(AJ7:AJ14) -> 14 | AP4: Total Sequences in Block Summary | AQ4: =SUM(AO7:AO14) -> 15 | AU4: Total Sequences in Block Summary | AV4: =SUM(AT7:AT14) -> 14
T5: Block 1 | Y5: Block 2 | AD5: Block 3 | AI5: Block 4 | AN5: Block 5 | AS5: Block 6
A6: Sequence Component 1 | B6: Time 1 | C6: Sequence Component 2 | D6: Time 2 | E6: Sequence Component 3 | F6: Time 3 | G6: Sequence Component 4 | H6: Time 4 | I6: Sequence Component 5 | J6: Time 5 | K6: Correct? 0=No 1=Yes | L6: Sequence | N6: Frequency | P6: Relative Frequency | Q6: Variability | T6: Frequency | V6: Relative Frequency | W6: Variability | Y6: Frequency | AA6: Relative Frequency | AB6: Variability | AD6: Frequency | AF6: Relative Frequency | AG6: Variability | AI6: Frequency | AK6: Relative Frequency | AL6: Variability | AN6: Frequency | AP6: Relative Frequency | AQ6: Variability | AS6: Frequency | AU6: Relative Frequency | AV6: Variability
A7: 11 | B7: 13 | C7: 11 | D7: 27 | E7: 21 | F7: 37 | K7: 0 | L7: 112 | N7: 111 | O7: =COUNTIF($L$7:$L$500,N7) -> 12 | P7: =O7/$Q$4 -> 0.1395348837 | Q7: =IF(P7=0,0,(P7*((LOG(P7))/LOG(2)))) -> -0.3964607796 | T7: =N7 -> 111 | U7: =COUNTIF(L7:L20,T7) -> 2 | V7: =U7/(W4-U10) -> 0.2 | W7: =IF(V7=0,0,(V7*((LOG(V7))/LOG(2)))) -> -0.464385619 | Y7: =N7 -> 111 | Z7: =COUNTIF(L21:L35,Y7) -> 1 | AA7: =Z7/(AB4-Z10) -> 0.08333333333 | AB7: =IF(AA7=0,0,(AA7*((LOG(AA7))/LOG(2)))) -> -0.2987468751 | AD7: =N7 -> 111 | AE7: =COUNTIF(L36:L49,AD7) -> 3 | AF7: =AE7/(AG4-AE10) -> 0.3333333333 | AG7: =IF(AF7=0,0,(AF7*((LOG(AF7))/LOG(2)))) -> -0.5283208336 | AI7: =N7 -> 111 | AJ7: =COUNTIF(L50:L63,AI7) -> 1 | AK7: =AJ7/(AL4-AJ10) -> 0.07142857143 | AL7: =IF(AK7=0,0,(AK7*((LOG(AK7))/LOG(2)))) -> -0.271953923 | AN7: =N7 -> 111 | AO7: =COUNTIF(L64:L78,AN7) -> 2 | AP7: =AO7/(AQ4-AO10) -> 0.1818181818 | AQ7: =IF(AP7=0,0,(AP7*((LOG(AP7))/LOG(2)))) -> -0.4471693852 | AS7: =N7 -> 111 | AT7: =COUNTIF(L79:L92,AS7) -> 3 | AU7: =AT7/(AV4-AT10) -> 0.2307692308 | AV7: =IF(AU7=0,0,(AU7*((LOG(AU7))/LOG(2)))) -> -0.4881870502
A8: 11 | B8: 126 | C8: 11 | D8: 131 | E8: 21 | F8: 141 | K8: 0 | L8: 112 | N8: 112 | O8: =COUNTIF($L$7:$L$500,N8) -> 40 | P8: =O8/$Q$4 -> 0.4651162791 | Q8: =IF(P8=0,0,(P8*((LOG(P8))/LOG(2)))) -> -0.5136449581 | T8: =N8 -> 112 | U8: =COUNTIF(L7:L20,T8) -> 5 | V8: =U8/(W4-U10) -> 0.5 | W8: =IF(V8=0,0,(V8*((LOG(V8))/LOG(2)))) -> -0.5 | Y8: =N8 -> 112 | Z8: =COUNTIF(L21:L35,Y8) -> 6 | AA8: =Z8/(AB4-Z10) -> 0.5 | AB8: =IF(AA8=0,0,(AA8*((LOG(AA8))/LOG(2)))) -> -0.5 | AD8: =N8 -> 112 | AE8: =COUNTIF(L36:L49,AD8) -> 6 | AF8: =AE8/(AG4-AE10) -> 0.6666666667 | AG8: =IF(AF8=0,0,(AF8*((LOG(AF8))/LOG(2)))) -> -0.3899750005 | AI8: =N8 -> 112 | AJ8: =COUNTIF(L50:L63,AI8) -> 7 | AK8: =AJ8/(AL4-AJ10) -> 0.5 | AL8: =IF(AK8=0,0,(AK8*((LOG(AK8))/LOG(2)))) -> -0.5 | AN8: =N8 -> 112 | AO8: =COUNTIF(L64:L78,AN8) -> 9 | AP8: =AO8/(AQ4-AO10) -> 0.8181818182 | AQ8: =IF(AP8=0,0,(AP8*((LOG(AP8))/LOG(2)))) -> -0.2368690504 | AS8: =N8 -> 112 | AT8: =COUNTIF(L79:L92,AS8) -> 7 | AU8: =AT8/(AV4-AT10) -> 0.5384615385 | AV8: =IF(AU8=0,0,(AU8*((LOG(AU8))/LOG(2)))) -> -0.4808918133
A9: 11 | B9: 233 | C9: 22 | D9: 259 | E9: 14 | F9: 289 | K9: 0 | L9: 121 | N9: 121 | O9: =COUNTIF($L$7:$L$500,N9) -> 11 | P9: =O9/$Q$4 -> 0.1279069767 | Q9: =IF(P9=0,0,(P9*((LOG(P9))/LOG(2)))) -> -0.3794786569 | T9: =N9 -> 121 | U9: =COUNTIF(L7:L20,T9) -> 1 | V9: =U9/(W4-U10) -> 0.1 | W9: =IF(V9=0,0,(V9*((LOG(V9))/LOG(2)))) -> -0.3321928095 | Y9: =N9 -> 121 | Z9: =COUNTIF(L21:L35,Y9) -> 2 | AA9: =Z9/(AB4-Z10) -> 0.1666666667 | AB9: =IF(AA9=0,0,(AA9*((LOG(AA9))/LOG(2)))) -> -0.4308270835 | AD9: =N9 -> 121 | AE9: =COUNTIF(L36:L49,AD9) -> 0 | AF9: =AE9/(AG4-AE10) -> 0 | AG9: =IF(AF9=0,0,(AF9*((LOG(AF9))/LOG(2)))) -> 0 | AI9: =N9 -> 121 | AJ9: =COUNTIF(L50:L63,AI9) -> 6 | AK9: =AJ9/(AL4-AJ10) -> 0.4285714286 | AL9: =IF(AK9=0,0,(AK9*((LOG(AK9))/LOG(2)))) -> -0.5238824663 | AN9: =N9 -> 121 | AO9: =COUNTIF(L64:L78,AN9) -> 0 | AP9: =AO9/(AQ4-AO10) -> 0 | AQ9: =IF(AP9=0,0,(AP9*((LOG(AP9))/LOG(2)))) -> 0 | AS9: =N9 -> 121 | AT9: =COUNTIF(L79:L92,AS9) -> 2 | AU9: =AT9/(AV4-AT10) -> 0.1538461538 | AV9: =IF(AU9=0,0,(AU9*((LOG(AU9))/LOG(2)))) -> -0.4154522643
A10: 11 | B10: 388 | C10: 11 | D10: 407 | E10: 12 | F10: 411 | K10: 0 | L10: 111 | N10: 122 | O10: =COUNTIF($L$7:$L$500,N10) -> 17 | P10: =O10/$Q$4 -> 0.1976744186 | Q10: =IF(P10=0,0,(P10*((LOG(P10))/LOG(2)))) -> -0.4623213085 | T10: =N10 -> 122 | U10: =COUNTIF(L7:L20,T10) -> 4 | Y10: =N10 -> 122 | Z10: =COUNTIF(L21:L35,Y10) -> 3 | AD10: =N10 -> 122 | AE10: =COUNTIF(L36:L49,AD10) -> 5 | AI10: =N10 -> 122 | AJ10: =COUNTIF(L50:L63,AI10) -> 0 | AN10: =N10 -> 122 | AO10: =COUNTIF(L64:L78,AN10) -> 4 | AS10: =N10 -> 122 | AT10: =COUNTIF(L79:L92,AS10) -> 1
A11: 11 | B11: 519 | C11: 22 | D11: 536 | E11: 23 | F11: 549 | K11: 0 | L11: 122 | N11: 211 | O11: =COUNTIF($L$7:$L$500,N11) -> 0 | P11: =O11/$Q$4 -> 0 | Q11: =IF(P11=0,0,(P11*((LOG(P11))/LOG(2)))) -> 0 | T11: =N11 -> 211 | U11: =COUNTIF(L7:L20,T11) -> 0 | V11: =U11/(W4-U10) -> 0 | W11: =IF(V11=0,0,(V11*((LOG(V11))/LOG(2)))) -> 0 | Y11: =N11 -> 211 | Z11: =COUNTIF(L21:L35,Y11) -> 0 | AA11: =Z11/(AB4-Z10) -> 0 | AB11: =IF(AA11=0,0,(AA11*((LOG(AA11))/LOG(2)))) -> 0 | AD11: =N11 -> 211 | AE11: =COUNTIF(L36:L49,AD11) -> 0 | AF11: =AE11/(AG4-AE10) -> 0 | AG11: =IF(AF11=0,0,(AF11*((LOG(AF11))/LOG(2)))) -> 0 | AI11: =N11 -> 211 | AJ11: =COUNTIF(L50:L63,AI11) -> 0 | AK11: =AJ11/(AL4-AJ10) -> 0 | AL11: =IF(AK11=0,0,(AK11*((LOG(AK11))/LOG(2)))) -> 0 | AN11: =N11 -> 211 | AO11: =COUNTIF(L64:L78,AN11) -> 0 | AP11: =AO11/(AQ4-AO10) -> 0 | AQ11: =IF(AP11=0,0,(AP11*((LOG(AP11))/LOG(2)))) -> 0 | AS11: =N11 -> 211 | AT11: =COUNTIF(L79:L92,AS11) -> 0 | AU11: =AT11/(AV4-AT10) -> 0 | AV11: =IF(AU11=0,0,(AU11*((LOG(AU11))/LOG(2)))) -> 0
A12: 11 | B12: 650 | C12: 22 | D12: 669 | E12: 23 | F12: 679 | K12: 0 | L12: 122 | N12: 212 | O12: =COUNTIF($L$7:$L$500,N12) -> 0 | P12: =O12/$Q$4 -> 0 | Q12: =IF(P12=0,0,(P12*((LOG(P12))/LOG(2)))) -> 0 | T12: =N12 -> 212 | U12: =COUNTIF(L7:L20,T12) -> 0 | V12: =U12/(W4-U10) -> 0 | W12: =IF(V12=0,0,(V12*((LOG(V12))/LOG(2)))) -> 0 | Y12: =N12 -> 212 | Z12: =COUNTIF(L21:L35,Y12) -> 0 | AA12: =Z12/(AB4-Z10) -> 0 | AB12: =IF(AA12=0,0,(AA12*((LOG(AA12))/LOG(2)))) -> 0 | AD12: =N12 -> 212 | AE12: =COUNTIF(L36:L49,AD12) -> 0 | AF12: =AE12/(AG4-AE10) -> 0 | AG12: =IF(AF12=0,0,(AF12*((LOG(AF12))/LOG(2)))) -> 0 | AI12: =N12 -> 212 | AJ12: =COUNTIF(L50:L63,AI12) -> 0 | AK12: =AJ12/(AL4-AJ10) -> 0 | AL12: =IF(AK12=0,0,(AK12*((LOG(AK12))/LOG(2)))) -> 0 | AN12: =N12 -> 212 | AO12: =COUNTIF(L64:L78,AN12) -> 0 | AP12: =AO12/(AQ4-AO10) -> 0 | AQ12: =IF(AP12=0,0,(AP12*((LOG(AP12))/LOG(2)))) -> 0 | AS12: =N12 -> 212 | AT12: =COUNTIF(L79:L92,AS12) -> 0 | AU12: =AT12/(AV4-AT10) -> 0 | AV12: =IF(AU12=0,0,(AU12*((LOG(AU12))/LOG(2)))) -> 0
A13: 11 | B13: 795 | C13: 22 | D13: 809 | E13: 23 | F13: 816 | K13: 0 | L13: 122 | N13: 221 | O13: =COUNTIF($L$7:$L$500,N13) -> 0 | P13: =O13/$Q$4 -> 0 | Q13: =IF(P13=0,0,(P13*((LOG(P13))/LOG(2)))) -> 0 | T13: =N13 -> 221 | U13: =COUNTIF(L7:L20,T13) -> 0 | V13: =U13/(W4-U10) -> 0 | W13: =IF(V13=0,0,(V13*((LOG(V13))/LOG(2)))) -> 0 | Y13: =N13 -> 221 | Z13: =COUNTIF(L21:L35,Y13) -> 0 | AA13: =Z13/(AB4-Z10) -> 0 | AB13: =IF(AA13=0,0,(AA13*((LOG(AA13))/LOG(2)))) -> 0 | AD13: =N13 -> 221 | AE13: =COUNTIF(L36:L49,AD13) -> 0 | AF13: =AE13/(AG4-AE10) -> 0 | AG13: =IF(AF13=0,0,(AF13*((LOG(AF13))/LOG(2)))) -> 0 | AI13: =N13 -> 221 | AJ13: =COUNTIF(L50:L63,AI13) -> 0 | AK13: =AJ13/(AL4-AJ10) -> 0 | AL13: =IF(AK13=0,0,(AK13*((LOG(AK13))/LOG(2)))) -> 0 | AN13: =N13 -> 221 | AO13: =COUNTIF(L64:L78,AN13) -> 0 | AP13: =AO13/(AQ4-AO10) -> 0 | AQ13: =IF(AP13=0,0,(AP13*((LOG(AP13))/LOG(2)))) -> 0 | AS13: =N13 -> 221 | AT13: =COUNTIF(L79:L92,AS13) -> 0 | AU13: =AT13/(AV4-AT10) -> 0 | AV13: =IF(AU13=0,0,(AU13*((LOG(AU13))/LOG(2)))) -> 0
A14: 11 | B14: 916 | C14: 11 | D14: 920 | E14: 12 | F14: 931 | K14: 0 | L14: 111 | N14: 222 | O14: =COUNTIF($L$7:$L$500,N14) -> 6 | P14: =O14/$Q$4 -> 0.06976744186 | Q14: =IF(P14=0,0,(P14*((LOG(P14))/LOG(2)))) -> -0.2679978317 | T14: =N14 -> 222 | U14: =COUNTIF(L7:L20,T14) -> 2 | V14: =U14/(W4-U10) -> 0.2 | W14: =IF(V14=0,0,(V14*((LOG(V14))/LOG(2)))) -> -0.464385619 | Y14: =N14 -> 222 | Z14: =COUNTIF(L21:L35,Y14) -> 3 | AA14: =Z14/(AB4-Z10) -> 0.25 | AB14: =IF(AA14=0,0,(AA14*((LOG(AA14))/LOG(2)))) -> -0.5 | AD14: =N14 -> 222 | AE14: =COUNTIF(L36:L49,AD14) -> 0 | AF14: =AE14/(AG4-AE10) -> 0 | AG14: =IF(AF14=0,0,(AF14*((LOG(AF14))/LOG(2)))) -> 0 | AI14: =N14 -> 222 | AJ14: =COUNTIF(L50:L63,AI14) -> 0 | AK14: =AJ14/(AL4-AJ10) -> 0 | AL14: =IF(AK14=0,0,(AK14*((LOG(AK14))/LOG(2)))) -> 0 | AN14: =N14 -> 222 | AO14: =COUNTIF(L64:L78,AN14) -> 0 | AP14: =AO14/(AQ4-AO10) -> 0 | AQ14: =IF(AP14=0,0,(AP14*((LOG(AP14))/LOG(2)))) -> 0 | AS14: =N14 -> 222 | AT14: =COUNTIF(L79:L92,AS14) -> 1 | AU14: =AT14/(AV4-AT10) -> 0.07692307692 | AV14: =IF(AU14=0,0,(AU14*((LOG(AU14))/LOG(2)))) -> -0.2846492091
A15: 11 | B15: 1029 | C15: 11 | D15: 1033 | E15: 21 | F15: 1044 | K15: 0 | L15: 112 | P15: =SUM(P7:P14) -> 1 | Q15: =-SUM(Q7:Q14) -> 2.019903535 | V15: =SUM(V7:V14) -> 1 | W15: =-SUM(W7:W14) -> 1.760964047 | AA15: =SUM(AA7:AA14) -> 1 | AB15: =-SUM(AB7:AB14) -> 1.729573959 | AF15: =SUM(AF7:AF14) -> 1 | AG15: =-SUM(AG7:AG14) -> 0.9182958341 | AK15: =SUM(AK7:AK14) -> 1 | AL15: =-SUM(AL7:AL14) -> 1.295836389 | AP15: =SUM(AP7:AP14) -> 1 | AQ15: =-SUM(AQ7:AQ14) -> 0.6840384356 | AU15: =SUM(AU7:AU14) -> 1 | AV15: =-SUM(AV7:AV14) -> 1.669180337
A16: 11 | B16: 1145 | C16: 11 | D16: 1168 | E16: 21 | F16: 1181 | K16: 0 | L16: 112 | P16: U= | Q16: =Q15/(LOG(Q4)/LOG(2)) -> 0.3143199995 | V16: U1= | W16: =W15/(LOG(W4)/LOG(2)) -> 0.4625163883 | AA16: U2= | AB16: =AB15/(LOG(AB4)/LOG(2)) -> 0.4426983342 | AF16: U3= | AG16: =AG15/(LOG(AG4)/LOG(2)) -> 0.2411899738 | AK16: U4= | AL16: =AL15/(LOG(AL4)/LOG(2)) -> 0.3403508251 | AP16: U5= | AQ16: =AQ15/(LOG(AQ4)/LOG(2)) -> 0.1750851269 | AU16: U6= | AV16: =AV15/(LOG(AV4)/LOG(2)) -> 0.4384094394
A17: 22 | B17: 1296 | C17: 24 | D17: 1314 | E17: 23 | F17: 1332 | K17: 0 | L17: 222
A18: 11 | B18: 1432 | C18: 11 | D18: 1438 | E18: 21 | F18: 1452 | K18: 0 | L18: 112
A19: 11 | B19: 1541 | C19: 22 | D19: 1558 | E19: 23 | F19: 1578 | K19: 0 | L19: 122 | N19: Total Target Seq
A20: 22 | B20: 1699 | C20: 24 | D20: 1730 | E20: 23 | F20: 1746 | K20: 0 | L20: 222 | N20: =COUNTIF(L7:L92,G3) -> 17 | P20: 14 | Q20: 15 | R20: 14 | S20: 14 | T20: 15 | U20: 14
A21: 11 | B21: 1847 | C21: 11 | D21: 1852 | E21: 21 | F21: 1866 | K21: 0 | L21: 112 | P21: % of reinforcement given in 6 equal intervals based on number of trials
A22: 11 | B22: 1964 | C22: 22 | D22: 1974 | E22: 23 | F22: 1979 | K22: 0 | L22: 122 | P22: %_1 | Q22: %_2 | R22: %_3 | S22: %_4 | T22: %_5 | U22: %_6
A23: 11 | B23: 2097 | C23: 22 | D23: 2124 | E23: 14 | F23: 2143 | K23: 0 | L23: 121 | O23: target sequence | P23: =$G$3 -> 122 | Q23: =$G$3 -> 122 | R23: =$G$3 -> 122 | S23: =$G$3 -> 122 | T23: =$G$3 -> 122 | U23: =$G$3 -> 122
A24: 22 | B24: 2263 | C24: 24 | D24: 2282 | E24: 23 | F24: 2290 | K24: 0 | L24: 222 | O24: total reinforcement | P24: =U10 -> 4 | Q24: =Z10 -> 3 | R24: =AE10 -> 5 | S24: =AJ10 -> 0 | T24: =AO10 -> 4 | U24: =AT10 -> 1
A25: 11 | B25: 2391 | C25: 11 | D25: 2396 | E25: 21 | F25: 2407 | K25: 0 | L25: 112 | O25: % target
A26: 22 | B26: 2534 | C26: 24 | D26: 2551 | E26: 23 | F26: 2584 | K26: 0 | L26: 222 | O26: CCRF
A27: 11 | B27: 2680 | C27: 11 | D27: 2705 | E27: 21 | F27: 2716 | K27: 0 | L27: 112 | O27: % CCRf
A28: 11 | B28: 2840 | C28: 11 | D28: 2846 | E28: 21 | F28: 2865 | K28: 0 | L28: 112 | O28: average response rate | P28: =F20/P20 -> 124.7142857 | Q28: =(F35-F20)/Q20 -> 138.7333333 | R28: =(F49-F35)/R20 -> 130.3571429 | S28: =(F63-F49)/S20 -> 127.1428571 | T28: =(F78-F63)/T20 -> 117.4666667 | U28: =(F92-F78)/U20 -> 117.2142857
A29: 11 | B29: 2973 | C29: 22 | D29: 2986 | E29: 14 | F29: 3022 | K29: 0 | L29: 121
A30: 11 | B30: 3127 | C30: 22 | D30: 3136 | E30: 23 | F30: 3148 | K30: 0 | L30: 122
A31: 11 | B31: 3248 | C31: 22 | D31: 3266 | E31: 23 | F31: 3294 | K31: 0 | L31: 122
A32: 11 | B32: 3392 | C32: 11 | D32: 3407 | E32: 21 | F32: 3432 | K32: 0 | L32: 112
A33: 22 | B33: 3546 | C33: 24 | D33: 3563 | E33: 23 | F33: 3587 | K33: 0 | L33: 222
A34: 11 | B34: 3687 | C34: 11 | D34: 3691 | E34: 21 | F34: 3700 | K34: 0 | L34: 112
A35: 11 | B35: 3805 | C35: 11 | D35: 3823 | E35: 12 | F35: 3827 | K35: 0 | L35: 111
A36: 11 | B36: 3924 | C36: 11 | D36: 3929 | E36: 12 | F36: 3941 | K36: 0 | L36: 111
A37: 11 | B37: 4040 | C37: 11 | D37: 4055 | E37: 12 | F37: 4059 | K37: 0 | L37: 111
A38: 11 | B38: 4171 | C38: 22 | D38: 4187 | E38: 23 | F38: 4203 | K38: 0 | L38: 122
A39: 11 | B39: 4299 | C39: 11 | D39: 4303 | E39: 21 | F39: 4311 | K39: 0 | L39: 112
A40: 11 | B40: 4414 | C40: 22 | D40: 4426 | E40: 23 | F40: 4449 | K40: 0 | L40: 122
A41: 11 | B41: 4545 | C41: 11 | D41: 4549 | E41: 21 | F41: 4557 | K41: 0 | L41: 112
A42: 11 | B42: 4646 | C42: 11 | D42: 4682 | E42: 12 | F42: 4686 | K42: 0 | L42: 111
A43: 11 | B43: 4784 | C43: 11 | D43: 4787 | E43: 21 | F43: 4798 | K43: 0 | L43: 112
A44: 11 | B44: 4884 | C44: 11 | D44: 4904 | E44: 21 | F44: 4925 | K44: 0 | L44: 112
A45: 11 | B45: 5013 | C45: 22 | D45: 5050 | E45: 23 | F45: 5081 | K45: 0 | L45: 122
A46: 11 | B46: 5180 | C46: 11 | D46: 5194 | E46: 21 | F46: 5227 | K46: 0 | L46: 112
A47: 11 | B47: 5323 | C47: 22 | D47: 5334 | E47: 23 | F47: 5352 | K47: 0 | L47: 122
A48: 11 | B48: 5452 | C48: 11 | D48: 5455 | E48: 21 | F48: 5463 | K48: 0 | L48: 112
A49: 11 | B49: 5554 | C49: 22 | D49: 5636 | E49: 23 | F49: 5652 | K49: 0 | L49: 122
A50: 11 | B50: 5751 | C50: 11 | D50: 5755 | E50: 21 | F50: 5764 | K50: 0 | L50: 112
A51: 11 | B51: 5869 | C51: 22 | D51: 5877 | E51: 14 | F51: 5907 | K51: 0 | L51: 121
A52: 11 | B52: 6020 | C52: 22 | D52: 6032 | E52: 14 | F52: 6054 | K52: 0 | L52: 121
A53: 11 | B53: 6177 | C53: 11 | D53: 6189 | E53: 21 | F53: 6210 | K53: 0 | L53: 112
A54: 11 | B54: 6301 | C54: 22 | D54: 6314 | E54: 14 | F54: 6336 | K54: 0 | L54: 121
A55: 11 | B55: 6434 | C55: 11 | D55: 6438 | E55: 21 | F55: 6447 | K55: 0 | L55: 112
A56: 11 | B56: 6535 | C56: 22 | D56: 6544 | E56: 14 | F56: 6557 | K56: 0 | L56: 121
A57: 11 | B57: 6660 | C57: 22 | D57: 6669 | E57: 14 | F57: 6689 | K57: 0 | L57: 121
A58: 11 | B58: 6787 | C58: 11 | D58: 6792 | E58: 12 | F58: 6796 | K58: 0 | L58: 111
A59: 11 | B59: 6894 | C59: 11 | D59: 6898 | E59: 21 | F59: 6907 | K59: 0 | L59: 112
A60: 11 | B60: 7022 | C60: 22 | D60: 7035 | E60: 14 | F60: 7055 | K60: 0 | L60: 121
A61: 11 | B61: 7153 | C61: 11 | D61: 7157 | E61: 21 | F61: 7196 | K61: 0 | L61: 112
A62: 11 | B62: 7285 | C62: 11 | D62: 7290 | E62: 21 | F62: 7299 | K62: 0 | L62: 112
A63: 11 | B63: 7388 | C63: 11 | D63: 7392 | E63: 21 | F63: 7432 | K63: 0 | L63: 112
A64: 11 | B64: 7520 | C64: 11 | D64: 7533 | E64: 21 | F64: 7545 | K64: 0 | L64: 112
A65: 11 | B65: 7648 | C65: 11 | D65: 7665 | E65: 21 | F65: 7677 | K65: 0 | L65: 112
A66: 11 | B66: 7765 | C66: 11 | D66: 7770 | E66: 21 | F66: 7782 | K66: 0 | L66: 112
A67: 11 | B67: 7871 | C67: 22 | D67: 7879 | E67: 23 | F67: 7897 | K67: 0 | L67: 122
A68: 11 | B68: 7995 | C68: 11 | D68: 8000 | E68: 21 | F68: 8010 | K68: 0 | L68: 112
A69: 11 | B69: 8099 | C69: 22 | D69: 8137 | E69: 23 | F69: 8145 | K69: 0 | L69: 122
A70: 11 | B70: 8242 | C70: 11 | D70: 8246 | E70: 21 | F70: 8254 | K70: 0 | L70: 112
A71: 11 | B71: 8341 | C71: 11 | D71: 8346 | E71: 21 | F71: 8369 | K71: 0 | L71: 112
A72: 11 | B72: 8456 | C72: 11 | D72: 8460 | E72: 21 | F72: 8484 | K72: 0 | L72: 112
A73: 11 | B73: 8573 | C73: 11 | D73: 8582 | E73: 12 | F73: 8599 | K73: 0 | L73: 111
A74: 11 | B74: 8697 | C74: 11 | D74: 8701 | E74: 12 | F74: 8705 | K74: 0 | L74: 111
A75: 11 | B75: 8803 | C75: 11 | D75: 8807 | E75: 21 | F75: 8819 | K75: 0 | L75: 112
A76: 11 | B76: 8915 | C76: 22 | D76: 8923 | E76: 23 | F76: 8946 | K76: 0 | L76: 122
A77: 11 | B77: 9046 | C77: 11 | D77: 9049 | E77: 21 | F77: 9058 | K77: 0 | L77: 112
A78: 11 | B78: 9147 | C78: 22 | D78: 9181 | E78: 23 | F78: 9194 | K78: 0 | L78: 122
A79: 11 | B79: 9292 | C79: 11 | D79: 9297 | E79: 21 | F79: 9318 | K79: 0 | L79: 112
A80: 11 | B80: 9408 | C80: 11 | D80: 9413 | E80: 21 | F80: 9421 | K80: 0 | L80: 112
A81: 11 | B81: 9516 | C81: 22 | D81: 9529 | E81: 14 | F81: 9547 | K81: 0 | L81: 121
A82: 11 | B82: 9644 | C82: 11 | D82: 9648 | E82: 21 | F82: 9656 | K82: 0 | L82: 112
A83: 11 | B83: 9744 | C83: 22 | D83: 9762 | E83: 23 | F83: 9772 | K83: 0 | L83: 122
A84: 11 | B84: 9870 | C84: 11 | D84: 9875 | E84: 12 | F84: 9879 | K84: 0 | L84: 111
A85: 11 | B85: 9979 | C85: 11 | D85: 9985 | E85: 21 | F85: 9998 | K85: 0 | L85: 112
A86: 11 | B86: 10084 | C86: 11 | D86: 10089 | E86: 21 | F86: 10108 | K86: 0 | L86: 112
A87: 11 | B87: 10197 | C87: 22 | D87: 10210 | E87: 14 | F87: 10235 | K87: 0 | L87: 121
A88: 11 | B88: 10332 | C88: 11 | D88: 10337 | E88: 12 | F88: 10341 | K88: 0 | L88: 111
A89: 11 | B89: 10460 | C89: 11 | D89: 10481 | E89: 12 | F89: 10488 | K89: 0 | L89: 111
A90: 22 | B90: 10609 | C90: 24 | D90: 10615 | E90: 23 | F90: 10623 | K90: 0 | L90: 222
A91: 11 | B91: 10720 | C91: 11 | D91: 10725 | E91: 21 | F91: 10733 | K91: 0 | L91: 112
A92: 11 | B92: 10821 | C92: 11 | D92: 10827 | E92: 21 | F92: 10835 | K92: 1 | L92: 112

Sheet !M520B20.096
A1: Report for:!M520B20.096
A2: Date: | B2: <date>
A3: Hen: | B3: <hen> | F3: Correct Sequence | G3: =Start!J2 -> 122 | P3: Total Sequences in Data | Q3: =4994-COUNTBLANK(L7:L5000) -> 76 | V3: Total Sequences in Block Data | W3: =COUNTA(L7:L19) -> 13 | AA3: Total Sequences in Block Data | AB3: =COUNTA(L20:L31) -> 12 | AF3: Total Sequences in Block Data | AG3: =COUNTA(L32:L44) -> 13 | AK3: Total Sequences in Block Data | AL3: =COUNTA(L45:L57) -> 13 | AP3: Total Sequences in Block Data | AQ3: =COUNTA(L58:L69) -> 12 | AU3: Total Sequences in Block Data | AV3: =COUNTA(L70:L82) -> 13
P4: Total Sequences in Summary | Q4: =SUM(O7:O14) -> 76 | V4: Total Sequences in Block Summary | W4: =SUM(U7:U14) -> 13 | AA4: Total Sequences in Block Summary | AB4: =SUM(Z7:Z14) -> 12 | AF4: Total Sequences in Block Summary | AG4: =SUM(AE7:AE14) -> 13 | AK4: Total Sequences in Block Summary | AL4: =SUM(AJ7:AJ14) -> 13 | AP4: Total Sequences in Block Summary | AQ4: =SUM(AO7:AO14) -> 12 | AU4: Total Sequences in Block Summary | AV4: =SUM(AT7:AT14) -> 13
T5: Block 1 | Y5: Block 2 | AD5: Block 3 | AI5: Block 4 | AN5: Block 5 | AS5: Block 6
A6: Sequence Component 1 | B6: Time 1 | C6: Sequence Component 2 | D6: Time 2 | E6: Sequence Component 3 | F6: Time 3 | G6: Sequence Component 4 | H6: Time 4 | I6: Sequence Component 5 | J6: Time 5 | K6: Correct? 0=No 1=Yes | L6: Sequence | N6: Frequency | P6: Relative Frequency | Q6: Variability | T6: Frequency | V6: Relative Frequency | W6: Variability | Y6: Frequency | AA6: Relative Frequency | AB6: Variability | AD6: Frequency | AF6: Relative Frequency | AG6: Variability | AI6: Frequency | AK6: Relative Frequency | AL6: Variability | AN6: Frequency | AP6: Relative Frequency | AQ6: Variability | AS6: Frequency | AU6: Relative Frequency | AV6: Variability
A7: 11 | B7: 25 | C7: 22 | D7: 52 | E7: 14 | F7: 85 | K7: 0 | L7: 121 | N7: 111 | O7: =COUNTIF($L$7:$L$500,N7) -> 8 | P7: =O7/$Q$4 -> 0.1052631579 | Q7: =IF(P7=0,0,(P7*((LOG(P7))/LOG(2)))) -> -0.3418871067 | T7: =N7 -> 111 | U7: =COUNTIF(L7:L19,T7) -> 3 | V7: =U7/(W4-U10) -> 0.2727272727 | W7: =IF(V7=0,0,(V7*((LOG(V7))/LOG(2)))) -> -0.5112188503 | Y7: =N7 -> 111 | Z7: =COUNTIF(L20:L31,Y7) -> 0 | AA7: =Z7/(AB4-Z10) -> 0 | AB7: =IF(AA7=0,0,(AA7*((LOG(AA7))/LOG(2)))) -> 0 | AD7: =N7 -> 111 | AE7: =COUNTIF(L32:L44,AD7) -> 1 | AF7: =AE7/(AG4-AE10) -> 0.09090909091 | AG7: =IF(AF7=0,0,(AF7*((LOG(AF7))/LOG(2)))) -> -0.3144937835 | AI7: =N7 -> 111 | AJ7: =COUNTIF(L45:L57,AI7) -> 3 | AK7: =AJ7/(AL4-AJ10) -> 0.3 | AL7: =IF(AK7=0,0,(AK7*((LOG(AK7))/LOG(2)))) -> -0.5210896782 | AN7: =N7 -> 111 | AO7: =COUNTIF(L58:L69,AN7) -> 1 | AP7: =AO7/(AQ4-AO10) -> 0.125 | AQ7: =IF(AP7=0,0,(AP7*((LOG(AP7))/LOG(2)))) -> -0.375 | AS7: =N7 -> 111 | AT7: =COUNTIF(L70:L82,AS7) -> 0 | AU7: =AT7/(AV4-AT10) -> 0 | AV7: =IF(AU7=0,0,(AU7*((LOG(AU7))/LOG(2)))) -> 0
A8: 11 | B8: 189 | C8: 11 | D8: 193 | E8: 21 | F8: 209 | K8: 0 | L8: 112 | N8: 112 | O8: =COUNTIF($L$7:$L$500,N8) -> 40 | P8: =O8/$Q$4 -> 0.5263157895 | Q8: =IF(P8=0,0,(P8*((LOG(P8))/LOG(2)))) -> -0.487368115 | T8: =N8 -> 112 | U8: =COUNTIF(L7:L19,T8) -> 6 | V8: =U8/(W4-U10) -> 0.5454545455 | W8: =IF(V8=0,0,(V8*((LOG(V8))/LOG(2)))) -> -0.4769831552 | Y8: =N8 -> 112 | Z8: =COUNTIF(L20:L31,Y8) -> 7 | AA8: =Z8/(AB4-Z10) -> 0.6363636364 | AB8: =IF(AA8=0,0,(AA8*((LOG(AA8))/LOG(2)))) -> -0.4149578978 | AD8: =N8 -> 112 | AE8: =COUNTIF(L32:L44,AD8) -> 7 | AF8: =AE8/(AG4-AE10) -> 0.6363636364 | AG8: =IF(AF8=0,0,(AF8*((LOG(AF8))/LOG(2)))) -> -0.4149578978 | AI8: =N8 -> 112 | AJ8: =COUNTIF(L45:L57,AI8) -> 6 | AK8: =AJ8/(AL4-AJ10) -> 0.6 | AL8: =IF(AK8=0,0,(AK8*((LOG(AK8))/LOG(2)))) -> -0.4421793565 | AN8: =N8 -> 112 | AO8: =COUNTIF(L58:L69,AN8) -> 7 | AP8: =AO8/(AQ4-AO10) -> 0.875 | AQ8: =IF(AP8=0,0,(AP8*((LOG(AP8))/LOG(2)))) -> -0.1685644432 | AS8: =N8 -> 112 | AT8: =COUNTIF(L70:L82,AS8) -> 7 | AU8: =AT8/(AV4-AT10) -> 1 | AV8: =IF(AU8=0,0,(AU8*((LOG(AU8))/LOG(2)))) -> 0
A9: 11 | B9: 326 | C9: 11 | D9: 338 | E9: 21 | F9: 382 | K9: 0 | L9: 112 | N9: 121 | O9: =COUNTIF($L$7:$L$500,N9) -> 5 | P9: =O9/$Q$4 -> 0.06578947368 | Q9: =IF(P9=0,0,(P9*((LOG(P9))/LOG(2)))) -> -0.2582894354 | T9: =N9 -> 121 | U9: =COUNTIF(L7:L19,T9) -> 1 | V9: =U9/(W4-U10) -> 0.09090909091 | W9: =IF(V9=0,0,(V9*((LOG(V9))/LOG(2)))) -> -0.3144937835 | Y9: =N9 -> 121 | Z9: =COUNTIF(L20:L31,Y9) -> 3 | AA9: =Z9/(AB4-Z10) -> 0.2727272727 | AB9: =IF(AA9=0,0,(AA9*((LOG(AA9))/LOG(2)))) -> -0.5112188503 | AD9: =N9 -> 121 | AE9: =COUNTIF(L32:L44,AD9) -> 1 | AF9: =AE9/(AG4-AE10) -> 0.09090909091 | AG9: =IF(AF9=0,0,(AF9*((LOG(AF9))/LOG(2)))) -> -0.3144937835 | AI9: =N9 -> 121 | AJ9: =COUNTIF(L45:L57,AI9) -> 0 | AK9: =AJ9/(AL4-AJ10) -> 0 | AL9: =IF(AK9=0,0,(AK9*((LOG(AK9))/LOG(2)))) -> 0 | AN9: =N9 -> 121 | AO9: =COUNTIF(L58:L69,AN9) -> 0 | AP9: =AO9/(AQ4-AO10) -> 0 | AQ9: =IF(AP9=0,0,(AP9*((LOG(AP9))/LOG(2)))) -> 0 | AS9: =N9 -> 121 | AT9: =COUNTIF(L70:L82,AS9) -> 0 | AU9: =AT9/(AV4-AT10) -> 0 | AV9: =IF(AU9=0,0,(AU9*((LOG(AU9))/LOG(2)))) -> 0
A10: 11 | B10: 472 | C10: 11 | D10: 476 | E10: 12 | F10: 507 | K10: 0 | L10: 111 | N10: 122 | O10: =COUNTIF($L$7:$L$500,N10) -> 18 | P10: =O10/$Q$4 -> 0.2368421053 | Q10: =IF(P10=0,0,(P10*((LOG(P10))/LOG(2)))) -> -0.4921584897 | T10: =N10 -> 122 | U10: =COUNTIF(L7:L19,T10) -> 2 | Y10: =N10 -> 122 | Z10: =COUNTIF(L20:L31,Y10) -> 1 | AD10: =N10 -> 122 | AE10: =COUNTIF(L32:L44,AD10) -> 2 | AI10: =N10 -> 122 | AJ10: =COUNTIF(L45:L57,AI10) -> 3 | AN10: =N10 -> 122 | AO10: =COUNTIF(L58:L69,AN10) -> 4 | AS10: =N10 -> 122 | AT10: =COUNTIF(L70:L82,AS10) -> 6
A11: 11 | B11: 608 | C11: 11 | D11: 612 | E11: 21 | F11: 623 | K11: 0 | L11: 112 | N11: 211 | O11: =COUNTIF($L$7:$L$500,N11) -> 0 | P11: =O11/$Q$4 -> 0 | Q11: =IF(P11=0,0,(P11*((LOG(P11))/LOG(2)))) -> 0 | T11: =N11 -> 211 | U11: =COUNTIF(L7:L19,T11) -> 0 | V11: =U11/(W4-U10) -> 0 | W11: =IF(V11=0,0,(V11*((LOG(V11))/LOG(2)))) -> 0 | Y11: =N11 -> 211 | Z11: =COUNTIF(L20:L31,Y11) -> 0 | AA11: =Z11/(AB4-Z10) -> 0 | AB11: =IF(AA11=0,0,(AA11*((LOG(AA11))/LOG(2)))) -> 0 | AD11: =N11 -> 211 | AE11: =COUNTIF(L32:L44,AD11) -> 0 | AF11: =AE11/(AG4-AE10) -> 0 | AG11: =IF(AF11=0,0,(AF11*((LOG(AF11))/LOG(2)))) -> 0 | AI11: =N11 -> 211 | AJ11: =COUNTIF(L45:L57,AI11) -> 0 | AK11: =AJ11/(AL4-AJ10) -> 0 | AL11: =IF(AK11=0,0,(AK11*((LOG(AK11))/LOG(2)))) -> 0 | AN11: =N11 -> 211 | AO11: =COUNTIF(L58:L69,AN11) -> 0 | AP11: =AO11/(AQ4-AO10) -> 0 | AQ11: =IF(AP11=0,0,(AP11*((LOG(AP11))/LOG(2)))) -> 0 | AS11: =N11 -> 211 | AT11: =COUNTIF(L70:L82,AS11) -> 0 | AU11: =AT11/(AV4-AT10) -> 0 | AV11: =IF(AU11=0,0,(AU11*((LOG(AU11))/LOG(2)))) -> 0
A12: 11 | B12: 712 | C12: 11 | D12: 716 | E12: 21 | F12: 725 | K12: 0 | L12: 112 | N12: 212 | O12: =COUNTIF($L$7:$L$500,N12) -> 0 | P12: =O12/$Q$4 -> 0 | Q12: =IF(P12=0,0,(P12*((LOG(P12))/LOG(2)))) -> 0 | T12: =N12 -> 212 | U12: =COUNTIF(L7:L19,T12) -> 0 | V12: =U12/(W4-U10) -> 0 | W12: =IF(V12=0,0,(V12*((LOG(V12))/LOG(2)))) -> 0 | Y12: =N12 -> 212 | Z12: =COUNTIF(L20:L31,Y12) -> 0 | AA12: =Z12/(AB4-Z10) -> 0 | AB12: =IF(AA12=0,0,(AA12*((LOG(AA12))/LOG(2)))) -> 0 | AD12: =N12 -> 212 | AE12: =COUNTIF(L32:L44,AD12) -> 0 | AF12: =AE12/(AG4-AE10) -> 0 | AG12: =IF(AF12=0,0,(AF12*((LOG(AF12))/LOG(2)))) -> 0 | AI12: =N12 -> 212 | AJ12: =COUNTIF(L45:L57,AI12) -> 0 | AK12: =AJ12/(AL4-AJ10) -> 0 | AL12: =IF(AK12=0,0,(AK12*((LOG(AK12))/LOG(2)))) -> 0 | AN12: =N12 -> 212 | AO12: =COUNTIF(L58:L69,AN12) -> 0 | AP12: =AO12/(AQ4-AO10) -> 0 | AQ12: =IF(AP12=0,0,(AP12*((LOG(AP12))/LOG(2)))) -> 0 | AS12: =N12 -> 212 | AT12: =COUNTIF(L70:L82,AS12) -> 0 | AU12: =AT12/(AV4-AT10) -> 0 | AV12: =IF(AU12=0,0,(AU12*((LOG(AU12))/LOG(2)))) -> 0
A13: 11 | B13: 816 | C13: 11 | D13: 821 | E13: 12 | F13: 831 | K13: 0 | L13: 111 | N13: 221 | O13: =COUNTIF($L$7:$L$500,N13) -> 1 | P13: =O13/$Q$4 -> 0.01315789474 | Q13: =IF(P13=0,0,(P13*((LOG(P13))/LOG(2)))) -> -0.08220957255 | T13: =N13 -> 221 | U13: =COUNTIF(L7:L19,T13) -> 0 | V13: =U13/(W4-U10) -> 0 | W13: =IF(V13=0,0,(V13*((LOG(V13))/LOG(2)))) -> 0 | Y13: =N13 -> 221 | Z13: =COUNTIF(L20:L31,Y13) -> 1 | AA13: =Z13/(AB4-Z10) -> 0.09090909091 | AB13: =IF(AA13=0,0,(AA13*((LOG(AA13))/LOG(2)))) -> -0.3144937835 | AD13: =N13 -> 221 | AE13: =COUNTIF(L32:L44,AD13) -> 0 | AF13: =AE13/(AG4-AE10) -> 0 | AG13: =IF(AF13=0,0,(AF13*((LOG(AF13))/LOG(2)))) -> 0 | AI13: =N13 -> 221 | AJ13: =COUNTIF(L45:L57,AI13) -> 0 | AK13: =AJ13/(AL4-AJ10) -> 0 | AL13: =IF(AK13=0,0,(AK13*((LOG(AK13))/LOG(2)))) -> 0 | AN13: =N13 -> 221 | AO13: =COUNTIF(L58:L69,AN13) -> 0 | AP13: =AO13/(AQ4-AO10) -> 0 | AQ13: =IF(AP13=0,0,(AP13*((LOG(AP13))/LOG(2)))) -> 0 | AS13: =N13 -> 221 | AT13: =COUNTIF(L70:L82,AS13) -> 0 | AU13: =AT13/(AV4-AT10) -> 0 | AV13: =IF(AU13=0,0,(AU13*((LOG(AU13))/LOG(2)))) -> 0
A14: 22 | B14: 950 | C14: 24 | D14: 986 | E14: 23 | F14: 1013 | K14: 0 | L14: 222 | N14: 222 | O14: =COUNTIF($L$7:$L$500,N14) -> 4 | P14: =O14/$Q$4 -> 0.05263157895 | Q14: =IF(P14=0,0,(P14*((LOG(P14))/LOG(2)))) -> -0.2235751323 | T14: =N14 -> 222 | U14: =COUNTIF(L7:L19,T14) -> 1 | V14: =U14/(W4-U10) -> 0.09090909091 | W14: =IF(V14=0,0,(V14*((LOG(V14))/LOG(2)))) -> -0.3144937835 | Y14: =N14 -> 222 | Z14: =COUNTIF(L20:L31,Y14) -> 0 | AA14: =Z14/(AB4-Z10) -> 0 | AB14: =IF(AA14=0,0,(AA14*((LOG(AA14))/LOG(2)))) -> 0 | AD14: =N14 -> 222 | AE14: =COUNTIF(L32:L44,AD14) -> 2 | AF14: =AE14/(AG4-AE10) -> 0.1818181818 | AG14: =IF(AF14=0,0,(AF14*((LOG(AF14))/LOG(2)))) -> -0.4471693852 | AI14: =N14 -> 222 | AJ14: =COUNTIF(L45:L57,AI14) -> 1 | AK14: =AJ14/(AL4-AJ10) -> 0.1 | AL14: =IF(AK14=0,0,(AK14*((LOG(AK14))/LOG(2)))) -> -0.3321928095 | AN14: =N14 -> 222 | AO14: =COUNTIF(L58:L69,AN14) -> 0 | AP14: =AO14/(AQ4-AO10) -> 0 | AQ14: =IF(AP14=0,0,(AP14*((LOG(AP14))/LOG(2)))) -> 0 | AS14: =N14 -> 222 | AT14: =COUNTIF(L70:L82,AS14) -> 0 | AU14: =AT14/(AV4-AT10) -> 0 | AV14: =IF(AU14=0,0,(AU14*((LOG(AU14))/LOG(2)))) -> 0
A15: 11 | B15: 1113 | C15: 11 | D15: 1118 | E15: 21 | F15: 1127 | K15: 0 | L15: 112 | P15: =SUM(P7:P14) -> 1 | Q15: =-SUM(Q7:Q14) -> 1.885487852 | V15: =SUM(V7:V14) -> 1 | W15: =-SUM(W7:W14) -> 1.617189573 | AA15: =SUM(AA7:AA14) -> 1 | AB15: =-SUM(AB7:AB14) -> 1.240670532 | AF15: =SUM(AF7:AF14) -> 1 | AG15: =-SUM(AG7:AG14) -> 1.49111485 | AK15: =SUM(AK7:AK14) -> 1 | AL15: =-SUM(AL7:AL14) -> 1.295461844 | AP15: =SUM(AP7:AP14) -> 1 | AQ15: =-SUM(AQ7:AQ14) -> 0.5435644432 | AU15: =SUM(AU7:AU14) -> 1 | AV15: =-SUM(AV7:AV14) -> 0
A16: 11 | B16: 1217 | C16: 11 | D16: 1222 | E16: 12 | F16: 1227 | K16: 0 | L16: 111 | P16: U= | Q16: =Q15/(LOG(Q4)/LOG(2)) -> 0.3017781252 | V16: U1= | W16: =W15/(LOG(W4)/LOG(2)) -> 0.4370263255 | AA16: U2= | AB16: =AB15/(LOG(AB4)/LOG(2)) -> 0.3460762927 | AF16: U3= | AG16: =AG15/(LOG(AG4)/LOG(2)) -> 0.4029561251 | AK16: U4= | AL16: =AL15/(LOG(AL4)/LOG(2)) -> 0.3500832179 | AP16: U5= | AQ16: =AQ15/(LOG(AQ4)/LOG(2)) -> 0.1516234669 | AU16: U6= | AV16: =AV15/(LOG(AV4)/LOG(2)) -> 0
A17: 11 | B17: 1329 | C17: 22 | D17: 1341 | E17: 23 | F17: 1377 | K17: 0 | L17: 122
A18: 11 | B18: 1477 | C18: 22 | D18: 1492 | E18: 23 | F18: 1511 | K18: 0 | L18: 122
A19: 11 | B19: 1611 | C19: 11 | D19: 1615 | E19: 21 | F19: 1627 | K19: 0 | L19: 112 | N19: Total Target Seq
A20: 11 | B20: 1729 | C20: 11 | D20: 1733 | E20: 21 | F20: 1753 | K20: 0 | L20: 112 | N20: =COUNTIF(L7:L82,G3) -> 18 | P20: 13 | Q20: 12 | R20: 13 | S20: 13 | T20: 12 | U20: 13
A21: 11 | B21: 1879 | C21: 11 | D21: 1885 | E21: 21 | F21: 1965 | K21: 0 | L21: 112 | P21: % of reinforcement given in 6 equal intervals based on number of trials
A22: 11 | B22: 2055 | C22: 22 | D22: 2063 | E22: 14 | F22: 2143 | K22: 0 | L22: 121 | P22: %_1 | Q22: %_2 | R22: %_3 | S22: %_4 | T22: %_5 | U22: %_6
A23: 11 | B23: 2240 | C23: 11 | D23: 2245 | E23: 21 | F23: 2254 | K23: 0 | L23: 112 | O23: target sequence | P23: =$G$3 -> 122 | Q23: =$G$3 -> 122 | R23: =$G$3 -> 122 | S23: =$G$3 -> 122 | T23: =$G$3 -> 122 | U23: =$G$3 -> 122
A24: 11 | B24: 2343 | C24: 11 | D24: 2348 | E24: 21 | F24: 2364 | K24: 0 | L24: 112 | O24: total reinforcement | P24: =U10 -> 2 | Q24: =Z10 -> 1 | R24: =AE10 -> 2 | S24: =AJ10 -> 3 | T24: =AO10 -> 4 | U24: =AT10 -> 6
A25: 11 | B25: 2452 | C25: 11 | D25: 2457 | E25: 21 | F25: 2469 | K25: 0 | L25: 112 | O25: % target
A26: 11 | B26: 2559 | C26: 22 | D26: 2575 | E26: 14 | F26: 2598 | K26: 0 | L26: 121 | O26: CCRF
A27: 11 | B27: 2696 | C27: 11 | D27: 2710 | E27: 21 | F27: 2719 | K27: 0 | L27: 112 | O27: % CCRf
A28: 22 | B28: 2830 | C28: 24 | D28: 2841 | E28: 14 | F28: 2858 | K28: 0 | L28: 221 | O28: average response rate | P28: =F19/P20 -> 125.1538462 | Q28: =(F31-F19)/Q20 -> 135.4166667 | R28: =(F44-F31)/R20 -> 120.4615385 | S28: =(F57-F44)/S20 -> 113 | T28: =(F69-F57)/T20 -> 119.6666667 | U28: =(F82-F69)/U20 -> 121
A29: 11 | B29: 2955 | C29: 11 | D29: 2959 | E29: 21 | F29: 2974 | K29: 0 | L29: 112
A30: 11 | B30: 3073 | C30: 22 | D30: 3082 | E30: 14 | F30: 3099 | K30: 0 | L30: 121
A31: 11 | B31: 3199 | C31: 22 | D31: 3229 | E31: 23 | F31: 3252 | K31: 0 | L31: 122
A32: 11 | B32: 3352 | C32: 22 | D32: 3370 | E32: 14 | F32: 3386 | K32: 0 | L32: 121
A33: 11 | B33: 3487 | C33: 11 | D33: 3491 | E33: 21 | F33: 3499 | K33: 0 | L33: 112
A34: 11 | B34: 3589 | C34: 22 | D34: 3601 | E34: 23 | F34: 3619 | K34: 0 | L34: 122
A35: 11 | B35: 3720 | C35: 11 | D35: 3724 | E35: 21 | F35: 3743 | K35: 0 | L35: 112
A36: 22 | B36: 3873 | C36: 24 | D36: 3883 | E36: 23 | F36: 3896 | K36: 0 | L36: 222
A37: 11 | B37: 3996 | C37: 11 | D37: 4000 | E37: 21 | F37: 4009 | K37: 0 | L37: 112
A38: 22 | B38: 4107 | C38: 24 | D38: 4116 | E38: 23 | F38: 4124 | K38: 0 | L38: 222
A39: 11 | B39: 4221 | C39: 11 | D39: 4225 | E39: 21 | F39: 4232 | K39: 0 | L39: 112
A40: 11 | B40: 4322 | C40: 11 | D40: 4327 | E40: 21 | F40: 4363 | K40: 0 | L40: 112
A41: 11 | B41: 4451 | C41: 22 | D41: 4463 | E41: 23 | F41: 4482 | K41: 0 | L41: 122
A42: 11 | B42: 4583 | C42: 11 | D42: 4587 | E42: 12 | F42: 4593 | K42: 0 | L42: 111
A43: 11 | B43: 4692 | C43: 11 | D43: 4696 | E43: 21 | F43: 4703 | K43: 0 | L43: 112
A44: 11 | B44: 4803 | C44: 11 | D44: 4809 | E44: 21 | F44: 4818 | K44: 0 | L44: 112
A45: 11 | B45: 4906 | C45: 22 | D45: 4923 | E45: 23 | F45: 4941 | K45: 0 | L45: 122
A46: 11 | B46: 5039 | C46: 11 | D46: 5044 | E46: 21 | F46: 5052 | K46: 0 | L46: 112
A47: 11 | B47: 5140 | C47: 11 | D47: 5145 | E47: 12 | F47: 5149 | K47: 0 | L47: 111
A48: 11 | B48: 5245 | C48: 11 | D48: 5249 | E48: 21 | F48: 5257 | K48: 0 | L48: 112
A49: 11 | B49: 5345 | C49: 22 | D49: 5357 | E49: 23 | F49: 5372 | K49: 0 | L49: 122
A50: 11 | B50: 5470 | C50: 11 | D50: 5475 | E50: 12 | F50: 5479 | K50: 0 | L50: 111
A51: 11 | B51: 5576 | C51: 11 | D51: 5580 | E51: 21 | F51: 5587 | K51: 0 | L51: 112
A52: 11 | B52: 5675 | C52: 11 | D52: 5690 | E52: 21 | F52: 5698 | K52: 0 | L52: 112
A53: 11 | B53: 5786 | C53: 22 | D53: 5798 | E53: 23 | F53: 5812 | K53: 0 | L53: 122
A54: 22 | B54: 5938 | C54: 24 | D54: 5952 | E54: 23 | F54: 5964 | K54: 0 | L54: 222
A55: 11 | B55: 6062 | C55: 11 | D55: 6066 | E55: 12 | F55: 6070 | K55: 0 | L55: 111
A56: 11 | B56: 6171 | C56: 11 | D56: 6175 | E56: 21 | F56: 6184 | K56: 0 | L56: 112
A57: 11 | B57: 6273 | C57: 11 | D57: 6279 | E57: 21 | F57: 6287 | K57: 0 | L57: 112
A58: 11 | B58: 6375 | C58: 11 | D58: 6380 | E58: 21 | F58: 6389 | K58: 0 | L58: 112
A59: 11 | B59: 6476 | C59: 11 | D59: 6480 | E59: 21 | F59: 6542 | K59: 0 | L59: 112
A60: 11 | B60: 6629 | C60: 22 | D60: 6649 | E60: 23 | F60: 6669 | K60: 0 | L60: 122
A61: 11 | B61: 6773 | C61: 11 | D61: 6778 | E61: 21 | F61: 6794 | K61: 0 | L61: 112
A62: 11 | B62: 6881 | C62: 11 | D62: 6886 | E62: 21 | F62: 6900 | K62: 0 | L62: 112
A63: 11 | B63: 6988 | C63: 11 | D63: 6993 | E63: 21 | F63: 7002 | K63: 0 | L63: 112
A64: 11 | B64: 7091 | C64: 22 | D64: 7103 | E64: 23 | F64: 7121 | K64: 0 | L64: 122
A65: 11 | B65: 7218 | C65: 11 | D65: 7223 | E65: 12 | F65: 7227 | K65: 0 | L65: 111
A66: 11 | B66: 7324 | C66: 22 | D66: 7334 | E66: 23 | F66: 7348 | K66: 0 | L66: 122
A67: 11 | B67: 7444 | C67: 11 | D67: 7449 | E67: 21 | F67: 7457 | K67: 0 | L67: 112
A68: 11 | B68: 7572 | C68: 22 | D68: 7584 | E68: 23 | F68: 7602 | K68: 0 | L68: 122
A69: 11 | B69: 7701 | C69: 11 | D69: 7708 | E69: 21 | F69: 7723 | K69: 0 | L69: 112
A70: 11 | B70: 7818 | C70: 22 | D70: 7827 | E70: 23 | F70: 7843 | K70: 0 | L70: 122
A71: 11 | B71: 7946 | C71: 22 | D71: 7957 | E71: 23 | F71: 7983 | K71: 0 | L71: 122
A72: 11 | B72: 8080 | C72: 22 | D72: 8106 | E72: 23 | F72: 8121 | K72: 0 | L72: 122
A73: 11 | B73: 8221 | C73: 11 | D73: 8225 | E73: 21 | F73: 8233 | K73: 0 | L73: 112
A74: 11 | B74: 8331 | C74: 11 | D74: 8335 | E74: 21 | F74: 8343 | K74: 0 | L74: 112
A75: 11 | B75: 8435 | C75: 22 | D75: 8453 | E75: 23 | F75: 8461 | K75: 0 | L75: 122
A76: 11 | B76: 8561 | C76: 22 | D76: 8581 | E76: 23 | F76: 8595 | K76: 0 | L76: 122
A77: 11 | B77: 8692 | C77: 11 | D77: 8696 | E77: 21 | F77: 8704 | K77: 0 | L77: 112
A78: 11 | B78: 8791 | C78: 11 | D78: 8795 | E78: 21 | F78: 8803 | K78: 0 | L78: 112
A79: 11 | B79: 8891 | C79: 11 | D79: 8895 | E79: 21 | F79: 8904 | K79: 0 | L79: 112
A80: 11 | B80: 8992 | C80: 22 | D80: 9034 | E80: 23 | F80: 9053 | K80: 0 | L80: 122
A81: 11 | B81: 9183 | C81: 11 | D81: 9187 | E81: 21 | F81: 9197 | K81: 0 | L81: 112
A82: 11 | B82: 9284 | C82: 11 | D82: 9289 | E82: 21 | F82: 9296 | K82: 1 | L82: 112

Sheet !M522A20.096
A1: Report for:!M522A20.096
A2: Date: | B2: <date>
A3: Hen: | B3: <hen> | F3: Correct Sequence | G3: =Start!J2 -> 122 | P3: Total Sequences in Data | Q3: =4994-COUNTBLANK(L7:L5000) -> 68 | V3: Total Sequences in Block Data | W3: =COUNTA(L7:L17) -> 11 | AA3: Total Sequences in Block Data | AB3: =COUNTA(L18:L29) -> 12 | AF3: Total Sequences in Block Data | AG3: =COUNTA(L30:L40) -> 11 | AK3: Total Sequences in Block Data | AL3: =COUNTA(L41:L51) -> 11 | AP3: Total Sequences in Block Data | AQ3: =COUNTA(L52:L63) -> 12 | AU3: Total Sequences in Block Data | AV3: =COUNTA(L64:L74) -> 11
P4: Total Sequences in Summary | Q4: =SUM(O7:O14) -> 68 | V4: Total Sequences in Block Summary | W4: =SUM(U7:U14) -> 11 | AA4: Total Sequences in Block Summary | AB4: =SUM(Z7:Z14) -> 12 | AF4: Total Sequences in Block Summary | AG4: =SUM(AE7:AE14) -> 11 | AK4: Total Sequences in Block Summary | AL4: =SUM(AJ7:AJ14) -> 11 | AP4: Total Sequences in Block Summary | AQ4: =SUM(AO7:AO14) -> 12 | AU4: Total Sequences in Block Summary | AV4: =SUM(AT7:AT14) -> 11
T5: Block 1 | Y5: Block 2 | AD5: Block 3 | AI5: Block 4 | AN5: Block 5 | AS5: Block 6
A6: Sequence Component 1 | B6: Time 1 | C6: Sequence Component 2 | D6: Time 2 | E6: Sequence Component 3 | F6: Time 3 | G6: Sequence Component 4 | H6: Time 4 | I6: Sequence Component 5 | J6: Time 5 | K6: Correct? 0=No 1=Yes | L6: Sequence | N6: Frequency | P6: Relative Frequency | Q6: Variability | T6: Frequency | V6: Relative Frequency | W6: Variability | Y6: Frequency | AA6: Relative Frequency | AB6: Variability | AD6: Frequency | AF6: Relative Frequency | AG6: Variability | AI6: Frequency | AK6: Relative Frequency | AL6: Variability | AN6: Frequency | AP6: Relative Frequency | AQ6: Variability | AS6: Frequency | AU6: Relative Frequency | AV6: Variability
A7: 11 | B7: 11 | C7: 22 | D7: 19 | E7: 14 | F7: 44 | K7: 0 | L7: 121 | N7: 111 | O7: =COUNTIF($L$7:$L$500,N7) -> 10 | P7: =O7/$Q$4 -> 0.1470588235 | Q7: =IF(P7=0,0,(P7*((LOG(P7))/LOG(2)))) -> -0.4066962862 | T7: =N7 -> 111 | U7: =COUNTIF(L7:L17,T7) -> 3 | V7: =U7/(W4-U10) -> 0.3 | W7: =IF(V7=0,0,(V7*((LOG(V7))/LOG(2)))) -> -0.5210896782 | Y7: =N7 -> 111 | Z7: =COUNTIF(L18:L29,Y7) -> 0 | AA7: =Z7/(AB4-Z10) -> 0 | AB7: =IF(AA7=0,0,(AA7*((LOG(AA7))/LOG(2)))) -> 0 | AD7: =N7 -> 111 | AE7: =COUNTIF(L30:L40,AD7) -> 0 | AF7: =AE7/(AG4-AE10) -> 0 | AG7: =IF(AF7=0,0,(AF7*((LOG(AF7))/LOG(2)))) -> 0 | AI7: =N7 -> 111 | AJ7: =COUNTIF(L41:L51,AI7) -> 1 | AK7: =AJ7/(AL4-AJ10) -> 0.1111111111 | AL7: =IF(AK7=0,0,(AK7*((LOG(AK7))/LOG(2)))) -> -0.352213889 | AN7: =N7 -> 111 | AO7: =COUNTIF(L52:L63,AN7) -> 4 | AP7: =AO7/(AQ4-AO10) -> 0.4 | AQ7: =IF(AP7=0,0,(AP7*((LOG(AP7))/LOG(2)))) -> -0.528771238 | AS7: =N7 -> 111 | AT7: =COUNTIF(L64:L74,AS7) -> 2 | AU7: =AT7/(AV4-AT10) -> 0.2 | AV7: =IF(AU7=0,0,(AU7*((LOG(AU7))/LOG(2)))) -> -0.464385619
A8: 11 | B8: 146 | C8: 11 | D8: 151 | E8: 21 | F8: 173 | K8: 0 | L8: 112 | N8: 112 | O8: =COUNTIF($L$7:$L$500,N8) -> 40 | P8: =O8/$Q$4 -> 0.5882352941 | Q8: =IF(P8=0,0,(P8*((LOG(P8))/LOG(2)))) -> -0.4503145567 | T8: =N8 -> 112 | U8: =COUNTIF(L7:L17,T8) -> 4 | V8: =U8/(W4-U10) -> 0.4 | W8: =IF(V8=0,0,(V8*((LOG(V8))/LOG(2)))) -> -0.528771238 | Y8: =N8 -> 112 | Z8: =COUNTIF(L18:L29,Y8) -> 8 | AA8: =Z8/(AB4-Z10) -> 1 | AB8: =IF(AA8=0,0,(AA8*((LOG(AA8))/LOG(2)))) -> 0 | AD8: =N8 -> 112 | AE8: =COUNTIF(L30:L40,AD8) -> 7 | AF8: =AE8/(AG4-AE10) -> 0.875 | AG8: =IF(AF8=0,0,(AF8*((LOG(AF8))/LOG(2)))) -> -0.1685644432 | AI8: =N8 -> 112 | AJ8: =COUNTIF(L41:L51,AI8) -> 8 | AK8: =AJ8/(AL4-AJ10) -> 0.8888888889 | AL8: =IF(AK8=0,0,(AK8*((LOG(AK8))/LOG(2)))) -> -0.1510444457 | AN8: =N8 -> 112 | AO8: =COUNTIF(L52:L63,AN8) -> 6 | AP8: =AO8/(AQ4-AO10) -> 0.6 | AQ8: =IF(AP8=0,0,(AP8*((LOG(AP8))/LOG(2)))) -> -0.4421793565 | AS8: =N8 -> 112 | AT8: =COUNTIF(L64:L74,AS8) -> 7 | AU8: =AT8/(AV4-AT10) -> 0.7 | AV8: =IF(AU8=0,0,(AU8*((LOG(AU8))/LOG(2)))) -> -0.360201221
A9: 11 | B9: 266 | C9: 22 | D9: 273 | E9: 14 | F9: 293 | K9: 0 | L9: 121 | N9: 121 | O9: =COUNTIF($L$7:$L$500,N9) -> 3 | P9: =O9/$Q$4 -> 0.04411764706 | Q9: =IF(P9=0,0,(P9*((LOG(P9))/LOG(2)))) -> -0.1986397209 | T9: =N9 -> 121 | U9: =COUNTIF(L7:L17,T9) -> 2 | V9: =U9/(W4-U10) -> 0.2 | W9: =IF(V9=0,0,(V9*((LOG(V9))/LOG(2)))) -> -0.464385619 | Y9: =N9 -> 121 | Z9: =COUNTIF(L18:L29,Y9) -> 0 | AA9: =Z9/(AB4-Z10) -> 0 | AB9: =IF(AA9=0,0,(AA9*((LOG(AA9))/LOG(2)))) -> 0 | AD9: =N9 -> 121 | AE9: =COUNTIF(L30:L40,AD9) -> 0 | AF9: =AE9/(AG4-AE10) -> 0 | AG9: =IF(AF9=0,0,(AF9*((LOG(AF9))/LOG(2)))) -> 0 | AI9: =N9 -> 121 | AJ9: =COUNTIF(L41:L51,AI9) -> 0 | AK9: =AJ9/(AL4-AJ10) -> 0 | AL9: =IF(AK9=0,0,(AK9*((LOG(AK9))/LOG(2)))) -> 0 | AN9: =N9 -> 121 | AO9: =COUNTIF(L52:L63,AN9) -> 0 | AP9: =AO9/(AQ4-AO10) -> 0 | AQ9: =IF(AP9=0,0,(AP9*((LOG(AP9))/LOG(2)))) -> 0 | AS9: =N9 -> 121 | AT9: =COUNTIF(L64:L74,AS9) -> 1 | AU9: =AT9/(AV4-AT10) -> 0.1 | AV9: =IF(AU9=0,0,(AU9*((LOG(AU9))/LOG(2)))) -> -0.3321928095
A10: 11 | B10: 393 | C10: 22 | D10: 405 | E10: 23 | F10: 425 | K10: 0 | L10: 122 | N10: 122 | O10: =COUNTIF($L$7:$L$500,N10) -> 13 | P10: =O10/$Q$4 -> 0.1911764706 | Q10: =IF(P10=0,0,(P10*((LOG(P10))/LOG(2)))) -> -0.4563426559 | T10: =N10 -> 122 | U10: =COUNTIF(L7:L17,T10) -> 1 | Y10: =N10 -> 122 | Z10: =COUNTIF(L18:L29,Y10) -> 4 | AD10: =N10 -> 122 | AE10: =COUNTIF(L30:L40,AD10) -> 3 | AI10: =N10 -> 122 | AJ10: =COUNTIF(L41:L51,AI10) -> 2 | AN10: =N10 -> 122 | AO10: =COUNTIF(L52:L63,AN10) -> 2 | AS10: =N10 -> 122 | AT10: =COUNTIF(L64:L74,AS10) -> 1
A11: 11 | B11: 522 | C11: 11 | D11: 527 | E11: 12 | F11: 531 | K11: 0 | L11: 111 | N11: 211 | O11: =COUNTIF($L$7:$L$500,N11) -> 1 | P11: =O11/$Q$4 -> 0.01470588235 | Q11: =IF(P11=0,0,(P11*((LOG(P11))/LOG(2)))) -> -0.08952151237 | T11: =N11 -> 211 | U11: =COUNTIF(L7:L17,T11) -> 1 | V11: =U11/(W4-U10) -> 0.1 | W11: =IF(V11=0,0,(V11*((LOG(V11))/LOG(2)))) -> -0.3321928095 | Y11: =N11 -> 211 | Z11: =COUNTIF(L18:L29,Y11) -> 0 | AA11: =Z11/(AB4-Z10) -> 0 | AB11: =IF(AA11=0,0,(AA11*((LOG(AA11))/LOG(2)))) -> 0 | AD11: =N11 -> 211 | AE11: =COUNTIF(L30:L40,AD11) -> 0 | AF11: =AE11/(AG4-AE10) -> 0 | AG11: =IF(AF11=0,0,(AF11*((LOG(AF11))/LOG(2)))) -> 0 | AI11: =N11 -> 211 | AJ11: =COUNTIF(L41:L51,AI11) -> 0 | AK11: =AJ11/(AL4-AJ10) -> 0 | AL11: =IF(AK11=0,0,(AK11*((LOG(AK11))/LOG(2)))) -> 0 | AN11: =N11 -> 211 | AO11: =COUNTIF(L52:L63,AN11) -> 0 | AP11: =AO11/(AQ4-AO10) -> 0 | AQ11: =IF(AP11=0,0,(AP11*((LOG(AP11))/LOG(2)))) -> 0 | AS11: =N11 -> 211 | AT11: =COUNTIF(L64:L74,AS11) -> 0 | AU11: =AT11/(AV4-AT10) -> 0 | AV11: =IF(AU11=0,0,(AU11*((LOG(AU11))/LOG(2)))) -> 0
A12: 11 | B12: 628 | C12: 11 | D12: 632 | E12: 12 | F12: 637 | K12: 0 | L12: 111 | N12: 212 | O12: =COUNTIF($L$7:$L$500,N12) -> 0 | P12: =O12/$Q$4 -> 0 | Q12: =IF(P12=0,0,(P12*((LOG(P12))/LOG(2)))) -> 0 | T12: =N12 -> 212 | U12: =COUNTIF(L7:L17,T12) -> 0 | V12: =U12/(W4-U10) -> 0 | W12: =IF(V12=0,0,(V12*((LOG(V12))/LOG(2)))) -> 0 | Y12: =N12 -> 212 | Z12: =COUNTIF(L18:L29,Y12) -> 0 | AA12: =Z12/(AB4-Z10) -> 0 | AB12: =IF(AA12=0,0,(AA12*((LOG(AA12))/LOG(2)))) -> 0 | AD12: =N12 -> 212 | AE12: =COUNTIF(L30:L40,AD12) -> 0 | AF12: =AE12/(AG4-AE10) -> 0 | AG12: =IF(AF12=0,0,(AF12*((LOG(AF12))/LOG(2)))) -> 0 | AI12: =N12 -> 212 | AJ12: =COUNTIF(L41:L51,AI12) -> 0 | AK12: =AJ12/(AL4-AJ10) -> 0 | AL12: =IF(AK12=0,0,(AK12*((LOG(AK12))/LOG(2)))) -> 0 | AN12: =N12 -> 212 | AO12: =COUNTIF(L52:L63,AN12) -> 0 | AP12: =AO12/(AQ4-AO10) -> 0 | AQ12: =IF(AP12=0,0,(AP12*((LOG(AP12))/LOG(2)))) -> 0 | AS12: =N12 -> 212 | AT12: =COUNTIF(L64:L74,AS12) -> 0 | AU12: =AT12/(AV4-AT10) -> 0 | AV12: =IF(AU12=0,0,(AU12*((LOG(AU12))/LOG(2)))) -> 0
A13: 11 | B13: 734 | C13: 11 | D13: 740 | E13: 21 | F13: 747 | K13: 0 | L13: 112 | N13: 221 | O13: =COUNTIF($L$7:$L$500,N13) -> 0 | P13: =O13/$Q$4 -> 0 | Q13: =IF(P13=0,0,(P13*((LOG(P13))/LOG(2)))) -> 0 | T13: =N13 -> 221 | U13: =COUNTIF(L7:L17,T13) -> 0 | V13: =U13/(W4-U10) -> 0 | W13: =IF(V13=0,0,(V13*((LOG(V13))/LOG(2)))) -> 0 | Y13: =N13 -> 221 | Z13: =COUNTIF(L18:L29,Y13) -> 0 | AA13: =Z13/(AB4-Z10) -> 0 | AB13: =IF(AA13=0,0,(AA13*((LOG(AA13))/LOG(2)))) -> 0 | AD13: =N13 -> 221 | AE13: =COUNTIF(L30:L40,AD13) -> 0 | AF13: =AE13/(AG4-AE10) -> 0 | AG13: =IF(AF13=0,0,(AF13*((LOG(AF13))/LOG(2)))) -> 0 | AI13: =N13 -> 221 | AJ13: =COUNTIF(L41:L51,AI13) -> 0 | AK13: =AJ13/(AL4-AJ10) -> 0 | AL13: =IF(AK13=0,0,(AK13*((LOG(AK13))/LOG(2)))) -> 0 | AN13: =N13 -> 221 | AO13: =COUNTIF(L52:L63,AN13) -> 0 | AP13: =AO13/(AQ4-AO10) -> 0 | AQ13: =IF(AP13=0,0,(AP13*((LOG(AP13))/LOG(2)))) -> 0 | AS13: =N13 -> 221 | AT13: =COUNTIF(L64:L74,AS13) -> 0 | AU13: =AT13/(AV4-AT10) -> 0 | AV13: =IF(AU13=0,0,(AU13*((LOG(AU13))/LOG(2)))) -> 0
A14: 11 | B14: 834 | C14: 11 | D14: 838 | E14: 21 | F14: 850 | K14: 0 | L14: 112 | N14: 222 | O14: =COUNTIF($L$7:$L$500,N14) -> 1 | P14: =O14/$Q$4 -> 0.01470588235 | Q14: =IF(P14=0,0,(P14*((LOG(P14))/LOG(2)))) -> -0.08952151237 | T14: =N14 -> 222 | U14: =COUNTIF(L7:L17,T14) -> 0 | V14: =U14/(W4-U10) -> 0 | W14: =IF(V14=0,0,(V14*((LOG(V14))/LOG(2)))) -> 0 | Y14: =N14 -> 222 | Z14: =COUNTIF(L18:L29,Y14) -> 0 | AA14: =Z14/(AB4-Z10) -> 0 | AB14: =IF(AA14=0,0,(AA14*((LOG(AA14))/LOG(2)))) -> 0 | AD14: =N14 -> 222 | AE14: =COUNTIF(L30:L40,AD14) -> 1 | AF14: =AE14/(AG4-AE10) -> 0.125 | AG14: =IF(AF14=0,0,(AF14*((LOG(AF14))/LOG(2)))) -> -0.375 | AI14: =N14 -> 222 | AJ14: =COUNTIF(L41:L51,AI14) -> 0 | AK14: =AJ14/(AL4-AJ10) -> 0 | AL14: =IF(AK14=0,0,(AK14*((LOG(AK14))/LOG(2)))) -> 0 | AN14: =N14 -> 222 | AO14: =COUNTIF(L52:L63,AN14) -> 0 | AP14: =AO14/(AQ4-AO10) -> 0 | AQ14: =IF(AP14=0,0,(AP14*((LOG(AP14))/LOG(2)))) -> 0 | AS14: =N14 -> 222 | AT14: =COUNTIF(L64:L74,AS14) -> 0 | AU14: =AT14/(AV4-AT10) -> 0 | AV14: =IF(AU14=0,0,(AU14*((LOG(AU14))/LOG(2)))) -> 0
A15: 11 | B15: 938 | C15: 11 | D15: 943 | E15: 21 | F15: 960 | K15: 0 | L15: 112 | P15: =SUM(P7:P14) -> 1 | Q15: =-SUM(Q7:Q14) -> 1.691036244 | V15: =SUM(V7:V14) -> 1 | W15: =-SUM(W7:W14) -> 1.846439345 | AA15: =SUM(AA7:AA14) -> 1 | AB15: =-SUM(AB7:AB14) -> 0 | AF15: =SUM(AF7:AF14) -> 1 | AG15: =-SUM(AG7:AG14) -> 0.5435644432 | AK15: =SUM(AK7:AK14) -> 1 | AL15: =-SUM(AL7:AL14) -> 0.5032583348 | AP15: =SUM(AP7:AP14) -> 1 | AQ15: =-SUM(AQ7:AQ14) -> 0.9709505945 | AU15: =SUM(AU7:AU14) -> 1 | AV15: =-SUM(AV7:AV14) -> 1.156779649
A16: 11 | B16: 1047 | C16: 11 | D16: 1052 | E16: 12 | F16: 1064 | K16: 0 | L16: 111 | P16: U= | Q16: =Q15/(LOG(Q4)/LOG(2)) -> 0.2777899904 | V16: U1= | W16: =W15/(LOG(W4)/LOG(2)) -> 0.5337406685 | AA16: U2= | AB16: =AB15/(LOG(AB4)/LOG(2)) -> 0 | AF16: U3= | AG16: =AG15/(LOG(AG4)/LOG(2)) -> 0.1571253614 | AK16: U4= | AL16: =AL15/(LOG(AL4)/LOG(2)) -> 0.1454742831 | AP16: U5= | AQ16: =AQ15/(LOG(AQ4)/LOG(2)) -> 0.2708398189 | AU16: U6= | AV16: =AV15/(LOG(AV4)/LOG(2)) -> 0.3343843085
A17: 22 | B17: 1178 | C17: 13 | D17: 1195 | E17: 14 | F17: 1200 | K17: 0 | L17: 211
A18: 11 | B18: 1300 | C18: 11 | D18: 1308 | E18: 21 | F18: 1320 | K18: 0 | L18: 112
A19: 11 | B19: 1410 | C19: 11 | D19: 1414 | E19: 21 | F19: 1425 | K19: 0 | L19: 112 | N19: Total Target Seq
A20: 11 | B20: 1513 | C20: 22 | D20: 1534 | E20: 23 | F20: 1542 | K20: 0 | L20: 122 | N20: =COUNTIF(L7:L74,G3) -> 13 | P20: 11 | Q20: 12 | R20: 11 | S20: 11 | T20: 12 | U20: 11
A21: 11 | B21: 1641 | C21: 11 | D21: 1646 | E21: 21 | F21: 1654 | K21: 0 | L21: 112 | P21: % of reinforcement given in 6 equal intervals based on number of trials
A22: 11 | B22: 1741 | C22: 11 | D22: 1746 | E22: 21 | F22: 1762 | K22: 0 | L22: 112 | P22: %_1 | Q22: %_2 | R22: %_3 | S22: %_4 | T22: %_5 | U22: %_6
A23: 11 | B23: 1850 | C23: 11 | D23: 1854 | E23: 21 | F23: 1880 | K23: 0 | L23: 112 | O23: target sequence | P23: =$G$3 -> 122 | Q23: =$G$3 -> 122 | R23: =$G$3 -> 122 | S23: =$G$3 -> 122 | T23: =$G$3 -> 122 | U23: =$G$3 -> 122
A24: 11 | B24: 1966 | C24: 11 | D24: 1971 | E24: 21 | F24: 1984 | K24: 0 | L24: 112 | O24: total reinforcement | P24: =U10 -> 1 | Q24: =Z10 -> 4 | R24: =AE10 -> 3 | S24: =AJ10 -> 2 | T24: =AO10 -> 2 | U24: =AT10 -> 1
A25: 11 | B25: 2074 | C25: 22 | D25: 2086 | E25: 23 | F25: 2105 | K25: 0 | L25: 122 | O25: % target
A26: 11 | B26: 2202 | C26: 11 | D26: 2206 | E26: 21 | F26: 2232 | K26: 0 | L26: 112 | O26: CCRF
A27: 11 | B27: 2320 | C27: 22 | D27: 2332 | E27: 23 | F27: 2357 | K27: 0 | L27: 122 | O27: % CCRf
A28: 11 | B28: 2454 | C28: 11 | D28: 2459 | E28: 21 | F28: 2467 | K28: 0 | L28: 112 | O28: average response rate | P28: =F17/P20 -> 109.0909091 | Q28: =(F29-F17)/Q20 -> 115.3333333 | R28: =(F40-F29)/R20 -> 116.6363636 | S28: =(F51-F40)/S20 -> 118.5454545 | T28: =(F63-F51)/T20 -> 112.3333333 | U28: =(F74-F63)/U20 -> 109.4545455
A29: 11 | B29: 2554 | C29: 22 | D29: 2572 | E29: 23 | F29: 2584 | K29: 0 | L29: 122
A30: 11 | B30: 2680 | C30: 22 | D30: 2702 | E30: 23 | F30: 2718 | K30: 0 | L30: 122
A31: 11 | B31: 2815 | C31: 11 | D31: 2820 | E31: 21 | F31: 2828 | K31: 0 | L31: 112
A32: 11 | B32: 2916 | C32: 11 | D32: 2921 | E32: 21 | F32: 2960 | K32: 0 | L32: 112
A33: 22 | B33: 3058 | C33: 24 | D33: 3069 | E33: 23 | F33: 3077 | K33: 0 | L33: 222
A34: 11 | B34: 3174 | C34: 11 | D34: 3178 | E34: 21 | F34: 3187 | K34: 0 | L34: 112
A35: 11 | B35: 3276 | C35: 11 | D35: 3281 | E35: 21 | F35: 3290 | K35: 0 | L35: 112
A36: 11 | B36: 3377 | C36: 22 | D36: 3395 | E36: 23 | F36: 3407 | K36: 0 | L36: 122
A37: 11 | B37: 3505 | C37: 22 | D37: 3525 | E37: 23 | F37: 3541 | K37: 0 | L37: 122
A38: 11 | B38: 3639 | C38: 11 | D38: 3644 | E38: 21 | F38: 3652 | K38: 0 | L38: 112
A39: 11 | B39: 3741 | C39: 11 | D39: 3750 | E39: 21 | F39: 3757 | K39: 0 | L39: 112
A40: 11 | B40: 3845 | C40: 11 | D40: 3851 | E40: 21 | F40: 3867 | K40: 0 | L40: 112
A41: 11 | B41: 3955 | C41: 11 | D41: 3959 | E41: 21 | F41: 3969 | K41: 0 | L41: 112
A42: 11 | B42: 4057 | C42: 11 | D42: 4062 | E42: 21 | F42: 4077 | K42: 0 | L42: 112
A43: 11 | B43: 4164 | C43: 22 | D43: 4190 | E43: 23 | F43: 4207 | K43: 0 | L43: 122
A44: 11 | B44: 4303 | C44: 11 | D44: 4308 | E44: 21 | F44: 4316 | K44: 0 | L44: 112
A45: 11 | B45: 4425 | C45: 11 | D45: 4442 | E45: 12 | F45: 4446 | K45: 0 | L45: 111
A46: 11 | B46: 4546 | C46: 11 | D46: 4551 | E46: 21 | F46: 4571 | K46: 0 | L46: 112
A47: 11 | B47: 4684 | C47: 22 | D47: 4705 | E47: 23 | F47: 4713 | K47: 0 | L47: 122
A48: 11 | B48: 4815 | C48: 11 | D48: 4820 | E48: 21 | F48: 4828 | K48: 0 | L48: 112
A49: 11 | B49: 4939 | C49: 11 | D49: 4955 | E49: 21 | F49: 4965 | K49: 0 | L49: 112
A50: 11 | B50: 5056 | C50: 11 | D50: 5061 | E50: 21 | F50: 5070 | K50: 0 | L50: 112
A51: 11 | B51: 5158 | C51: 11 | D51: 5163 | E51: 21 | F51: 5171 | K51: 0 | L51: 112
A52: 11 | B52: 5257 | C52: 11 | D52: 5262 | E52: 12 | F52: 5266 | K52: 0 | L52: 111
A53: 11 | B53: 5378 | C53: 11 | D53: 5395 | E53: 21 | F53: 5404 | K53: 0 | L53: 112
A54: 11 | B54: 5491 | C54: 11 | D54: 5495 | E54: 21 | F54: 5519 | K54: 0 | L54: 112
A55: 11 | B55: 5606 | C55: 22 | D55: 5627 | E55: 23 | F55: 5646 | K55: 0 | L55: 122
A56: 11 | B56: 5743 | C56: 11 | D56: 5747 | E56: 12 | F56: 5751 | K56: 0 | L56: 111
A57: 11 | B57: 5849 | C57: 11 | D57: 5853 | E57: 21 | F57: 5868 | K57: 0 | L57: 112
A58: 11 | B58: 5957 | C58: 11 | D58: 5961 | E58: 21 | F58: 5969 | K58: 0 | L58: 112
A59: 11 | B59: 6058 | C59: 11 | D59: 6063 | E59: 12 | F59: 6068 | K59: 0 | L59: 111
A60: 11 | B60: 6165 | C60: 22 | D60: 6178 | E60: 23 | F60: 6195 | K60: 0 | L60: 122
A61: 11 | B61: 6292 | C61: 11 | D61: 6296 | E61: 12 | F61: 6300 | K61: 0 | L61: 111
A62: 11 | B62: 6401 | C62: 11 | D62: 6406 | E62: 21 | F62: 6420 | K62: 0 | L62: 112
A63: 11 | B63: 6507 | C63: 11 | D63: 6511 | E63: 21 | F63: 6519 | K63: 0 | L63: 112
A64: 11 | B64: 6608 | C64: 11 | D64: 6613 | E64: 21 | F64: 6627 | K64: 0 | L64: 112
A65: 11 | B65: 6715 | C65: 11 | D65: 6720 | E65: 21 | F65: 6729 | K65: 0 | L65: 112
A66: 11 | B66: 6815 | C66: 11 | D66: 6819 | E66: 21 | F66: 6829 | K66: 0 | L66: 112
A67: 11 | B67: 6933 | C67: 22 | D67: 6945 | E67: 23 | F67: 6966 | K67: 0 | L67: 122
A68: 11 | B68: 7063 | C68: 11 | D68: 7067 | E68: 21 | F68: 7075 | K68: 0 | L68: 112
A69: 11 | B69: 7162 | C69: 22 | D69: 7172 | E69: 14 | F69: 7186 | K69: 0 | L69: 121
A70: 11 | B70: 7286 | C70: 11 | D70: 7289 | E70: 12 | F70: 7294 | K70: 0 | L70: 111
A71: 11 | B71: 7392 | C71: 11 | D71: 7396 | E71: 12 | F71: 7400 | K71: 0 | L71: 111
A72: 11 | B72: 7497 | C72: 11 | D72: 7502 | E72: 21 | F72: 7511 | K72: 0 | L72: 112
A73: 11 | B73: 7598 | C73: 11 | D73: 7602 | E73: 21 | F73: 7611 | K73: 0 | L73: 112
A74: 11 | B74: 7698 | C74: 11 | D74: 7713 | E74: 21 | F74: 7723 | K74: 1 | L74: 112

Sheet !M524850.096
A1: Report for:!M524850.096
A2: Date: | B2: <date>
A3: Hen: | B3: <hen> | F3: Correct Sequence | G3: =Start!J2 -> 122 | P3: Total Sequences in Data | Q3: =4994-COUNTBLANK(L7:L5000) -> 62 | V3: Total Sequences in Block Data | W3: =COUNTA(L7:L16) -> 10 | AA3: Total Sequences in Block Data | AB3: =COUNTA(L17:L27) -> 11 | AF3: Total Sequences in Block Data | AG3: =COUNTA(L28:L37) -> 10 | AK3: Total Sequences in Block Data | AL3: =COUNTA(L38:L47) -> 10 | AP3: Total Sequences in Block Data | AQ3: =COUNTA(L48:L58) -> 11 | AU3: Total Sequences in Block Data | AV3: =COUNTA(L59:L68) -> 10
P4: Total Sequences in Summary | Q4: =SUM(O7:O14) -> 62 | V4: Total Sequences in Block Summary | W4: =SUM(U7:U14) -> 10 | AA4: Total Sequences in Block Summary | AB4: =SUM(Z7:Z14) -> 11 | AF4: Total Sequences in Block Summary | AG4: =SUM(AE7:AE14) -> 10 | AK4: Total Sequences in Block Summary | AL4: =SUM(AJ7:AJ14) -> 10 | AP4: Total Sequences in Block Summary | AQ4: =SUM(AO7:AO14) -> 11 | AU4: Total Sequences in Block Summary | AV4: =SUM(AT7:AT14) -> 10
T5: Block 1 | Y5: Block 2 | AD5: Block 3 | AI5: Block 4 | AN5: Block 5 | AS5: Block 6
A6: Sequence Component 1 | B6: Time 1 | C6: Sequence Component 2 | D6: Time 2 | E6: Sequence Component 3 | F6: Time 3 | G6: Sequence Component 4 | H6: Time 4 | I6: Sequence Component 5 | J6: Time 5 | K6: Correct? 0=No 1=Yes | L6: Sequence | N6: Frequency | P6: Relative Frequency | Q6: Variability | T6: Frequency | V6: Relative Frequency | W6: Variability | Y6: Frequency | AA6: Relative Frequency | AB6: Variability | AD6: Frequency | AF6: Relative Frequency | AG6: Variability | AI6: Frequency | AK6: Relative Frequency | AL6: Variability | AN6: Frequency | AP6: Relative Frequency | AQ6: Variability | AS6: Frequency | AU6: Relative Frequency | AV6: Variability
A7: 11 | B7: 13 | C7: 11 | D7: 18 | E7: 21 | F7: 32 | K7: 0 | L7: 112 | N7: 111 | O7: =COUNTIF($L$7:$L$500,N7) -> 5 | P7: =O7/$Q$4 -> 0.08064516129 | Q7: =IF(P7=0,0,(P7*((LOG(P7))/LOG(2)))) -> -0.2929248561 | T7: =N7 -> 111 | U7: =COUNTIF(L7:L16,T7) -> 0 | V7: =U7/(W4-U10) -> 0 | W7: =IF(V7=0,0,(V7*((LOG(V7))/LOG(2)))) -> 0 | Y7: =N7 -> 111 | Z7: =COUNTIF(L17:L27,Y7) -> 3 | AA7: =Z7/(AB4-Z10) -> 0.3 | AB7: =IF(AA7=0,0,(AA7*((LOG(AA7))/LOG(2)))) -> -0.5210896782 | AD7: =N7 -> 111 | AE7: =COUNTIF(L28:L37,AD7) -> 0 | AF7: =AE7/(AG4-AE10) -> 0 | AG7: =IF(AF7=0,0,(AF7*((LOG(AF7))/LOG(2)))) -> 0 | AI7: =N7 -> 111 | AJ7: =COUNTIF(L38:L47,AI7) -> 0 | AK7: =AJ7/(AL4-AJ10) -> 0 | AL7: =IF(AK7=0,0,(AK7*((LOG(AK7))/LOG(2)))) -> 0 | AN7: =N7 -> 111 | AO7: =COUNTIF(L48:L58,AN7) -> 0 | AP7: =AO7/(AQ4-AO10) -> 0 | AQ7: =IF(AP7=0,0,(AP7*((LOG(AP7))/LOG(2)))) -> 0 | AS7: =N7 -> 111 | AT7: =COUNTIF(L59:L68,AS7) -> 2 | AU7: =AT7/(AV4-AT10) -> 0.2 | AV7: =IF(AU7=0,0,(AU7*((LOG(AU7))/LOG(2)))) -> -0.464385619
A8: 11 | B8: 121 | C8: 22 | D8: 131 | E8: 23 | F8: 165 | K8: 0 | L8: 122 | N8: 112 | O8: =COUNTIF($L$7:$L$500,N8) -> 40 | P8: =O8/$Q$4 -> 0.6451612903 | Q8: =IF(P8=0,0,(P8*((LOG(P8))/LOG(2)))) -> -0.4079149777 | T8: =N8 -> 112 | U8: =COUNTIF(L7:L16,T8) -> 5 | V8: =U8/(W4-U10) -> 0.8333333333 | W8: =IF(V8=0,0,(V8*((LOG(V8))/LOG(2)))) -> -0.2191953382 | Y8: =N8 -> 112 | Z8: =COUNTIF(L17:L27,Y8) -> 5 | AA8: =Z8/(AB4-Z10) -> 0.5 | AB8: =IF(AA8=0,0,(AA8*((LOG(AA8))/LOG(2)))) -> -0.5 | AD8: =N8 -> 112 | AE8: =COUNTIF(L28:L37,AD8) -> 6 | AF8: =AE8/(AG4-AE10) -> 0.6666666667 | AG8: =IF(AF8=0,0,(AF8*((LOG(AF8))/LOG(2)))) -> -0.3899750005 | AI8: =N8 -> 112 | AJ8: =COUNTIF(L38:L47,AI8) -> 9 | AK8: =AJ8/(AL4-AJ10) -> 1 | AL8: =IF(AK8=0,0,(AK8*((LOG(AK8))/LOG(2)))) -> 0 | AN8: =N8 -> 112 | AO8: =COUNTIF(L48:L58,AN8) -> 7 | AP8: =AO8/(AQ4-AO10) -> 0.7777777778 | AQ8: =IF(AP8=0,0,(AP8*((LOG(AP8))/LOG(2)))) -> -0.2819989506 | AS8: =N8 -> 112 | AT8: =COUNTIF(L59:L68,AS8) -> 8 | AU8: =AT8/(AV4-AT10) -> 0.8 | AV8: =IF(AU8=0,0,(AU8*((LOG(AU8))/LOG(2)))) -> -0.2575424759
A9: 22 | B9: 274 | C9: 24 | D9: 281 | E9: 23 | F9: 297 | K9: 0 | L9: 222 | N9: 121 | O9: =COUNTIF($L$7:$L$500,N9) -> 6 | P9: =O9/$Q$4 -> 0.09677419355 | Q9: =IF(P9=0,0,(P9*((LOG(P9))/LOG(2)))) -> -0.3260548848 | T9: =N9 -> 121 | U9: =COUNTIF(L7:L16,T9) -> 0 | V9: =U9/(W4-U10) -> 0 | W9: =IF(V9=0,0,(V9*((LOG(V9))/LOG(2)))) -> 0 | Y9: =N9 -> 121 | Z9: =COUNTIF(L17:L27,Y9) -> 2 | AA9: =Z9/(AB4-Z10) -> 0.2 | AB9: =IF(AA9=0,0,(AA9*((LOG(AA9))/LOG(2)))) -> -0.464385619 | AD9: =N9 -> 121 | AE9: =COUNTIF(L28:L37,AD9) -> 3 | AF9: =AE9/(AG4-AE10) -> 0.3333333333 | AG9: =IF(AF9=0,0,(AF9*((LOG(AF9))/LOG(2)))) -> -0.5283208336 | AI9: =N9 -> 121 | AJ9: =COUNTIF(L38:L47,AI9) -> 0 | AK9: =AJ9/(AL4-AJ10) -> 0 | AL9: =IF(AK9=0,0,(AK9*((LOG(AK9))/LOG(2)))) -> 0 | AN9: =N9 -> 121 | AO9: =COUNTIF(L48:L58,AN9) -> 1 | AP9: =AO9/(AQ4-AO10) -> 0.1111111111 | AQ9: =IF(AP9=0,0,(AP9*((LOG(AP9))/LOG(2)))) -> -0.352213889 | AS9: =N9 -> 121 | AT9: =COUNTIF(L59:L68,AS9) -> 0 | AU9: =AT9/(AV4-AT10) -> 0 | AV9: =IF(AU9=0,0,(AU9*((LOG(AU9))/LOG(2)))) -> 0
A10: 11 | B10: 399 | C10: 11 | D10: 403 | E10: 21 | F10: 410 | K10: 0 | L10: 112 | N10: 122 | O10: =COUNTIF($L$7:$L$500,N10) -> 9 | P10: =O10/$Q$4 -> 0.1451612903 | Q10: =IF(P10=0,0,(P10*((LOG(P10))/LOG(2)))) -> -0.4041684158 | T10: =N10 -> 122 | U10: =COUNTIF(L7:L16,T10) -> 4 | Y10: =N10 -> 122 | Z10: =COUNTIF(L17:L27,Y10) -> 1 | AD10: =N10 -> 122 | AE10: =COUNTIF(L28:L37,AD10) -> 1 | AI10: =N10 -> 122 | AJ10: =COUNTIF(L38:L47,AI10) -> 1 | AN10: =N10 -> 122 | AO10: =COUNTIF(L48:L58,AN10) -> 2 | AS10: =N10 -> 122 | AT10: =COUNTIF(L59:L68,AS10) -> 0
A11: 11 | B11: 496 | C11: 11 | D11: 500 | E11: 21 | F11: 513 | K11: 0 | L11: 112 | N11: 211 | O11: =COUNTIF($L$7:$L$500,N11) -> 0 | P11: =O11/$Q$4 -> 0 | Q11: =IF(P11=0,0,(P11*((LOG(P11))/LOG(2)))) -> 0 | T11: =N11 -> 211 | U11: =COUNTIF(L7:L16,T11) -> 0 | V11: =U11/(W4-U10) -> 0 | W11: =IF(V11=0,0,(V11*((LOG(V11))/LOG(2)))) -> 0 | Y11: =N11 -> 211 | Z11: =COUNTIF(L17:L27,Y11) -> 0 | AA11: =Z11/(AB4-Z10) -> 0 | AB11: =IF(AA11=0,0,(AA11*((LOG(AA11))/LOG(2)))) -> 0 | AD11: =N11 -> 211 | AE11: =COUNTIF(L28:L37,AD11) -> 0 | AF11: =AE11/(AG4-AE10) -> 0 | AG11: =IF(AF11=0,0,(AF11*((LOG(AF11))/LOG(2)))) -> 0 | AI11: =N11 -> 211 | AJ11: =COUNTIF(L38:L47,AI11) -> 0 | AK11: =AJ11/(AL4-AJ10) -> 0 | AL11: =IF(AK11=0,0,(AK11*((LOG(AK11))/LOG(2)))) -> 0 | AN11: =N11 -> 211 | AO11: =COUNTIF(L48:L58,AN11) -> 0 | AP11: =AO11/(AQ4-AO10) -> 0 | AQ11: =IF(AP11=0,0,(AP11*((LOG(AP11))/LOG(2)))) -> 0 | AS11: =N11 -> 211 | AT11: =COUNTIF(L59:L68,AS11) -> 0 | AU11: =AT11/(AV4-AT10) -> 0 | AV11: =IF(AU11=0,0,(AU11*((LOG(AU11))/LOG(2)))) -> 0
A12: 11 | B12: 604 | C12: 11 | D12: 609 | E12: 21 | F12: 620 | K12: 0 | L12: 112 | N12: 212 | O12: =COUNTIF($L$7:$L$500,N12) -> 1 | P12: =O12/$Q$4 -> 0.01612903226 | Q12: =IF(P12=0,0,(P12*((LOG(P12))/LOG(2)))) -> -0.09603542436 | T12: =N12 -> 212 | U12: =COUNTIF(L7:L16,T12) -> 0 | V12: =U12/(W4-U10) -> 0 | W12: =IF(V12=0,0,(V12*((LOG(V12))/LOG(2)))) -> 0 | Y12: =N12 -> 212 | Z12: =COUNTIF(L17:L27,Y12) -> 0 | AA12: =Z12/(AB4-Z10) -> 0 | AB12: =IF(AA12=0,0,(AA12*((LOG(AA12))/LOG(2)))) -> 0 | AD12: =N12 -> 212 | AE12: =COUNTIF(L28:L37,AD12) -> 0 | AF12: =AE12/(AG4-AE10) -> 0 | AG12: =IF(AF12=0,0,(AF12*((LOG(AF12))/LOG(2)))) -> 0 | AI12: =N12 -> 212 | AJ12: =COUNTIF(L38:L47,AI12) -> 0 | AK12: =AJ12/(AL4-AJ10) -> 0 | AL12: =IF(AK12=0,0,(AK12*((LOG(AK12))/LOG(2)))) -> 0 | AN12: =N12 -> 212 | AO12: =COUNTIF(L48:L58,AN12) -> 1 | AP12: =AO12/(AQ4-AO10) -> 0.1111111111 | AQ12: =IF(AP12=0,0,(AP12*((LOG(AP12))/LOG(2)))) -> -0.352213889 | AS12: =N12 -> 212 | AT12: =COUNTIF(L59:L68,AS12) -> 0 | AU12: =AT12/(AV4-AT10) -> 0 | AV12: =IF(AU12=0,0,(AU12*((LOG(AU12))/LOG(2)))) -> 0
A13: 11 | B13: 709 | C13: 11 | D13: 715 | E13: 21 | F13: 728 | K13: 0 | L13: 112 | N13: 221 | O13: =COUNTIF($L$7:$L$500,N13) -> 0 | P13: =O13/$Q$4 -> 0 | Q13: =IF(P13=0,0,(P13*((LOG(P13))/LOG(2)))) -> 0 | T13: =N13 -> 221 | U13: =COUNTIF(L7:L16,T13) -> 0 | V13: =U13/(W4-U10) -> 0 | W13: =IF(V13=0,0,(V13*((LOG(V13))/LOG(2)))) -> 0 | Y13: =N13 -> 221 | Z13: =COUNTIF(L17:L27,Y13) -> 0 | AA13: =Z13/(AB4-Z10) -> 0 | AB13: =IF(AA13=0,0,(AA13*((LOG(AA13))/LOG(2)))) -> 0 | AD13: =N13 -> 221 | AE13: =COUNTIF(L28:L37,AD13) -> 0 | AF13: =AE13/(AG4-AE10) -> 0 | AG13: =IF(AF13=0,0,(AF13*((LOG(AF13))/LOG(2)))) -> 0 | AI13: =N13 -> 221 | AJ13: =COUNTIF(L38:L47,AI13) -> 0 | AK13: =AJ13/(AL4-AJ10) -> 0 | AL13: =IF(AK13=0,0,(AK13*((LOG(AK13))/LOG(2)))) -> 0 | AN13: =N13 -> 221 | AO13: =COUNTIF(L48:L58,AN13) -> 0 | AP13: =AO13/(AQ4-AO10) -> 0 | AQ13: =IF(AP13=0,0,(AP13*((LOG(AP13))/LOG(2)))) -> 0 | AS13: =N13 -> 221 | AT13: =COUNTIF(L59:L68,AS13) -> 0 | AU13: =AT13/(AV4-AT10) -> 0 | AV13: =IF(AU13=0,0,(AU13*((LOG(AU13))/LOG(2)))) -> 0
A14: 11 | B14: 815 | C14: 22 | D14: 835 | E14: 23 | F14: 871 | K14: 0 | L14: 122 | N14: 222 | O14: =COUNTIF($L$7:$L$500,N14) -> 1 | P14: =O14/$Q$4 -> 0.01612903226 | Q14: =IF(P14=0,0,(P14*((LOG(P14))/LOG(2)))) -> -0.09603542436 | T14: =N14 -> 222 | U14: =COUNTIF(L7:L16,T14) -> 1 | V14: =U14/(W4-U10) -> 0.1666666667 | W14: =IF(V14=0,0,(V14*((LOG(V14))/LOG(2)))) -> -0.4308270835 | Y14: =N14 -> 222 | Z14: =COUNTIF(L17:L27,Y14) -> 0 | AA14: =Z14/(AB4-Z10) -> 0 | AB14: =IF(AA14=0,0,(AA14*((LOG(AA14))/LOG(2)))) -> 0 | AD14: =N14 -> 222 | AE14: =COUNTIF(L28:L37,AD14) -> 0 | AF14: =AE14/(AG4-AE10) -> 0 | AG14: =IF(AF14=0,0,(AF14*((LOG(AF14))/LOG(2)))) -> 0 | AI14: =N14 -> 222 | AJ14: =COUNTIF(L38:L47,AI14) -> 0 | AK14: =AJ14/(AL4-AJ10) -> 0 | AL14: =IF(AK14=0,0,(AK14*((LOG(AK14))/LOG(2)))) -> 0 | AN14: =N14 -> 222 | AO14: =COUNTIF(L48:L58,AN14) -> 0 | AP14: =AO14/(AQ4-AO10) -> 0 | AQ14: =IF(AP14=0,0,(AP14*((LOG(AP14))/LOG(2)))) -> 0 | AS14: =N14 -> 222 | AT14: =COUNTIF(L59:L68,AS14) -> 0 | AU14: =AT14/(AV4-AT10) -> 0 | AV14: =IF(AU14=0,0,(AU14*((LOG(AU14))/LOG(2)))) -> 0
A15: 11 | B15: 981 | C15: 22 | D15: 993 | E15: 23 | F15: 1011 | K15: 0 | L15: 122 | P15: =SUM(P7:P14) -> 1 | Q15: =-SUM(Q7:Q14) -> 1.623133983 | V15: =SUM(V7:V14) -> 1 | W15: =-SUM(W7:W14) -> 0.6500224216 | AA15: =SUM(AA7:AA14) -> 1 | AB15: =-SUM(AB7:AB14) -> 1.485475297 | AF15: =SUM(AF7:AF14) -> 1 | AG15: =-SUM(AG7:AG14) -> 0.9182958341 | AK15: =SUM(AK7:AK14) -> 1 | AL15: =-SUM(AL7:AL14) -> 0 | AP15: =SUM(AP7:AP14) -> 1 | AQ15: =-SUM(AQ7:AQ14) -> 0.9864267287 | AU15: =SUM(AU7:AU14) -> 1 | AV15: =-SUM(AV7:AV14) -> 0.7219280949
A16: 11 | B16: 1111 | C16: 22 | D16: 1126 | E16: 23 | F16: 1132 | K16: 0 | L16: 122 | P16: U= | Q16: =Q15/(LOG(Q4)/LOG(2)) -> 0.2726033706 | V16: U1= | W16: =W15/(LOG(W4)/LOG(2)) -> 0.1956762468 | AA16: U2= | AB16: =AB15/(LOG(AB4)/LOG(2)) -> 0.4293986588 | AF16: U3= | AG16: =AG15/(LOG(AG4)/LOG(2)) -> 0.2764345909 | AK16: U4= | AL16: =AL15/(LOG(AL4)/LOG(2)) -> 0 | AP16: U5= | AQ16: =AQ15/(LOG(AQ4)/LOG(2)) -> 0.285141271 | AU16: U6= | AV16: =AV15/(LOG(AV4)/LOG(2)) -> 0.2173220113
A17: 11 | B17: 1231 | C17: 11 | D17: 1236 | E17: 21 | F17: 1245 | K17: 0 | L17: 112
A18: 11 | B18: 1332 | C18: 22 | D18: 1361 | E18: 14 | F18: 1376 | K18: 0 | L18: 121
A19: 11 | B19: 1473 | C19: 11 | D19: 1478 | E19: 12 | F19: 1482 | K19: 0 | L19: 111 | N19: Total Target Seq
A20: 11 | B20: 1589 | C20: 22 | D20: 1599 | E20: 23 | F20: 1615 | K20: 0 | L20: 122 | N20: =COUNTIF(L7:L68,G3) -> 9 | P20: 10 | Q20: 11 | R20: 10 | S20: 10 | T20: 11 | U20: 10
A21: 11 | B21: 1712 | C21: 11 | D21: 1717 | E21: 12 | F21: 1723 | K21: 0 | L21: 111 | P21: % of reinforcement given in 6 equal intervals based on number of trials
A22: 11 | B22: 1836 | C22: 11 | D22: 1857 | E22: 21 | F22: 1870 | K22: 0 | L22: 112 | P22: %_1 | Q22: %_2 | R22: %_3 | S22: %_4 | T22: %_5 | U22: %_6
A23: 11 | B23: 1958 | C23: 11 | D23: 1962 | E23: 12 | F23: 1967 | K23: 0 | L23: 111 | O23: target sequence | P23: =$G$3 -> 122 | Q23: =$G$3 -> 122 | R23: =$G$3 -> 122 | S23: =$G$3 -> 122 | T23: =$G$3 -> 122 | U23: =$G$3 -> 122
A24: 11 | B24: 2083 | C24: 11 | D24: 2087 | E24: 21 | F24: 2097 | K24: 0 | L24: 112 | O24: total reinforcement | P24: =U10 -> 4 | Q24: =Z10 -> 1 | R24: =AE10 -> 1 | S24: =AJ10 -> 1 | T24: =AO10 -> 2 | U24: =AT10 -> 0
A25: 11 | B25: 2185 | C25: 11 | D25: 2191 | E25: 21 | F25: 2210 | K25: 0 | L25: 112 | O25: % target
A26: 11 | B26: 2298 | C26: 11 | D26: 2302 | E26: 21 | F26: 2326 | K26: 0 | L26: 112 | O26: CCRF
A27: 11 | B27: 2437 | C27: 22 | D27: 2455 | E27: 14 | F27: 2487 | K27: 0 | L27: 121 | O27: % CCRf
A28: 11 | B28: 2583 | C28: 11 | D28: 2588 | E28: 21 | F28: 2596 | K28: 0 | L28: 112 | O28: average response rate | P28: =F16/P20 -> 113.2 | Q28: =(F27-F16)/Q20 -> 123.1818182 | R28: =(F37-F27)/R20 -> 115.2 | S28: =(F47-F37)/S20 -> 112.8 | T28: =(F58-F47)/T20 -> 114.3636364 | U28: =(F68-F58)/U20 -> 105.5
A29: 11 | B29: 2686 | C29: 11 | D29: 2691 | E29: 21 | F29: 2699 | K29: 0 | L29: 112
A30: 11 | B30: 2786 | C30: 11 | D30: 2790 | E30: 21 | F30: 2804 | K30: 0 | L30: 112
A31: 11 | B31: 2896 | C31: 22 | D31: 2910 | E31: 23 | F31: 2919 | K31: 0 | L31: 122
A32: 11 | B32: 3020 | C32: 11 | D32: 3024 | E32: 21 | F32: 3037 | K32: 0 | L32: 112
A33: 11 | B33: 3127 | C33: 11 | D33: 3131 | E33: 21 | F33: 3141 | K33: 0 | L33: 112
A34: 11 | B34: 3229 | C34: 22 | D34: 3238 | E34: 14 | F34: 3258 | K34: 0 | L34: 121
A35: 11 | B35: 3356 | C35: 11 | D35: 3360 | E35: 21 | F35: 3372 | K35: 0 | L35: 112
A36: 11 | B36: 3477 | C36: 22 | D36: 3490 | E36: 14 | F36: 3506 | K36: 0 | L36: 121
A37: 11 | B37: 3603 | C37: 22 | D37: 3620 | E37: 14 | F37: 3639 | K37: 0 | L37: 121
A38: 11 | B38: 3737 | C38: 11 | D38: 3742 | E38: 21 | F38: 3750 | K38: 0 | L38: 112
A39: 11 | B39: 3839 | C39: 11 | D39: 3849 | E39: 21 | F39: 3864 | K39: 0 | L39: 112
A40: 11 | B40: 3951 | C40: 22 | D40: 3976 | E40: 23 | F40: 3983 | K40: 0 | L40: 122
A41: 11 | B41: 4079 | C41: 11 | D41: 4094 | E41: 21 | F41: 4107 | K41: 0 | L41: 112
A42: 11 | B42: 4194 | C42: 11 | D42: 4199 | E42: 21 | F42: 4211 | K42: 0 | L42: 112
A43: 11 | B43: 4298 | C43: 11 | D43: 4309 | E43: 21 | F43: 4322 | K43: 0 | L43: 112
A44: 11 | B44: 4410 | C44: 11 | D44: 4415 | E44: 21 | F44: 4427 | K44: 0 | L44: 112
A45: 11 | B45: 4522 | C45: 11 | D45: 4544 | E45: 21 | F45: 4555 | K45: 0 | L45: 112
A46: 11 | B46: 4643 | C46: 11 | D46: 4648 | E46: 21 | F46: 4661 | K46: 0 | L46: 112
A47: 11 | B47: 4748 | C47: 11 | D47: 4752 | E47: 21 | F47: 4767 | K47: 0 | L47: 112
A48: 11 | B48: 4855 | C48: 11 | D48: 4860 | E48: 21 | F48: 4875 | K48: 0 | L48: 112
A49: 11 | B49: 4963 | C49: 11 | D49: 4968 | E49: 21 | F49: 4976 | K49: 0 | L49: 112
A50: 11 | B50: 5064 | C50: 11 | D50: 5068 | E50: 21 | F50: 5077 | K50: 0 | L50: 112
A51: 11 | B51: 5167 | C51: 11 | D51: 5171 | E51: 21 | F51: 5180 | K51: 0 | L51: 112
A52: 11 | B52: 5267 | C52: 11 | D52: 5272 | E52: 21 | F52: 5280 | K52: 0 | L52: 112
A53: 11 | B53: 5376 | C53: 22 | D53: 5387 | E53: 23 | F53: 5395 | K53: 0 | L53: 122
A54: 11 | B54: 5500 | C54: 22 | D54: 5508 | E54: 14 | F54: 5525 | K54: 0 | L54: 121
A55: 22 | B55: 5645 | C55: 13 | D55: 5665 | E55: 23 | F55: 5675 | K55: 0 | L55: 212
A56: 11 | B56: 5773 | C56: 11 | D56: 5778 | E56: 21 | F56: 5786 | K56: 0 | L56: 112
A57: 11 | B57: 5874 | C57: 11 | D57: 5889 | E57: 21 | F57: 5899 | K57: 0 | L57: 112
A58: 11 | B58: 5995 | C58: 22 | D58: 6007 | E58: 23 | F58: 6025 | K58: 0 | L58: 122
A59: 11 | B59: 6123 | C59: 11 | D59: 6128 | E59: 21 | F59: 6138 | K59: 0 | L59: 112
A60: 11 | B60: 6226 | C60: 11 | D60: 6231 | E60: 21 | F60: 6239 | K60: 0 | L60: 112
A61: 11 | B61: 6326 | C61: 11 | D61: 6331 | E61: 21 | F61: 6339 | K61: 0 | L61: 112
A62: 11 | B62: 6427 | C62: 11 | D62: 6441 | E62: 21 | F62: 6450 | K62: 0 | L62: 112
A63: 11 | B63: 6538 | C63: 11 | D63: 6543 | E63: 21 | F63: 6551 | K63: 0 | L63: 112
A64: 11 | B64: 6638 | C64: 11 | D64: 6651 | E64: 12 | F64: 6656 | K64: 0 | L64: 111
A65: 11 | B65: 6752 | C65: 11 | D65: 6757 | E65: 12 | F65: 6761 | K65: 0 | L65: 111
A66: 11 | B66: 6857 | C66: 11 | D66: 6861 | E66: 21 | F66: 6870 | K66: 0 | L66: 112
A67: 11 | B67: 6958 | C67: 11 | D67: 6963 | E67: 21 | F67: 6972 | K67: 0 | L67: 112
A68: 11 | B68: 7059 | C68: 11 | D68: 7064 | E68: 21 | F68: 7080 | K68: 1 | L68: 112

Sheet !M526C20.096
A1: Report for:!M526C20.096
A2: Date: | B2: <date>
A3: Hen: | B3: <hen> | F3: Correct Sequence | G3: =Start!J2 -> 122 | P3: Total Sequences in Data | Q3: =4994-COUNTBLANK(L7:L5000) -> 77 | V3: Total Sequences in Block Data | W3: =COUNTA(L7:L19) -> 13 | AA3: Total Sequences in Block Data | AB3: =COUNTA(L20:L32) -> 13 | AF3: Total Sequences in Block Data | AG3: =COUNTA(L33:L44) -> 12 | AK3: Total Sequences in Block Data | AL3: =COUNTA(L45:L57) -> 13 | AP3: Total Sequences in Block Data | AQ3: =COUNTA(L58:L70) -> 13 | AU3: Total Sequences in Block Data | AV3: =COUNTA(L71:L83) -> 13
P4: Total Sequences in Summary | Q4: =SUM(O7:O14) -> 77 | V4: Total Sequences in Block Summary | W4: =SUM(U7:U14) -> 13 | AA4: Total Sequences in Block Summary | AB4: =SUM(Z7:Z14) -> 13 | AF4: Total Sequences in Block Summary | AG4: =SUM(AE7:AE14) -> 12 | AK4: Total Sequences in Block Summary | AL4: =SUM(AJ7:AJ14) -> 13 | AP4: Total Sequences in Block Summary | AQ4: =SUM(AO7:AO14) -> 13 | AU4: Total Sequences in Block Summary | AV4: =SUM(AT7:AT14) -> 13
T5: Block 1 | Y5: Block 2 | AD5: Block 3 | AI5: Block 4 | AN5: Block 5 | AS5: Block 6
A6: Sequence Component 1 | B6: Time 1 | C6: Sequence Component 2 | D6: Time 2 | E6: Sequence Component 3 | F6: Time 3 | G6: Sequence Component 4 | H6: Time 4 | I6: Sequence Component 5 | J6: Time 5 | K6: Correct? 0=No 1=Yes | L6: Sequence | N6: Frequency | P6: Relative Frequency | Q6: Variability | T6: Frequency | V6: Relative Frequency | W6: Variability | Y6: Frequency | AA6: Relative Frequency | AB6: Variability | AD6: Frequency | AF6: Relative Frequency | AG6: Variability | AI6: Frequency | AK6: Relative Frequency | AL6: Variability | AN6: Frequency | AP6: Relative Frequency | AQ6: Variability | AS6: Frequency | AU6: Relative Frequency | AV6: Variability
A7: 11 | B7: 9 | C7: 11 | D7: 15 | E7: 21 | F7: 32 | K7: 0 | L7: 112 | N7: 111 | O7: =COUNTIF($L$7:$L$500,N7) -> 4 | P7: =O7/$Q$4 -> 0.05194805195 | Q7: =IF(P7=0,0,(P7*((LOG(P7))/LOG(2)))) -> -0.2216512489 | T7: =N7 -> 111 | U7: =COUNTIF(L7:L19,T7) -> 0 | V7: =U7/(W4-U10) -> 0 | W7: =IF(V7=0,0,(V7*((LOG(V7))/LOG(2)))) -> 0 | Y7: =N7 -> 111 | Z7: =COUNTIF(L20:L32,Y7) -> 1 | AA7: =Z7/(AB4-Z10) -> 0.1 | AB7: =IF(AA7=0,0,(AA7*((LOG(AA7))/LOG(2)))) -> -0.3321928095 | AD7: =N7 -> 111 | AE7: =COUNTIF(L33:L44,AD7) -> 1 | AF7: =AE7/(AG4-AE10) -> 0.1111111111 | AG7: =IF(AF7=0,0,(AF7*((LOG(AF7))/LOG(2)))) -> -0.352213889 | AI7: =N7 -> 111 | AJ7: =COUNTIF(L45:L57,AI7) -> 1 | AK7: =AJ7/(AL4-AJ10) -> 0.1111111111 | AL7: =IF(AK7=0,0,(AK7*((LOG(AK7))/LOG(2)))) -> -0.352213889 | AN7: =N7 -> 111 | AO7: =COUNTIF(L58:L70,AN7) -> 0 | AP7: =AO7/(AQ4-AO10) -> 0 | AQ7: =IF(AP7=0,0,(AP7*((LOG(AP7))/LOG(2)))) -> 0 | AS7: =N7 -> 111 | AT7: =COUNTIF(L71:L83,AS7) -> 1 | AU7: =AT7/(AV4-AT10) -> 0.1 | AV7: =IF(AU7=0,0,(AU7*((LOG(AU7))/LOG(2)))) -> -0.3321928095
A8: 22 | B8: 136 | C8: 13 | D8: 149 | E8: 14 | F8: 153 | K8: 0 | L8: 211 | N8: 112 | O8: =COUNTIF($L$7:$L$500,N8) -> 40 | P8: =O8/$Q$4 -> 0.5194805195 | Q8: =IF(P8=0,0,(P8*((LOG(P8))/LOG(2)))) -> -0.4908355563 | T8: =N8 -> 112 | U8: =COUNTIF(L7:L19,T8) -> 6 | V8: =U8/(W4-U10) -> 0.6666666667 | W8: =IF(V8=0,0,(V8*((LOG(V8))/LOG(2)))) -> -0.3899750005 | Y8: =N8 -> 112 | Z8: =COUNTIF(L20:L32,Y8) -> 8 | AA8: =Z8/(AB4-Z10) -> 0.8 | AB8: =IF(AA8=0,0,(AA8*((LOG(AA8))/LOG(2)))) -> -0.2575424759 | AD8: =N8 -> 112 | AE8: =COUNTIF(L33:L44,AD8) -> 6 | AF8: =AE8/(AG4-AE10) -> 0.6666666667 | AG8: =IF(AF8=0,0,(AF8*((LOG(AF8))/LOG(2)))) -> -0.3899750005 | AI8: =N8 -> 112 | AJ8: =COUNTIF(L45:L57,AI8) -> 8 | AK8: =AJ8/(AL4-AJ10) -> 0.8888888889 | AL8: =IF(AK8=0,0,(AK8*((LOG(AK8))/LOG(2)))) -> -0.1510444457 | AN8: =N8 -> 112 | AO8: =COUNTIF(L58:L70,AN8) -> 6 | AP8: =AO8/(AQ4-AO10) -> 0.6666666667 | AQ8: =IF(AP8=0,0,(AP8*((LOG(AP8))/LOG(2)))) -> -0.3899750005 | AS8: =N8 -> 112 | AT8: =COUNTIF(L71:L83,AS8) -> 6 | AU8: =AT8/(AV4-AT10) -> 0.6 | AV8: =IF(AU8=0,0,(AU8*((LOG(AU8))/LOG(2)))) -> -0.4421793565
A9: 11 | B9: 254 | C9: 11 | D9: 259 | E9: 21 | F9: 270 | K9: 0 | L9: 112 | N9: 121 | O9: =COUNTIF($L$7:$L$500,N9) -> 10 | P9: =O9/$Q$4 -> 0.1298701299 | Q9: =IF(P9=0,0,(P9*((LOG(P9))/LOG(2)))) -> -0.3824491488 | T9: =N9 -> 121 | U9: =COUNTIF(L7:L19,T9) -> 2 | V9: =U9/(W4-U10) -> 0.2222222222 | W9: =IF(V9=0,0,(V9*((LOG(V9))/LOG(2)))) -> -0.4822055559 | Y9: =N9 -> 121 | Z9: =COUNTIF(L20:L32,Y9) -> 1 | AA9: =Z9/(AB4-Z10) -> 0.1 | AB9: =IF(AA9=0,0,(AA9*((LOG(AA9))/LOG(2)))) -> -0.3321928095 | AD9: =N9 -> 121 | AE9: =COUNTIF(L33:L44,AD9) -> 2 | AF9: =AE9/(AG4-AE10) -> 0.2222222222 | AG9: =IF(AF9=0,0,(AF9*((LOG(AF9))/LOG(2)))) -> -0.4822055559 | AI9: =N9 -> 121 | AJ9: =COUNTIF(L45:L57,AI9) -> 0 | AK9: =AJ9/(AL4-AJ10) -> 0 | AL9: =IF(AK9=0,0,(AK9*((LOG(AK9))/LOG(2)))) -> 0 | AN9: =N9 -> 121 | AO9: =COUNTIF(L58:L70,AN9) -> 3 | AP9: =AO9/(AQ4-AO10) -> 0.3333333333 | AQ9: =IF(AP9=0,0,(AP9*((LOG(AP9))/LOG(2)))) -> -0.5283208336 | AS9: =N9 -> 121 | AT9: =COUNTIF(L71:L83,AS9) -> 2 | AU9: =AT9/(AV4-AT10) -> 0.2 | AV9: =IF(AU9=0,0,(AU9*((LOG(AU9))/LOG(2)))) -> -0.464385619
A10: 11 | B10: 357 | C10: 22 | D10: 371 | E10: 23 | F10: 387 | K10: 0 | L10: 122 | N10: 122 | O10: =COUNTIF($L$7:$L$500,N10) -> 21 | P10: =O10/$Q$4 -> 0.2727272727 | Q10: =IF(P10=0,0,(P10*((LOG(P10))/LOG(2)))) -> -0.5112188503 | T10: =N10 -> 122 | U10: =COUNTIF(L7:L19,T10) -> 4 | Y10: =N10 -> 122 | Z10: =COUNTIF(L20:L32,Y10) -> 3 | AD10: =N10 -> 122 | AE10: =COUNTIF(L33:L44,AD10) -> 3 | AI10: =N10 -> 122 | AJ10: =COUNTIF(L45:L57,AI10) -> 4 | AN10: =N10 -> 122 | AO10: =COUNTIF(L58:L70,AN10) -> 4 | AS10: =N10 -> 122 | AT10: =COUNTIF(L71:L83,AS10) -> 3
A11: 11 | B11: 487 | C11: 22 | D11: 515 | E11: 23 | F11: 535 | K11: 0 | L11: 122 | N11: 211 | O11: =COUNTIF($L$7:$L$500,N11) -> 1 | P11: =O11/$Q$4 -> 0.01298701299 | Q11: =IF(P11=0,0,(P11*((LOG(P11))/LOG(2)))) -> -0.08138683819 | T11: =N11 -> 211 | U11: =COUNTIF(L7:L19,T11) -> 1 | V11: =U11/(W4-U10) -> 0.1111111111 | W11: =IF(V11=0,0,(V11*((LOG(V11))/LOG(2)))) -> -0.352213889 | Y11: =N11 -> 211 | Z11: =COUNTIF(L20:L32,Y11) -> 0 | AA11: =Z11/(AB4-Z10) -> 0 | AB11: =IF(AA11=0,0,(AA11*((LOG(AA11))/LOG(2)))) -> 0 | AD11: =N11 -> 211 | AE11: =COUNTIF(L33:L44,AD11) -> 0 | AF11: =AE11/(AG4-AE10) -> 0 | AG11: =IF(AF11=0,0,(AF11*((LOG(AF11))/LOG(2)))) -> 0 | AI11: =N11 -> 211 | AJ11: =COUNTIF(L45:L57,AI11) -> 0 | AK11: =AJ11/(AL4-AJ10) -> 0 | AL11: =IF(AK11=0,0,(AK11*((LOG(AK11))/LOG(2)))) -> 0 | AN11: =N11 -> 211 | AO11: =COUNTIF(L58:L70,AN11) -> 0 | AP11: =AO11/(AQ4-AO10) -> 0 | AQ11: =IF(AP11=0,0,(AP11*((LOG(AP11))/LOG(2)))) -> 0 | AS11: =N11 -> 211 | AT11: =COUNTIF(L71:L83,AS11) -> 0 | AU11: =AT11/(AV4-AT10) -> 0 | AV11: =IF(AU11=0,0,(AU11*((LOG(AU11))/LOG(2)))) -> 0
A12: 11 | B12: 644 | C12: 22 | D12: 657 | E12: 14 | F12: 669 | K12: 0 | L12: 121 | N12: 212 | O12: =COUNTIF($L$7:$L$500,N12) -> 0 | P12: =O12/$Q$4 -> 0 | Q12: =IF(P12=0,0,(P12*((LOG(P12))/LOG(2)))) -> 0 | T12: =N12 -> 212 | U12: =COUNTIF(L7:L19,T12) -> 0 | V12: =U12/(W4-U10) -> 0 | W12: =IF(V12=0,0,(V12*((LOG(V12))/LOG(2)))) -> 0 | Y12: =N12 -> 212 | Z12: =COUNTIF(L20:L32,Y12) -> 0 | AA12: =Z12/(AB4-Z10) -> 0 | AB12: =IF(AA12=0,0,(AA12*((LOG(AA12))/LOG(2)))) -> 0 | AD12: =N12 -> 212 | AE12: =COUNTIF(L33:L44,AD12) -> 0 | AF12: =AE12/(AG4-AE10) -> 0 | AG12: =IF(AF12=0,0,(AF12*((LOG(AF12))/LOG(2)))) -> 0 | AI12: =N12 -> 212 | AJ12: =COUNTIF(L45:L57,AI12) -> 0 | AK12: =AJ12/(AL4-AJ10) -> 0 | AL12: =IF(AK12=0,0,(AK12*((LOG(AK12))/LOG(2)))) -> 0 | AN12: =N12 -> 212 | AO12: =COUNTIF(L58:L70,AN12) -> 0 | AP12: =AO12/(AQ4-AO10) -> 0 | AQ12: =IF(AP12=0,0,(AP12*((LOG(AP12))/LOG(2)))) -> 0 | AS12: =N12 -> 212 | AT12: =COUNTIF(L71:L83,AS12) -> 0 | AU12: =AT12/(AV4-AT10) -> 0 | AV12: =IF(AU12=0,0,(AU12*((LOG(AU12))/LOG(2)))) -> 0
A13: 11 | B13: 770 | C13: 22 | D13: 779 | E13: 23 | F13: 787 | K13: 0 | L13: 122 | N13: 221 | O13: =COUNTIF($L$7:$L$500,N13) -> 0 | P13: =O13/$Q$4 -> 0 | Q13: =IF(P13=0,0,(P13*((LOG(P13))/LOG(2)))) -> 0 | T13: =N13 -> 221 | U13: =COUNTIF(L7:L19,T13) -> 0 | V13: =U13/(W4-U10) -> 0 | W13: =IF(V13=0,0,(V13*((LOG(V13))/LOG(2)))) -> 0 | Y13: =N13 -> 221 | Z13: =COUNTIF(L20:L32,Y13) -> 0 | AA13: =Z13/(AB4-Z10) -> 0 | AB13: =IF(AA13=0,0,(AA13*((LOG(AA13))/LOG(2)))) -> 0 | AD13: =N13 -> 221 | AE13: =COUNTIF(L33:L44,AD13) -> 0 | AF13: =AE13/(AG4-AE10) -> 0 | AG13: =IF(AF13=0,0,(AF13*((LOG(AF13))/LOG(2)))) -> 0 | AI13: =N13 -> 221 | AJ13: =COUNTIF(L45:L57,AI13) -> 0 | AK13: =AJ13/(AL4-AJ10) -> 0 | AL13: =IF(AK13=0,0,(AK13*((LOG(AK13))/LOG(2)))) -> 0 | AN13: =N13 -> 221 | AO13: =COUNTIF(L58:L70,AN13) -> 0 | AP13: =AO13/(AQ4-AO10) -> 0 | AQ13: =IF(AP13=0,0,(AP13*((LOG(AP13))/LOG(2)))) -> 0 | AS13: =N13 -> 221 | AT13: =COUNTIF(L71:L83,AS13) -> 0 | AU13: =AT13/(AV4-AT10) -> 0 | AV13: =IF(AU13=0,0,(AU13*((LOG(AU13))/LOG(2)))) -> 0
A14: 11 | B14: 892 | C14: 11 | D14: 903 | E14: 21 | F14: 911 | K14: 0 | L14: 112 | N14: 222 | O14: =COUNTIF($L$7:$L$500,N14) -> 1 | P14: =O14/$Q$4 -> 0.01298701299 | Q14: =IF(P14=0,0,(P14*((LOG(P14))/LOG(2)))) -> -0.08138683819 | T14: =N14 -> 222 | U14: =COUNTIF(L7:L19,T14) -> 0 | V14: =U14/(W4-U10) -> 0 | W14: =IF(V14=0,0,(V14*((LOG(V14))/LOG(2)))) -> 0 | Y14: =N14 -> 222 | Z14: =COUNTIF(L20:L32,Y14) -> 0 | AA14: =Z14/(AB4-Z10) -> 0 | AB14: =IF(AA14=0,0,(AA14*((LOG(AA14))/LOG(2)))) -> 0 | AD14: =N14 -> 222 | AE14: =COUNTIF(L33:L44,AD14) -> 0 | AF14: =AE14/(AG4-AE10) -> 0 | AG14: =IF(AF14=0,0,(AF14*((LOG(AF14))/LOG(2)))) -> 0 | AI14: =N14 -> 222 | AJ14: =COUNTIF(L45:L57,AI14) -> 0 | AK14: =AJ14/(AL4-AJ10) -> 0 | AL14: =IF(AK14=0,0,(AK14*((LOG(AK14))/LOG(2)))) -> 0 | AN14: =N14 -> 222 | AO14: =COUNTIF(L58:L70,AN14) -> 0 | AP14: =AO14/(AQ4-AO10) -> 0 | AQ14: =IF(AP14=0,0,(AP14*((LOG(AP14))/LOG(2)))) -> 0 | AS14: =N14 -> 222 | AT14: =COUNTIF(L71:L83,AS14) -> 1 | AU14: =AT14/(AV4-AT10) -> 0.1 | AV14: =IF(AU14=0,0,(AU14*((LOG(AU14))/LOG(2)))) -> -0.3321928095
A15: 11 | B15: 998 | C15: 11 | D15: 1042 | E15: 21 | F15: 1055 | K15: 0 | L15: 112 | P15: =SUM(P7:P14) -> 1 | Q15: =-SUM(Q7:Q14) -> 1.768928481 | V15: =SUM(V7:V14) -> 1 | W15: =-SUM(W7:W14) -> 1.224394445 | AA15: =SUM(AA7:AA14) -> 1 | AB15: =-SUM(AB7:AB14) -> 0.9219280949 | AF15: =SUM(AF7:AF14) -> 1 | AG15: =-SUM(AG7:AG14) -> 1.224394445 | AK15: =SUM(AK7:AK14) -> 1 | AL15: =-SUM(AL7:AL14) -> 0.5032583348 | AP15: =SUM(AP7:AP14) -> 1 | AQ15: =-SUM(AQ7:AQ14) -> 0.9182958341 | AU15: =SUM(AU7:AU14) -> 1 | AV15: =-SUM(AV7:AV14) -> 1.570950594
A16: 11 | B16: 1142 | C16: 11 | D16: 1150 | E16: 21 | F16: 1164 | K16: 0 | L16: 112 | P16: U= | Q16: =Q15/(LOG(Q4)/LOG(2)) -> 0.2822704219 | V16: U1= | W16: =W15/(LOG(W4)/LOG(2)) -> 0.3308780952 | AA16: U2= | AB16: =AB15/(LOG(AB4)/LOG(2)) -> 0.2491401469 | AF16: U3= | AG16: =AG15/(LOG(AG4)/LOG(2)) -> 0.3415361932 | AK16: U4= | AL16: =AL15/(LOG(AL4)/LOG(2)) -> 0.1359996036 | AP16: U5= | AQ16: =AQ15/(LOG(AQ4)/LOG(2)) -> 0.2481585714 | AU16: U6= | AV16: =AV15/(LOG(AV4)/LOG(2)) -> 0.4245307893
A17: 11 | B17: 1254 | C17: 22 | D17: 1267 | E17: 23 | F17: 1283 | K17: 0 | L17: 122
A18: 11 | B18: 1386 | C18: 11 | D18: 1391 | E18: 21 | F18: 1403 | K18: 0 | L18: 112
A19: 11 | B19: 1492 | C19: 22 | D19: 1509 | E19: 14 | F19: 1526 | K19: 0 | L19: 121 | N19: Total Target Seq
A20: 11 | B20: 1623 | C20: 11 | D20: 1631 | E20: 21 | F20: 1639 | K20: 0 | L20: 112 | N20: =COUNTIF(L7:L83,G3) -> 21 | P20: 13 | Q20: 13 | R20: 12 | S20: 13 | T20: 13 | U20: 13
A21: 11 | B21: 1731 | C21: 22 | D21: 1749 | E21: 14 | F21: 1762 | K21: 0 | L21: 121 | P21: % of reinforcement given in 6 equal intervals based on number of trials
A22: 11 | B22: 1861 | C22: 11 | D22: 1867 | E22: 21 | F22: 1875 | K22: 0 | L22: 112 | P22: %_1 | Q22: %_2 | R22: %_3 | S22: %_4 | T22: %_5 | U22: %_6
A23: 11 | B23: 1965 | C23: 11 | D23: 1978 | E23: 21 | F23: 1987 | K23: 0 | L23: 112 | O23: target sequence | P23: =$G$3 -> 122 | Q23: =$G$3 -> 122 | R23: =$G$3 -> 122 | S23: =$G$3 -> 122 | T23: =$G$3 -> 122 | U23: =$G$3 -> 122
A24: 11 | B24: 2074 | C24: 22 | D24: 2091 | E24: 23 | F24: 2110 | K24: 0 | L24: 122 | O24: total reinforcement | P24: =U10 -> 4 | Q24: =Z10 -> 3 | R24: =AE10 -> 3 | S24: =AJ10 -> 4 | T24: =AO10 -> 4 | U24: =AT10 -> 3
A25: 11 | B25: 2207 | C25: 11 | D25: 2212 | E25: 21 | F25: 2224 | K25: 0 | L25: 112 | O25: % target
A26: 11 | B26: 2317 | C26: 22 | D26: 2345 | E26: 23 | F26: 2352 | K26: 0 | L26: 122 | O26: CCRF
A27: 11 | B27: 2449 | C27: 11 | D27: 2453 | E27: 12 | F27: 2458 | K27: 0 | L27: 111 | O27: % CCRf
A28: 11 | B28: 2562 | C28: 11 | D28: 2583 | E28: 21 | F28: 2591 | K28: 0 | L28: 112 | O28: average response rate | P28: =F19/P20 -> 117.3846154 | Q28: =(F32-F19)/Q20 -> 116.3846154 | R28: =(F44-F32)/R20 -> 115.8333333 | S28: =(F57-F44)/S20 -> 114.3076923 | T28: =(F70-F57)/T20 -> 117.4615385 | U28: =(F83-F70)/U20 -> 121.9230769
A29: 11 | B29: 2683 | C29: 22 | D29: 2693 | E29: 23 | F29: 2701 | K29: 0 | L29: 122
A30: 11 | B30: 2800 | C30: 11 | D30: 2805 | E30: 21 | F30: 2814 | K30: 0 | L30: 112
A31: 11 | B31: 2904 | C31: 11 | D31: 2917 | E31: 21 | F31: 2932 | K31: 0 | L31: 112
A32: 11 | B32: 3023 | C32: 11 | D32: 3027 | E32: 21 | F32: 3039 | K32: 0 | L32: 112
A33: 11 | B33: 3127 | C33: 11 | D33: 3140 | E33: 21 | F33: 3151 | K33: 0 | L33: 112
A34: 11 | B34: 3241 | C34: 11 | D34: 3253 | E34: 21 | F34: 3270 | K34: 0 | L34: 112
A35: 11 | B35: 3356 | C35: 11 | D35: 3361 | E35: 21 | F35: 3369 | K35: 0 | L35: 112
A36: 11 | B36: 3459 | C36: 22 | D36: 3468 | E36: 23 | F36: 3474 | K36: 0 | L36: 122
A37: 11 | B37: 3570 | C37: 11 | D37: 3574 | E37: 12 | F37: 3579 | K37: 0 | L37: 111
A38: 11 | B38: 3676 | C38: 11 | D38: 3681 | E38: 21 | F38: 3689 | K38: 0 | L38: 112
A39: 11 | B39: 3790 | C39: 22 | D39: 3800 | E39: 14 | F39: 3812 | K39: 0 | L39: 121
A40: 11 | B40: 3910 | C40: 11 | D40: 3915 | E40: 21 | F40: 3924 | K40: 0 | L40: 112
A41: 11 | B41: 4012 | C41: 22 | D41: 4027 | E41: 23 | F41: 4044 | K41: 0 | L41: 122
A42: 11 | B42: 4151 | C42: 11 | D42: 4155 | E42: 21 | F42: 4170 | K42: 0 | L42: 112
A43: 11 | B43: 4261 | C43: 22 | D43: 4274 | E43: 14 | F43: 4286 | K43: 0 | L43: 121
A44: 11 | B44: 4406 | C44: 22 | D44: 4416 | E44: 23 | F44: 4429 | K44: 0 | L44: 122
A45: 11 | B45: 4526 | C45: 11 | D45: 4531 | E45: 21 | F45: 4540 | K45: 0 | L45: 112
A46: 11 | B46: 4628 | C46: 11 | D46: 4633 | E46: 21 | F46: 4642 | K46: 0 | L46: 112
A47: 11 | B47: 4728 | C47: 11 | D47: 4733 | E47: 21 | F47: 4745 | K47: 0 | L47: 112
A48: 11 | B48: 4832 | C48: 11 | D48: 4836 | E48: 12 | F48: 4852 | K48: 0 | L48: 111
A49: 11 | B49: 4951 | C49: 22 | D49: 4963 | E49: 23 | F49: 4977 | K49: 0 | L49: 122
A50: 11 | B50: 5073 | C50: 11 | D50: 5078 | E50: 21 | F50: 5088 | K50: 0 | L50: 112
A51: 11 | B51: 5177 | C51: 11 | D51: 5182 | E51: 21 | F51: 5191 | K51: 0 | L51: 112
A52: 11 | B52: 5279 | C52: 11 | D52: 5287 | E52: 21 | F52: 5297 | K52: 0 | L52: 112
A53: 11 | B53: 5385 | C53: 11 | D53: 5389 | E53: 21 | F53: 5398 | K53: 0 | L53: 112
A54: 11 | B54: 5488 | C54: 22 | D54: 5506 | E54: 23 | F54: 5523 | K54: 0 | L54: 122
A55: 11 | B55: 5620 | C55: 11 | D55: 5625 | E55: 21 | F55: 5637 | K55: 0 | L55: 112
A56: 11 | B56: 5761 | C56: 22 | D56: 5769 | E56: 23 | F56: 5785 | K56: 0 | L56: 122
A57: 11 | B57: 5882 | C57: 22 | D57: 5898 | E57: 23 | F57: 5915 | K57: 0 | L57: 122
A58: 11 | B58: 6012 | C58: 11 | D58: 6017 | E58: 21 | F58: 6026 | K58: 0 | L58: 112
A59: 11 | B59: 6113 | C59: 11 | D59: 6117 | E59: 21 | F59: 6125 | K59: 0 | L59: 112
A60: 11 | B60: 6214 | C60: 11 | D60: 6219 | E60: 21 | F60: 6229 | K60: 0 | L60: 112
A61: 11 | B61: 6317 | C61: 11 | D61: 6321 | E61: 21 | F61: 6330 | K61: 0 | L61: 112
A62: 11 | B62: 6419 | C62: 22 | D62: 6428 | E62: 23 | F62: 6436 | K62: 0 | L62: 122
A63: 11 | B63: 6535 | C63: 22 | D63: 6544 | E63: 14 | F63: 6556 | K63: 0 | L63: 121
A64: 11 | B64: 6665 | C64: 22 | D64: 6676 | E64: 23 | F64: 6690 | K64: 0 | L64: 122
A65: 11 | B65: 6788 | C65: 22 | D65: 6805 | E65: 14 | F65: 6820 | K65: 0 | L65: 121
A66: 11 | B66: 6940 | C66: 22 | D66: 6950 | E66: 23 | F66: 6963 | K66: 0 | L66: 122
A67: 11 | B67: 7061 | C67: 22 | D67: 7075 | E67: 14 | F67: 7091 | K67: 0 | L67: 121
A68: 11 | B68: 7188 | C68: 11 | D68: 7192 | E68: 21 | F68: 7201 | K68: 0 | L68: 112
A69: 11 | B69: 7288 | C69: 11 | D69: 7302 | E69: 21 | F69: 7314 | K69: 0 | L69: 112
A70: 11 | B70: 7406 | C70: 22 | D70: 7423 | E70: 23 | F70: 7442 | K70: 0 | L70: 122
A71: 11 | B71: 7539 | C71: 11 | D71: 7543 | E71: 21 | F71: 7552 | K71: 0 | L71: 112
A72: 22 | B72: 7659 | C72: 24 | D72: 7674 | E72: 23 | F72: 7705 | K72: 0 | L72: 222
A73: 11 | B73: 7805 | C73: 11 | D73: 7810 | E73: 21 | F73: 7818 | K73: 0 | L73: 112
A74: 11 | B74: 7921 | C74: 22 | D74: 7933 | E74: 23 | F74: 7945 | K74: 0 | L74: 122
A75: 11 | B75: 8043 | C75: 11 | D75: 8047 | E75: 21 | F75: 8056 | K75: 0 | L75: 112
A76: 11 | B76: 8142 | C76: 11 | D76: 8146 | E76: 21 | F76: 8175 | K76: 0 | L76: 112
A77: 11 | B77: 8274 | C77: 22 | D77: 8285 | E77: 23 | F77: 8297 | K77: 0 | L77: 122
A78: 11 | B78: 8396 | C78: 22 | D78: 8405 | E78: 14 | F78: 8418 | K78: 0 | L78: 121
A79: 11 | B79: 8522 | C79: 11 | D79: 8526 | E79: 21 | F79: 8535 | K79: 0 | L79: 112
A80: 11 | B80: 8629 | C80: 22 | D80: 8647 | E80: 23 | F80: 8659 | K80: 0 | L80: 122
A81: 11 | B81: 8759 | C81: 11 | D81: 8778 | E81: 12 | F81: 8782 | K81: 0 | L81: 111
A82: 11 | B82: 8885 | C82: 22 | D82: 8897 | E82: 14 | F82: 8917 | K82: 0 | L82: 121
A83: 11 | B83: 9014 | C83: 11 | D83: 9019 | E83: 21 | F83: 9027 | K83: 1 | L83: 112

Sheet !M529B30.096
A1: Report for:!M529B30.096
A2: Date: | B2: <date>
A3: Hen: | B3: <hen> | F3: Correct Sequence | G3: =Start!J2 -> 122 | P3: Total Sequences in Data | Q3: =4994-COUNTBLANK(L7:L5000) -> 69 | V3: Total Sequences in Block Data | W3: =COUNTA(L7:L18) -> 12 | AA3: Total Sequences in Block Data | AB3: =COUNTA(L19:L29) -> 11 | AF3: Total Sequences in Block Data | AG3: =COUNTA(L30:L41) -> 12 | AK3: Total Sequences in Block Data | AL3: =COUNTA(L42:L52) -> 11 | AP3: Total Sequences in Block Data | AQ3: =COUNTA(L53:L64) -> 12 | AU3: Total Sequences in Block Data | AV3: =COUNTA(L65:L75) -> 11
P4: Total Sequences in Summary | Q4: =SUM(O7:O14) -> 69 | V4: Total Sequences in Block Summary | W4: =SUM(U7:U14) -> 12 | AA4: Total Sequences in Block Summary | AB4: =SUM(Z7:Z14) -> 11 | AF4: Total Sequences in Block Summary | AG4: =SUM(AE7:AE14) -> 12 | AK4: Total Sequences in Block Summary | AL4: =SUM(AJ7:AJ14) -> 11 | AP4: Total Sequences in Block Summary | AQ4: =SUM(AO7:AO14) -> 12 | AU4: Total Sequences in Block Summary | AV4: =SUM(AT7:AT14) -> 11
T5: Block 1 | Y5: Block 2 | AD5: Block 3 | AI5: Block 4 | AN5: Block 5 | AS5: Block 6
A6: Sequence Component 1 | B6: Time 1 | C6: Sequence Component 2 | D6: Time 2 | E6: Sequence Component 3 | F6: Time 3 | G6: Sequence Component 4 | H6: Time 4 | I6: Sequence Component 5 | J6: Time 5 | K6: Correct? 0=No 1=Yes | L6: Sequence | N6: Frequency | P6: Relative Frequency | Q6: Variability | T6: Frequency | V6: Relative Frequency | W6: Variability | Y6: Frequency | AA6: Relative Frequency | AB6: Variability | AD6: Frequency | AF6: Relative Frequency | AG6: Variability | AI6: Frequency | AK6: Relative Frequency | AL6: Variability | AN6: Frequency | AP6: Relative Frequency | AQ6: Variability | AS6: Frequency | AU6: Relative Frequency | AV6: Variability
A7: 11 | B7: 9 | C7: 22 | D7: 18 | E7: 23 | F7: 54 | K7: 0 | L7: 122 | N7: 111 | O7: =COUNTIF($L$7:$L$500,N7) -> 2 | P7: =O7/$Q$4 -> 0.02898550725 | Q7: =IF(P7=0,0,(P7*((LOG(P7))/LOG(2)))) -> -0.1480731727 | T7: =N7 -> 111 | U7: =COUNTIF(L7:L18,T7) -> 1 | V7: =U7/(W4-U10) -> 0.125 | W7: =IF(V7=0,0,(V7*((LOG(V7))/LOG(2)))) -> -0.375 | Y7: =N7 -> 111 | Z7: =COUNTIF(L19:L29,Y7) -> 1 | AA7: =Z7/(AB4-Z10) -> 0.1111111111 | AB7: =IF(AA7=0,0,(AA7*((LOG(AA7))/LOG(2)))) -> -0.352213889 | AD7: =N7 -> 111 | AE7: =COUNTIF(L30:L41,AD7) -> 0 | AF7: =AE7/(AG4-AE10) -> 0 | AG7: =IF(AF7=0,0,(AF7*((LOG(AF7))/LOG(2)))) -> 0 | AI7: =N7 -> 111 | AJ7: =COUNTIF(L42:L52,AI7) -> 0 | AK7: =AJ7/(AL4-AJ10) -> 0 | AL7: =IF(AK7=0,0,(AK7*((LOG(AK7))/LOG(2)))) -> 0 | AN7: =N7 -> 111 | AO7: =COUNTIF(L53:L64,AN7) -> 0 | AP7: =AO7/(AQ4-AO10) -> 0 | AQ7: =IF(AP7=0,0,(AP7*((LOG(AP7))/LOG(2)))) -> 0 | AS7: =N7 -> 111 | AT7: =COUNTIF(L65:L75,AS7) -> 0 | AU7: =AT7/(AV4-AT10) -> 0 | AV7: =IF(AU7=0,0,(AU7*((LOG(AU7))/LOG(2)))) -> 0
A8: 22 | B8: 164 | C8: 13 | D8: 174 | E8: 23 | F8: 182 | K8: 0 | L8: 212 | N8: 112 | O8: =COUNTIF($L$7:$L$500,N8) -> 40 | P8: =O8/$Q$4 -> 0.5797101449 | Q8: =IF(P8=0,0,(P8*((LOG(P8))/LOG(2)))) -> -0.455997891 | T8: =N8 -> 112 | U8: =COUNTIF(L7:L18,T8) -> 6 | V8: =U8/(W4-U10) -> 0.75 | W8: =IF(V8=0,0,(V8*((LOG(V8))/LOG(2)))) -> -0.3112781245 | Y8: =N8 -> 112 | Z8: =COUNTIF(L19:L29,Y8) -> 7 | AA8: =Z8/(AB4-Z10) -> 0.7777777778 | AB8: =IF(AA8=0,0,(AA8*((LOG(AA8))/LOG(2)))) -> -0.2819989506 | AD8: =N8 -> 112 | AE8: =COUNTIF(L30:L41,AD8) -> 7 | AF8: =AE8/(AG4-AE10) -> 0.7777777778 | AG8: =IF(AF8=0,0,(AF8*((LOG(AF8))/LOG(2)))) -> -0.2819989506 | AI8: =N8 -> 112 | AJ8: =COUNTIF(L42:L52,AI8) -> 6 | AK8: =AJ8/(AL4-AJ10) -> 1 | AL8: =IF(AK8=0,0,(AK8*((LOG(AK8))/LOG(2)))) -> 0 | AN8: =N8 -> 112 | AO8: =COUNTIF(L53:L64,AN8) -> 7 | AP8: =AO8/(AQ4-AO10) -> 0.875 | AQ8: =IF(AP8=0,0,(AP8*((LOG(AP8))/LOG(2)))) -> -0.1685644432 | AS8: =N8 -> 112 | AT8: =COUNTIF(L65:L75,AS8) -> 7 | AU8: =AT8/(AV4-AT10) -> 0.7777777778 | AV8: =IF(AU8=0,0,(AU8*((LOG(AU8))/LOG(2)))) -> -0.2819989506
A9: 11 | B9: 281 | C9: 22 | D9: 290 | E9: 23 | F9: 300 | K9: 0 | L9: 122 | N9: 121 | O9: =COUNTIF($L$7:$L$500,N9) -> 6 | P9: =O9/$Q$4 -> 0.08695652174 | Q9: =IF(P9=0,0,(P9*((LOG(P9))/LOG(2)))) -> -0.3063966918 | T9: =N9 -> 121 | U9: =COUNTIF(L7:L18,T9) -> 0 | V9: =U9/(W4-U10) -> 0 | W9: =IF(V9=0,0,(V9*((LOG(V9))/LOG(2)))) -> 0 | Y9: =N9 -> 121 | Z9: =COUNTIF(L19:L29,Y9) -> 1 | AA9: =Z9/(AB4-Z10) -> 0.1111111111 | AB9: =IF(AA9=0,0,(AA9*((LOG(AA9))/LOG(2)))) -> -0.352213889 | AD9: =N9 -> 121 | AE9: =COUNTIF(L30:L41,AD9) -> 2 | AF9: =AE9/(AG4-AE10) -> 0.2222222222 | AG9: =IF(AF9=0,0,(AF9*((LOG(AF9))/LOG(2)))) -> -0.4822055559 | AI9: =N9 -> 121 | AJ9: =COUNTIF(L42:L52,AI9) -> 0 | AK9: =AJ9/(AL4-AJ10) -> 0 | AL9: =IF(AK9=0,0,(AK9*((LOG(AK9))/LOG(2)))) -> 0 | AN9: =N9 -> 121 | AO9: =COUNTIF(L53:L64,AN9) -> 1 | AP9: =AO9/(AQ4-AO10) -> 0.125 | AQ9: =IF(AP9=0,0,(AP9*((LOG(AP9))/LOG(2)))) -> -0.375 | AS9: =N9 -> 121 | AT9: =COUNTIF(L65:L75,AS9) -> 2 | AU9: =AT9/(AV4-AT10) -> 0.2222222222 | AV9: =IF(AU9=0,0,(AU9*((LOG(AU9))/LOG(2)))) -> -0.4822055559
A10: 11 | B10: 399 | C10: 11 | D10: 413 | E10: 21 | F10: 425 | K10: 0 | L10: 112 | N10: 122 | O10: =COUNTIF($L$7:$L$500,N10) -> 20 | P10: =O10/$Q$4 -> 0.2898550725 | Q10: =IF(P10=0,0,(P10*((LOG(P10))/LOG(2)))) -> -0.5178540179 | T10: =N10 -> 122 | U10: =COUNTIF(L7:L18,T10) -> 4 | Y10: =N10 -> 122 | Z10: =COUNTIF(L19:L29,Y10) -> 2 | AD10: =N10 -> 122 | AE10: =COUNTIF(L30:L41,AD10) -> 3 | AI10: =N10 -> 122 | AJ10: =COUNTIF(L42:L52,AI10) -> 5 | AN10: =N10 -> 122 | AO10: =COUNTIF(L53:L64,AN10) -> 4 | AS10: =N10 -> 122 | AT10: =COUNTIF(L65:L75,AS10) -> 2
A11: 11 | B11: 515 | C11: 11 | D11: 519 | E11: 21 | F11: 531 | K11: 0 | L11: 112 | N11: 211 | O11: =COUNTIF($L$7:$L$500,N11) -> 0 | P11: =O11/$Q$4 -> 0 | Q11: =IF(P11=0,0,(P11*((LOG(P11))/LOG(2)))) -> 0 | T11: =N11 -> 211 | U11: =COUNTIF(L7:L18,T11) -> 0 | V11: =U11/(W4-U10) -> 0 | W11: =IF(V11=0,0,(V11*((LOG(V11))/LOG(2)))) -> 0 | Y11: =N11 -> 211 | Z11: =COUNTIF(L19:L29,Y11) -> 0 | AA11: =Z11/(AB4-Z10) -> 0 | AB11: =IF(AA11=0,0,(AA11*((LOG(AA11))/LOG(2)))) -> 0 | AD11: =N11 -> 211 | AE11: =COUNTIF(L30:L41,AD11) -> 0 | AF11: =AE11/(AG4-AE10) -> 0 | AG11: =IF(AF11=0,0,(AF11*((LOG(AF11))/LOG(2)))) -> 0 | AI11: =N11 -> 211 | AJ11: =COUNTIF(L42:L52,AI11) -> 0 | AK11: =AJ11/(AL4-AJ10) -> 0 | AL11: =IF(AK11=0,0,(AK11*((LOG(AK11))/LOG(2)))) -> 0 | AN11: =N11 -> 211 | AO11: =COUNTIF(L53:L64,AN11) -> 0 | AP11: =AO11/(AQ4-AO10) -> 0 | AQ11: =IF(AP11=0,0,(AP11*((LOG(AP11))/LOG(2)))) -> 0 | AS11: =N11 -> 211 | AT11: =COUNTIF(L65:L75,AS11) -> 0 | AU11: =AT11/(AV4-AT10) -> 0 | AV11: =IF(AU11=0,0,(AU11*((LOG(AU11))/LOG(2)))) -> 0
A12: 11 | B12: 621 | C12: 22 | D12: 633 | E12: 23 | F12: 660 | K12: 0 | L12: 122 | N12: 212 | O12: =COUNTIF($L$7:$L$500,N12) -> 1 | P12: =O12/$Q$4 -> 0.01449275362 | Q12: =IF(P12=0,0,(P12*((LOG(P12))/LOG(2)))) -> -0.08852933995 | T12: =N12 -> 212 | U12: =COUNTIF(L7:L18,T12) -> 1 | V12: =U12/(W4-U10) -> 0.125 | W12: =IF(V12=0,0,(V12*((LOG(V12))/LOG(2)))) -> -0.375 | Y12: =N12 -> 212 | Z12: =COUNTIF(L19:L29,Y12) -> 0 | AA12: =Z12/(AB4-Z10) -> 0 | AB12: =IF(AA12=0,0,(AA12*((LOG(AA12))/LOG(2)))) -> 0 | AD12: =N12 -> 212 | AE12: =COUNTIF(L30:L41,AD12) -> 0 | AF12: =AE12/(AG4-AE10) -> 0 | AG12: =IF(AF12=0,0,(AF12*((LOG(AF12))/LOG(2)))) -> 0 | AI12: =N12 -> 212 | AJ12: =COUNTIF(L42:L52,AI12) -> 0 | AK12: =AJ12/(AL4-AJ10) -> 0 | AL12: =IF(AK12=0,0,(AK12*((LOG(AK12))/LOG(2)))) -> 0 | AN12: =N12 -> 212 | AO12: =COUNTIF(L53:L64,AN12) -> 0 | AP12: =AO12/(AQ4-AO10) -> 0 | AQ12: =IF(AP12=0,0,(AP12*((LOG(AP12))/LOG(2)))) -> 0 | AS12: =N12 -> 212 | AT12: =COUNTIF(L65:L75,AS12) -> 0 | AU12: =AT12/(AV4-AT10) -> 0 | AV12: =IF(AU12=0,0,(AU12*((LOG(AU12))/LOG(2)))) -> 0
A13: 11 | B13: 757 | C13: 11 | D13: 762 | E13: 21 | F13: 783 | K13: 0 | L13: 112 | N13: 221 | O13: =COUNTIF($L$7:$L$500,N13) -> 0 | P13: =O13/$Q$4 -> 0 | Q13: =IF(P13=0,0,(P13*((LOG(P13))/LOG(2)))) -> 0 | T13: =N13 -> 221 | U13: =COUNTIF(L7:L18,T13) -> 0 | V13: =U13/(W4-U10) -> 0 | W13: =IF(V13=0,0,(V13*((LOG(V13))/LOG(2)))) -> 0 | Y13: =N13 -> 221 | Z13: =COUNTIF(L19:L29,Y13) -> 0 | AA13: =Z13/(AB4-Z10) -> 0 | AB13: =IF(AA13=0,0,(AA13*((LOG(AA13))/LOG(2)))) -> 0 | AD13: =N13 -> 221 | AE13: =COUNTIF(L30:L41,AD13) -> 0 | AF13: =AE13/(AG4-AE10) -> 0 | AG13: =IF(AF13=0,0,(AF13*((LOG(AF13))/LOG(2)))) -> 0 | AI13: =N13 -> 221 | AJ13: =COUNTIF(L42:L52,AI13) -> 0 | AK13: =AJ13/(AL4-AJ10) -> 0 | AL13: =IF(AK13=0,0,(AK13*((LOG(AK13))/LOG(2)))) -> 0 | AN13: =N13 -> 221 | AO13: =COUNTIF(L53:L64,AN13) -> 0 | AP13: =AO13/(AQ4-AO10) -> 0 | AQ13: =IF(AP13=0,0,(AP13*((LOG(AP13))/LOG(2)))) -> 0 | AS13: =N13 -> 221 | AT13: =COUNTIF(L65:L75,AS13) -> 0 | AU13: =AT13/(AV4-AT10) -> 0 | AV13: =IF(AU13=0,0,(AU13*((LOG(AU13))/LOG(2)))) -> 0
A14: 11 | B14: 881 | C14: 22 | D14: 893 | E14: 23 | F14: 915 | K14: 0 | L14: 122 | N14: 222 | O14: =COUNTIF($L$7:$L$500,N14) -> 0 | P14: =O14/$Q$4 -> 0 | Q14: =IF(P14=0,0,(P14*((LOG(P14))/LOG(2)))) -> 0 | T14: =N14 -> 222 | U14: =COUNTIF(L7:L18,T14) -> 0 | V14: =U14/(W4-U10) -> 0 | W14: =IF(V14=0,0,(V14*((LOG(V14))/LOG(2)))) -> 0 | Y14: =N14 -> 222 | Z14: =COUNTIF(L19:L29,Y14) -> 0 | AA14: =Z14/(AB4-Z10) -> 0 | AB14: =IF(AA14=0,0,(AA14*((LOG(AA14))/LOG(2)))) -> 0 | AD14: =N14 -> 222 | AE14: =COUNTIF(L30:L41,AD14) -> 0 | AF14: =AE14/(AG4-AE10) -> 0 | AG14: =IF(AF14=0,0,(AF14*((LOG(AF14))/LOG(2)))) -> 0 | AI14: =N14 -> 222 | AJ14: =COUNTIF(L42:L52,AI14) -> 0 | AK14: =AJ14/(AL4-AJ10) -> 0 | AL14: =IF(AK14=0,0,(AK14*((LOG(AK14))/LOG(2)))) -> 0 | AN14: =N14 -> 222 | AO14: =COUNTIF(L53:L64,AN14) -> 0 | AP14: =AO14/(AQ4-AO10) -> 0 | AQ14: =IF(AP14=0,0,(AP14*((LOG(AP14))/LOG(2)))) -> 0 | AS14: =N14 -> 222 | AT14: =COUNTIF(L65:L75,AS14) -> 0 | AU14: =AT14/(AV4-AT10) -> 0 | AV14: =IF(AU14=0,0,(AU14*((LOG(AU14))/LOG(2)))) -> 0
A15: 11 | B15: 1015 | C15: 11 | D15: 1019 | E15: 21 | F15: 1036 | K15: 0 | L15: 112 | P15: =SUM(P7:P14) -> 1 | Q15: =-SUM(Q7:Q14) -> 1.516851113 | V15: =SUM(V7:V14) -> 1 | W15: =-SUM(W7:W14) -> 1.061278124 | AA15: =SUM(AA7:AA14) -> 1 | AB15: =-SUM(AB7:AB14) -> 0.9864267287 | AF15: =SUM(AF7:AF14) -> 1 | AG15: =-SUM(AG7:AG14) -> 0.7642045065 | AK15: =SUM(AK7:AK14) -> 1 | AL15: =-SUM(AL7:AL14) -> 0 | AP15: =SUM(AP7:AP14) -> 1 | AQ15: =-SUM(AQ7:AQ14) -> 0.5435644432 | AU15: =SUM(AU7:AU14) -> 1 | AV15: =-SUM(AV7:AV14) -> 0.7642045065
A16: 11 | B16: 1124 | C16: 11 | D16: 1128 | E16: 21 | F16: 1141 | K16: 0 | L16: 112 | P16: U= | Q16: =Q15/(LOG(Q4)/LOG(2)) -> 0.2483171057 | V16: U1= | W16: =W15/(LOG(W4)/LOG(2)) -> 0.2960360462 | AA16: U2= | AB16: =AB15/(LOG(AB4)/LOG(2)) -> 0.285141271 | AF16: U3= | AG16: =AG15/(LOG(AG4)/LOG(2)) -> 0.2131694561 | AK16: U4= | AL16: =AL15/(LOG(AL4)/LOG(2)) -> 0 | AP16: U5= | AQ16: =AQ15/(LOG(AQ4)/LOG(2)) -> 0.1516234669 | AU16: U6= | AV16: =AV15/(LOG(AV4)/LOG(2)) -> 0.2209046429
A17: 11 | B17: 1228 | C17: 11 | D17: 1233 | E17: 12 | F17: 1246 | K17: 0 | L17: 111
A18: 11 | B18: 1345 | C18: 11 | D18: 1350 | E18: 21 | F18: 1364 | K18: 0 | L18: 112
A19: 11 | B19: 1451 | C19: 11 | D19: 1456 | E19: 21 | F19: 1467 | K19: 0 | L19: 112 | N19: Total Target Seq
A20: 11 | B20: 1553 | C20: 11 | D20: 1558 | E20: 21 | F20: 1569 | K20: 0 | L20: 112 | N20: =COUNTIF(L7:L75,G3) -> 20 | P20: 12 | Q20: 11 | R20: 12 | S20: 11 | T20: 12 | U20: 11
A21: 11 | B21: 1665 | C21: 22 | D21: 1677 | E21: 23 | F21: 1696 | K21: 0 | L21: 122 | P21: % of reinforcement given in 6 equal intervals based on number of trials
A22: 11 | B22: 1802 | C22: 11 | D22: 1815 | E22: 21 | F22: 1827 | K22: 0 | L22: 112 | P22: %_1 | Q22: %_2 | R22: %_3 | S22: %_4 | T22: %_5 | U22: %_6
A23: 11 | B23: 1915 | C23: 22 | D23: 1928 | E23: 14 | F23: 1941 | K23: 0 | L23: 121 | O23: target sequence | P23: =$G$3 -> 122 | Q23: =$G$3 -> 122 | R23: =$G$3 -> 122 | S23: =$G$3 -> 122 | T23: =$G$3 -> 122 | U23: =$G$3 -> 122
A24: 11 | B24: 2038 | C24: 11 | D24: 2042 | E24: 21 | F24: 2052 | K24: 0 | L24: 112 | O24: total reinforcement | P24: =U10 -> 4 | Q24: =Z10 -> 2 | R24: =AE10 -> 3 | S24: =AJ10 -> 5 | T24: =AO10 -> 4 | U24: =AT10 -> 2
A25: 11 | B25: 2139 | C25: 11 | D25: 2147 | E25: 12 | F25: 2160 | K25: 0 | L25: 111 | O25: % target
A26: 11 | B26: 2257 | C26: 11 | D26: 2263 | E26: 21 | F26: 2276 | K26: 0 | L26: 112 | O26: CCRF
A27: 11 | B27: 2363 | C27: 11 | D27: 2368 | E27: 21 | F27: 2377 | K27: 0 | L27: 112 | O27: % CCRf
A28: 11 | B28: 2465 | C28: 11 | D28: 2478 | E28: 21 | F28: 2487 | K28: 0 | L28: 112 | O28: average response rate | P28: =F18/P20 -> 113.6666667 | Q28: =(F29-F18)/Q20 -> 116.7272727 | R28: =(F41-F29)/R20 -> 120.6666667 | S28: =(F52-F41)/S20 -> 120.2727273 | T28: =(F64-F52)/T20 -> 119.0833333 | U28: =(F75-F64)/U20 -> 112.5454545
A29: 11 | B29: 2582 | C29: 22 | D29: 2602 | E29: 23 | F29: 2648 | K29: 0 | L29: 122
A30: 11 | B30: 2757 | C30: 22 | D30: 2770 | E30: 14 | F30: 2784 | K30: 0 | L30: 121
A31: 11 | B31: 2882 | C31: 11 | D31: 2887 | E31: 21 | F31: 2895 | K31: 0 | L31: 112
A32: 11 | B32: 2986 | C32: 11 | D32: 2990 | E32: 21 | F32: 3002 | K32: 0 | L32: 112
A33: 11 | B33: 3090 | C33: 11 | D33: 3099 | E33: 21 | F33: 3111 | K33: 0 | L33: 112
A34: 11 | B34: 3210 | C34: 22 | D34: 3218 | E34: 14 | F34: 3239 | K34: 0 | L34: 121
A35: 11 | B35: 3335 | C35: 11 | D35: 3340 | E35: 21 | F35: 3365 | K35: 0 | L35: 112
A36: 11 | B36: 3452 | C36: 11 | D36: 3461 | E36: 21 | F36: 3475 | K36: 0 | L36: 112
A37: 11 | B37: 3563 | C37: 11 | D37: 3569 | E37: 21 | F37: 3583 | K37: 0 | L37: 112
A38: 11 | B38: 3670 | C38: 11 | D38: 3678 | E38: 21 | F38: 3687 | K38: 0 | L38: 112
A39: 11 | B39: 3775 | C39: 22 | D39: 3786 | E39: 23 | F39: 3814 | K39: 0 | L39: 122
A40: 11 | B40: 3917 | C40: 22 | D40: 3929 | E40: 23 | F40: 3957 | K40: 0 | L40: 122
A41: 11 | B41: 4059 | C41: 22 | D41: 4074 | E41: 23 | F41: 4096 | K41: 0 | L41: 122
A42: 11 | B42: 4194 | C42: 11 | D42: 4199 | E42: 21 | F42: 4207 | K42: 0 | L42: 112
A43: 11 | B43: 4303 | C43: 22 | D43: 4319 | E43: 23 | F43: 4336 | K43: 0 | L43: 122
A44: 11 | B44: 4433 | C44: 22 | D44: 4456 | E44: 23 | F44: 4469 | K44: 0 | L44: 122
A45: 11 | B45: 4570 | C45: 22 | D45: 4582 | E45: 23 | F45: 4594 | K45: 0 | L45: 122
A46: 11 | B46: 4691 | C46: 11 | D46: 4696 | E46: 21 | F46: 4711 | K46: 0 | L46: 112
A47: 11 | B47: 4799 | C47: 22 | D47: 4822 | E47: 23 | F47: 4842 | K47: 0 | L47: 122
A48: 11 | B48: 4940 | C48: 11 | D48: 4945 | E48: 21 | F48: 4961 | K48: 0 | L48: 112
A49: 11 | B49: 5048 | C49: 11 | D49: 5052 | E49: 21 | F49: 5066 | K49: 0 | L49: 112
A50: 11 | B50: 5156 | C50: 11 | D50: 5160 | E50: 21 | F50: 5170 | K50: 0 | L50: 112
A51: 11 | B51: 5259 | C51: 11 | D51: 5263 | E51: 21 | F51: 5275 | K51: 0 | L51: 112
A52: 11 | B52: 5382 | C52: 22 | D52: 5393 | E52: 23 | F52: 5419 | K52: 0 | L52: 122
A53: 11 | B53: 5516 | C53: 22 | D53: 5525 | E53: 23 | F53: 5540 | K53: 0 | L53: 122
A54: 11 | B54: 5639 | C54: 22 | D54: 5649 | E54: 23 | F54: 5666 | K54: 0 | L54: 122
A55: 11 | B55: 5768 | C55: 22 | D55: 5776 | E55: 23 | F55: 5814 | K55: 0 | L55: 122
A56: 11 | B56: 5911 | C56: 11 | D56: 5917 | E56: 21 | F56: 5925 | K56: 0 | L56: 112
A57: 11 | B57: 6016 | C57: 11 | D57: 6021 | E57: 21 | F57: 6030 | K57: 0 | L57: 112
A58: 11 | B58: 6118 | C58: 22 | D58: 6129 | E58: 14 | F58: 6149 | K58: 0 | L58: 121
A59: 11 | B59: 6246 | C59: 11 | D59: 6251 | E59: 21 | F59: 6260 | K59: 0 | L59: 112
A60: 11 | B60: 6347 | C60: 11 | D60: 6352 | E60: 21 | F60: 6387 | K60: 0 | L60: 112
A61: 11 | B61: 6475 | C61: 11 | D61: 6481 | E61: 21 | F61: 6497 | K61: 0 | L61: 112
A62: 11 | B62: 6592 | C62: 22 | D62: 6612 | E62: 23 | F62: 6619 | K62: 0 | L62: 122
A63: 11 | B63: 6716 | C63: 11 | D63: 6734 | E63: 21 | F63: 6743 | K63: 0 | L63: 112
A64: 11 | B64: 6832 | C64: 11 | D64: 6836 | E64: 21 | F64: 6848 | K64: 0 | L64: 112
A65: 11 | B65: 6936 | C65: 11 | D65: 6940 | E65: 21 | F65: 6951 | K65: 0 | L65: 112
A66: 11 | B66: 7039 | C66: 11 | D66: 7043 | E66: 21 | F66: 7052 | K66: 0 | L66: 112
A67: 11 | B67: 7142 | C67: 22 | D67: 7151 | E67: 23 | F67: 7178 | K67: 0 | L67: 122
A68: 11 | B68: 7283 | C68: 22 | D68: 7294 | E68: 14 | F68: 7311 | K68: 0 | L68: 121
A69: 11 | B69: 7411 | C69: 22 | D69: 7421 | E69: 23 | F69: 7428 | K69: 0 | L69: 122
A70: 11 | B70: 7525 | C70: 11 | D70: 7529 | E70: 21 | F70: 7538 | K70: 0 | L70: 112
A71: 11 | B71: 7625 | C71: 11 | D71: 7634 | E71: 21 | F71: 7643 | K71: 0 | L71: 112
A72: 11 | B72: 7732 | C72: 22 | D72: 7747 | E72: 14 | F72: 7763 | K72: 0 | L72: 121
A73: 11 | B73: 7862 | C73: 11 | D73: 7866 | E73: 21 | F73: 7875 | K73: 0 | L73: 112
A74: 11 | B74: 7963 | C74: 11 | D74: 7967 | E74: 21 | F74: 7979 | K74: 0 | L74: 112
A75: 11 | B75: 8068 | C75: 11 | D75: 8075 | E75: 21 | F75: 8086 | K75: 1 | L75: 112

Sheet !M531B30.096
A1: Report for:!M531B30.096
A2: Date: | B2: <date>
A3: Hen: | B3: <hen> | F3: Correct Sequence | G3: =Start!J2 -> 122 | P3: Total Sequences in Data | Q3: =4994-COUNTBLANK(L7:L5000) -> 65 | V3: Total Sequences in Block Data | W3: =COUNTA(L7:L17) -> 11 | AA3: Total Sequences in Block Data | AB3: =COUNTA(L18:L28) -> 11 | AF3: Total Sequences in Block Data | AG3: =COUNTA(L29:L38) -> 10 | AK3: Total Sequences in Block Data | AL3: =COUNTA(L39:L49) -> 11 | AP3: Total Sequences in Block Data | AQ3: =COUNTA(L50:L60) -> 11 | AU3: Total Sequences in Block Data | AV3: =COUNTA(L61:L71) -> 11
P4: Total Sequences in Summary | Q4: =SUM(O7:O14) -> 65 | V4: Total Sequences in Block Summary | W4: =SUM(U7:U14) -> 11 | AA4: Total Sequences in Block Summary | AB4: =SUM(Z7:Z14) -> 11 | AF4: Total Sequences in Block Summary | AG4: =SUM(AE7:AE14) -> 10 | AK4: Total Sequences in Block Summary | AL4: =SUM(AJ7:AJ14) -> 11 | AP4: Total Sequences in Block Summary | AQ4: =SUM(AO7:AO14) -> 11 | AU4: Total Sequences in Block Summary | AV4: =SUM(AT7:AT14) -> 11
T5: Block 1 | Y5: Block 2 | AD5: Block 3 | AI5: Block 4 | AN5: Block 5 | AS5: Block 6
A6: Sequence Component 1 | B6: Time 1 | C6: Sequence Component 2 | D6: Time 2 | E6: Sequence Component 3 | F6: Time 3 | G6: Sequence Component 4 | H6: Time 4 | I6: Sequence Component 5 | J6: Time 5 | K6: Correct? 0=No 1=Yes | L6: Sequence | N6: Frequency | P6: Relative Frequency | Q6: Variability | T6: Frequency | V6: Relative Frequency | W6: Variability | Y6: Frequency | AA6: Relative Frequency | AB6: Variability | AD6: Frequency | AF6: Relative Frequency | AG6: Variability | AI6: Frequency | AK6: Relative Frequency | AL6: Variability | AN6: Frequency | AP6: Relative Frequency | AQ6: Variability | AS6: Frequency | AU6: Relative Frequency | AV6: Variability
A7: 22 | B7: 43 | C7: 24 | D7: 60 | E7: 23 | F7: 72 | K7: 0 | L7: 222 | N7: 111 | O7: =COUNTIF($L$7:$L$500,N7) -> 2 | P7: =O7/$Q$4 -> 0.03076923077 | Q7: =IF(P7=0,0,(P7*((LOG(P7))/LOG(2)))) -> -0.1545343942 | T7: =N7 -> 111 | U7: =COUNTIF(L7:L17,T7) -> 0 | V7: =U7/(W4-U10) -> 0 | W7: =IF(V7=0,0,(V7*((LOG(V7))/LOG(2)))) -> 0 | Y7: =N7 -> 111 | Z7: =COUNTIF(L18:L28,Y7) -> 0 | AA7: =Z7/(AB4-Z10) -> 0 | AB7: =IF(AA7=0,0,(AA7*((LOG(AA7))/LOG(2)))) -> 0 | AD7: =N7 -> 111 | AE7: =COUNTIF(L29:L38,AD7) -> 1 | AF7: =AE7/(AG4-AE10) -> 0.125 | AG7: =IF(AF7=0,0,(AF7*((LOG(AF7))/LOG(2)))) -> -0.375 | AI7: =N7 -> 111 | AJ7: =COUNTIF(L39:L49,AI7) -> 1 | AK7: =AJ7/(AL4-AJ10) -> 0.125 | AL7: =IF(AK7=0,0,(AK7*((LOG(AK7))/LOG(2)))) -> -0.375 | AN7: =N7 -> 111 | AO7: =COUNTIF(L50:L60,AN7) -> 0 | AP7: =AO7/(AQ4-AO10) -> 0 | AQ7: =IF(AP7=0,0,(AP7*((LOG(AP7))/LOG(2)))) -> 0 | AS7: =N7 -> 111 | AT7: =COUNTIF(L61:L71,AS7) -> 0 | AU7: =AT7/(AV4-AT10) -> 0 | AV7: =IF(AU7=0,0,(AU7*((LOG(AU7))/LOG(2)))) -> 0
A8: 11 | B8: 173 | C8: 22 | D8: 190 | E8: 23 | F8: 198 | K8: 0 | L8: 122 | N8: 112 | O8: =COUNTIF($L$7:$L$500,N8) -> 40 | P8: =O8/$Q$4 -> 0.6153846154 | Q8: =IF(P8=0,0,(P8*((LOG(P8))/LOG(2)))) -> -0.4310398265 | T8: =N8 -> 112 | U8: =COUNTIF(L7:L17,T8) -> 5 | V8: =U8/(W4-U10) -> 0.5555555556 | W8: =IF(V8=0,0,(V8*((LOG(V8))/LOG(2)))) -> -0.4711093925 | Y8: =N8 -> 112 | Z8: =COUNTIF(L18:L28,Y8) -> 6 | AA8: =Z8/(AB4-Z10) -> 0.8571428571 | AB8: =IF(AA8=0,0,(AA8*((LOG(AA8))/LOG(2)))) -> -0.1906220754 | AD8: =N8 -> 112 | AE8: =COUNTIF(L29:L38,AD8) -> 6 | AF8: =AE8/(AG4-AE10) -> 0.75 | AG8: =IF(AF8=0,0,(AF8*((LOG(AF8))/LOG(2)))) -> -0.3112781245 | AI8: =N8 -> 112 | AJ8: =COUNTIF(L39:L49,AI8) -> 6 | AK8: =AJ8/(AL4-AJ10) -> 0.75 | AL8: =IF(AK8=0,0,(AK8*((LOG(AK8))/LOG(2)))) -> -0.3112781245 | AN8: =N8 -> 112 | AO8: =COUNTIF(L50:L60,AN8) -> 8 | AP8: =AO8/(AQ4-AO10) -> 0.8888888889 | AQ8: =IF(AP8=0,0,(AP8*((LOG(AP8))/LOG(2)))) -> -0.1510444457 | AS8: =N8 -> 112 | AT8: =COUNTIF(L61:L71,AS8) -> 9 | AU8: =AT8/(AV4-AT10) -> 0.9 | AV8: =IF(AU8=0,0,(AU8*((LOG(AU8))/LOG(2)))) -> -0.1368027841
A9: 11 | B9: 296 | C9: 11 | D9: 301 | E9: 21 | F9: 313 | K9: 0 | L9: 112 | N9: 121 | O9: =COUNTIF($L$7:$L$500,N9) -> 8 | P9: =O9/$Q$4 -> 0.1230769231 | Q9: =IF(P9=0,0,(P9*((LOG(P9))/LOG(2)))) -> -0.3719837308 | T9: =N9 -> 121 | U9: =COUNTIF(L7:L17,T9) -> 3 | V9: =U9/(W4-U10) -> 0.3333333333 | W9: =IF(V9=0,0,(V9*((LOG(V9))/LOG(2)))) -> -0.5283208336 | Y9: =N9 -> 121 | Z9: =COUNTIF(L18:L28,Y9) -> 1 | AA9: =Z9/(AB4-Z10) -> 0.1428571429 | AB9: =IF(AA9=0,0,(AA9*((LOG(AA9))/LOG(2)))) -> -0.4010507032 | AD9: =N9 -> 121 | AE9: =COUNTIF(L29:L38,AD9) -> 1 | AF9: =AE9/(AG4-AE10) -> 0.125 | AG9: =IF(AF9=0,0,(AF9*((LOG(AF9))/LOG(2)))) -> -0.375 | AI9: =N9 -> 121 | AJ9: =COUNTIF(L39:L49,AI9) -> 1 | AK9: =AJ9/(AL4-AJ10) -> 0.125 | AL9: =IF(AK9=0,0,(AK9*((LOG(AK9))/LOG(2)))) -> -0.375 | AN9: =N9 -> 121 | AO9: =COUNTIF(L50:L60,AN9) -> 1 | AP9: =AO9/(AQ4-AO10) -> 0.1111111111 | AQ9: =IF(AP9=0,0,(AP9*((LOG(AP9))/LOG(2)))) -> -0.352213889 | AS9: =N9 -> 121 | AT9: =COUNTIF(L61:L71,AS9) -> 1 | AU9: =AT9/(AV4-AT10) -> 0.1 | AV9: =IF(AU9=0,0,(AU9*((LOG(AU9))/LOG(2)))) -> -0.3321928095
A10: 11 | B10: 406 | C10: 22 | D10: 423 | E10: 14 | F10: 452 | K10: 0 | L10: 121 | N10: 122 | O10: =COUNTIF($L$7:$L$500,N10) -> 14 | P10: =O10/$Q$4 -> 0.2153846154 | Q10: =IF(P10=0,0,(P10*((LOG(P10))/LOG(2)))) -> -0.4770796996 | T10: =N10 -> 122 | U10: =COUNTIF(L7:L17,T10) -> 2 | Y10: =N10 -> 122 | Z10: =COUNTIF(L18:L28,Y10) -> 4 | AD10: =N10 -> 122 | AE10: =COUNTIF(L29:L38,AD10) -> 2 | AI10: =N10 -> 122 | AJ10: =COUNTIF(L39:L49,AI10) -> 3 | AN10: =N10 -> 122 | AO10: =COUNTIF(L50:L60,AN10) -> 2 | AS10: =N10 -> 122 | AT10: =COUNTIF(L61:L71,AS10) -> 1
A11: 11 | B11: 550 | C11: 22 | D11: 568 | E11: 14 | F11: 586 | K11: 0 | L11: 121 | N11: 211 | O11: =COUNTIF($L$7:$L$500,N11) -> 0 | P11: =O11/$Q$4 -> 0 | Q11: =IF(P11=0,0,(P11*((LOG(P11))/LOG(2)))) -> 0 | T11: =N11 -> 211 | U11: =COUNTIF(L7:L17,T11) -> 0 | V11: =U11/(W4-U10) -> 0 | W11: =IF(V11=0,0,(V11*((LOG(V11))/LOG(2)))) -> 0 | Y11: =N11 -> 211 | Z11: =COUNTIF(L18:L28,Y11) -> 0 | AA11: =Z11/(AB4-Z10) -> 0 | AB11: =IF(AA11=0,0,(AA11*((LOG(AA11))/LOG(2)))) -> 0 | AD11: =N11 -> 211 | AE11: =COUNTIF(L29:L38,AD11) -> 0 | AF11: =AE11/(AG4-AE10) -> 0 | AG11: =IF(AF11=0,0,(AF11*((LOG(AF11))/LOG(2)))) -> 0 | AI11: =N11 -> 211 | AJ11: =COUNTIF(L39:L49,AI11) -> 0 | AK11: =AJ11/(AL4-AJ10) -> 0 | AL11: =IF(AK11=0,0,(AK11*((LOG(AK11))/LOG(2)))) -> 0 | AN11: =N11 -> 211 | AO11: =COUNTIF(L50:L60,AN11) -> 0 | AP11: =AO11/(AQ4-AO10) -> 0 | AQ11: =IF(AP11=0,0,(AP11*((LOG(AP11))/LOG(2)))) -> 0 | AS11: =N11 -> 211 | AT11: =COUNTIF(L61:L71,AS11) -> 0 | AU11: =AT11/(AV4-AT10) -> 0 | AV11: =IF(AU11=0,0,(AU11*((LOG(AU11))/LOG(2)))) -> 0
A12: 11 | B12: 683 | C12: 11 | D12: 688 | E12: 21 | F12: 700 | K12: 0 | L12: 112 | N12: 212 | O12: =COUNTIF($L$7:$L$500,N12) -> 0 | P12: =O12/$Q$4 -> 0 | Q12: =IF(P12=0,0,(P12*((LOG(P12))/LOG(2)))) -> 0 | T12: =N12 -> 212 | U12: =COUNTIF(L7:L17,T12) -> 0 | V12: =U12/(W4-U10) -> 0 | W12: =IF(V12=0,0,(V12*((LOG(V12))/LOG(2)))) -> 0 | Y12: =N12 -> 212 | Z12: =COUNTIF(L18:L28,Y12) -> 0 | AA12: =Z12/(AB4-Z10) -> 0 | AB12: =IF(AA12=0,0,(AA12*((LOG(AA12))/LOG(2)))) -> 0 | AD12: =N12 -> 212 | AE12: =COUNTIF(L29:L38,AD12) -> 0 | AF12: =AE12/(AG4-AE10) -> 0 | AG12: =IF(AF12=0,0,(AF12*((LOG(AF12))/LOG(2)))) -> 0 | AI12: =N12 -> 212 | AJ12: =COUNTIF(L39:L49,AI12) -> 0 | AK12: =AJ12/(AL4-AJ10) -> 0 | AL12: =IF(AK12=0,0,(AK12*((LOG(AK12))/LOG(2)))) -> 0 | AN12: =N12 -> 212 | AO12: =COUNTIF(L50:L60,AN12) -> 0 | AP12: =AO12/(AQ4-AO10) -> 0 | AQ12: =IF(AP12=0,0,(AP12*((LOG(AP12))/LOG(2)))) -> 0 | AS12: =N12 -> 212 | AT12: =COUNTIF(L61:L71,AS12) -> 0 | AU12: =AT12/(AV4-AT10) -> 0 | AV12: =IF(AU12=0,0,(AU12*((LOG(AU12))/LOG(2)))) -> 0
A13: 11 | B13: 788 | C13: 11 | D13: 794 | E13: 21 | F13: 807 | K13: 0 | L13: 112 | N13: 221 | O13: =COUNTIF($L$7:$L$500,N13) -> 0 | P13: =O13/$Q$4 -> 0 | Q13: =IF(P13=0,0,(P13*((LOG(P13))/LOG(2)))) -> 0 | T13: =N13 -> 221 | U13: =COUNTIF(L7:L17,T13) -> 0 | V13: =U13/(W4-U10) -> 0 | W13: =IF(V13=0,0,(V13*((LOG(V13))/LOG(2)))) -> 0 | Y13: =N13 -> 221 | Z13: =COUNTIF(L18:L28,Y13) -> 0 | AA13: =Z13/(AB4-Z10) -> 0 | AB13: =IF(AA13=0,0,(AA13*((LOG(AA13))/LOG(2)))) -> 0 | AD13: =N13 -> 221 | AE13: =COUNTIF(L29:L38,AD13) -> 0 | AF13: =AE13/(AG4-AE10) -> 0 | AG13: =IF(AF13=0,0,(AF13*((LOG(AF13))/LOG(2)))) -> 0 | AI13: =N13 -> 221 | AJ13: =COUNTIF(L39:L49,AI13) -> 0 | AK13: =AJ13/(AL4-AJ10) -> 0 | AL13: =IF(AK13=0,0,(AK13*((LOG(AK13))/LOG(2)))) -> 0 | AN13: =N13 -> 221 | AO13: =COUNTIF(L50:L60,AN13) -> 0 | AP13: =AO13/(AQ4-AO10) -> 0 | AQ13: =IF(AP13=0,0,(AP13*((LOG(AP13))/LOG(2)))) -> 0 | AS13: =N13 -> 221 | AT13: =COUNTIF(L61:L71,AS13) -> 0 | AU13: =AT13/(AV4-AT10) -> 0 | AV13: =IF(AU13=0,0,(AU13*((LOG(AU13))/LOG(2)))) -> 0
A14: 11 | B14: 897 | C14: 11 | D14: 904 | E14: 21 | F14: 918 | K14: 0 | L14: 112 | N14: 222 | O14: =COUNTIF($L$7:$L$500,N14) -> 1 | P14: =O14/$Q$4 -> 0.01538461538 | Q14: =IF(P14=0,0,(P14*((LOG(P14))/LOG(2)))) -> -0.09265181251 | T14: =N14 -> 222 | U14: =COUNTIF(L7:L17,T14) -> 1 | V14: =U14/(W4-U10) -> 0.1111111111 | W14: =IF(V14=0,0,(V14*((LOG(V14))/LOG(2)))) -> -0.352213889 | Y14: =N14 -> 222 | Z14: =COUNTIF(L18:L28,Y14) -> 0 | AA14: =Z14/(AB4-Z10) -> 0 | AB14: =IF(AA14=0,0,(AA14*((LOG(AA14))/LOG(2)))) -> 0 | AD14: =N14 -> 222 | AE14: =COUNTIF(L29:L38,AD14) -> 0 | AF14: =AE14/(AG4-AE10) -> 0 | AG14: =IF(AF14=0,0,(AF14*((LOG(AF14))/LOG(2)))) -> 0 | AI14: =N14 -> 222 | AJ14: =COUNTIF(L39:L49,AI14) -> 0 | AK14: =AJ14/(AL4-AJ10) -> 0 | AL14: =IF(AK14=0,0,(AK14*((LOG(AK14))/LOG(2)))) -> 0 | AN14: =N14 -> 222 | AO14: =COUNTIF(L50:L60,AN14) -> 0 | AP14: =AO14/(AQ4-AO10) -> 0 | AQ14: =IF(AP14=0,0,(AP14*((LOG(AP14))/LOG(2)))) -> 0 | AS14: =N14 -> 222 | AT14: =COUNTIF(L61:L71,AS14) -> 0 | AU14: =AT14/(AV4-AT10) -> 0 | AV14: =IF(AU14=0,0,(AU14*((LOG(AU14))/LOG(2)))) -> 0
A15: 11 | B15: 1015 | C15: 22 | D15: 1031 | E15: 23 | F15: 1052 | K15: 0 | L15: 122 | P15: =SUM(P7:P14) -> 1 | Q15: =-SUM(Q7:Q14) -> 1.527289464 | V15: =SUM(V7:V14) -> 1 | W15: =-SUM(W7:W14) -> 1.351644115 | AA15: =SUM(AA7:AA14) -> 1 | AB15: =-SUM(AB7:AB14) -> 0.5916727786 | AF15: =SUM(AF7:AF14) -> 1 | AG15: =-SUM(AG7:AG14) -> 1.061278124 | AK15: =SUM(AK7:AK14) -> 1 | AL15: =-SUM(AL7:AL14) -> 1.061278124 | AP15: =SUM(AP7:AP14) -> 1 | AQ15: =-SUM(AQ7:AQ14) -> 0.5032583348 | AU15: =SUM(AU7:AU14) -> 1 | AV15: =-SUM(AV7:AV14) -> 0.4689955936
A16: 11 | B16: 1157 | C16: 11 | D16: 1162 | E16: 21 | F16: 1174 | K16: 0 | L16: 112 | P16: U= | Q16: =Q15/(LOG(Q4)/LOG(2)) -> 0.2536028205 | V16: U1= | W16: =W15/(LOG(W4)/LOG(2)) -> 0.3907127714 | AA16: U2= | AB16: =AB15/(LOG(AB4)/LOG(2)) -> 0.171031789 | AF16: U3= | AG16: =AG15/(LOG(AG4)/LOG(2)) -> 0.3194765492 | AK16: U4= | AL16: =AL15/(LOG(AL4)/LOG(2)) -> 0.3067781767 | AP16: U5= | AQ16: =AQ15/(LOG(AQ4)/LOG(2)) -> 0.1454742831 | AU16: U6= | AV16: =AV15/(LOG(AV4)/LOG(2)) -> 0.1355701298
A17: 11 | B17: 1273 | C17: 22 | D17: 1296 | E17: 14 | F17: 1315 | K17: 0 | L17: 121
A18: 11 | B18: 1412 | C18: 11 | D18: 1416 | E18: 21 | F18: 1429 | K18: 0 | L18: 112
A19: 11 | B19: 1517 | C19: 11 | D19: 1522 | E19: 21 | F19: 1535 | K19: 0 | L19: 112 | N19: Total Target Seq
A20: 11 | B20: 1625 | C20: 22 | D20: 1645 | E20: 14 | F20: 1663 | K20: 0 | L20: 121 | N20: =COUNTIF(L7:L71,G3) -> 14 | P20: 11 | Q20: 11 | R20: 10 | S20: 11 | T20: 11 | U20: 11
A21: 11 | B21: 1759 | C21: 11 | D21: 1763 | E21: 21 | F21: 1773 | K21: 0 | L21: 112 | P21: % of reinforcement given in 6 equal intervals based on number of trials
A22: 11 | B22: 1869 | C22: 22 | D22: 1881 | E22: 23 | F22: 1900 | K22: 0 | L22: 122 | P22: %_1 | Q22: %_2 | R22: %_3 | S22: %_4 | T22: %_5 | U22: %_6
A23: 11 | B23: 1997 | C23: 11 | D23: 2003 | E23: 21 | F23: 2032 | K23: 0 | L23: 112 | O23: target sequence | P23: =$G$3 -> 122 | Q23: =$G$3 -> 122 | R23: =$G$3 -> 122 | S23: =$G$3 -> 122 | T23: =$G$3 -> 122 | U23: =$G$3 -> 122
A24: 11 | B24: 2121 | C24: 22 | D24: 2134 | E24: 23 | F24: 2155 | K24: 0 | L24: 122 | O24: total reinforcement | P24: =U10 -> 2 | Q24: =Z10 -> 4 | R24: =AE10 -> 2 | S24: =AJ10 -> 3 | T24: =AO10 -> 2 | U24: =AT10 -> 1
A25: 11 | B25: 2257 | C25: 22 | D25: 2275 | E25: 23 | F25: 2293 | K25: 0 | L25: 122 | O25: % target
A26: 11 | B26: 2390 | C26: 11 | D26: 2395 | E26: 21 | F26: 2421 | K26: 0 | L26: 112 | O26: CCRF
A27: 11 | B27: 2518 | C27: 22 | D27: 2529 | E27: 23 | F27: 2556 | K27: 0 | L27: 122 | O27: % CCRf
A28: 11 | B28: 2655 | C28: 11 | D28: 2659 | E28: 21 | F28: 2668 | K28: 0 | L28: 112 | O28: average response rate | P28: =F17/P20 -> 119.5454545 | Q28: =(F28-F17)/Q20 -> 123 | R28: =(F38-F28)/R20 -> 116.2 | S28: =(F49-F38)/S20 -> 119.0909091 | T28: =(F60-F49)/T20 -> 111.0909091 | U28: =(F71-F60)/U20 -> 113.4545455
A29: 11 | B29: 2755 | C29: 11 | D29: 2760 | E29: 21 | F29: 2769 | K29: 0 | L29: 112
A30: 11 | B30: 2857 | C30: 11 | D30: 2862 | E30: 21 | F30: 2884 | K30: 0 | L30: 112
A31: 11 | B31: 2972 | C31: 11 | D31: 2977 | E31: 12 | F31: 3012 | K31: 0 | L31: 111
A32: 11 | B32: 3112 | C32: 22 | D32: 3131 | E32: 23 | F32: 3145 | K32: 0 | L32: 122
A33: 11 | B33: 3245 | C33: 22 | D33: 3259 | E33: 14 | F33: 3272 | K33: 0 | L33: 121
A34: 11 | B34: 3371 | C34: 22 | D34: 3388 | E34: 23 | F34: 3402 | K34: 0 | L34: 122
A35: 11 | B35: 3501 | C35: 11 | D35: 3505 | E35: 21 | F35: 3514 | K35: 0 | L35: 112
A36: 11 | B36: 3602 | C36: 11 | D36: 3607 | E36: 21 | F36: 3628 | K36: 0 | L36: 112
A37: 11 | B37: 3715 | C37: 11 | D37: 3719 | E37: 21 | F37: 3729 | K37: 0 | L37: 112
A38: 11 | B38: 3816 | C38: 11 | D38: 3821 | E38: 21 | F38: 3830 | K38: 0 | L38: 112
A39: 11 | B39: 3917 | C39: 11 | D39: 3927 | E39: 21 | F39: 3936 | K39: 0 | L39: 112
A40: 11 | B40: 4025 | C40: 22 | D40: 4035 | E40: 23 | F40: 4064 | K40: 0 | L40: 122
A41: 11 | B41: 4161 | C41: 22 | D41: 4184 | E41: 23 | F41: 4196 | K41: 0 | L41: 122
A42: 11 | B42: 4294 | C42: 11 | D42: 4298 | E42: 21 | F42: 4307 | K42: 0 | L42: 112
A43: 11 | B43: 4396 | C43: 22 | D43: 4406 | E43: 14 | F43: 4424 | K43: 0 | L43: 121
A44: 11 | B44: 4522 | C44: 11 | D44: 4526 | E44: 21 | F44: 4539 | K44: 0 | L44: 112
A45: 11 | B45: 4626 | C45: 11 | D45: 4631 | E45: 21 | F45: 4641 | K45: 0 | L45: 112
A46: 11 | B46: 4743 | C46: 22 | D46: 4752 | E46: 23 | F46: 4777 | K46: 0 | L46: 122
A47: 11 | B47: 4874 | C47: 11 | D47: 4879 | E47: 21 | F47: 4891 | K47: 0 | L47: 112
A48: 11 | B48: 4979 | C48: 11 | D48: 4983 | E48: 12 | F48: 5021 | K48: 0 | L48: 111
A49: 11 | B49: 5118 | C49: 11 | D49: 5123 | E49: 21 | F49: 5140 | K49: 0 | L49: 112
A50: 11 | B50: 5228 | C50: 11 | D50: 5236 | E50: 21 | F50: 5246 | K50: 0 | L50: 112
A51: 11 | B51: 5335 | C51: 11 | D51: 5340 | E51: 21 | F51: 5361 | K51: 0 | L51: 112
A52: 11 | B52: 5450 | C52: 22 | D52: 5461 | E52: 14 | F52: 5476 | K52: 0 | L52: 121
A53: 11 | B53: 5575 | C53: 22 | D53: 5584 | E53: 23 | F53: 5590 | K53: 0 | L53: 122
A54: 11 | B54: 5688 | C54: 11 | D54: 5692 | E54: 21 | F54: 5701 | K54: 0 | L54: 112
A55: 11 | B55: 5788 | C55: 11 | D55: 5793 | E55: 21 | F55: 5825 | K55: 0 | L55: 112
A56: 11 | B56: 5911 | C56: 11 | D56: 5916 | E56: 21 | F56: 5926 | K56: 0 | L56: 112
A57: 11 | B57: 6013 | C57: 11 | D57: 6017 | E57: 21 | F57: 6029 | K57: 0 | L57: 112
A58: 11 | B58: 6118 | C58: 11 | D58: 6122 | E58: 21 | F58: 6132 | K58: 0 | L58: 112
A59: 11 | B59: 6219 | C59: 11 | D59: 6223 | E59: 21 | F59: 6232 | K59: 0 | L59: 112
A60: 11 | B60: 6319 | C60: 22 | D60: 6330 | E60: 23 | F60: 6362 | K60: 0 | L60: 122
A61: 11 | B61: 6461 | C61: 11 | D61: 6465 | E61: 21 | F61: 6474 | K61: 0 | L61: 112
A62: 11 | B62: 6568 | C62: 22 | D62: 6580 | E62: 14 | F62: 6599 | K62: 0 | L62: 121
A63: 11 | B63: 6695 | C63: 11 | D63: 6700 | E63: 21 | F63: 6729 | K63: 0 | L63: 112
A64: 11 | B64: 6817 | C64: 11 | D64: 6822 | E64: 21 | F64: 6832 | K64: 0 | L64: 112
A65: 11 | B65: 6920 | C65: 11 | D65: 6925 | E65: 21 | F65: 6934 | K65: 0 | L65: 112
A66: 11 | B66: 7022 | C66: 11 | D66: 7030 | E66: 21 | F66: 7041 | K66: 0 | L66: 112
A67: 11 | B67: 7130 | C67: 11 | D67: 7135 | E67: 21 | F67: 7143 | K67: 0 | L67: 112
A68: 11 | B68: 7236 | C68: 22 | D68: 7248 | E68: 23 | F68: 7296 | K68: 0 | L68: 122
A69: 11 | B69: 7396 | C69: 11 | D69: 7399 | E69: 21 | F69: 7408 | K69: 0 | L69: 112
A70: 11 | B70: 7495 | C70: 11 | D70: 7500 | E70: 21 | F70: 7509 | K70: 0 | L70: 112
A71: 11 | B71: 7597 | C71: 11 | D71: 7601 | E71: 21 | F71: 7610 | K71: 1 | L71: 112

Sheet !M601D50.096
A1: Report for:!M601D50.096
A2: Date: | B2: <date>
A3: Hen: | B3: <hen> | F3: Correct Sequence | G3: =Start!J2 -> 122 | P3: Total Sequences in Data | Q3: =4994-COUNTBLANK(L7:L5000) -> 48 | V3: Total Sequences in Block Data | W3: =COUNTA(L7:L14) -> 8 | AA3: Total Sequences in Block Data | AB3: =COUNTA(L15:L22) -> 8 | AF3: Total Sequences in Block Data | AG3: =COUNTA(L23:L30) -> 8 | AK3: Total Sequences in Block Data | AL3: =COUNTA(L31:L38) -> 8 | AP3: Total Sequences in Block Data | AQ3: =COUNTA(L39:L46) -> 8 | AU3: Total Sequences in Block Data | AV3: =COUNTA(L47:L54) -> 8
P4: Total Sequences in Summary | Q4: =SUM(O7:O14) -> 48 | V4: Total Sequences in Block Summary | W4: =SUM(U7:U14) -> 8 | AA4: Total Sequences in Block Summary | AB4: =SUM(Z7:Z14) -> 8 | AF4: Total Sequences in Block Summary | AG4: =SUM(AE7:AE14) -> 8 | AK4: Total Sequences in Block Summary | AL4: =SUM(AJ7:AJ14) -> 8 | AP4: Total Sequences in Block Summary | AQ4: =SUM(AO7:AO14) -> 8 | AU4: Total Sequences in Block Summary | AV4: =SUM(AT7:AT14) -> 8
T5: Block 1 | Y5: Block 2 | AD5: Block 3 | AI5: Block 4 | AN5: Block 5 | AS5: Block 6
A6: Sequence Component 1 | B6: Time 1 | C6: Sequence Component 2 | D6: Time 2 | E6: Sequence Component 3 | F6: Time 3 | G6: Sequence Component 4 | H6: Time 4 | I6: Sequence Component 5 | J6: Time 5 | K6: Correct? 0=No 1=Yes | L6: Sequence | N6: Frequency | P6: Relative Frequency | Q6: Variability | T6: Frequency | V6: Relative Frequency | W6: Variability | Y6: Frequency | AA6: Relative Frequency | AB6: Variability | AD6: Frequency | AF6: Relative Frequency | AG6: Variability | AI6: Frequency | AK6: Relative Frequency | AL6: Variability | AN6: Frequency | AP6: Relative Frequency | AQ6: Variability | AS6: Frequency | AU6: Relative Frequency | AV6: Variability
A7: 11 | B7: 8 | C7: 11 | D7: 14 | E7: 21 | F7: 33 | K7: 0 | L7: 112 | N7: 111 | O7: =COUNTIF($L$7:$L$500,N7) -> 1 | P7: =O7/$Q$4 -> 0.02083333333 | Q7: =IF(P7=0,0,(P7*((LOG(P7))/LOG(2)))) -> -0.1163533854 | T7: =N7 -> 111 | U7: =COUNTIF(L7:L14,T7) -> 0 | V7: =U7/(W4-U10) -> 0 | W7: =IF(V7=0,0,(V7*((LOG(V7))/LOG(2)))) -> 0 | Y7: =N7 -> 111 | Z7: =COUNTIF(L15:L22,Y7) -> 0 | AA7: =Z7/(AB4-Z10) -> 0 | AB7: =IF(AA7=0,0,(AA7*((LOG(AA7))/LOG(2)))) -> 0 | AD7: =N7 -> 111 | AE7: =COUNTIF(L23:L30,AD7) -> 0 | AF7: =AE7/(AG4-AE10) -> 0 | AG7: =IF(AF7=0,0,(AF7*((LOG(AF7))/LOG(2)))) -> 0 | AI7: =N7 -> 111 | AJ7: =COUNTIF(L31:L38,AI7) -> 0 | AK7: =AJ7/(AL4-AJ10) -> 0 | AL7: =IF(AK7=0,0,(AK7*((LOG(AK7))/LOG(2)))) -> 0 | AN7: =N7 -> 111 | AO7: =COUNTIF(L39:L46,AN7) -> 0 | AP7: =AO7/(AQ4-AO10) -> 0 | AQ7: =IF(AP7=0,0,(AP7*((LOG(AP7))/LOG(2)))) -> 0 | AS7: =N7 -> 111 | AT7: =COUNTIF(L47:L54,AS7) -> 1 | AU7: =AT7/(AV4-AT10) -> 0.125 | AV7: =IF(AU7=0,0,(AU7*((LOG(AU7))/LOG(2)))) -> -0.375
A8: 11 | B8: 123 | C8: 11 | D8: 128 | E8: 21 | F8: 140 | K8: 0 | L8: 112 | N8: 112 | O8: =COUNTIF($L$7:$L$500,N8) -> 40 | P8: =O8/$Q$4 -> 0.8333333333 | Q8: =IF(P8=0,0,(P8*((LOG(P8))/LOG(2)))) -> -0.2191953382 | T8: =N8 -> 112 | U8: =COUNTIF(L7:L14,T8) -> 6 | V8: =U8/(W4-U10) -> 1 | W8: =IF(V8=0,0,(V8*((LOG(V8))/LOG(2)))) -> 0 | Y8: =N8 -> 112 | Z8: =COUNTIF(L15:L22,Y8) -> 8 | AA8: =Z8/(AB4-Z10) -> 1 | AB8: =IF(AA8=0,0,(AA8*((LOG(AA8))/LOG(2)))) -> 0 | AD8: =N8 -> 112 | AE8: =COUNTIF(L23:L30,AD8) -> 7 | AF8: =AE8/(AG4-AE10) -> 1 | AG8: =IF(AF8=0,0,(AF8*((LOG(AF8))/LOG(2)))) -> 0 | AI8: =N8 -> 112 | AJ8: =COUNTIF(L31:L38,AI8) -> 7 | AK8: =AJ8/(AL4-AJ10) -> 1 | AL8: =IF(AK8=0,0,(AK8*((LOG(AK8))/LOG(2)))) -> 0 | AN8: =N8 -> 112 | AO8: =COUNTIF(L39:L46,AN8) -> 5 | AP8: =AO8/(AQ4-AO10) -> 0.8333333333 | AQ8: =IF(AP8=0,0,(AP8*((LOG(AP8))/LOG(2)))) -> -0.2191953382 | AS8: =N8 -> 112 | AT8: =COUNTIF(L47:L54,AS8) -> 7 | AU8: =AT8/(AV4-AT10) -> 0.875 | AV8: =IF(AU8=0,0,(AU8*((LOG(AU8))/LOG(2)))) -> -0.1685644432
A9: 11 | B9: 230 | C9: 22 | D9: 276 | E9: 23 | F9: 296 | K9: 0 | L9: 122 | N9: 121 | O9: =COUNTIF($L$7:$L$500,N9) -> 1 | P9: =O9/$Q$4 -> 0.02083333333 | Q9: =IF(P9=0,0,(P9*((LOG(P9))/LOG(2)))) -> -0.1163533854 | T9: =N9 -> 121 | U9: =COUNTIF(L7:L14,T9) -> 0 | V9: =U9/(W4-U10) -> 0 | W9: =IF(V9=0,0,(V9*((LOG(V9))/LOG(2)))) -> 0 | Y9: =N9 -> 121 | Z9: =COUNTIF(L15:L22,Y9) -> 0 | AA9: =Z9/(AB4-Z10) -> 0 | AB9: =IF(AA9=0,0,(AA9*((LOG(AA9))/LOG(2)))) -> 0 | AD9: =N9 -> 121 | AE9: =COUNTIF(L23:L30,AD9) -> 0 | AF9: =AE9/(AG4-AE10) -> 0 | AG9: =IF(AF9=0,0,(AF9*((LOG(AF9))/LOG(2)))) -> 0 | AI9: =N9 -> 121 | AJ9: =COUNTIF(L31:L38,AI9) -> 0 | AK9: =AJ9/(AL4-AJ10) -> 0 | AL9: =IF(AK9=0,0,(AK9*((LOG(AK9))/LOG(2)))) -> 0 | AN9: =N9 -> 121 | AO9: =COUNTIF(L39:L46,AN9) -> 1 | AP9: =AO9/(AQ4-AO10) -> 0.1666666667 | AQ9: =IF(AP9=0,0,(AP9*((LOG(AP9))/LOG(2)))) -> -0.4308270835 | AS9: =N9 -> 121 | AT9: =COUNTIF(L47:L54,AS9) -> 0 | AU9: =AT9/(AV4-AT10) -> 0 | AV9: =IF(AU9=0,0,(AU9*((LOG(AU9))/LOG(2)))) -> 0
A10: 11 | B10: 393 | C10: 11 | D10: 399 | E10: 21 | F10: 435 | K10: 0 | L10: 112 | N10: 122 | O10: =COUNTIF($L$7:$L$500,N10) -> 6 | P10: =O10/$Q$4 -> 0.125 | Q10: =IF(P10=0,0,(P10*((LOG(P10))/LOG(2)))) -> -0.375 | T10: =N10 -> 122 | U10: =COUNTIF(L7:L14,T10) -> 2 | Y10: =N10 -> 122 | Z10: =COUNTIF(L15:L22,Y10) -> 0 | AD10: =N10 -> 122 | AE10: =COUNTIF(L23:L30,AD10) -> 1 | AI10: =N10 -> 122 | AJ10: =COUNTIF(L31:L38,AI10) -> 1 | AN10: =N10 -> 122 | AO10: =COUNTIF(L39:L46,AN10) -> 2 | AS10: =N10 -> 122 | AT10: =COUNTIF(L47:L54,AS10) -> 0
A11: 11 | B11: 522 | C11: 11 | D11: 527 | E11: 21 | F11: 540 | K11: 0 | L11: 112 | N11: 211 | O11: =COUNTIF($L$7:$L$500,N11) -> 0 | P11: =O11/$Q$4 -> 0 | Q11: =IF(P11=0,0,(P11*((LOG(P11))/LOG(2)))) -> 0 | T11: =N11 -> 211 | U11: =COUNTIF(L7:L14,T11) -> 0 | V11: =U11/(W4-U10) -> 0 | W11: =IF(V11=0,0,(V11*((LOG(V11))/LOG(2)))) -> 0 | Y11: =N11 -> 211 | Z11: =COUNTIF(L15:L22,Y11) -> 0 | AA11: =Z11/(AB4-Z10) -> 0 | AB11: =IF(AA11=0,0,(AA11*((LOG(AA11))/LOG(2)))) -> 0 | AD11: =N11 -> 211 | AE11: =COUNTIF(L23:L30,AD11) -> 0 | AF11: =AE11/(AG4-AE10) -> 0 | AG11: =IF(AF11=0,0,(AF11*((LOG(AF11))/LOG(2)))) -> 0 | AI11: =N11 -> 211 | AJ11: =COUNTIF(L31:L38,AI11) -> 0 | AK11: =AJ11/(AL4-AJ10) -> 0 | AL11: =IF(AK11=0,0,(AK11*((LOG(AK11))/LOG(2)))) -> 0 | AN11: =N11 -> 211 | AO11: =COUNTIF(L39:L46,AN11) -> 0 | AP11: =AO11/(AQ4-AO10) -> 0 | AQ11: =IF(AP11=0,0,(AP11*((LOG(AP11))/LOG(2)))) -> 0 | AS11: =N11 -> 211 | AT11: =COUNTIF(L47:L54,AS11) -> 0 | AU11: =AT11/(AV4-AT10) -> 0 | AV11: =IF(AU11=0,0,(AU11*((LOG(AU11))/LOG(2)))) -> 0
A12: 11 | B12: 627 | C12: 11 | D12: 632 | E12: 21 | F12: 645 | K12: 0 | L12: 112 | N12: 212 | O12: =COUNTIF($L$7:$L$500,N12) -> 0 | P12: =O12/$Q$4 -> 0 | Q12: =IF(P12=0,0,(P12*((LOG(P12))/LOG(2)))) -> 0 | T12: =N12 -> 212 | U12: =COUNTIF(L7:L14,T12) -> 0 | V12: =U12/(W4-U10) -> 0 | W12: =IF(V12=0,0,(V12*((LOG(V12))/LOG(2)))) -> 0 | Y12: =N12 -> 212 | Z12: =COUNTIF(L15:L22,Y12) -> 0 | AA12: =Z12/(AB4-Z10) -> 0 | AB12: =IF(AA12=0,0,(AA12*((LOG(AA12))/LOG(2)))) -> 0 | AD12: =N12 -> 212 | AE12: =COUNTIF(L23:L30,AD12) -> 0 | AF12: =AE12/(AG4-AE10) -> 0 | AG12: =IF(AF12=0,0,(AF12*((LOG(AF12))/LOG(2)))) -> 0 | AI12: =N12 -> 212 | AJ12: =COUNTIF(L31:L38,AI12) -> 0 | AK12: =AJ12/(AL4-AJ10) -> 0 | AL12: =IF(AK12=0,0,(AK12*((LOG(AK12))/LOG(2)))) -> 0 | AN12: =N12 -> 212 | AO12: =COUNTIF(L39:L46,AN12) -> 0 | AP12: =AO12/(AQ4-AO10) -> 0 | AQ12: =IF(AP12=0,0,(AP12*((LOG(AP12))/LOG(2)))) -> 0 | AS12: =N12 -> 212 | AT12: =COUNTIF(L47:L54,AS12) -> 0 | AU12: =AT12/(AV4-AT10) -> 0 | AV12: =IF(AU12=0,0,(AU12*((LOG(AU12))/LOG(2)))) -> 0
A13: 11 | B13: 732 | C13: 11 | D13: 737 | E13: 21 | F13: 747 | K13: 0 | L13: 112 | N13: 221 | O13: =COUNTIF($L$7:$L$500,N13) -> 0 | P13: =O13/$Q$4 -> 0 | Q13: =IF(P13=0,0,(P13*((LOG(P13))/LOG(2)))) -> 0 | T13: =N13 -> 221 | U13: =COUNTIF(L7:L14,T13) -> 0 | V13: =U13/(W4-U10) -> 0 | W13: =IF(V13=0,0,(V13*((LOG(V13))/LOG(2)))) -> 0 | Y13: =N13 -> 221 | Z13: =COUNTIF(L15:L22,Y13) -> 0 | AA13: =Z13/(AB4-Z10) -> 0 | AB13: =IF(AA13=0,0,(AA13*((LOG(AA13))/LOG(2)))) -> 0 | AD13: =N13 -> 221 | AE13: =COUNTIF(L23:L30,AD13) -> 0 | AF13: =AE13/(AG4-AE10) -> 0 | AG13: =IF(AF13=0,0,(AF13*((LOG(AF13))/LOG(2)))) -> 0 | AI13: =N13 -> 221 | AJ13: =COUNTIF(L31:L38,AI13) -> 0 | AK13: =AJ13/(AL4-AJ10) -> 0 | AL13: =IF(AK13=0,0,(AK13*((LOG(AK13))/LOG(2)))) -> 0 | AN13: =N13 -> 221 | AO13: =COUNTIF(L39:L46,AN13) -> 0 | AP13: =AO13/(AQ4-AO10) -> 0 | AQ13: =IF(AP13=0,0,(AP13*((LOG(AP13))/LOG(2)))) -> 0 | AS13: =N13 -> 221 | AT13: =COUNTIF(L47:L54,AS13) -> 0 | AU13: =AT13/(AV4-AT10) -> 0 | AV13: =IF(AU13=0,0,(AU13*((LOG(AU13))/LOG(2)))) -> 0
A14: 11 | B14: 837 | C14: 22 | D14: 851 | E14: 23 | F14: 868 | K14: 0 | L14: 122 | N14: 222 | O14: =COUNTIF($L$7:$L$500,N14) -> 0 | P14: =O14/$Q$4 -> 0 | Q14: =IF(P14=0,0,(P14*((LOG(P14))/LOG(2)))) -> 0 | T14: =N14 -> 222 | U14: =COUNTIF(L7:L14,T14) -> 0 | V14: =U14/(W4-U10) -> 0 | W14: =IF(V14=0,0,(V14*((LOG(V14))/LOG(2)))) -> 0 | Y14: =N14 -> 222 | Z14: =COUNTIF(L15:L22,Y14) -> 0 | AA14: =Z14/(AB4-Z10) -> 0 | AB14: =IF(AA14=0,0,(AA14*((LOG(AA14))/LOG(2)))) -> 0 | AD14: =N14 -> 222 | AE14: =COUNTIF(L23:L30,AD14) -> 0 | AF14: =AE14/(AG4-AE10) -> 0 | AG14: =IF(AF14=0,0,(AF14*((LOG(AF14))/LOG(2)))) -> 0 | AI14: =N14 -> 222 | AJ14: =COUNTIF(L31:L38,AI14) -> 0 | AK14: =AJ14/(AL4-AJ10) -> 0 | AL14: =IF(AK14=0,0,(AK14*((LOG(AK14))/LOG(2)))) -> 0 | AN14: =N14 -> 222 | AO14: =COUNTIF(L39:L46,AN14) -> 0 | AP14: =AO14/(AQ4-AO10) -> 0 | AQ14: =IF(AP14=0,0,(AP14*((LOG(AP14))/LOG(2)))) -> 0 | AS14: =N14 -> 222 | AT14: =COUNTIF(L47:L54,AS14) -> 0 | AU14: =AT14/(AV4-AT10) -> 0 | AV14: =IF(AU14=0,0,(AU14*((LOG(AU14))/LOG(2)))) -> 0
A15: 11 | B15: 964 | C15: 11 | D15: 969 | E15: 21 | F15: 979 | K15: 0 | L15: 112 | P15: =SUM(P7:P14) -> 1 | Q15: =-SUM(Q7:Q14) -> 0.8269021091 | V15: =SUM(V7:V14) -> 1 | W15: =-SUM(W7:W14) -> 0 | AA15: =SUM(AA7:AA14) -> 1 | AB15: =-SUM(AB7:AB14) -> 0 | AF15: =SUM(AF7:AF14) -> 1 | AG15: =-SUM(AG7:AG14) -> 0 | AK15: =SUM(AK7:AK14) -> 1 | AL15: =-SUM(AL7:AL14) -> 0 | AP15: =SUM(AP7:AP14) -> 1 | AQ15: =-SUM(AQ7:AQ14) -> 0.6500224216 | AU15: =SUM(AU7:AU14) -> 1 | AV15: =-SUM(AV7:AV14) -> 0.5435644432
A16: 11 | B16: 1066 | C16: 11 | D16: 1071 | E16: 21 | F16: 1088 | K16: 0 | L16: 112 | P16: U= | Q16: =Q15/(LOG(Q4)/LOG(2)) -> 0.1480586681 | V16: U1= | W16: =W15/(LOG(W4)/LOG(2)) -> 0 | AA16: U2= | AB16: =AB15/(LOG(AB4)/LOG(2)) -> 0 | AF16: U3= | AG16: =AG15/(LOG(AG4)/LOG(2)) -> 0 | AK16: U4= | AL16: =AL15/(LOG(AL4)/LOG(2)) -> 0 | AP16: U5= | AQ16: =AQ15/(LOG(AQ4)/LOG(2)) -> 0.2166741405 | AU16: U6= | AV16: =AV15/(LOG(AV4)/LOG(2)) -> 0.1811881477
A17: 11 | B17: 1175 | C17: 11 | D17: 1180 | E17: 21 | F17: 1189 | K17: 0 | L17: 112
A18: 11 | B18: 1276 | C18: 11 | D18: 1281 | E18: 21 | F18: 1291 | K18: 0 | L18: 112
A19: 11 | B19: 1378 | C19: 11 | D19: 1384 | E19: 21 | F19: 1397 | K19: 0 | L19: 112 | N19: Total Target Seq
A20: 11 | B20: 1486 | C20: 11 | D20: 1492 | E20: 21 | F20: 1504 | K20: 0 | L20: 112 | N20: =COUNTIF(L7:L54,G3) -> 6 | P20: 8 | Q20: 8 | R20: 8 | S20: 8 | T20: 8 | U20: 8
A21: 11 | B21: 1592 | C21: 11 | D21: 1597 | E21: 21 | F21: 1615 | K21: 0 | L21: 112 | P21: % of reinforcement given in 6 equal intervals based on number of trials
A22: 11 | B22: 1702 | C22: 11 | D22: 1707 | E22: 21 | F22: 1721 | K22: 0 | L22: 112 | P22: %_1 | Q22: %_2 | R22: %_3 | S22: %_4 | T22: %_5 | U22: %_6
A23: 11 | B23: 1808 | C23: 11 | D23: 1813 | E23: 21 | F23: 1830 | K23: 0 | L23: 112 | O23: target sequence | P23: =$G$3 -> 122 | Q23: =$G$3 -> 122 | R23: =$G$3 -> 122 | S23: =$G$3 -> 122 | T23: =$G$3 -> 122 | U23: =$G$3 -> 122
A24: 11 | B24: 1917 | C24: 11 | D24: 1922 | E24: 21 | F24: 1940 | K24: 0 | L24: 112 | O24: total reinforcement | P24: =U10 -> 2 | Q24: =Z10 -> 0 | R24: =AE10 -> 1 | S24: =AJ10 -> 1 | T24: =AO10 -> 2 | U24: =AT10 -> 0
A25: 11 | B25: 2027 | C25: 11 | D25: 2032 | E25: 21 | F25: 2052 | K25: 0 | L25: 112 | O25: % target
A26: 11 | B26: 2139 | C26: 11 | D26: 2144 | E26: 21 | F26: 2154 | K26: 0 | L26: 112 | O26: CCRF
A27: 11 | B27: 2238 | C27: 11 | D27: 2243 | E27: 21 | F27: 2254 | K27: 0 | L27: 112 | O27: % CCRf
A28: 11 | B28: 2340 | C28: 11 | D28: 2345 | E28: 21 | F28: 2359 | K28: 0 | L28: 112 | O28: average response rate | P28: =F14/P20 -> 108.5 | Q28: =(F22-F14)/Q20 -> 106.625 | R28: =(F30-F22)/R20 -> 109.875 | S28: =(F38-F30)/S20 -> 115.5 | T28: =(F46-F38)/T20 -> 116 | U28: =(F54-F46)/U20 -> 103.5
A29: 11 | B29: 2450 | C29: 22 | D29: 2461 | E29: 23 | F29: 2485 | K29: 0 | L29: 122
A30: 11 | B30: 2583 | C30: 11 | D30: 2588 | E30: 21 | F30: 2600 | K30: 0 | L30: 112
A31: 11 | B31: 2688 | C31: 11 | D31: 2693 | E31: 21 | F31: 2708 | K31: 0 | L31: 112
A32: 11 | B32: 2795 | C32: 11 | D32: 2804 | E32: 21 | F32: 2823 | K32: 0 | L32: 112
A33: 11 | B33: 2913 | C33: 11 | D33: 2918 | E33: 21 | F33: 2949 | K33: 0 | L33: 112
A34: 11 | B34: 3061 | C34: 22 | D34: 3078 | E34: 23 | F34: 3091 | K34: 0 | L34: 122
A35: 11 | B35: 3192 | C35: 11 | D35: 3205 | E35: 21 | F35: 3215 | K35: 0 | L35: 112
A36: 11 | B36: 3302 | C36: 11 | D36: 3307 | E36: 21 | F36: 3316 | K36: 0 | L36: 112
A37: 11 | B37: 3404 | C37: 11 | D37: 3409 | E37: 21 | F37: 3422 | K37: 0 | L37: 112
A38: 11 | B38: 3509 | C38: 11 | D38: 3514 | E38: 21 | F38: 3524 | K38: 0 | L38: 112
A39: 11 | B39: 3624 | C39: 22 | D39: 3634 | E39: 14 | F39: 3652 | K39: 0 | L39: 121
A40: 11 | B40: 3753 | C40: 22 | D40: 3764 | E40: 23 | F40: 3787 | K40: 0 | L40: 122
A41: 11 | B41: 3883 | C41: 11 | D41: 3888 | E41: 21 | F41: 3899 | K41: 0 | L41: 112
A42: 11 | B42: 3993 | C42: 22 | D42: 4006 | E42: 23 | F42: 4032 | K42: 0 | L42: 122
A43: 11 | B43: 4131 | C43: 11 | D43: 4136 | E43: 21 | F43: 4145 | K43: 0 | L43: 112
A44: 11 | B44: 4233 | C44: 11 | D44: 4237 | E44: 21 | F44: 4247 | K44: 0 | L44: 112
A45: 11 | B45: 4335 | C45: 11 | D45: 4340 | E45: 21 | F45: 4352 | K45: 0 | L45: 112
A46: 11 | B46: 4439 | C46: 11 | D46: 4443 | E46: 21 | F46: 4452 | K46: 0 | L46: 112
A47: 11 | B47: 4540 | C47: 11 | D47: 4544 | E47: 21 | F47: 4554 | K47: 0 | L47: 112
A48: 11 | B48: 4642 | C48: 11 | D48: 4647 | E48: 21 | F48: 4656 | K48: 0 | L48: 112
A49: 11 | B49: 4745 | C49: 11 | D49: 4749 | E49: 21 | F49: 4762 | K49: 0 | L49: 112
A50: 11 | B50: 4850 | C50: 11 | D50: 4855 | E50: 21 | F50: 4863 | K50: 0 | L50: 112
A51: 11 | B51: 4951 | C51: 11 | D51: 4956 | E51: 21 | F51: 4969 | K51: 0 | L51: 112
A52: 11 | B52: 5057 | C52: 11 | D52: 5061 | E52: 21 | F52: 5071 | K52: 0 | L52: 112
A53: 11 | B53: 5158 | C53: 11 | D53: 5162 | E53: 12 | F53: 5167 | K53: 0 | L53: 111
A54: 11 | B54: 5266 | C54: 11 | D54: 5271 | E54: 21 | F54: 5280 | K54: 1 | L54: 112

Sheet !M611B00.096
A1: Report for:!M611B00.096
A2: Date: | B2: <date>
A3: Hen: | B3: <hen> | F3: Correct Sequence | G3: =Start!J2 -> 122 | P3: Total Sequences in Data | Q3: =4994-COUNTBLANK(L7:L5000) -> 59 | V3: Total Sequences in Block Data | W3: =COUNTA(L7:L16) -> 10 | AA3: Total Sequences in Block Data | AB3: =COUNTA(L17:L26) -> 10 | AF3: Total Sequences in Block Data | AG3: =COUNTA(L27:L35) -> 9 | AK3: Total Sequences in Block Data | AL3: =COUNTA(L36:L45) -> 10 | AP3: Total Sequences in Block Data | AQ3: =COUNTA(L46:L55) -> 10 | AU3: Total Sequences in Block Data | AV3: =COUNTA(L56:L65) -> 10
P4: Total Sequences in Summary | Q4: =SUM(O7:O14) -> 59 | V4: Total Sequences in Block Summary | W4: =SUM(U7:U14) -> 10 | AA4: Total Sequences in Block Summary | AB4: =SUM(Z7:Z14) -> 10 | AF4: Total Sequences in Block Summary | AG4: =SUM(AE7:AE14) -> 9 | AK4: Total Sequences in Block Summary | AL4: =SUM(AJ7:AJ14) -> 10 | AP4: Total Sequences in Block Summary | AQ4: =SUM(AO7:AO14) -> 10 | AU4: Total Sequences in Block Summary | AV4: =SUM(AT7:AT14) -> 10
T5: Block 1 | Y5: Block 2 | AD5: Block 3 | AI5: Block 4 | AN5: Block 5 | AS5: Block 6
A6: Sequence Component 1 | B6: Time 1 | C6: Sequence Component 2 | D6: Time 2 | E6: Sequence Component 3 | F6: Time 3 | G6: Sequence Component 4 | H6: Time 4 | I6: Sequence Component 5 | J6: Time 5 | K6: Correct? 0=No 1=Yes | L6: Sequence | N6: Frequency | P6: Relative Frequency | Q6: Variability | T6: Frequency | V6: Relative Frequency | W6: Variability | Y6: Frequency | AA6: Relative Frequency | AB6: Variability | AD6: Frequency | AF6: Relative Frequency | AG6: Variability | AI6: Frequency | AK6: Relative Frequency | AL6: Variability | AN6: Frequency | AP6: Relative Frequency | AQ6: Variability | AS6: Frequency | AU6: Relative Frequency | AV6: Variability
A7: 11 | B7: 17 | C7: 11 | D7: 22 | E7: 21 | F7: 41 | K7: 0 | L7: 112 | N7: 111 | O7: =COUNTIF($L$7:$L$500,N7) -> 0 | P7: =O7/$Q$4 -> 0 | Q7: =IF(P7=0,0,(P7*((LOG(P7))/LOG(2)))) -> 0 | T7: =N7 -> 111 | U7: =COUNTIF(L7:L16,T7) -> 0 | V7: =U7/(W4-U10) -> 0 | W7: =IF(V7=0,0,(V7*((LOG(V7))/LOG(2)))) -> 0 | Y7: =N7 -> 111 | Z7: =COUNTIF(L17:L26,Y7) -> 0 | AA7: =Z7/(AB4-Z10) -> 0 | AB7: =IF(AA7=0,0,(AA7*((LOG(AA7))/LOG(2)))) -> 0 | AD7: =N7 -> 111 | AE7: =COUNTIF(L27:L35,AD7) -> 0 | AF7: =AE7/(AG4-AE10) -> 0 | AG7: =IF(AF7=0,0,(AF7*((LOG(AF7))/LOG(2)))) -> 0 | AI7: =N7 -> 111 | AJ7: =COUNTIF(L36:L45,AI7) -> 0 | AK7: =AJ7/(AL4-AJ10) -> 0 | AL7: =IF(AK7=0,0,(AK7*((LOG(AK7))/LOG(2)))) -> 0 | AN7: =N7 -> 111 | AO7: =COUNTIF(L46:L55,AN7) -> 0 | AP7: =AO7/(AQ4-AO10) -> 0 | AQ7: =IF(AP7=0,0,(AP7*((LOG(AP7))/LOG(2)))) -> 0 | AS7: =N7 -> 111 | AT7: =COUNTIF(L56:L65,AS7) -> 0 | AU7: =AT7/(AV4-AT10) -> 0 | AV7: =IF(AU7=0,0,(AU7*((LOG(AU7))/LOG(2)))) -> 0
A8: 11 | B8: 133 | C8: 22 | D8: 145 | E8: 23 | F8: 162 | K8: 0 | L8: 122 | N8: 112 | O8: =COUNTIF($L$7:$L$500,N8) -> 40 | P8: =O8/$Q$4 -> 0.6779661017 | Q8: =IF(P8=0,0,(P8*((LOG(P8))/LOG(2)))) -> -0.3801457318 | T8: =N8 -> 112 | U8: =COUNTIF(L7:L16,T8) -> 4 | V8: =U8/(W4-U10) -> 0.5714285714 | W8: =IF(V8=0,0,(V8*((LOG(V8))/LOG(2)))) -> -0.4613456697 | Y8: =N8 -> 112 | Z8: =COUNTIF(L17:L26,Y8) -> 4 | AA8: =Z8/(AB4-Z10) -> 0.4444444444 | AB8: =IF(AA8=0,0,(AA8*((LOG(AA8))/LOG(2)))) -> -0.5199666673 | AD8: =N8 -> 112 | AE8: =COUNTIF(L27:L35,AD8) -> 6 | AF8: =AE8/(AG4-AE10) -> 0.8571428571 | AG8: =IF(AF8=0,0,(AF8*((LOG(AF8))/LOG(2)))) -> -0.1906220754 | AI8: =N8 -> 112 | AJ8: =COUNTIF(L36:L45,AI8) -> 9 | AK8: =AJ8/(AL4-AJ10) -> 0.9 | AL8: =IF(AK8=0,0,(AK8*((LOG(AK8))/LOG(2)))) -> -0.1368027841 | AN8: =N8 -> 112 | AO8: =COUNTIF(L46:L55,AN8) -> 9 | AP8: =AO8/(AQ4-AO10) -> 1 | AQ8: =IF(AP8=0,0,(AP8*((LOG(AP8))/LOG(2)))) -> 0 | AS8: =N8 -> 112 | AT8: =COUNTIF(L56:L65,AS8) -> 8 | AU8: =AT8/(AV4-AT10) -> 0.8888888889 | AV8: =IF(AU8=0,0,(AU8*((LOG(AU8))/LOG(2)))) -> -0.1510444457
A9: 11 | B9: 260 | C9: 11 | D9: 265 | E9: 21 | F9: 274 | K9: 0 | L9: 112 | N9: 121 | O9: =COUNTIF($L$7:$L$500,N9) -> 10 | P9: =O9/$Q$4 -> 0.1694915254 | Q9: =IF(P9=0,0,(P9*((LOG(P9))/LOG(2)))) -> -0.4340194838 | T9: =N9 -> 121 | U9: =COUNTIF(L7:L16,T9) -> 3 | V9: =U9/(W4-U10) -> 0.4285714286 | W9: =IF(V9=0,0,(V9*((LOG(V9))/LOG(2)))) -> -0.5238824663 | Y9: =N9 -> 121 | Z9: =COUNTIF(L17:L26,Y9) -> 4 | AA9: =Z9/(AB4-Z10) -> 0.4444444444 | AB9: =IF(AA9=0,0,(AA9*((LOG(AA9))/LOG(2)))) -> -0.5199666673 | AD9: =N9 -> 121 | AE9: =COUNTIF(L27:L35,AD9) -> 1 | AF9: =AE9/(AG4-AE10) -> 0.1428571429 | AG9: =IF(AF9=0,0,(AF9*((LOG(AF9))/LOG(2)))) -> -0.4010507032 | AI9: =N9 -> 121 | AJ9: =COUNTIF(L36:L45,AI9) -> 1 | AK9: =AJ9/(AL4-AJ10) -> 0.1 | AL9: =IF(AK9=0,0,(AK9*((LOG(AK9))/LOG(2)))) -> -0.3321928095 | AN9: =N9 -> 121 | AO9: =COUNTIF(L46:L55,AN9) -> 0 | AP9: =AO9/(AQ4-AO10) -> 0 | AQ9: =IF(AP9=0,0,(AP9*((LOG(AP9))/LOG(2)))) -> 0 | AS9: =N9 -> 121 | AT9: =COUNTIF(L56:L65,AS9) -> 1 | AU9: =AT9/(AV4-AT10) -> 0.1111111111 | AV9: =IF(AU9=0,0,(AU9*((LOG(AU9))/LOG(2)))) -> -0.352213889
A10: 11 | B10: 365 | C10: 22 | D10: 374 | E10: 14 | F10: 390 | K10: 0 | L10: 121 | N10: 122 | O10: =COUNTIF($L$7:$L$500,N10) -> 8 | P10: =O10/$Q$4 -> 0.1355932203 | Q10: =IF(P10=0,0,(P10*((LOG(P10))/LOG(2)))) -> -0.3908668542 | T10: =N10 -> 122 | U10: =COUNTIF(L7:L16,T10) -> 3 | Y10: =N10 -> 122 | Z10: =COUNTIF(L17:L26,Y10) -> 1 | AD10: =N10 -> 122 | AE10: =COUNTIF(L27:L35,AD10) -> 2 | AI10: =N10 -> 122 | AJ10: =COUNTIF(L36:L45,AI10) -> 0 | AN10: =N10 -> 122 | AO10: =COUNTIF(L46:L55,AN10) -> 1 | AS10: =N10 -> 122 | AT10: =COUNTIF(L56:L65,AS10) -> 1
A11: 11 | B11: 488 | C11: 22 | D11: 505 | E11: 14 | F11: 526 | K11: 0 | L11: 121 | N11: 211 | O11: =COUNTIF($L$7:$L$500,N11) -> 0 | P11: =O11/$Q$4 -> 0 | Q11: =IF(P11=0,0,(P11*((LOG(P11))/LOG(2)))) -> 0 | T11: =N11 -> 211 | U11: =COUNTIF(L7:L16,T11) -> 0 | V11: =U11/(W4-U10) -> 0 | W11: =IF(V11=0,0,(V11*((LOG(V11))/LOG(2)))) -> 0 | Y11: =N11 -> 211 | Z11: =COUNTIF(L17:L26,Y11) -> 0 | AA11: =Z11/(AB4-Z10) -> 0 | AB11: =IF(AA11=0,0,(AA11*((LOG(AA11))/LOG(2)))) -> 0 | AD11: =N11 -> 211 | AE11: =COUNTIF(L27:L35,AD11) -> 0 | AF11: =AE11/(AG4-AE10) -> 0 | AG11: =IF(AF11=0,0,(AF11*((LOG(AF11))/LOG(2)))) -> 0 | AI11: =N11 -> 211 | AJ11: =COUNTIF(L36:L45,AI11) -> 0 | AK11: =AJ11/(AL4-AJ10) -> 0 | AL11: =IF(AK11=0,0,(AK11*((LOG(AK11))/LOG(2)))) -> 0 | AN11: =N11 -> 211 | AO11: =COUNTIF(L46:L55,AN11) -> 0 | AP11: =AO11/(AQ4-AO10) -> 0 | AQ11: =IF(AP11=0,0,(AP11*((LOG(AP11))/LOG(2)))) -> 0 | AS11: =N11 -> 211 | AT11: =COUNTIF(L56:L65,AS11) -> 0 | AU11: =AT11/(AV4-AT10) -> 0 | AV11: =IF(AU11=0,0,(AU11*((LOG(AU11))/LOG(2)))) -> 0
A12: 11 | B12: 624 | C12: 11 | D12: 629 | E12: 21 | F12: 641 | K12: 0 | L12: 112 | N12: 212 | O12: =COUNTIF($L$7:$L$500,N12) -> 0 | P12: =O12/$Q$4 -> 0 | Q12: =IF(P12=0,0,(P12*((LOG(P12))/LOG(2)))) -> 0 | T12: =N12 -> 212 | U12: =COUNTIF(L7:L16,T12) -> 0 | V12: =U12/(W4-U10) -> 0 | W12: =IF(V12=0,0,(V12*((LOG(V12))/LOG(2)))) -> 0 | Y12: =N12 -> 212 | Z12: =COUNTIF(L17:L26,Y12) -> 0 | AA12: =Z12/(AB4-Z10) -> 0 | AB12: =IF(AA12=0,0,(AA12*((LOG(AA12))/LOG(2)))) -> 0 | AD12: =N12 -> 212 | AE12: =COUNTIF(L27:L35,AD12) -> 0 | AF12: =AE12/(AG4-AE10) -> 0 | AG12: =IF(AF12=0,0,(AF12*((LOG(AF12))/LOG(2)))) -> 0 | AI12: =N12 -> 212 | AJ12: =COUNTIF(L36:L45,AI12) -> 0 | AK12: =AJ12/(AL4-AJ10) -> 0 | AL12: =IF(AK12=0,0,(AK12*((LOG(AK12))/LOG(2)))) -> 0 | AN12: =N12 -> 212 | AO12: =COUNTIF(L46:L55,AN12) -> 0 | AP12: =AO12/(AQ4-AO10) -> 0 | AQ12: =IF(AP12=0,0,(AP12*((LOG(AP12))/LOG(2)))) -> 0 | AS12: =N12 -> 212 | AT12: =COUNTIF(L56:L65,AS12) -> 0 | AU12: =AT12/(AV4-AT10) -> 0 | AV12: =IF(AU12=0,0,(AU12*((LOG(AU12))/LOG(2)))) -> 0
A13: 11 | B13: 741 | C13: 22 | D13: 761 | E13: 14 | F13: 774 | K13: 0 | L13: 121 | N13: 221 | O13: =COUNTIF($L$7:$L$500,N13) -> 1 | P13: =O13/$Q$4 -> 0.01694915254 | Q13: =IF(P13=0,0,(P13*((LOG(P13))/LOG(2)))) -> -0.0997058144 | T13: =N13 -> 221 | U13: =COUNTIF(L7:L16,T13) -> 0 | V13: =U13/(W4-U10) -> 0 | W13: =IF(V13=0,0,(V13*((LOG(V13))/LOG(2)))) -> 0 | Y13: =N13 -> 221 | Z13: =COUNTIF(L17:L26,Y13) -> 1 | AA13: =Z13/(AB4-Z10) -> 0.1111111111 | AB13: =IF(AA13=0,0,(AA13*((LOG(AA13))/LOG(2)))) -> -0.352213889 | AD13: =N13 -> 221 | AE13: =COUNTIF(L27:L35,AD13) -> 0 | AF13: =AE13/(AG4-AE10) -> 0 | AG13: =IF(AF13=0,0,(AF13*((LOG(AF13))/LOG(2)))) -> 0 | AI13: =N13 -> 221 | AJ13: =COUNTIF(L36:L45,AI13) -> 0 | AK13: =AJ13/(AL4-AJ10) -> 0 | AL13: =IF(AK13=0,0,(AK13*((LOG(AK13))/LOG(2)))) -> 0 | AN13: =N13 -> 221 | AO13: =COUNTIF(L46:L55,AN13) -> 0 | AP13: =AO13/(AQ4-AO10) -> 0 | AQ13: =IF(AP13=0,0,(AP13*((LOG(AP13))/LOG(2)))) -> 0 | AS13: =N13 -> 221 | AT13: =COUNTIF(L56:L65,AS13) -> 0 | AU13: =AT13/(AV4-AT10) -> 0 | AV13: =IF(AU13=0,0,(AU13*((LOG(AU13))/LOG(2)))) -> 0
A14: 11 | B14: 871 | C14: 11 | D14: 876 | E14: 21 | F14: 886 | K14: 0 | L14: 112 | N14: 222 | O14: =COUNTIF($L$7:$L$500,N14) -> 0 | P14: =O14/$Q$4 -> 0 | Q14: =IF(P14=0,0,(P14*((LOG(P14))/LOG(2)))) -> 0 | T14: =N14 -> 222 | U14: =COUNTIF(L7:L16,T14) -> 0 | V14: =U14/(W4-U10) -> 0 | W14: =IF(V14=0,0,(V14*((LOG(V14))/LOG(2)))) -> 0 | Y14: =N14 -> 222 | Z14: =COUNTIF(L17:L26,Y14) -> 0 | AA14: =Z14/(AB4-Z10) -> 0 | AB14: =IF(AA14=0,0,(AA14*((LOG(AA14))/LOG(2)))) -> 0 | AD14: =N14 -> 222 | AE14: =COUNTIF(L27:L35,AD14) -> 0 | AF14: =AE14/(AG4-AE10) -> 0 | AG14: =IF(AF14=0,0,(AF14*((LOG(AF14))/LOG(2)))) -> 0 | AI14: =N14 -> 222 | AJ14: =COUNTIF(L36:L45,AI14) -> 0 | AK14: =AJ14/(AL4-AJ10) -> 0 | AL14: =IF(AK14=0,0,(AK14*((LOG(AK14))/LOG(2)))) -> 0 | AN14: =N14 -> 222 | AO14: =COUNTIF(L46:L55,AN14) -> 0 | AP14: =AO14/(AQ4-AO10) -> 0 | AQ14: =IF(AP14=0,0,(AP14*((LOG(AP14))/LOG(2)))) -> 0 | AS14: =N14 -> 222 | AT14: =COUNTIF(L56:L65,AS14) -> 0 | AU14: =AT14/(AV4-AT10) -> 0 | AV14: =IF(AU14=0,0,(AU14*((LOG(AU14))/LOG(2)))) -> 0
A15: 11 | B15: 974 | C15: 22 | D15: 988 | E15: 23 | F15: 998 | K15: 0 | L15: 122 | P15: =SUM(P7:P14) -> 1 | Q15: =-SUM(Q7:Q14) -> 1.304737884 | V15: =SUM(V7:V14) -> 1 | W15: =-SUM(W7:W14) -> 0.985228136 | AA15: =SUM(AA7:AA14) -> 1 | AB15: =-SUM(AB7:AB14) -> 1.392147224 | AF15: =SUM(AF7:AF14) -> 1 | AG15: =-SUM(AG7:AG14) -> 0.5916727786 | AK15: =SUM(AK7:AK14) -> 1 | AL15: =-SUM(AL7:AL14) -> 0.4689955936 | AP15: =SUM(AP7:AP14) -> 1 | AQ15: =-SUM(AQ7:AQ14) -> 0 | AU15: =SUM(AU7:AU14) -> 1 | AV15: =-SUM(AV7:AV14) -> 0.5032583348
A16: 11 | B16: 1099 | C16: 22 | D16: 1111 | E16: 23 | F16: 1125 | K16: 0 | L16: 122 | P16: U= | Q16: =Q15/(LOG(Q4)/LOG(2)) -> 0.2217945018 | V16: U1= | W16: =W15/(LOG(W4)/LOG(2)) -> 0.2965832215 | AA16: U2= | AB16: =AB15/(LOG(AB4)/LOG(2)) -> 0.4190780727 | AF16: U3= | AG16: =AG15/(LOG(AG4)/LOG(2)) -> 0.1866519802 | AK16: U4= | AL16: =AL15/(LOG(AL4)/LOG(2)) -> 0.1411817415 | AP16: U5= | AQ16: =AQ15/(LOG(AQ4)/LOG(2)) -> 0 | AU16: U6= | AV16: =AV15/(LOG(AV4)/LOG(2)) -> 0.1514958543
A17: 22 | B17: 1244 | C17: 24 | D17: 1262 | E17: 14 | F17: 1276 | K17: 0 | L17: 221
A18: 11 | B18: 1377 | C18: 11 | D18: 1385 | E18: 21 | F18: 1394 | K18: 0 | L18: 112
A19: 11 | B19: 1483 | C19: 11 | D19: 1489 | E19: 21 | F19: 1498 | K19: 0 | L19: 112 | N19: Total Target Seq
A20: 11 | B20: 1584 | C20: 11 | D20: 1589 | E20: 21 | F20: 1605 | K20: 0 | L20: 112 | N20: =COUNTIF(L7:L65,G3) -> 8 | P20: 10 | Q20: 10 | R20: 9 | S20: 10 | T20: 10 | U20: 10
A21: 11 | B21: 1697 | C21: 22 | D21: 1709 | E21: 14 | F21: 1722 | K21: 0 | L21: 121 | P21: % of reinforcement given in 6 equal intervals based on number of trials
A22: 11 | B22: 1822 | C22: 22 | D22: 1833 | E22: 14 | F22: 1850 | K22: 0 | L22: 121 | P22: %_1 | Q22: %_2 | R22: %_3 | S22: %_4 | T22: %_5 | U22: %_6
A23: 11 | B23: 1947 | C23: 11 | D23: 1952 | E23: 21 | F23: 1965 | K23: 0 | L23: 112 | O23: target sequence | P23: =$G$3 -> 122 | Q23: =$G$3 -> 122 | R23: =$G$3 -> 122 | S23: =$G$3 -> 122 | T23: =$G$3 -> 122 | U23: =$G$3 -> 122
A24: 11 | B24: 2059 | C24: 22 | D24: 2071 | E24: 14 | F24: 2086 | K24: 0 | L24: 121 | O24: total reinforcement | P24: =U10 -> 3 | Q24: =Z10 -> 1 | R24: =AE10 -> 2 | S24: =AJ10 -> 0 | T24: =AO10 -> 1 | U24: =AT10 -> 1
A25: 11 | B25: 2191 | C25: 22 | D25: 2203 | E25: 14 | F25: 2218 | K25: 0 | L25: 121 | O25: % target
A26: 11 | B26: 2318 | C26: 22 | D26: 2332 | E26: 23 | F26: 2370 | K26: 0 | L26: 122 | O26: CCRF
A27: 11 | B27: 2468 | C27: 11 | D27: 2473 | E27: 21 | F27: 2482 | K27: 0 | L27: 112 | O27: % CCRf
A28: 11 | B28: 2569 | C28: 11 | D28: 2575 | E28: 21 | F28: 2583 | K28: 0 | L28: 112 | O28: average response rate | P28: =F16/P20 -> 112.5 | Q28: =(F26-F16)/Q20 -> 124.5 | R28: =(F35-F26)/R20 -> 110.5555556 | S28: =(F45-F35)/S20 -> 107.4 | T28: =(F55-F45)/T20 -> 106.9 | U28: =(F65-F55)/U20 -> 116.3
A29: 11 | B29: 2672 | C29: 22 | D29: 2682 | E29: 23 | F29: 2695 | K29: 0 | L29: 122
A30: 11 | B30: 2800 | C30: 22 | D30: 2815 | E30: 14 | F30: 2828 | K30: 0 | L30: 121
A31: 11 | B31: 2925 | C31: 11 | D31: 2930 | E31: 21 | F31: 2939 | K31: 0 | L31: 112
A32: 11 | B32: 3028 | C32: 11 | D32: 3034 | E32: 21 | F32: 3045 | K32: 0 | L32: 112
A33: 11 | B33: 3133 | C33: 11 | D33: 3137 | E33: 21 | F33: 3146 | K33: 0 | L33: 112
A34: 11 | B34: 3234 | C34: 11 | D34: 3242 | E34: 21 | F34: 3251 | K34: 0 | L34: 112
A35: 11 | B35: 3341 | C35: 22 | D35: 3351 | E35: 23 | F35: 3365 | K35: 0 | L35: 122
A36: 11 | B36: 3464 | C36: 22 | D36: 3473 | E36: 14 | F36: 3497 | K36: 0 | L36: 121
A37: 11 | B37: 3594 | C37: 11 | D37: 3599 | E37: 21 | F37: 3615 | K37: 0 | L37: 112
A38: 11 | B38: 3701 | C38: 11 | D38: 3707 | E38: 21 | F38: 3716 | K38: 0 | L38: 112
A39: 11 | B39: 3803 | C39: 11 | D39: 3808 | E39: 21 | F39: 3824 | K39: 0 | L39: 112
A40: 11 | B40: 3912 | C40: 11 | D40: 3917 | E40: 21 | F40: 3925 | K40: 0 | L40: 112
A41: 11 | B41: 4012 | C41: 11 | D41: 4016 | E41: 21 | F41: 4025 | K41: 0 | L41: 112
A42: 11 | B42: 4112 | C42: 11 | D42: 4117 | E42: 21 | F42: 4126 | K42: 0 | L42: 112
A43: 11 | B43: 4214 | C43: 11 | D43: 4220 | E43: 21 | F43: 4235 | K43: 0 | L43: 112
A44: 11 | B44: 4322 | C44: 11 | D44: 4327 | E44: 21 | F44: 4336 | K44: 0 | L44: 112
A45: 11 | B45: 4423 | C45: 11 | D45: 4427 | E45: 21 | F45: 4439 | K45: 0 | L45: 112
A46: 11 | B46: 4527 | C46: 11 | D46: 4532 | E46: 21 | F46: 4541 | K46: 0 | L46: 112
A47: 11 | B47: 4632 | C47: 11 | D47: 4636 | E47: 21 | F47: 4645 | K47: 0 | L47: 112
A48: 11 | B48: 4734 | C48: 11 | D48: 4739 | E48: 21 | F48: 4748 | K48: 0 | L48: 112
A49: 11 | B49: 4835 | C49: 11 | D49: 4839 | E49: 21 | F49: 4851 | K49: 0 | L49: 112
A50: 11 | B50: 4943 | C50: 11 | D50: 4948 | E50: 21 | F50: 4960 | K50: 0 | L50: 112
A51: 11 | B51: 5050 | C51: 11 | D51: 5055 | E51: 21 | F51: 5066 | K51: 0 | L51: 112
A52: 11 | B52: 5154 | C52: 11 | D52: 5159 | E52: 21 | F52: 5172 | K52: 0 | L52: 112
A53: 11 | B53: 5261 | C53: 11 | D53: 5266 | E53: 21 | F53: 5284 | K53: 0 | L53: 112
A54: 11 | B54: 5372 | C54: 11 | D54: 5376 | E54: 21 | F54: 5389 | K54: 0 | L54: 112
A55: 11 | B55: 5487 | C55: 22 | D55: 5500 | E55: 23 | F55: 5508 | K55: 0 | L55: 122
A56: 11 | B56: 5613 | C56: 11 | D56: 5620 | E56: 21 | F56: 5632 | K56: 0 | L56: 112
A57: 11 | B57: 5741 | C57: 11 | D57: 5755 | E57: 21 | F57: 5766 | K57: 0 | L57: 112
A58: 11 | B58: 5855 | C58: 11 | D58: 5859 | E58: 21 | F58: 5869 | K58: 0 | L58: 112
A59: 11 | B59: 5959 | C59: 11 | D59: 5965 | E59: 21 | F59: 5974 | K59: 0 | L59: 112
A60: 11 | B60: 6062 | C60: 11 | D60: 6066 | E60: 21 | F60: 6077 | K60: 0 | L60: 112
A61: 11 | B61: 6168 | C61: 22 | D61: 6180 | E61: 14 | F61: 6192 | K61: 0 | L61: 121
A62: 11 | B62: 6301 | C62: 22 | D62: 6310 | E62: 23 | F62: 6331 | K62: 0 | L62: 122
A63: 11 | B63: 6430 | C63: 11 | D63: 6439 | E63: 21 | F63: 6450 | K63: 0 | L63: 112
A64: 11 | B64: 6541 | C64: 11 | D64: 6556 | E64: 21 | F64: 6567 | K64: 0 | L64: 112
A65: 11 | B65: 6656 | C65: 11 | D65: 6662 | E65: 21 | F65: 6671 | K65: 1 | L65: 112

Sheet !M612B00.096
A1: Report for:!M612B00.096
A2: Date: | B2: <date>
A3: Hen: | B3: <hen> | F3: Correct Sequence | G3: =Start!J2 -> 122 | P3: Total Sequences in Data | Q3: =4994-COUNTBLANK(L7:L5000) -> 58 | V3: Total Sequences in Block Data | W3: =COUNTA(L7:L16) -> 10 | AA3: Total Sequences in Block Data | AB3: =COUNTA(L17:L25) -> 9 | AF3: Total Sequences in Block Data | AG3: =COUNTA(L26:L35) -> 10 | AK3: Total Sequences in Block Data | AL3: =COUNTA(L36:L45) -> 10 | AP3: Total Sequences in Block Data | AQ3: =COUNTA(L46:L54) -> 9 | AU3: Total Sequences in Block Data | AV3: =COUNTA(L55:L64) -> 10
P4: Total Sequences in Summary | Q4: =SUM(O7:O14) -> 58 | V4: Total Sequences in Block Summary | W4: =SUM(U7:U14) -> 10 | AA4: Total Sequences in Block Summary | AB4: =SUM(Z7:Z14) -> 9 | AF4: Total Sequences in Block Summary | AG4: =SUM(AE7:AE14) -> 10 | AK4: Total Sequences in Block Summary | AL4: =SUM(AJ7:AJ14) -> 10 | AP4: Total Sequences in Block Summary | AQ4: =SUM(AO7:AO14) -> 9 | AU4: Total Sequences in Block Summary | AV4: =SUM(AT7:AT14) -> 10
T5: Block 1 | Y5: Block 2 | AD5: Block 3 | AI5: Block 4 | AN5: Block 5 | AS5: Block 6
A6: Sequence Component 1 | B6: Time 1 | C6: Sequence Component 2 | D6: Time 2 | E6: Sequence Component 3 | F6: Time 3 | G6: Sequence Component 4 | H6: Time 4 | I6: Sequence Component 5 | J6: Time 5 | K6: Correct? 0=No 1=Yes | L6: Sequence | N6: Frequency | P6: Relative Frequency | Q6: Variability | T6: Frequency | V6: Relative Frequency | W6: Variability | Y6: Frequency | AA6: Relative Frequency | AB6: Variability | AD6: Frequency | AF6: Relative Frequency | AG6: Variability | AI6: Frequency | AK6: Relative Frequency | AL6: Variability | AN6: Frequency | AP6: Relative Frequency | AQ6: Variability | AS6: Frequency | AU6: Relative Frequency | AV6: Variability
